Workbook

Sheet Overview

Sheet NOTES
A1: NOTES
B2: Updated Data | C2: Assessment Description | D2: Average Percent Correct
A3: Winter IA | B3: 2013-02-15 | C3: Winter Interim Assessment | D3: All Average % Correct of less than 51 are denoted in red.
A4: Fall IA | B4: Reading and Algebra EOC: 11/15/2012 Biology and Geometry EOC: 2/10/2013 | C4: Fall Interim Assessment
A5: Baseline | B5: 2012-09-22 | C5: Baseline Assessment

Sheet AUTOMATE (hidden)
A1: AUTOMATE
F2: 9999
B3: TAB NAME | C3: writing | D3: FILEPATH1 | E3: FILENAME1 | F3: FILENAME2
B4: FIAG9BM-R | D4: C:\Documents and Settings\136301\Desktop\Edusoft Files as of Nov 15, 2012\ | E4: R-G09-BM-schl-all.xls | F4: R-G09-BM-dist-all.xls
B5: FIAG10BM-R | D5: C:\Documents and Settings\136301\Desktop\Edusoft Files as of Nov 15, 2012\ | E5: R-G10-BM-schl-all.xls | F5: R-G10-BM-dist-all.xls
B6: BLG9BM-R | D6: F:\School Data Reports\Baseline Interim Assessment Report\BL 2012-2013\Edusoft Baseline Files\ | E6: R-G09-BM-schl-all.xls | F6: R-G09-BM-dist-all.xls
B7: BLG10BM-R | D7: F:\School Data Reports\Baseline Interim Assessment Report\BL 2012-2013\Edusoft Baseline Files\ | E7: R-G10-BM-schl-all.xls | F7: R-G10-BM-dist-all.xls
B8: WIAG9BM-R | D8: F:\School Data Reports\Winter Interim Assessment Report\Winter IA 2012-2013\Edusoft Files\ | E8: R-G09-BM-schl-all.xls | F8: R-G09-BM-dist-all.xls
B9: WIAG10BM-R | D9: F:\School Data Reports\Winter Interim Assessment Report\Winter IA 2012-2013\Edusoft Files\ | E9: R-G10-BM-schl-all.xls | F9: R-G10-BM-dist-all.xls
A14: Note: use copySheet macro to copy reporting categories form Year at a Glance
A15: F:\Excel Macro\CopyPasteSheet.xlsm
B22: BLBM-MALG | D22: F:\School Data Reports\Baseline Interim Assessment Report\BL 2012-2013\Edusoft Baseline Files\ | E22: M-alg-bm-schl-all.xls | F22: M-alg-bm-dist-all.xls
B23: BLBM-MGEO | D23: F:\School Data Reports\Baseline Interim Assessment Report\BL 2012-2013\Edusoft Baseline Files\ | E23: M-geo-bm-schl-all.xls | F23: M-geo-bm-dist-all.xls
B24: BLBM-SBIO | D24: F:\School Data Reports\Baseline Interim Assessment Report\BL 2012-2013\Edusoft Baseline Files\ | E24: s-bio-bm-schl-all.xls | F24: s-bio-bm-dist-all.xls
B25: FIABM-MALG | D25: F:\School Data Reports\Baseline Interim Assessment Report\BL 2012-2013\Edusoft Baseline Files\ | E25: ALG-bm-schl-all.xls | F25: Alg-bm-dist-all.xls
B26: FIABM-MGEO | D26: F:\School Data Reports\Baseline Interim Assessment Report\BL 2012-2013\Edusoft Baseline Files\ | E26: GEO-bm-schl-all.xls | F26: GEO-bm-dist-all.xls
B27: FIABM-SBIO | D27: F:\School Data Reports\Baseline Interim Assessment Report\BL 2012-2013\Edusoft Baseline Files\ | E27: BIO-bm-schl-all.xls | F27: BIO-bm-dist-all.xls
B28: WIABM-MALG | D28: F:\School Data Reports\Winter Interim Assessment Report\Winter IA 2012-2013\Edusoft Files\ | E28: M-alg-bm-SCHL-all.xls | F28: M-alg-bm-dist-all.xls
B29: WIABM-MGEO | D29: F:\School Data Reports\Winter Interim Assessment Report\Winter IA 2012-2013\Edusoft Files\ | E29: M-geo-bm-SCHL-all.xls | F29: M-geo-bm-dist-all.xls
B30: WIABM-SBIO | D30: F:\School Data Reports\Winter Interim Assessment Report\Winter IA 2012-2013\Edusoft Files\ | E30: S-bio-bm-schl-all.xls | F30: S-bio-bm-DIST-all.xls
B47: WIAG3-RALL | D47: C:\Documents and Settings\136301\Desktop\IA\Winter IA\ | E47: R-g03-cc-s-all.xls | F47: R-g03-cc-d-all.xls | G47: R-g03-cc-d-ALL-DA.xls | H47: R-g03-cc-d-ALL-ETO.xls
B48: WIAG3-MALL | D48: C:\Documents and Settings\136301\Desktop\IA\Winter IA\ | E48: M-g03-cc-s-all.xls | F48: M-g03-cc-d-all.xls | G48: M-g03-cc-d-ALL-DA.xls | H48: M-g03-cc-d-ALL-ETO.xls
B49: WIAG4-RALL | D49: C:\Documents and Settings\136301\Desktop\IA\Winter IA\ | E49: R-g04-cc-s-all.xls | F49: R-g04-cc-d-all.xls | G49: R-g04-cc-d-ALL-DA.xls | H49: R-g04-cc-d-ALL-ETO.xls
B50: WIAG4-MALL | D50: C:\Documents and Settings\136301\Desktop\IA\Winter IA\ | E50: M-g04-cc-s-all.xls | F50: M-g04-cc-d-all.xls | G50: M-g04-cc-d-ALL-DA.xls | H50: M-g04-cc-d-ALL-ETO.xls
B51: WIAG5-RALL | D51: C:\Documents and Settings\136301\Desktop\IA\Winter IA\ | E51: R-g05-cc-s-all.xls | F51: R-g05-cc-d-all.xls | G51: R-g05-cc-d-ALL-DA.xls | H51: R-g05-cc-d-ALL-ETO.xls
B52: WIAG5-MALL | D52: C:\Documents and Settings\136301\Desktop\IA\Winter IA\ | E52: M-g05-cc-s-all.xls | F52: M-g05-cc-d-all.xls | G52: M-g05-cc-d-ALL-DA.xls | H52: M-g05-cc-d-ALL-ETO.xls
B53: WIAG6-RALL | D53: C:\Documents and Settings\136301\Desktop\IA\Winter IA\ | E53: R-g06-cc-s-all.xls | F53: R-g06-cc-d-all.xls | G53: R-g06-cc-d-ALL-DA.xls | H53: R-g06-cc-d-ALL-ETO.xls
B54: WIAG6-MALL | D54: C:\Documents and Settings\136301\Desktop\IA\Winter IA\ | E54: M-g06-cc-s-all.xls | F54: M-g06-cc-d-all.xls | G54: M-g06-cc-d-ALL-DA.xls | H54: M-g06-cc-d-ALL-ETO.xls
B55: WIAG7-RALL | D55: C:\Documents and Settings\136301\Desktop\IA\Winter IA\ | E55: R-g07-cc-s-all.xls | F55: R-g07-cc-d-all.xls | G55: R-g07-cc-d-ALL-DA.xls | H55: R-g07-cc-d-ALL-ETO.xls
B56: WIAG7-MALL | D56: C:\Documents and Settings\136301\Desktop\IA\Winter IA\ | E56: M-g07-cc-s-all.xls | F56: M-g07-cc-d-all.xls | G56: M-g07-cc-d-ALL-DA.xls | H56: M-g07-cc-d-ALL-ETO.xls
B57: WIAG8-RALL | D57: C:\Documents and Settings\136301\Desktop\IA\Winter IA\ | E57: R-g08-cc-s-all.xls | F57: R-g08-cc-d-all.xls | G57: R-g08-cc-d-ALL-DA.xls | H57: R-g08-cc-d-ALL-ETO.xls
B58: WIAG8-MALL | D58: C:\Documents and Settings\136301\Desktop\IA\Winter IA\ | E58: M-g08-cc-s-all.xls | F58: M-g08-cc-d-all.xls | G58: M-g08-cc-d-ALL-DA.xls | H58: M-g08-cc-d-ALL-ETO.xls
B59: WIAG9-RALL | D59: C:\Documents and Settings\136301\Desktop\IA\Winter IA\ | E59: R-g09-cc-s-all.xls | F59: R-g09-cc-d-all.xls | G59: R-g09-cc-d-ALL-DA.xls | H59: R-g09-cc-d-ALL-ETO.xls
B60: WIAG9-MALL | D60: C:\Documents and Settings\136301\Desktop\IA\Winter IA\ | E60: M-g09-cc-s-all.xls | F60: M-g09-cc-d-all.xls | G60: M-g09-cc-d-ALL-DA.xls | H60: M-g09-cc-d-ALL-ETO.xls
B61: WIAG10-RALL | D61: C:\Documents and Settings\136301\Desktop\IA\Winter IA\ | E61: R-g10-cc-s-all.xls | F61: R-g10-cc-d-all.xls | G61: R-g10-cc-d-ALL-DA.xls | H61: R-g10-cc-d-ALL-ETO.xls
B62: WIAG10-MALL | D62: C:\Documents and Settings\136301\Desktop\IA\Winter IA\ | E62: M-g10-cc-s-all.xls | F62: M-g10-cc-d-all.xls | G62: M-g10-cc-d-ALL-DA.xls | H62: M-g10-cc-d-ALL-ETO.xls
B63: WIAG5-SALL | D63: C:\Documents and Settings\136301\Desktop\IA\Winter IA\ | E63: S-G05-cc-s-all.xls | F63: S-G05-cc-d-all.xls | G63: S-G05-cc-d-ALL-DA.xls | H63: S-G05-cc-d-ALL-ETO.xls
B64: WIAG8-SALL | D64: C:\Documents and Settings\136301\Desktop\IA\Winter IA\ | E64: S-G08-cc-s-all.xls | F64: S-G08-cc-d-all.xls | G64: S-G08-cc-d-ALL-DA.xls | H64: S-G08-cc-d-ALL-ETO.xls
B65: WIAG11-SALL | D65: C:\Documents and Settings\136301\Desktop\IA\Winter IA\ | E65: S-G11-cc-s-all.xls | F65: S-G11-cc-d-all.xls | G65: S-G11-cc-d-ALL-DA.xls | H65: S-G11-cc-d-ALL-ETO.xls

Sheet Select School
B3: =VLOOKUP(C3,SchList!$I$1:$J$499,2,FALSE) -> 9999 | C3: 1

Sheet Algebra I Report
A1: Direction: Click on "School Name" below then click on arrow key on the right to select a school. To see benchmark description, move the mouse over the benchmark code.
A2: Click here to return to the school and subject selection sheet
B3: =VALUE('Select School'!B3) -> 9999 | U3: =TEXT(B3,"0000") -> 9999
A4: 2012-13 Algebra I Benchmark Analysis Report
A5: Baseline, Fall Interim Assessment (Fall IA), and Winter Interim Assessment (Winter IA)
A6: =TEXT($B$3,"0000")&"-"&VLOOKUP(B3,SchList!$A$2:$B$499,2,FALSE) -> 9999-District
A7: Reporting Categories | B7: Benchmarks | C7: No. of Items | F7: Average % Correct
C8: Base- line | D8: Fall IA | E8: Winter IA | F8: Base- line | G8: Fall IA | H8: Winter IA
B9: No. of Tested | F9: =IFERROR(VLOOKUP($B$3,'BLCC-MALG'!$A$14:$BZ$500,3,FALSE),"") -> 29390 | G9: =IFERROR(VLOOKUP($B$3,'FIACC-MALG'!$A$14:$BZ$500,3,FALSE),"") -> 29828 | H9: =IFERROR(VLOOKUP($B$3,'WIACC-MALG'!$A$14:$BZ$500,3,FALSE),"") -> 29851
B10: MA.912.A.2.3 | C10: 1 | E10: 4 | F10: =IFERROR(VLOOKUP($B$3,'BLBM-MALG'!$A$14:$DZ$500,9,FALSE),"") -> 0.5 | H10: =IFERROR(VLOOKUP($B$3,'WIABM-MALG'!$A$14:$DZ$500,7,FALSE),"") -> 0.4495435695
B11: MA.912.A.2.4 | C11: 2 | E11: 4 | F11: =IFERROR(VLOOKUP($B$3,'BLBM-MALG'!$A$14:$DZ$500,11,FALSE),"") -> 0.349999994 | H11: =IFERROR(VLOOKUP($B$3,'WIABM-MALG'!$A$14:$DZ$500,9,FALSE),"") -> 0.49
B12: MA.912.A.2.13 | C12: 2 | F12: =IFERROR(VLOOKUP($B$3,'BLBM-MALG'!$A$14:$DZ$500,13,FALSE),"") -> 0.3000000119
B13: MA.912.A.3.1 | C13: 1 | D13: 5 | F13: =IFERROR(VLOOKUP($B$3,'BLBM-MALG'!$A$14:$DZ$500,15,FALSE),"") -> 0.3000000119 | G13: =IFERROR(VLOOKUP($B$3,'FIABM-MALG'!$A$14:$DX$500,7,FALSE),"") -> 0.4902051857
B14: MA.912.A.3.2 | C14: 2 | D14: 3 | F14: =IFERROR(VLOOKUP($B$3,'BLBM-MALG'!$A$14:$DZ$500,17,FALSE),"") -> 0.25 | G14: =IFERROR(VLOOKUP($B$3,'FIABM-MALG'!$A$14:$DX$500,9,FALSE),"") -> 0.5333333413
B15: MA.912.A.3.3 | C15: 2 | D15: 5 | F15: =IFERROR(VLOOKUP($B$3,'BLBM-MALG'!$A$14:$DZ$500,19,FALSE),"") -> 0.200000003 | G15: =IFERROR(VLOOKUP($B$3,'FIABM-MALG'!$A$14:$DX$500,11,FALSE),"") -> 0.3995896355
B16: MA.912.A.3.4 | C16: 2 | F16: =IFERROR(VLOOKUP($B$3,'BLBM-MALG'!$A$14:$DZ$500,21,FALSE),"") -> 0.25
B17: MA.912.A.3.5 | C17: 2 | E17: 4 | F17: =IFERROR(VLOOKUP($B$3,'BLBM-MALG'!$A$14:$DZ$500,23,FALSE),"") -> 0.4245015283 | H17: =IFERROR(VLOOKUP($B$3,'WIABM-MALG'!$A$14:$DZ$500,11,FALSE),"") -> 0.39
B18: MA.912.A.3.8 | C18: 2 | E18: 4 | F18: =IFERROR(VLOOKUP($B$3,'BLBM-MALG'!$A$14:$DZ$500,25,FALSE),"") -> 0.3000000119 | H18: =IFERROR(VLOOKUP($B$3,'WIABM-MALG'!$A$14:$DZ$500,13,FALSE),"") -> 0.4499999881
B19: MA.912.A.3.9 | C19: 2 | E19: 4 | F19: =IFERROR(VLOOKUP($B$3,'BLBM-MALG'!$A$14:$DZ$500,27,FALSE),"") -> 0.3000000119 | H19: =IFERROR(VLOOKUP($B$3,'WIABM-MALG'!$A$14:$DZ$500,15,FALSE),"") -> 0.5122717715
B20: MA.912.A.3.10 | C20: 3 | E20: 4 | F20: =IFERROR(VLOOKUP($B$3,'BLBM-MALG'!$A$14:$DZ$500,29,FALSE),"") -> 0.2333333294 | H20: =IFERROR(VLOOKUP($B$3,'WIABM-MALG'!$A$14:$DZ$500,17,FALSE),"") -> 0.400000006
B21: MA.912.A.3.11 | C21: 2 | E21: 4 | F21: =IFERROR(VLOOKUP($B$3,'BLBM-MALG'!$A$14:$DZ$500,31,FALSE),"") -> 0.5 | H21: =IFERROR(VLOOKUP($B$3,'WIABM-MALG'!$A$14:$DZ$500,19,FALSE),"") -> 0.42
B22: MA.912.A.3.14 | E22: 4 | H22: =IFERROR(VLOOKUP($B$3,'WIABM-MALG'!$A$14:$DZ$500,21,FALSE),"") -> 0.3622717802
B23: MA.912.A.3.15 | C23: 2 | E23: 4 | F23: =IFERROR(VLOOKUP($B$3,'BLBM-MALG'!$A$14:$DZ$500,33,FALSE),"") -> 0.400000006 | H23: =IFERROR(VLOOKUP($B$3,'WIABM-MALG'!$A$14:$DZ$500,23,FALSE),"") -> 0.400000006
B24: MA.912.A.10.1 | C24: 2 | F24: =IFERROR(VLOOKUP($B$3,'BLBM-MALG'!$A$14:$DZ$500,53,FALSE),"") -> 0.3254984717
B25: MA.912.G.1.4 | C25: 1 | E25: 4 | F25: =IFERROR(VLOOKUP($B$3,'BLBM-MALG'!$A$14:$DZ$500,59,FALSE),"") -> 0.200000003 | H25: =IFERROR(VLOOKUP($B$3,'WIABM-MALG'!$A$14:$DZ$500,25,FALSE),"") -> 0.27
B26: MA.912.A.4.1 | C26: 2 | F26: =IFERROR(VLOOKUP($B$3,'BLBM-MALG'!$A$14:$DZ$500,35,FALSE),"") -> 0.274501537
B27: MA.912.A.4.2 | C27: 2 | D27: 5 | F27: =IFERROR(VLOOKUP($B$3,'BLBM-MALG'!$A$14:$DZ$500,37,FALSE),"") -> 0.3000000119 | G27: =IFERROR(VLOOKUP($B$3,'FIABM-MALG'!$A$14:$DX$500,13,FALSE),"") -> 0.4097948143
B28: MA.912.A.4.3 | C28: 2 | F28: =IFERROR(VLOOKUP($B$3,'BLBM-MALG'!$A$14:$DZ$500,39,FALSE),"") -> 0.3000000119
B29: MA.912.A.4.4 | C29: 1 | F29: =IFERROR(VLOOKUP($B$3,'BLBM-MALG'!$A$14:$DZ$500,41,FALSE),"") -> 0.200000003
B30: MA.912.A.1.8 | C30: 3 | F30: =IFERROR(VLOOKUP($B$3,'BLBM-MALG'!$A$14:$DZ$500,7,FALSE),"") -> 0.3333333333
B31: MA.912.A.5.4 | C31: 2 | D31: 5 | F31: =IFERROR(VLOOKUP($B$3,'BLBM-MALG'!$A$14:$DZ$500,43,FALSE),"") -> 0.349999994 | G31: =IFERROR(VLOOKUP($B$3,'FIABM-MALG'!$A$14:$DX$500,15,FALSE),"") -> 0.4497948239
B32: MA.912.A.6.1 | C32: 1 | F32: =IFERROR(VLOOKUP($B$3,'BLBM-MALG'!$A$14:$DZ$500,45,FALSE),"") -> 0.200000003
B33: MA.912.A.6.2 | C33: 1 | F33: =IFERROR(VLOOKUP($B$3,'BLBM-MALG'!$A$14:$DZ$500,47,FALSE),"") -> 0.200000003
B34: MA.912.A.7.1 | C34: 2 | F34: =IFERROR(VLOOKUP($B$3,'BLBM-MALG'!$A$14:$DZ$500,49,FALSE),"") -> 0.25
B35: MA.912.A.7.2 | C35: 2 | F35: =IFERROR(VLOOKUP($B$3,'BLBM-MALG'!$A$14:$DZ$500,51,FALSE),"") -> 0.4499999881
B36: MA.912.D.7.1 | C36: 1 | D36: 5 | F36: =IFERROR(VLOOKUP($B$3,'BLBM-MALG'!$A$14:$DZ$500,55,FALSE),"") -> 0.3000000119 | G36: =IFERROR(VLOOKUP($B$3,'FIABM-MALG'!$A$14:$DX$500,17,FALSE),"") -> 0.4697948281
B37: MA.912.D.7.2 | C37: 1 | D37: 6 | F37: =IFERROR(VLOOKUP($B$3,'BLBM-MALG'!$A$14:$DZ$500,57,FALSE),"") -> 0.6490030686 | G37: =IFERROR(VLOOKUP($B$3,'FIABM-MALG'!$A$14:$DX$500,19,FALSE),"") -> 0.4500000079
A38: All Benchmarks | C38: =SUM(C10:C37) -> 48 | D38: =SUM(D10:D37) -> 34 | E38: =SUM(E10:E37) -> 40 | F38: =IFERROR(VLOOKUP($B$3,'BLCC-MALG'!$A$14:$DZ$500,5,FALSE),"") -> 0.3207917963 | G38: =IFERROR(VLOOKUP($B$3,'FIACC-MALG'!$A$14:$DZ$500,5,FALSE),"") -> 0.4498189675 | H38: =IFERROR(VLOOKUP($B$3,'WIACC-MALG'!$A$14:$DZ$500,5,FALSE),"") -> 0.4136358725
A54: Reporting Categories | C54: Number of Items | F54: Average % Correct
C55: BL | D55: Fall IA | E55: Winter IA | F55: BL | G55: Fall IA | H55: Winter IA
A56: 1 | B56: Functions, Linear Equations, & Inequalities | C56: =SUM(C10:C25) -> 28 | D56: =SUM(D10:D25) -> 13 | E56: 40 | F56: =IFERROR(VLOOKUP($B$3,'BLCC-MALG'!$A$14:$DZ$500,11,FALSE),"") -> 0.3214285714 | G56: =IFERROR(VLOOKUP($B$3,'FIACC-MALG'!$A$14:$DZ$500,13,FALSE),"") -> 0.4653056978 | H56: =IFERROR(VLOOKUP($B$3,'WIACC-MALG'!$A$14:$DZ$500,13,FALSE),"") -> 0.4136358725
A57: 2 | B57: Polynomials | C57: =SUM(C26:C29) -> 7 | D57: =SUM(D26:D29) -> 5 | E57: 0 | F57: =IFERROR(VLOOKUP($B$3,'BLCC-MALG'!$A$14:$DZ$500,17,FALSE),"") -> 0.2784290072 | G57: =IFERROR(VLOOKUP($B$3,'FIACC-MALG'!$A$14:$DZ$500,17,FALSE),"") -> 0.4097948143
A58: 3 | B58: Rationals, Radicals, Quadratics, & Discrete Mathematics | C58: =SUM(C30:C37) -> 13 | D58: =SUM(D30:D37) -> 16 | E58: 0 | F58: =IFERROR(VLOOKUP($B$3,'BLCC-MALG'!$A$14:$DZ$500,23,FALSE),"") -> 0.3460004713 | G58: =IFERROR(VLOOKUP($B$3,'FIACC-MALG'!$A$14:$DZ$500,21,FALSE),"") -> 0.4529326471
C59: =SUM(C56:C58) -> 48 | D59: =SUM(D56:D58) -> 34 | E59: 40

Sheet Algebra I NGSSS
A1: Click here to return to the school and subject selection sheet
A2: Next Generation Sunshine State Standards Algebra I EOC Assessed Benchmarks
A3: Reporting Categories | B3: Benchmarks | C3: Description
A4: Rationals, Radicals, Quadratics, and Discrete Mathematics | B4: MA.912.A.1.8 | C4: Use the zero product property of real numbers in a variety of contexts to identify solutions to equations.
A5: Functions, Linear Eq., & Ineq. | B5: MA.912.A.2.3 | C5: Describe the concept of a function, use function notation, determine whether a given relation is a function, and link equations to functions.
A6: Functions, Linear Eq., & Ineq. | B6: MA.912.A.2.4 | C6: Determine the domain and range of a relation.
A7: Functions, Linear Eq., & Ineq. | B7: MA.912.A.2.13 | C7: Solve real-world problems involving relations and functions.
A8: Functions, Linear Eq., & Ineq. | B8: MA.912.A.3.1 | C8: Solve linear equations in one variable that include simplifying algebraic expressions.
A9: Functions, Linear Eq., & Ineq. | B9: MA.912.A.3.2 | C9: Identify and apply the distributive, associative, and commutative properties of real numbers and the properties of equality.
A10: Functions, Linear Eq., & Ineq. | B10: MA.912.A.3.3 | C10: Solve literal equations for a specified variable.
A11: Functions, Linear Eq., & Ineq. | B11: MA.912.A.3.4 | C11: Solve and graph simple and compound inequalities in one variable and be able to justify each step in a solution.
A12: Functions, Linear Eq., & Ineq. | B12: MA.912.A.3.5 | C12: Symbolically represent and solve multi-step and real-world applications that involve linear equations and inequalities.
A13: Functions, Linear Eq., & Ineq. | B13: MA.912.A.3.8 | C13: Graph a line given any of the following information: a table of values, the x- and y-intercepts, two points, the slope and a point, the equation of the line in slope-intercept form, standard form, or point-slope form .
A14: Functions, Linear Eq., & Ineq. | B14: MA.912.A.3.9 | C14: Determine the slope, x-intercept, and y-intercept of a line given its graph, its equation, or two points on the line.
A15: Functions, Linear Eq., & Ineq. | B15: MA.912.A.3.10 | C15: Write an equation of a line given any of the following information: two points on the line, its slope and one point on the line, or its graph. Also, find an equation of a new line parallel to a given line, or perpendicular to a given line, through a given point on the new line.
A16: Functions, Linear Eq., & Ineq. | B16: MA.912.A.3.11 | C16: Write an equation of a line that models a data set, and use the equation or the graph to make predictions. Describe the slope of the line in terms of the data, recognizing that the slope is the rate of change.
A17: Functions, Linear Eq., & Ineq. | B17: MA.912.A.3.14 | C17: Solve systems of linear equations and inequalities in two and three variables using graphical, substitution, and elimination methods.
A18: Functions, Linear Eq., & Ineq. | B18: MA.912.A.3.15 | C18: Solve real-world problems involving systems of linear equations and inequalities in two and three variables.
A19: Polynomials | B19: MA.912.A.4.1 | C19: Simplify monomials and monomial expressions using the laws of integral exponents.
A20: Polynomials | B20: MA.912.A.4.2 | C20: Add, subtract, and multiply polynomials.
A21: Polynomials | B21: MA.912.A.4.3 | C21: Factor polynomial expressions.
A22: Polynomials | B22: MA.912.A.4.4 | C22: Divide polynomials by monomials and polynomials with various techniques, including synthetic division.
A23: Rationals, Radicals, Quadratics, and Discrete Mathematics | B23: MA.912.A.5.4 | C23: Solve algebraic proportions.
A24: Rationals, Radicals, Quadratics, and Discrete Mathematics | B24: MA.912.A.6.1 | C24: Simplify radical expressions
A25: Rationals, Radicals, Quadratics, and Discrete Mathematics | B25: MA.912.A.6.2 | C25: Add, subtract, multiply, and divide radical expressions (square roots and higher).
A26: Rationals, Radicals, Quadratics, and Discrete Mathematics | B26: MA.912.A.7.1 | C26: Graph quadratic equations with and without graphing technology.
A27: Rationals, Radicals, Quadratics, and Discrete Mathematics | B27: MA.912.A.7.2 | C27: Solve quadratic equations over the real numbers by factoring and by using the quadratic formula.
A28: Functions, Linear Eq., & Ineq. | B28: MA.912.A.10.1 | C28: Use a variety of problem-solving strategies, such as drawing a diagram, making a chart, guessing- and-checking, solving a simpler problem, writing an equation, working backwards, and creating a table.
A29: Rationals, Radicals, Quadratics, and Discrete Mathematics | B29: MA.912.D.7.1 | C29: Perform set Operations such as union and intersection, complement, and cross product.
A30: Rationals, Radicals, Quadratics, and Discrete Mathematics | B30: MA.912.D.7.2 | C30: Use Venn diagrams to explore relationships and pattern and to make arguments about relationships between sets.
A31: Functions, Linear Eq., & Ineq. | B31: MA.912.G.1.4 | C31: Use coordinate geometry to find slopes, parallel lines, perpendicular lines, and equations of lines.

Sheet Grade 9 Reading
A1: Direction: Click on "School Name" below then click on arrow key on the right to select a school. To see benchmark description, move the mouse over the benchmark code.
A2: Click here to return to the school and subject selection sheet
B3: =VALUE('Select School'!B3) -> 9999 | U3: =TEXT(B3,"0000") -> 9999
A4: 2012-13 Grade 9 Reading Benchmark Analysis Report
A5: Baseline, Fall Interim Assessment (Fall IA), and Winter Interim Assessment (Winter IA)
A6: =TEXT($B$3,"0000")&"-"&VLOOKUP(B3,SchList!$A$2:$B$499,2,FALSE) -> 9999-District
A7: Reporting Categories | B7: Benchmarks | C7: No. of Items | F7: Average % Correct
C8: Base- line | D8: Fall IA | E8: Winter IA | F8: Base- line | G8: Fall IA | H8: Winter IA
B9: No. of Tested | F9: =IFERROR(VLOOKUP($B$3,'BLG9CC-R'!$A$14:$BZ$500,3,FALSE),"") -> 24869 | G9: =IFERROR(VLOOKUP($B$3,'FIAG9CC-R'!$A$14:$BZ$500,3,FALSE),"") -> 25134 | H9: =IFERROR(VLOOKUP($B$3,'WIAG9CC-R'!$A$14:$BZ$500,3,FALSE),"") -> 25373
B10: LA.910.1.6.3 | C10: 3 | D10: 5 | E10: 4 | F10: =IFERROR(VLOOKUP($B$3,'BLG9BM-R'!$A$14:$CZ$500,7,FALSE),"") -> 0.62 | G10: =IFERROR(VLOOKUP($B$3,'FIAG9BM-R'!$A$14:$CZ$500,7,FALSE),"") -> 0.6 | H10: =IFERROR(VLOOKUP($B$3,'WIAG9BM-R'!$A$14:$CZ$500,7,FALSE),"") -> 0.65
B11: LA.910.1.6.8 | C11: 2 | D11: 4 | E11: 4 | F11: =IFERROR(VLOOKUP($B$3,'BLG9BM-R'!$A$14:$CZ$500,9,FALSE),"") -> 0.33 | G11: =IFERROR(VLOOKUP($B$3,'FIAG9BM-R'!$A$14:$CZ$500,9,FALSE),"") -> 0.47 | H11: =IFERROR(VLOOKUP($B$3,'WIAG9BM-R'!$A$14:$CZ$500,9,FALSE),"") -> 0.64
B12: LA.910.1.6.9 | C12: 2 | D12: 4 | E12: 4 | F12: =IFERROR(VLOOKUP($B$3,'BLG9BM-R'!$A$14:$CZ$500,11,FALSE),"") -> 0.7 | G12: =IFERROR(VLOOKUP($B$3,'FIAG9BM-R'!$A$14:$CZ$500,11,FALSE),"") -> 0.67 | H12: =IFERROR(VLOOKUP($B$3,'WIAG9BM-R'!$A$14:$CZ$500,11,FALSE),"") -> 0.55
B13: LA.910.1.7.2 | C13: 4 | D13: 4 | E13: 4 | F13: =IFERROR(VLOOKUP($B$3,'BLG9BM-R'!$A$14:$CZ$500,13,FALSE),"") -> 0.49 | G13: =IFERROR(VLOOKUP($B$3,'FIAG9BM-R'!$A$14:$CZ$500,13,FALSE),"") -> 0.56 | H13: =IFERROR(VLOOKUP($B$3,'WIAG9BM-R'!$A$14:$CZ$500,13,FALSE),"") -> 0.72
B14: LA.910.1.7.3 | C14: 8 | D14: 5 | E14: 4 | F14: =IFERROR(VLOOKUP($B$3,'BLG9BM-R'!$A$14:$CZ$500,15,FALSE),"") -> 0.59 | G14: =IFERROR(VLOOKUP($B$3,'FIAG9BM-R'!$A$14:$CZ$500,15,FALSE),"") -> 0.62 | H14: =IFERROR(VLOOKUP($B$3,'WIAG9BM-R'!$A$14:$CZ$500,15,FALSE),"") -> 0.59
B15: LA.910.1.7.4 | C15: 2 | D15: 5 | E15: 3 | F15: =IFERROR(VLOOKUP($B$3,'BLG9BM-R'!$A$14:$CZ$500,17,FALSE),"") -> 0.6 | G15: =IFERROR(VLOOKUP($B$3,'FIAG9BM-R'!$A$14:$CZ$500,17,FALSE),"") -> 0.56 | H15: =IFERROR(VLOOKUP($B$3,'WIAG9BM-R'!$A$14:$CZ$500,17,FALSE),"") -> 0.67
B16: LA.910.1.7.5 | C16: 2 | D16: 4 | E16: 4 | F16: =IFERROR(VLOOKUP($B$3,'BLG9BM-R'!$A$14:$CZ$500,19,FALSE),"") -> 0.56 | G16: =IFERROR(VLOOKUP($B$3,'FIAG9BM-R'!$A$14:$CZ$500,19,FALSE),"") -> 0.58 | H16: =IFERROR(VLOOKUP($B$3,'WIAG9BM-R'!$A$14:$CZ$500,19,FALSE),"") -> 0.65
B17: LA.910.1.7.7 | C17: 6 | D17: 4 | E17: 4 | F17: =IFERROR(VLOOKUP($B$3,'BLG9BM-R'!$A$14:$CZ$500,21,FALSE),"") -> 0.56 | G17: =IFERROR(VLOOKUP($B$3,'FIAG9BM-R'!$A$14:$CZ$500,21,FALSE),"") -> 0.56 | H17: =IFERROR(VLOOKUP($B$3,'WIAG9BM-R'!$A$14:$CZ$500,21,FALSE),"") -> 0.6
B18: LA.910.2.1.5 | C18: 2 | D18: 3 | E18: 5 | F18: =IFERROR(VLOOKUP($B$3,'BLG9BM-R'!$A$14:$CZ$500,23,FALSE),"") -> 0.39 | G18: =IFERROR(VLOOKUP($B$3,'FIAG9BM-R'!$A$14:$CZ$500,23,FALSE),"") -> 0.43 | H18: =IFERROR(VLOOKUP($B$3,'WIAG9BM-R'!$A$14:$CZ$500,23,FALSE),"") -> 0.62
B19: LA.910.2.1.7 | C19: 4 | D19: 5 | E19: 1 | F19: =IFERROR(VLOOKUP($B$3,'BLG9BM-R'!$A$14:$CZ$500,25,FALSE),"") -> 0.56 | G19: =IFERROR(VLOOKUP($B$3,'FIAG9BM-R'!$A$14:$CZ$500,25,FALSE),"") -> 0.45 | H19: =IFERROR(VLOOKUP($B$3,'WIAG9BM-R'!$A$14:$CZ$500,25,FALSE),"") -> 0.6
B20: LA.910.2.2.1 | D20: 4 | E20: 4 | G20: =IFERROR(VLOOKUP($B$3,'FIAG9BM-R'!$A$14:$CZ$500,27,FALSE),"") -> 0.61 | H20: =IFERROR(VLOOKUP($B$3,'WIAG9BM-R'!$A$14:$CZ$500,27,FALSE),"") -> 0.44
B21: LA.910.6.1.1 | C21: 2 | D21: 4 | E21: 4 | F21: =IFERROR(VLOOKUP($B$3,'BLG9BM-R'!$A$14:$CZ$500,27,FALSE),"") -> 0.53 | G21: =IFERROR(VLOOKUP($B$3,'FIAG9BM-R'!$A$14:$CZ$500,29,FALSE),"") -> 0.63 | H21: =IFERROR(VLOOKUP($B$3,'WIAG9BM-R'!$A$14:$CZ$500,29,FALSE),"") -> 0.44
B22: LA.910.6.2.2 | C22: 6 | D22: 6 | E22: 5 | F22: =IFERROR(VLOOKUP($B$3,'BLG9BM-R'!$A$14:$CZ$500,29,FALSE),"") -> 0.43 | G22: =IFERROR(VLOOKUP($B$3,'FIAG9BM-R'!$A$14:$CZ$500,31,FALSE),"") -> 0.54 | H22: =IFERROR(VLOOKUP($B$3,'WIAG9BM-R'!$A$14:$CZ$500,31,FALSE),"") -> 0.46
A23: All Benchmarks | C23: =SUM(C10:C22) -> 43 | D23: =SUM(D10:D22) -> 57 | E23: =SUM(E10:E22) -> 50 | F23: =IFERROR(VLOOKUP($B$3,'BLG9CC-R'!$A$14:$CZ$500,5,FALSE),"") -> 0.53 | G23: =IFERROR(VLOOKUP($B$3,'FIAG9CC-R'!$A$14:$CZ$500,5,FALSE),"") -> 0.56 | H23: =IFERROR(VLOOKUP($B$3,'WIAG9CC-R'!$A$14:$CZ$500,5,FALSE),"") -> 0.58
A39: Reporting Categories | C39: Number of Items | F39: Average % Correct
C40: BL | D40: Fall IA | E40: Winter IA | F40: BL | G40: Fall IA | H40: Winter IA
A41: 1 | B41: Vocabulary | C41: =SUM(C10:C12) -> 7 | D41: =SUM(D10:D12) -> 13 | E41: =SUM(E10:E12) -> 12 | F41: =IFERROR(VLOOKUP($B$3,'BLG9CC-R'!$A$14:$BZ$500,11,FALSE),"") -> 0.56 | G41: =IFERROR(VLOOKUP($B$3,'FIAG9CC-R'!$A$14:$BZ$500,13,FALSE),"") -> 0.58 | H41: =IFERROR(VLOOKUP($B$3,'WIAG9CC-R'!$A$14:$BZ$500,13,FALSE),"") -> 0.61
A42: 2 | B42: Reading Application | C42: =SUM(C13:C17) -> 22 | D42: =SUM(D13:D17) -> 22 | E42: 19 | F42: =IFERROR(VLOOKUP($B$3,'BLG9CC-R'!$A$14:$BZ$500,17,FALSE),"") -> 0.56 | G42: =IFERROR(VLOOKUP($B$3,'FIAG9CC-R'!$A$14:$BZ$500,17,FALSE),"") -> 0.58 | H42: =IFERROR(VLOOKUP($B$3,'WIAG9CC-R'!$A$14:$BZ$500,17,FALSE),"") -> 0.64
A43: 3 | B43: Literary Analysis-Fiction/NonFiction | C43: =SUM(C18:C20) -> 6 | D43: =SUM(D18:D20) -> 12 | E43: =SUM(E18:E20) -> 10 | F43: =IFERROR(VLOOKUP($B$3,'BLG9CC-R'!$A$14:$BZ$500,23,FALSE),"") -> 0.5 | G43: =IFERROR(VLOOKUP($B$3,'FIAG9CC-R'!$A$14:$BZ$500,21,FALSE),"") -> 0.5 | H43: =IFERROR(VLOOKUP($B$3,'WIAG9CC-R'!$A$14:$BZ$500,21,FALSE),"") -> 0.55
A44: 4 | B44: Informational Text/Research Process | C44: =SUM(C21:C22) -> 8 | D44: =SUM(D21:D22) -> 10 | E44: =SUM(E21:E22) -> 9 | F44: =IFERROR(VLOOKUP($B$3,'BLG9CC-R'!$A$14:$BZ$500,29,FALSE),"") -> 0.46 | G44: =IFERROR(VLOOKUP($B$3,'FIAG9CC-R'!$A$14:$BZ$500,25,FALSE),"") -> 0.58 | H44: =IFERROR(VLOOKUP($B$3,'WIAG9CC-R'!$A$14:$BZ$500,25,FALSE),"") -> 0.45
C45: =SUM(C41:C44) -> 43 | D45: =SUM(D41:D44) -> 57 | E45: =SUM(E41:E44) -> 50

Sheet Grade 9 Reading NGSSS
A1: Click here to return to the school and subject selection sheet
A2: Next Generation Sunshine State Standards Grade 9 Reading Benchmarks Assessed by the FCAT 2.0
A3: Reporting Categories | B3: Benchmarks | C3: Description
A4: Vocabulary | B4: LA.910.1.6.3 | C4: The student will use context clues to determine meanings of unfamiliar words.
A5: Vocabulary | B5: LA.910.1.6.7 | C5: The student will identify and understand the meaning of conceptually advanced prefixes, suffixes, and root words.
A6: Vocabulary | B6: LA.910.1.6.8 | C6: The student will identify advanced word/phrase relationships and their meanings.
A7: Vocabulary | B7: LA.910.1.6.9 | C7: The student will determine the correct meaning of words with multiple meanings in context.
A8: Reading Application | B8: LA.910.1.7.2 | C8: The student will analyze the author's purpose and/or perspective in a variety of text and understand how they affect meaning.
A9: Reading Application | B9: LA.910.1.7.3 | C9: The student will determine the main idea or essential message in grade-level or higher texts through inferring, paraphrasing, summarizing, and identifying relevant details.
A10: Reading Application | B10: LA.910.1.7.4 | C10: The student will identify cause-and-effect relationships in text.
A11: Reading Application | B11: LA.910.1.7.5 | C11: The student will analyze a variety of text structures (e.g., comparison/contrast, cause/effect, chronological order, argument/support, lists) and text features (main headings with subheadings) and explain their impact on meaning in text.
A12: Reading Application | B12: LA.910.1.7.7 | C12: The student will compare and contrast elements in multiple texts.
A13: Literary Analysis- Fiction/Nonfiction | B13: LA.910.2.1.5 | C13: The student will analyze and develop an interpretation of a literary work by describing an author's use of literary elements (e.g., theme, point of view, characterization, setting, plot), and explain and analyze different elements of figurative language (e.g., simile, metaphor, personification, hyperbole, symbolism, allusion, imagery).
A14: Literary Analysis- Fiction/Nonfiction | B14: LA.910.2.1.7 | C14: The student will analyze, interpret, and evaluate an author's use of descriptive language (e.g., tone, irony, mood, imagery, pun, alliteration, onomatopoeia, allusion), figurative language (e.g., symbolism, metaphor, personification, hyperbole), common idioms, and mythological and literary allusions, and explain how they impact meaning in a variety of texts.
A15: Literary Analysis- Fiction/Nonfiction | B15: LA.910.2.2.1 | C15: The student will analyze and evaluate information from text features (e.g., transitional devices, table of contents, glossary, index, bold or italicized text, headings, charts and graphs, illustrations, subheadings).
A16: Informational Text/Research Process | B16: LA.910.6.1.1 | C16: The student will explain how text features (e.g., charts, maps, diagrams, sub-headings, captions, illustrations, graphs) aid the reader's understanding.
A17: Informational Text/Research Process | B17: LA.910.6.2.2 | C17: The student will organize, synthesize, analyze, and evaluate the validity and reliability of information from multiple sources (including primary and secondary sources) to draw conclusions using a variety of techniques, and correctly use standardized citations.

Sheet Geometry Report
A1: Direction: Click on "School Name" below then click on arrow key on the right to select a school. To see benchmark description, move the mouse over the benchmark code.
A2: Click here to return to the school and subject selection sheet
B3: =VALUE('Select School'!B3) -> 9999 | U3: =TEXT(B3,"0000") -> 9999
A4: 2012-13 Geometry Benchmark Analysis Report
A5: Baseline, Fall Interim Assessment (Fall IA), and Winter Interim Assessment (Winter IA)
A6: =TEXT($B$3,"0000")&"-"&VLOOKUP(B3,SchList!$A$2:$B$499,2,FALSE) -> 9999-District
A7: Reporting Categories | B7: Benchmarks | C7: No. of Items | F7: Average % Correct
C8: Base- line | D8: Fall IA | E8: Winter IA | F8: Base- line | G8: Fall IA | H8: Winter IA
B9: No. of Tested | F9: =IFERROR(VLOOKUP($B$3,'BLCC-MGEO'!$A$14:$BZ$500,3,FALSE),"") -> 25868 | G9: =IFERROR(VLOOKUP($B$3,'FIACC-MGEO'!$A$14:$BZ$500,3,FALSE),"") -> 25628 | H9: =IFERROR(VLOOKUP($B$3,'WIACC-MGEO'!$A$14:$BZ$500,3,FALSE),"") -> 25702
B10: MA.912.D.1.1 | D10: 1 | G10: =IFERROR(VLOOKUP($B$3,'FIABM-MGEO'!$A$14:$CZ$500,7,FALSE),"") -> 0.37
B11: MA.912.D.6.4 | C11: 1 | F11: =IFERROR(VLOOKUP($B$3,'BLBM-MGEO'!$A$14:$CZ$500,9,FALSE),"") -> 0.3494472024
B12: MA.912.G.1.1 | C12: 2 | D12: 5 | F12: =IFERROR(VLOOKUP($B$3,'BLBM-MGEO'!$A$14:$CZ$500,11,FALSE),"") -> 0.2752764093 | G12: =IFERROR(VLOOKUP($B$3,'FIABM-MGEO'!$A$14:$CZ$500,9,FALSE),"") -> 0.6599063667
B13: MA.912.G.1.3 | C13: 2 | D13: 4 | F13: =IFERROR(VLOOKUP($B$3,'BLBM-MGEO'!$A$14:$CZ$500,13,FALSE),"") -> 0.349999994 | G13: =IFERROR(VLOOKUP($B$3,'FIABM-MGEO'!$A$14:$CZ$500,11,FALSE),"") -> 0.56
B14: MA.912.G.1.4 | D14: 5 | G14: =IFERROR(VLOOKUP($B$3,'FIABM-MGEO'!$A$14:$CZ$500,13,FALSE),"") -> 0.3700468166
B15: MA.912.G.2.1 | D15: 5 | E15: 1 | G15: =IFERROR(VLOOKUP($B$3,'FIABM-MGEO'!$A$14:$CZ$500,15,FALSE),"") -> 0.6099531667 | H15: =IFERROR(VLOOKUP($B$3,'WIABM-MGEO'!$A$14:$CZ$500,7,FALSE),"") -> 0.76
B16: MA.912.G.2.2 | C16: 2 | E16: 8 | F16: =IFERROR(VLOOKUP($B$3,'BLBM-MGEO'!$A$14:$CZ$500,15,FALSE),"") -> 0.349999994 | H16: =IFERROR(VLOOKUP($B$3,'WIABM-MGEO'!$A$14:$CZ$500,9,FALSE),"") -> 0.5375000238
B17: MA.912.G.2.3 | C17: 2 | E17: 2 | F17: =IFERROR(VLOOKUP($B$3,'BLBM-MGEO'!$A$14:$CZ$500,17,FALSE),"") -> 0.5747236145 | H17: =IFERROR(VLOOKUP($B$3,'WIABM-MGEO'!$A$14:$CZ$500,11,FALSE),"") -> 0.69
B18: MA.912.G.2.4 | C18: 2 | F18: =IFERROR(VLOOKUP($B$3,'BLBM-MGEO'!$A$14:$CZ$500,19,FALSE),"") -> 0.3000000119
B19: MA.912.G.2.5 | C19: 2 | F19: =IFERROR(VLOOKUP($B$3,'BLBM-MGEO'!$A$14:$CZ$500,21,FALSE),"") -> 0.2752764093
B20: MA.912.G.3.1 | E20: 1 | H20: =IFERROR(VLOOKUP($B$3,'WIABM-MGEO'!$A$14:$CZ$500,13,FALSE),"") -> 0.38
B21: MA.912.G.3.2 | E21: 2 | H21: =IFERROR(VLOOKUP($B$3,'WIABM-MGEO'!$A$14:$CZ$500,15,FALSE),"") -> 0.349999994
B22: MA.912.G.3.3 | C22: 2 | F22: =IFERROR(VLOOKUP($B$3,'BLBM-MGEO'!$A$14:$CZ$500,23,FALSE),"") -> 0.25
B23: MA.912.G.3.4 | C23: 1 | E23: 3 | F23: =IFERROR(VLOOKUP($B$3,'BLBM-MGEO'!$A$14:$CZ$500,25,FALSE),"") -> 0.200000003 | H23: =IFERROR(VLOOKUP($B$3,'WIABM-MGEO'!$A$14:$CZ$500,17,FALSE),"") -> 0.35
B24: MA.912.G.4.1 | D24: 5 | E24: 2 | G24: =IFERROR(VLOOKUP($B$3,'FIABM-MGEO'!$A$14:$CZ$500,17,FALSE),"") -> 0.5800000191 | H24: =IFERROR(VLOOKUP($B$3,'WIABM-MGEO'!$A$14:$CZ$500,19,FALSE),"") -> 0.400000006
B25: MA.912.G.4.2 | D25: 4 | G25: =IFERROR(VLOOKUP($B$3,'FIABM-MGEO'!$A$14:$CZ$500,19,FALSE),"") -> 0.6124414822
B26: MA.912.G.4.4 | E26: 2 | H26: =IFERROR(VLOOKUP($B$3,'WIABM-MGEO'!$A$14:$CZ$500,21,FALSE),"") -> 0.6000000238
B27: MA.912.G.4.6 | C27: 2 | E27: 4 | F27: =IFERROR(VLOOKUP($B$3,'BLBM-MGEO'!$A$14:$CZ$500,27,FALSE),"") -> 0.3000000119 | H27: =IFERROR(VLOOKUP($B$3,'WIABM-MGEO'!$A$14:$CZ$500,23,FALSE),"") -> 0.5624445569
B28: MA.912.G.4.7 | C28: 2 | E28: 4 | F28: =IFERROR(VLOOKUP($B$3,'BLBM-MGEO'!$A$14:$CZ$500,29,FALSE),"") -> 0.150000006 | H28: =IFERROR(VLOOKUP($B$3,'WIABM-MGEO'!$A$14:$CZ$500,25,FALSE),"") -> 0.4375554431
B29: MA.912.G.5.4 | C29: 2 | F29: =IFERROR(VLOOKUP($B$3,'BLBM-MGEO'!$A$14:$CZ$500,31,FALSE),"") -> 0.25
B30: MA.912.G.6.2 | D30: 4 | E30: 2 | G30: =IFERROR(VLOOKUP($B$3,'FIABM-MGEO'!$A$14:$CZ$500,21,FALSE),"") -> 0.51 | H30: =IFERROR(VLOOKUP($B$3,'WIABM-MGEO'!$A$14:$CZ$500,27,FALSE),"") -> 0.49
B31: MA.912.G.6.4 | E31: 3 | H31: =IFERROR(VLOOKUP($B$3,'WIABM-MGEO'!$A$14:$CZ$500,29,FALSE),"") -> 0.5
B32: MA.912.G.6.5 | C32: 2 | E32: 2 | F32: =IFERROR(VLOOKUP($B$3,'BLBM-MGEO'!$A$14:$CZ$500,33,FALSE),"") -> 0.349999994 | H32: =IFERROR(VLOOKUP($B$3,'WIABM-MGEO'!$A$14:$CZ$500,31,FALSE),"") -> 0.37
B33: MA.912.G.6.6 | C33: 2 | F33: =IFERROR(VLOOKUP($B$3,'BLBM-MGEO'!$A$14:$CZ$500,35,FALSE),"") -> 0.200000003
B34: MA.912.G.8.4 | C34: 2 | D34: 5 | E34: 5 | F34: =IFERROR(VLOOKUP($B$3,'BLBM-MGEO'!$A$14:$CZ$500,43,FALSE),"") -> 0.349999994 | G34: =IFERROR(VLOOKUP($B$3,'FIABM-MGEO'!$A$14:$CZ$500,23,FALSE),"") -> 0.330046831 | H34: =IFERROR(VLOOKUP($B$3,'WIABM-MGEO'!$A$14:$CZ$500,33,FALSE),"") -> 0.4599999905
B35: MA.912.G.8.5 | E35: 2 | H35: =IFERROR(VLOOKUP($B$3,'WIABM-MGEO'!$A$14:$CZ$500,35,FALSE),"") -> 0.36
B36: MA.912.G.7.1 | C36: 2 | F36: =IFERROR(VLOOKUP($B$3,'BLBM-MGEO'!$A$14:$CZ$500,37,FALSE),"") -> 0.5247236026
B37: MA.912.G.7.5 | C37: 2 | F37: =IFERROR(VLOOKUP($B$3,'BLBM-MGEO'!$A$14:$CZ$500,39,FALSE),"") -> 0.3000000119
B38: MA.912.G.7.7 | C38: 2 | F38: =IFERROR(VLOOKUP($B$3,'BLBM-MGEO'!$A$14:$CZ$500,41,FALSE),"") -> 0.2247235982
B39: MA.912.D.6.2 | C39: 2 | F39: =IFERROR(VLOOKUP($B$3,'BLBM-MGEO'!$A$14:$CZ$500,7,FALSE),"") -> 0.25
B40: MA.912.T.2.1 | C40: 2 | F40: =IFERROR(VLOOKUP($B$3,'BLBM-MGEO'!$A$14:$CZ$500,45,FALSE),"") -> 0.349999994
A41: All Benchmarks | C41: =SUM(C10:C40) -> 38 | D41: =SUM(D10:D40) -> 38 | E41: =SUM(E10:E40) -> 43 | F41: =IFERROR(VLOOKUP($B$3,'BLCC-MGEO'!$A$14:$CZ$500,5,FALSE),"") -> 0.3092250739 | G41: =IFERROR(VLOOKUP($B$3,'FIACC-MGEO'!$A$14:$CZ$500,5,FALSE),"") -> 0.5236718784 | H41: =IFERROR(VLOOKUP($B$3,'WIACC-MGEO'!$A$14:$CZ$500,5,FALSE),"") -> 0.4848785501
A57: Reporting Categories | C57: Number of Items | F57: Average % Correct
C58: BL | D58: Fall IA | E58: Winter IA | F58: BL | G58: Fall IA | H58: Winter IA
A59: 1 | B59: Two-Dimensional Geometry | C59: =SUM(C10:C35) -> 28 | D59: =SUM(D10:D35) -> 38 | E59: =SUM(E10:E35) -> 43 | F59: =IFERROR(VLOOKUP($B$3,'BLCC-MGEO'!$A$14:$CZ$500,11,FALSE),"") -> 0.3053768928 | G59: =IFERROR(VLOOKUP($B$3,'FIACC-MGEO'!$A$14:$CZ$500,13,FALSE),"") -> 0.52 | H59: =IFERROR(VLOOKUP($B$3,'WIACC-MGEO'!$A$14:$CZ$500,13,FALSE),"") -> 0.4848785501
A60: 2 | B60: Three-Dimensional Geometry | C60: =SUM(C36:C38) -> 6 | D60: =SUM(D36:D38) -> 0 | E60: =SUM(E36:E38) -> 0 | F60: =IFERROR(VLOOKUP($B$3,'BLCC-MGEO'!$A$14:$CZ$500,23,FALSE),"") -> 0.3499999841
A61: 3 | B61: Trigonometry and Discrete Mathematics | C61: =SUM(C39:C40) -> 4 | D61: =SUM(D39:D40) -> 0 | E61: =SUM(E39:E40) -> 0 | F61: =IFERROR(VLOOKUP($B$3,'BLCC-MGEO'!$A$14:$CZ$500,17,FALSE),"") -> 0.3000000119
C62: =SUM(C59:C61) -> 38 | D62: =SUM(D59:D61) -> 38 | E62: 43

Sheet Geometry NGSSS
A1: Click here to return to the school and subject selection sheet
A2: Next Generation Sunshine State Standards Geometry EOC Assessed Benchmarks
A3: Reporting Categories | B3: Benchmarks | C3: Description
A4: Two-Dimensional Geometry | B4: MA.912.D.1.1 | C4: Use recursive and iterative thinking to solve problems, including identification of patterns, population growth and decline, and compound interest.
A5: Trigonometry and Discrete Mathematic | B5: MA.912.D.6.2 | C5: MA.912.D.6.2 Find the converse, inverse, and contrapositive of a statement.
A6: Trigonometry and Discrete Mathematic | B6: MA.912.D.6.3 | C6: MA.912.D.6.3 Determine whether two propositions are logically equivalent.
A7: Two-Dimensional Geometry | B7: MA.912.G.1.1 | C7: MA.912.G.1.1 Find the lengths and midpoints of line segments in two-dimensional coordinate systems.
A8: Two-Dimensional Geometry | B8: MA.912.G.1.3 | C8: MA.912.G.1.3 Identify and use the relationships between special pairs of angles formed by parallel lines and transversals.
A9: Two-Dimensional Geometry | B9: MA.912.G.2.2 | C9: MA.912.G.2.2 Determine the measures of interior and exterior angles of polygons, justifying the method used.
A10: Two-Dimensional Geometry | B10: MA.912.G.2.3 | C10: MA.912.G.2.3 Use properties of congruent and similar polygons to solve mathematical or real-world problems.
A11: Two-Dimensional Geometry | B11: MA.912.G.2.1 | C11: MA.912.G.2.1 Identify and describe convex, concave, regular, and irregular polygons.
A12: Two-Dimensional Geometry | B12: MA.912.G.4.1 | C12: MA.912.G.4.1 Classify, construct, and describe triangles that are right, acute, obtuse, scalene, isosceles, equilateral, and equiangular.
A13: Two-Dimensional Geometry | B13: MA.912.G.4.2 | C13: MA.912.G.4.2 Define, identify, and construct altitudes, medians, angle bisectors, perpendicular bisectors, orthocenter, centroid, incenter, and circumcenter.
A14: Two-Dimensional Geometry | B14: MA.912.G.4.4 | C14: MA.912.G.4.4 Use properties of congruent and similar triangles to solve problems involving lengths and areas.
A15: Two-Dimensional Geometry | B15: MA.912.G.4.5 | C15: MA.912.G.4.5 Apply theorems involving segments divided proportionally.
A16: Two-Dimensional Geometry | B16: MA.912.G.2.4 | C16: MA.912.G.2.4 Apply transformations (translations, reflections, rotations, dilations, and scale factors) to polygons to determine congruence, similarity, and symmetry. Know that images formed by translations, reflections, and rotations are congruent to the original shape. Create and verify tessellations of the plane using polygons.
A17: Two-Dimensional Geometry | B17: MA.912.G.2.5 | C17: MA.912.G.2.5 Explain the derivation and apply formulas for perimeter and area of polygons (triangles, quadrilaterals, pentagons, etc.).
A18: Two-Dimensional Geometry | B18: MA.912.G.2.7 | C18: MA.912.G.2.7 Determine how changes in dimensions affect the perimeter and area of common geometric figures.
A19: Two-Dimensional Geometry | B19: MA.912.G.3.3 | C19: MA.912.G.3.3 Use coordinate geometry to prove properties of congruent, regular, and similar quadrilaterals.
A20: Two-Dimensional Geometry | B20: MA.912.G.3.4 | C20: MA.912.G.3.4 Prove theorems involving quadrilaterals.
A21: Two-Dimensional Geometry | B21: MA.912.D.6.4 | C21: MA.912.D.6.4 Use methods of direct and indirect proof and determine whether a short proof is logically valid.
A22: Two-Dimensional Geometry | B22: MA.912.G.3.1 | C22: MA.912.G.3.1 Describe, classify, and compare relationships among quadrilaterals including the square, rectangle, rhombus, parallelogram, trapezoid, and kite.
A23: Two-Dimensional Geometry | B23: MA.912.G.3.2 | C23: MA.912.G.3.2 Compare and contrast special quadrilaterals on the basis of their properties.
A24: Two-Dimensional Geometry | B24: MA.912.G.8.5 | C24: MA.912.G.8.5 Write geometric proofs, including proofs by contradiction and proofs involving coordinate geometry. Use and compare a variety of ways to present deductive proofs, such as flow charts, paragraphs, two-column, and indirect proofs.
A25: Two-Dimensional Geometry | B25: MA.912.G.4.6 | C25: MA.912.G.4.6 Prove that triangles are congruent or similar and use the concept of corresponding parts of congruent triangles.
A26: Two-Dimensional Geometry | B26: MA.912.G.8.5 | C26: MA.912.G.8.5 Write geometric proofs, including proofs by contradiction and proofs involving coordinate geometry. Use and compare a variety of ways to present deductive proofs, such as flow charts, paragraphs, two-column, and indirect proofs.
A27: Two-Dimensional Geometry | B27: MA.912.G.4.7 | C27: MA.912.G.4.7 Apply the inequality theorems: triangle inequality, inequality in one triangle, and the Hinge Theorem.
A28: Two-Dimensional Geometry | B28: MA.912.G.5.4 | C28: MA.912.G.5.4 Solve real-world problems involving right triangles.
A29: Two-Dimensional Geometry | B29: MA.912.G.5.1 | C29: MA.912.G.5.1 Prove and apply the Pythagorean Theorem and its converse.
A30: Two-Dimensional Geometry | B30: MA.912.G.5.2 | C30: MA.912.G.5.2 State and apply the relationships that exist when the altitude is drawn to the hypotenuse of a right triangle.
A31: Two-Dimensional Geometry | B31: MA.912.G.5.3 | C31: MA.912.G.5.3 Use special right triangles (30° - 60° - 90° and 45° - 45° - 90°) to solve problems.
A32: Two-Dimensional Geometry | B32: MA.912.G.6.5 | C32: MA.912.G.6.5 Solve real-world problems using measures of circumference, arc length, and areas of circles and sectors.
A33: Two-Dimensional Geometry | B33: MA.912.G.6.2 | C33: MA.912.G.6.2 Define and identify: circumference, radius, diameter, arc, arc length, chord, secant, tangent and concentric circles.
A34: Two-Dimensional Geometry | B34: MA.912.G.6.4 | C34: MA.912.G.6.4 Determine and use measures of arcs and related angles (central, inscribed, and intersections of secants and tangents).
A35: Two-Dimensional Geometry | B35: MA.912.G.6.6 | C35: MA.912.G.6.6 Given the center and the radius, find the equation of a circle in the coordinate plane or given the equation of a circle in center-radius form, state the center and the radius of the circle.
A36: Two-Dimensional Geometry | B36: MA.912.G.6.7 | C36: MA.912.G.6.7 Given the equation of a circle in center-radius form or given the center and the radius of a circle, sketch the graph of the circle.
A37: Three-Dimensional Geometry | B37: MA.912.G.7.1 | C37: MA.912.G.7.1 Describe and make regular, non-regular, and oblique polyhedra, and sketch the net for a given polyhedron and vice versa.
A38: Three-Dimensional Geometry | B38: MA.912.G.7.2 | C38: MA.912.G.7.2 Describe the relationships between the faces, edges, and vertices of polyhedra.
A39: Three-Dimensional Geometry | B39: MA.912.G.7.5 | C39: MA.912.G.7.5 Explain and use formulas for lateral area, surface area, and volume of solids.
A40: Three-Dimensional Geometry | B40: MA.912.G.7.4 | C40: MA.912.G.7.4 Identify chords, tangents, radii, and great circles of spheres.
A41: Three-Dimensional Geometry | B41: MA.912.G.7.6 | C41: MA.912.G.7.6 Identify and use properties of congruent and similar solids.
A42: Three-Dimensional Geometry | B42: MA.912.G.7.7 | C42: MA.912.G.7.7 Determine how changes in dimensions affect the surface area and volume of common geometric solids.
A43: Three-Dimensional Geometry | B43: MA.912.G.2.7 | C43: MA.912.G.2.7 Determine how changes in dimensions affect the perimeter and area of common geometric figures.
A44: Two-Dimensional Geometry | B44: MA.912.G.8.4 | C44: MA.912.G.8.4 Make conjectures with justifications about geometric ideas. Distinguish between information that supports a conjecture and the proof of a conjecture.
A45: Trigonometry and Discrete Mathematic | B45: MA.912.T.2.1 | C45: MA.912.T.2.1 Define and use the trigonometric ratios (sine, cosine, tangent, cotangent, secant, cosecant) in terms of angles of right triangles.

Sheet Grade 10 Reading
A1: Direction: Click on "School Name" below then click on arrow key on the right to select a school. To see benchmark description, move the mouse over the benchmark code.
A2: Click here to return to the school and subject selection sheet
B3: =VALUE('Select School'!B3) -> 9999 | U3: =TEXT(B3,"0000") -> 9999
A4: 2012-13 Grade 10 Reading Benchmark Analysis Report
A5: Baseline, Fall Interim Assessment (Fall IA), and Winter Interim Assessment (Winter IA)
A6: =TEXT($B$3,"0000")&"-"&VLOOKUP(B3,SchList!$A$2:$B$499,2,FALSE) -> 9999-District
A7: Reporting Categories | B7: Bench-marks | C7: No. of Items | F7: Average % Correct
C8: Base- line | D8: Fall IA | E8: Winter IA | F8: Base- line | G8: Fall IA | H8: Winter IA
B9: No. of Tested | F9: =IFERROR(VLOOKUP($B$3,'BLG10CC-R'!$A$14:$BZ$500,3,FALSE),"") -> 24479 | G9: =IFERROR(VLOOKUP($B$3,'FIAG10CC-R'!$A$14:$BZ$500,3,FALSE),"") -> 24372 | H9: =IFERROR(VLOOKUP($B$3,'WIAG10CC-R'!$A$14:$BZ$500,3,FALSE),"") -> 24175
B10: LA.910.1.6.3 | C10: 2 | D10: 3 | E10: 4 | F10: =IFERROR(VLOOKUP($B$3,'BLG10BM-R'!$A$14:$CZ$500,7,FALSE),"") -> 0.74 | G10: =IFERROR(VLOOKUP($B$3,'FIAG10BM-R'!$A$14:$CX$500,7,FALSE),"") -> 0.62 | H10: =IFERROR(VLOOKUP($B$3,'WIAG10BM-R'!$A$14:$CZ$500,7,FALSE),"") -> 0.66
B11: LA.910.1.6.8 | C11: 1 | D11: 3 | E11: 4 | F11: =IFERROR(VLOOKUP($B$3,'BLG10BM-R'!$A$14:$CZ$500,9,FALSE),"") -> 0.63 | G11: =IFERROR(VLOOKUP($B$3,'FIAG10BM-R'!$A$14:$CX$500,9,FALSE),"") -> 0.48 | H11: =IFERROR(VLOOKUP($B$3,'WIAG10BM-R'!$A$14:$CZ$500,9,FALSE),"") -> 0.61
B12: LA.910.1.6.9 | C12: 2 | D12: 4 | E12: 4 | F12: =IFERROR(VLOOKUP($B$3,'BLG10BM-R'!$A$14:$CZ$500,11,FALSE),"") -> 0.64 | G12: =IFERROR(VLOOKUP($B$3,'FIAG10BM-R'!$A$14:$CX$500,11,FALSE),"") -> 0.6 | H12: =IFERROR(VLOOKUP($B$3,'WIAG10BM-R'!$A$14:$CZ$500,11,FALSE),"") -> 0.69
B13: LA.910.1.7.2 | C13: 4 | D13: 5 | E13: 4 | F13: =IFERROR(VLOOKUP($B$3,'BLG10BM-R'!$A$14:$CZ$500,13,FALSE),"") -> 0.7 | G13: =IFERROR(VLOOKUP($B$3,'FIAG10BM-R'!$A$14:$CX$500,13,FALSE),"") -> 0.62 | H13: =IFERROR(VLOOKUP($B$3,'WIAG10BM-R'!$A$14:$CZ$500,13,FALSE),"") -> 0.64
B14: LA.910.1.7.3 | C14: 5 | D14: 5 | E14: 4 | F14: =IFERROR(VLOOKUP($B$3,'BLG10BM-R'!$A$14:$CZ$500,15,FALSE),"") -> 0.62 | G14: =IFERROR(VLOOKUP($B$3,'FIAG10BM-R'!$A$14:$CX$500,15,FALSE),"") -> 0.56 | H14: =IFERROR(VLOOKUP($B$3,'WIAG10BM-R'!$A$14:$CZ$500,15,FALSE),"") -> 0.61
B15: LA.910.1.7.4 | C15: 2 | D15: 5 | E15: 4 | F15: =IFERROR(VLOOKUP($B$3,'BLG10BM-R'!$A$14:$CZ$500,17,FALSE),"") -> 0.51 | G15: =IFERROR(VLOOKUP($B$3,'FIAG10BM-R'!$A$14:$CX$500,17,FALSE),"") -> 0.49 | H15: =IFERROR(VLOOKUP($B$3,'WIAG10BM-R'!$A$14:$CZ$500,17,FALSE),"") -> 0.59
B16: LA.910.1.7.5 | C16: 1 | D16: 4 | E16: 3 | F16: =IFERROR(VLOOKUP($B$3,'BLG10BM-R'!$A$14:$CZ$500,19,FALSE),"") -> 0.62 | G16: =IFERROR(VLOOKUP($B$3,'FIAG10BM-R'!$A$14:$CX$500,19,FALSE),"") -> 0.54 | H16: =IFERROR(VLOOKUP($B$3,'WIAG10BM-R'!$A$14:$CZ$500,19,FALSE),"") -> 0.61
B17: LA.910.1.7.7 | C17: 3 | D17: 4 | E17: 5 | F17: =IFERROR(VLOOKUP($B$3,'BLG10BM-R'!$A$14:$CZ$500,21,FALSE),"") -> 0.57 | G17: =IFERROR(VLOOKUP($B$3,'FIAG10BM-R'!$A$14:$CX$500,21,FALSE),"") -> 0.6 | H17: =IFERROR(VLOOKUP($B$3,'WIAG10BM-R'!$A$14:$CZ$500,21,FALSE),"") -> 0.59
B18: LA.910.2.1.2
B19: LA.910.2.1.5 | C19: 3 | D19: 5 | E19: 4 | F19: =IFERROR(VLOOKUP($B$3,'BLG10BM-R'!$A$14:$CZ$500,23,FALSE),"") -> 0.44 | G19: =IFERROR(VLOOKUP($B$3,'FIAG10BM-R'!$A$14:$CX$500,23,FALSE),"") -> 0.58 | H19: =IFERROR(VLOOKUP($B$3,'WIAG10BM-R'!$A$14:$CZ$500,23,FALSE),"") -> 0.43
B20: LA.910.2.1.7 | C20: 1 | D20: 5 | E20: 3 | F20: =IFERROR(VLOOKUP($B$3,'BLG10BM-R'!$A$14:$CZ$500,25,FALSE),"") -> 0.44 | G20: =IFERROR(VLOOKUP($B$3,'FIAG10BM-R'!$A$14:$CX$500,25,FALSE),"") -> 0.59 | H20: =IFERROR(VLOOKUP($B$3,'WIAG10BM-R'!$A$14:$CZ$500,25,FALSE),"") -> 0.68
B21: LA.910.2.2.1 | D21: 1 | E21: 2 | G21: =IFERROR(VLOOKUP($B$3,'FIAG10BM-R'!$A$14:$CX$500,27,FALSE),"") -> 0.26 | H21: =IFERROR(VLOOKUP($B$3,'WIAG10BM-R'!$A$14:$CZ$500,27,FALSE),"") -> 0.68
B22: LA.910.6.1.1 | C22: 3 | D22: 4 | E22: 5 | F22: =IFERROR(VLOOKUP($B$3,'BLG10BM-R'!$A$14:$CZ$500,27,FALSE),"") -> 0.5 | G22: =IFERROR(VLOOKUP($B$3,'FIAG10BM-R'!$A$14:$CX$500,29,FALSE),"") -> 0.39 | H22: =IFERROR(VLOOKUP($B$3,'WIAG10BM-R'!$A$14:$CZ$500,29,FALSE),"") -> 0.59
B23: LA.910.6.2.2 | C23: 7 | D23: 5 | E23: 3 | F23: =IFERROR(VLOOKUP($B$3,'BLG10BM-R'!$A$14:$CZ$500,29,FALSE),"") -> 0.57 | G23: =IFERROR(VLOOKUP($B$3,'FIAG10BM-R'!$A$14:$CX$500,31,FALSE),"") -> 0.63 | H23: =IFERROR(VLOOKUP($B$3,'WIAG10BM-R'!$A$14:$CZ$500,31,FALSE),"") -> 0.6
A24: All Benchmarks | C24: =SUM(C10:C23) -> 34 | D24: =SUM(D10:D23) -> 53 | E24: =SUM(E10:E23) -> 49 | F24: =IFERROR(VLOOKUP($B$3,'BLG10CC-R'!$A$14:$CZ$500,5,FALSE),"") -> 0.58 | G24: =IFERROR(VLOOKUP($B$3,'FIAG10CC-R'!$A$14:$CZ$500,5,FALSE),"") -> 0.55 | H24: =IFERROR(VLOOKUP($B$3,'WIAG10CC-R'!$A$14:$CZ$500,5,FALSE),"") -> 0.61
A40: Reporting Categories | C40: Number of Items | F40: Average % Correct
C41: BL | D41: Fall IA | E41: Winter IA | F41: BL | G41: Fall IA | H41: Winter IA
A42: 1 | B42: Vocabulary | C42: =SUM(C10:C12) -> 5 | D42: =SUM(D10:D12) -> 10 | E42: =SUM(E10:E12) -> 12 | F42: =IFERROR(VLOOKUP($B$3,'BLG10CC-R'!$A$14:$BZ$500,11,FALSE),"") -> 0.68 | G42: =IFERROR(VLOOKUP($B$3,'FIAG10CC-R'!$A$14:$BZ$500,13,FALSE),"") -> 0.57 | H42: =IFERROR(VLOOKUP($B$3,'WIAG10CC-R'!$A$14:$BZ$500,13,FALSE),"") -> 0.65
A43: 2 | B43: Reading Comprehension | C43: =SUM(C13:C17) -> 15 | D43: =SUM(D13:D17) -> 23 | E43: 20 | F43: =IFERROR(VLOOKUP($B$3,'BLG10CC-R'!$A$14:$BZ$500,17,FALSE),"") -> 0.61 | G43: =IFERROR(VLOOKUP($B$3,'FIAG10CC-R'!$A$14:$BZ$500,17,FALSE),"") -> 0.56 | H43: =IFERROR(VLOOKUP($B$3,'WIAG10CC-R'!$A$14:$BZ$500,17,FALSE),"") -> 0.61
A44: 3 | B44: Literary Analysis-Fiction/NonFiction | C44: =SUM(C18:C21) -> 4 | D44: =SUM(D18:D21) -> 11 | E44: =SUM(E18:E21) -> 9 | F44: =IFERROR(VLOOKUP($B$3,'BLG10CC-R'!$A$14:$BZ$500,23,FALSE),"") -> 0.44 | G44: =IFERROR(VLOOKUP($B$3,'FIAG10CC-R'!$A$14:$BZ$500,21,FALSE),"") -> 0.56 | H44: =IFERROR(VLOOKUP($B$3,'WIAG10CC-R'!$A$14:$BZ$500,21,FALSE),"") -> 0.57
A45: 4 | B45: Informational Text/Research Process | C45: =SUM(C22:C23) -> 10 | D45: =SUM(D22:D23) -> 9 | E45: =SUM(E22:E23) -> 8 | F45: =IFERROR(VLOOKUP($B$3,'BLG10CC-R'!$A$14:$BZ$500,29,FALSE),"") -> 0.55 | G45: =IFERROR(VLOOKUP($B$3,'FIAG10CC-R'!$A$14:$BZ$500,25,FALSE),"") -> 0.52 | H45: =IFERROR(VLOOKUP($B$3,'WIAG10CC-R'!$A$14:$BZ$500,25,FALSE),"") -> 0.6
C46: =SUM(C42:C45) -> 34 | D46: =SUM(D42:D45) -> 53 | E46: =SUM(E42:E45) -> 49

Sheet Grade 10 Reading NGSSS
A1: Click here to return to the school and subject selection sheet
A2: Next Generation Sunshine State Standards Grade 10 Reading Benchmarks Assessed by the FCAT 2.0
A3: Reporting Categories | B3: Benchmarks | C3: Description
A4: Vocabulary | B4: LA.910.1.6.3 | C4: The student will use context clues to determine meanings of unfamiliar words.
A5: Vocabulary | B5: LA.910.1.6.7 | C5: The student will identify and understand the meaning of conceptually advanced prefixes, suffixes, and root words.
A6: Vocabulary | B6: LA.910.1.6.8 | C6: The student will identify advanced word/phrase relationships and their meanings.
A7: Vocabulary | B7: LA.910.1.6.9 | C7: The student will determine the correct meaning of words with multiple meanings in context.
A8: Reading Application | B8: LA.910.1.7.2 | C8: The student will analyze the author's purpose and/or perspective in a variety of text and understand how they affect meaning.
A9: Reading Application | B9: LA.910.1.7.3 | C9: The student will determine the main idea or essential message in grade-level or higher texts through inferring, paraphrasing, summarizing, and identifying relevant details.
A10: Reading Application | B10: LA.910.1.7.4 | C10: The student will identify cause-and-effect relationships in text.
A11: Reading Application | B11: LA.910.1.7.5 | C11: The student will analyze a variety of text structures (e.g., comparison/contrast, cause/effect, chronological order, argument/support, lists) and text features (main headings with subheadings) and explain their impact on meaning in text.
A12: Reading Application | B12: LA.910.1.7.7 | C12: The student will compare and contrast elements in multiple texts.
A13: Literary Analysis- Fiction/Nonfiction | B13: LA.910.2.1.2 | C13: The student will analyze and compare a variety of traditional, classical, and contemporary literary works, and identify the literary elements of each (e.g., setting, plot, characterization, conflict);
A14: Literary Analysis- Fiction/Nonfiction | B14: LA.910.2.1.5 | C14: The student will analyze and develop an interpretation of a literary work by describing an author's use of literary elements (e.g., theme, point of view, characterization, setting, plot), and explain and analyze different elements of figurative language (e.g., simile, metaphor, personification, hyperbole, symbolism, allusion, imagery).
A15: Literary Analysis- Fiction/Nonfiction | B15: LA.910.2.1.7 | C15: The student will analyze, interpret, and evaluate an author's use of descriptive language (e.g., tone, irony, mood, imagery, pun, alliteration, onomatopoeia, allusion), figurative language (e.g., symbolism, metaphor, personification, hyperbole), common idioms, and mythological and literary allusions, and explain how they impact meaning in a variety of texts.
A16: Literary Analysis- Fiction/Nonfiction | B16: LA.910.2.2.1 | C16: The student will analyze and evaluate information from text features (e.g., transitional devices, table of contents, glossary, index, bold or italicized text, headings, charts and graphs, illustrations, subheadings).
A17: Informational Text/Research Process | B17: LA.910.6.1.1 | C17: The student will explain how text features (e.g., charts, maps, diagrams, sub-headings, captions, illustrations, graphs) aid the reader's understanding.
A18: Informational Text/Research Process | B18: LA.910.6.2.2 | C18: The student will organize, synthesize, analyze, and evaluate the validity and reliability of information from multiple sources (including primary and secondary sources) to draw conclusions using a variety of techniques, and correctly use standardized citations.

Sheet Biology Report
A1: Direction: Click on "School Name" below then click on arrow key on the right to select a school. To see benchmark description, move the mouse over the benchmark code.
A2: Click here to return to the school and subject selection sheet
B3: =VALUE('Select School'!B3) -> 9999 | U3: =TEXT(B3,"0000") -> 9999
A4: 2012-13 Biology Benchmark Analysis Report
A5: Baseline, Fall Interim Assessment (Fall IA), and Winter Interim Assessment (Winter IA)
A6: =TEXT($B$3,"0000")&"-"&VLOOKUP(B3,SchList!$A$2:$B$499,2,FALSE) -> 9999-District
A7: Reporting Categories | B7: Bench-marks | C7: No. of Items | F7: Average % Correct
C8: Base- line | D8: Fall IA | E8: Winter IA | F8: Base- line | G8: Fall IA | H8: Winter IA
B9: No. of Tested | F9: =IFERROR(VLOOKUP($B$3,'BLCC-SBIO'!$A$14:$BZ$500,3,FALSE),"") -> 25141 | G9: =IFERROR(VLOOKUP($B$3,'FIACC-SBIO'!$A$14:$BX$500,3,FALSE),"") -> 24790 | H9: =IFERROR(VLOOKUP($B$3,'WIACC-SBIO'!$A$14:$BZ$500,3,FALSE),"") -> 24987
B10: SC.912.L.14.1 | C10: 3 | D10: 3 | E10: 3 | F10: =IFERROR(VLOOKUP($B$3,'BLBM-SBIO'!$A$14:$FX$500,9,FALSE),"") -> 0.4000000159 | G10: =IFERROR(VLOOKUP($B$3,'FIABM-SBIO'!$A$14:$FU$500,7,FALSE),"") -> 0.5666666826 | H10: =IFERROR(VLOOKUP($B$3,'WIABM-SBIO'!$A$14:$FX$500,7,FALSE),"") -> 0.5
B11: SC.912.L.14.3 | C11: 3 | D11: 3 | E11: 3 | F11: =IFERROR(VLOOKUP($B$3,'BLBM-SBIO'!$A$14:$FX$500,11,FALSE),"") -> 0.3666666746 | G11: =IFERROR(VLOOKUP($B$3,'FIABM-SBIO'!$A$14:$FU$500,9,FALSE),"") -> 0.5 | H11: =IFERROR(VLOOKUP($B$3,'WIABM-SBIO'!$A$14:$FX$500,9,FALSE),"") -> 0.3333333333
B12: SC.912.L.16.3 | C12: 4 | D12: 4 | E12: 4 | F12: =IFERROR(VLOOKUP($B$3,'BLBM-SBIO'!$A$14:$FX$500,31,FALSE),"") -> 0.3666666746 | G12: =IFERROR(VLOOKUP($B$3,'FIABM-SBIO'!$A$14:$FU$500,29,FALSE),"") -> 0.42 | H12: =IFERROR(VLOOKUP($B$3,'WIABM-SBIO'!$A$14:$FX$500,29,FALSE),"") -> 0.3249999881
B13: SC.912.L.16.17 | C13: 4 | D13: 4 | E13: 4 | F13: =IFERROR(VLOOKUP($B$3,'BLBM-SBIO'!$A$14:$FX$500,35,FALSE),"") -> 0.400000006 | G13: =IFERROR(VLOOKUP($B$3,'FIABM-SBIO'!$A$14:$FU$500,33,FALSE),"") -> 0.349999994 | H13: =IFERROR(VLOOKUP($B$3,'WIABM-SBIO'!$A$14:$FX$500,33,FALSE),"") -> 0.3249999881
B14: SC.912.L.18.1 | C14: 3 | D14: 3 | E14: 3 | F14: =IFERROR(VLOOKUP($B$3,'BLBM-SBIO'!$A$14:$FX$500,43,FALSE),"") -> 0.275000006 | G14: =IFERROR(VLOOKUP($B$3,'FIABM-SBIO'!$A$14:$FU$500,41,FALSE),"") -> 0.29 | H14: =IFERROR(VLOOKUP($B$3,'WIABM-SBIO'!$A$14:$FX$500,41,FALSE),"") -> 0.2666666706
B15: SC.912.L.18.9 | C15: 3 | D15: 4 | E15: 4 | F15: =IFERROR(VLOOKUP($B$3,'BLBM-SBIO'!$A$14:$FX$500,45,FALSE),"") -> 0.2666666706 | G15: =IFERROR(VLOOKUP($B$3,'FIABM-SBIO'!$A$14:$FU$500,43,FALSE),"") -> 0.36 | H15: =IFERROR(VLOOKUP($B$3,'WIABM-SBIO'!$A$14:$FX$500,43,FALSE),"") -> 0.3623394135
B16: SC.912.L.18.12 | C16: 3 | D16: 3 | E16: 3 | F16: =IFERROR(VLOOKUP($B$3,'BLBM-SBIO'!$A$14:$FX$500,47,FALSE),"") -> 0.3928892475 | G16: =IFERROR(VLOOKUP($B$3,'FIABM-SBIO'!$A$14:$FU$500,45,FALSE),"") -> 0.36 | H16: =IFERROR(VLOOKUP($B$3,'WIABM-SBIO'!$A$14:$FX$500,45,FALSE),"") -> 0.4333333174
B17: SC.912.L.15.1 | C17: 4 | D17: 4 | E17: 3 | F17: =IFERROR(VLOOKUP($B$3,'BLBM-SBIO'!$A$14:$FX$500,21,FALSE),"") -> 0.2376685464 | G17: =IFERROR(VLOOKUP($B$3,'FIABM-SBIO'!$A$14:$FU$500,19,FALSE),"") -> 0.3876573245 | H17: =IFERROR(VLOOKUP($B$3,'WIABM-SBIO'!$A$14:$FX$500,19,FALSE),"") -> 0.67
B18: SC.912.L.15.6 | C18: 4 | D18: 4 | E18: 4 | F18: =IFERROR(VLOOKUP($B$3,'BLBM-SBIO'!$A$14:$FX$500,23,FALSE),"") -> 0.3666666746 | G18: =IFERROR(VLOOKUP($B$3,'FIABM-SBIO'!$A$14:$FU$500,21,FALSE),"") -> 0.33 | H18: =IFERROR(VLOOKUP($B$3,'WIABM-SBIO'!$A$14:$FX$500,21,FALSE),"") -> 0.349999994
B19: SC.912.L.15.8 | C19: 3 | D19: 3 | E19: 3 | F19: =IFERROR(VLOOKUP($B$3,'BLBM-SBIO'!$A$14:$FX$500,25,FALSE),"") -> 0.4499999881 | G19: =IFERROR(VLOOKUP($B$3,'FIABM-SBIO'!$A$14:$FU$500,23,FALSE),"") -> 0.39 | H19: =IFERROR(VLOOKUP($B$3,'WIABM-SBIO'!$A$14:$FX$500,23,FALSE),"") -> 0.3666666746
B20: SC.912.L.15.13 | C20: 4 | D20: 4 | E20: 4 | F20: =IFERROR(VLOOKUP($B$3,'BLBM-SBIO'!$A$14:$FX$500,27,FALSE),"") -> 0.3666666746 | G20: =IFERROR(VLOOKUP($B$3,'FIABM-SBIO'!$A$14:$FU$500,25,FALSE),"") -> 0.5873426842 | H20: =IFERROR(VLOOKUP($B$3,'WIABM-SBIO'!$A$14:$FX$500,25,FALSE),"") -> 0.4499999881
B21: SC.912.L.16.1 | C21: 3 | D21: 3 | E21: 3 | F21: =IFERROR(VLOOKUP($B$3,'BLBM-SBIO'!$A$14:$FX$500,29,FALSE),"") -> 0.3373314416 | G21: =IFERROR(VLOOKUP($B$3,'FIABM-SBIO'!$A$14:$FU$500,27,FALSE),"") -> 0.449790226 | H21: =IFERROR(VLOOKUP($B$3,'WIABM-SBIO'!$A$14:$FX$500,27,FALSE),"") -> 0.4497858767
B22: SC.912.L.14.7 | C22: 4 | D22: 3 | E22: 3 | F22: =IFERROR(VLOOKUP($B$3,'BLBM-SBIO'!$A$14:$FX$500,13,FALSE),"") -> 0.3666666746 | G22: =IFERROR(VLOOKUP($B$3,'FIABM-SBIO'!$A$14:$FU$500,11,FALSE),"") -> 0.41 | H22: =IFERROR(VLOOKUP($B$3,'WIABM-SBIO'!$A$14:$FX$500,11,FALSE),"") -> 0.46
B23: SC.912.L.14.26 | C23: 3 | D23: 3 | E23: 3 | F23: =IFERROR(VLOOKUP($B$3,'BLBM-SBIO'!$A$14:$FX$500,15,FALSE),"") -> 0.3333333333 | G23: =IFERROR(VLOOKUP($B$3,'FIABM-SBIO'!$A$14:$FU$500,13,FALSE),"") -> 0.34 | H23: =IFERROR(VLOOKUP($B$3,'WIABM-SBIO'!$A$14:$FX$500,13,FALSE),"") -> 0.6333333254
B24: SC.912.L.14.36 | C24: 3 | D24: 3 | E24: 3 | F24: =IFERROR(VLOOKUP($B$3,'BLBM-SBIO'!$A$14:$FX$500,17,FALSE),"") -> 0.3666666746 | G24: =IFERROR(VLOOKUP($B$3,'FIABM-SBIO'!$A$14:$FU$500,15,FALSE),"") -> 0.5666666826 | H24: =IFERROR(VLOOKUP($B$3,'WIABM-SBIO'!$A$14:$FX$500,15,FALSE),"") -> 0.39
B25: SC.912.L.14.52 | C25: 3 | D25: 3 | E25: 3 | F25: =IFERROR(VLOOKUP($B$3,'BLBM-SBIO'!$A$14:$FX$500,19,FALSE),"") -> 0.3126685492 | G25: =IFERROR(VLOOKUP($B$3,'FIABM-SBIO'!$A$14:$FU$500,17,FALSE),"") -> 0.5 | H25: =IFERROR(VLOOKUP($B$3,'WIABM-SBIO'!$A$14:$FX$500,17,FALSE),"") -> 0.4333333174
B26: SC.912.L.16.13 | C26: 3 | D26: 3 | E26: 3 | F26: =IFERROR(VLOOKUP($B$3,'BLBM-SBIO'!$A$14:$FX$500,33,FALSE),"") -> 0.3000000119 | G26: =IFERROR(VLOOKUP($B$3,'FIABM-SBIO'!$A$14:$FU$500,31,FALSE),"") -> 0.4329138135 | H26: =IFERROR(VLOOKUP($B$3,'WIABM-SBIO'!$A$14:$FX$500,31,FALSE),"") -> 0.2999999921
B27: SC.912.L.17.5 | C27: 4 | D27: 4 | E27: 5 | F27: =IFERROR(VLOOKUP($B$3,'BLBM-SBIO'!$A$14:$FX$500,37,FALSE),"") -> 0.4333333174 | G27: =IFERROR(VLOOKUP($B$3,'FIABM-SBIO'!$A$14:$FU$500,35,FALSE),"") -> 0.38 | H27: =IFERROR(VLOOKUP($B$3,'WIABM-SBIO'!$A$14:$FX$500,35,FALSE),"") -> 0.5498715333
B28: SC.912.L.17.9 | C28: 3 | D28: 3 | E28: 3 | F28: =IFERROR(VLOOKUP($B$3,'BLBM-SBIO'!$A$14:$FX$500,39,FALSE),"") -> 0.4000000159 | G28: =IFERROR(VLOOKUP($B$3,'FIABM-SBIO'!$A$14:$FU$500,37,FALSE),"") -> 0.5168764327 | H28: =IFERROR(VLOOKUP($B$3,'WIABM-SBIO'!$A$14:$FX$500,37,FALSE),"") -> 0.5835474445
B29: SC.912.L.17.20 | C29: 3 | D29: 3 | E29: 3 | F29: =IFERROR(VLOOKUP($B$3,'BLBM-SBIO'!$A$14:$FX$500,41,FALSE),"") -> 0.2835580638 | G29: =IFERROR(VLOOKUP($B$3,'FIABM-SBIO'!$A$14:$FU$500,39,FALSE),"") -> 0.51 | H29: =IFERROR(VLOOKUP($B$3,'WIABM-SBIO'!$A$14:$FX$500,39,FALSE),"") -> 0.4000000159
A30: All Benchmarks (BM) | C30: =SUM(C10:C29) -> 67 | D30: =SUM(D9:D29) -> 67 | E30: =SUM(E9:E29) -> 67 | F30: =IFERROR(VLOOKUP($B$3,'BLCC-SBIO'!$A$14:$FZ$500,5,FALSE),"") -> 0.3455324593 | G30: =IFERROR(VLOOKUP($B$3,'FIACC-SBIO'!$A$14:$FX$500,5,FALSE),"") -> 0.4298131798 | H30: =IFERROR(VLOOKUP($B$3,'WIACC-SBIO'!$A$14:$FZ$500,5,FALSE),"") -> 0.4290948907
A31: Q1 BM Shaded in Blue | C31: =SUM(C17,C19,C20,C27:C29) -> 21 | D31: =SUM(D17,D19,D20,D27:D29) -> 21 | E31: =SUM(E17,E19,E20,E27:E29) -> 21 | F31: =IFERROR(VLOOKUP($B$3,'BLBM-SBIO'!$A$14:$FX$500,47,FALSE),"") -> 0.3928892475 | G31: =IFERROR(VLOOKUP($B$3,'FIACC-SBIO'!$A$14:$FV$500,25,FALSE),"") -> 0.4619647075 | H31: =IFERROR(VLOOKUP($B$3,'WIABM-SBIO'!$A$14:$FZ$500,47,FALSE),"") -> 0.5071122687
A32: Q2 BM Shaded in Green | C32: =SUM(C13,C18,C22:C25) -> 21 | D32: =SUM(D13,D18,D22:D25) -> 20 | E32: =SUM(E13,E18,E22:E25) -> 20 | F32: =IFERROR(VLOOKUP($B$3,'BLBM-SBIO'!$A$14:$FX$500,49,FALSE),"") -> 0.3175337141 | G32: =IFERROR(VLOOKUP($B$3,'FIABM-SBIO'!$A$14:$FW$500,49,FALSE),"") -> 0.4074685375 | H32: =IFERROR(VLOOKUP($B$3,'WIACC-SBIO'!$A$14:$FZ$500,25,FALSE),"") -> 0.4300000191
A48: Reporting Categories | C48: Number of Items | F48: Average % Correct
C49: BL | D49: Fall IA | E49: Winter IA | F49: BL | G49: Fall IA | H49: Winter IA
A50: 1 | B50: Molecular and Cellular Biology | C50: 19 | D50: =SUM(D10:D16) -> 24 | E50: =SUM(E10:E16) -> 24 | F50: =IFERROR(VLOOKUP($B$3,'BLCC-SBIO'!$A$14:$FZ$500,17,FALSE),"") -> 0.3289828526 | G50: =IFERROR(VLOOKUP($B$3,'FIACC-SBIO'!$A$14:$FX$500,13,FALSE),"") -> 0.4061713394 | H50: =IFERROR(VLOOKUP($B$3,'WIACC-SBIO'!$A$14:$BZ$500,13,FALSE),"") -> 0.3603899069
A51: 2 | B51: Classification, Heredity, and Evolution | C51: 25 | D51: =SUM(D17:D21) -> 18 | E51: =SUM(E17:E20) -> 14 | F51: =IFERROR(VLOOKUP($B$3,'BLCC-SBIO'!$A$14:$FZ$500,11,FALSE),"") -> 0.3320000076 | G51: =IFERROR(VLOOKUP($B$3,'FIACC-SBIO'!$A$14:$FX$500,17,FALSE),"") -> 0.4305205951 | H51: =IFERROR(VLOOKUP($B$3,'WIACC-SBIO'!$A$14:$BZ$500,17,FALSE),"") -> 0.4529411653
A52: 3 | B52: Organisms, Populations, and Ecosystems | C52: 23 | D52: =SUM(D22:D29) -> 25 | E52: =SUM(E21:E27) -> 23 | F52: =IFERROR(VLOOKUP($B$3,'BLCC-SBIO'!$A$14:$FZ$500,23,FALSE),"") -> 0.3739130601 | G52: =IFERROR(VLOOKUP($B$3,'FIACC-SBIO'!$A$14:$FX$500,21,FALSE),"") -> 0.4540251675 | H52: =IFERROR(VLOOKUP($B$3,'WIACC-SBIO'!$A$14:$BZ$500,21,FALSE),"") -> 0.4769230623
C54: =SUM(C50:C52) -> 67 | D54: =SUM(D50:D52) -> 67

Sheet Biology NGSSS
A1: Click here to return to the school and subject selection sheet
A2: Next Generation Sunshine State Standards Biology EOC Assessed Benchmarks
A3: Reporting Categories | B3: Benchmarks | C3: Description
B4: SC.912.N.1.1 | C4: SC.912.N.1.1 Define a problem based on a specific body of knowledge, for example: biology, chemistry, physics, and earth/space science, and do the following: 1. pose questions about the natural world; 2. conduct systematic observations; 3. examine books and other sources of information to see what is already known; 4. review what is known in light of empirical evidence; 5. plan investigations; 6. use tools to gather, analyze, and interpret data (this includes the use of measurement in metric and other systems, and also the generation and interpretation of graphical representations of data, including data tables and graphs); 7. pose answers, explanations, or descriptions of events; 8. generate explanations that explicate or describe natural phenomena (inferences); 9. use appropriate evidence and reasoning to justify these explanations to others; 10. communicate results of scientific investigations; and 11. evaluate the merits of the explanations produced by others.
B5: SC.912.N.1.4 | C5: SC.912.N.1.4 Identify sources of information and assess their reliability according to the strict standards of scientific investigation.
B6: SC.912.N.1.6 | C6: SC.912.N.1.6 Describe how scientific inferences are drawn from scientific observations and provide examples from the content being studied.
B7: SC.912.L.14.4 | C7: SC.912.L.14.4 Compare and contrast structure and function of various types of microscopes.
B8: LA.910.2.2.3 | C8: LA.910.2.2.3 The student will organize information to show understanding or relationships among facts, ideas, and events (e.g., representing key points within text through charting, mapping, paraphrasing, summarizing, comparing, contrasting, or outlining).
B9: LA.910.4.2.2 | C9: LA.910.4.2.2 The student will record information and ideas from primary and/or secondary sources accurately and coherently, noting the validity and reliability of these sources and attributing sources of information.
B10: MA.912.S.1.2 | C10: MA.912.S.1.2 Determine appropriate and consistent standards of measurement for the data to be collected in a survey or experiment.
B11: MA.912.S.3.2 | C11: MA.912.S.3.2 Collect, organize, and analyze data sets, determine the best format for the data, and present visual summaries from the following: • bar graphs; • line graphs; • stem and leaf plots; • circle graphs; • histograms; • box and whisker plots; • scatter plots; and • cumulative frequency (ogive) graphs.
A12: Molecular and Cellular Biology | B12: SC.912.L.14.1 | C12: SC.912.L.14.1 Describe the scientific theory of cells (cell theory) and relate the history of its discovery to the process of science.
A13: Molecular and Cellular Biology | B13: SC.912.N.1.3 | C13: SC.912.N.1.3 Recognize that the strength or usefulness of a scientific claim is evaluated through scientific argumentation, which depends on critical and logical thinking, and the active consideration of alternative scientific explanations to explain the data presented.
A14: Molecular and Cellular Biology | B14: SC.912.N.2.1 | C14: SC.912.N.2.1 Identify what is science, what clearly is not science, and what superficially resembles science (but fails to meet the criteria for science).
A15: Molecular and Cellular Biology | B15: SC.912.N.3.1 | C15: SC.912.N.3.1 Explain that a scientific theory is the culmination of many scientific investigations drawing together all the current evidence concerning a substantial range of phenomena; thus, a scientific theory represents the most powerful explanation scientists have to offer.
A16: Molecular and Cellular Biology | B16: SC.912.N.3.4 | C16: SC.912.N.3.4 Recognize that theories do not become laws, nor do laws become theories; theories are well-supported explanations and laws are well-supported descriptions.
A17: Molecular and Cellular Biology | B17: SC.912.L.14.3 | C17: SC.912.L.14.3 Compare and contrast the general structures of plant and animal cells. Compare and contrast the general structures of prokaryotic and eukaryotic cells.
A18: Molecular and Cellular Biology | B18: SC.912.L.14.2 | C18: SC.912.L.14.2 Relate structure to function for the components of plant and animal cells. Explain the role of cell membranes as a highly selective barrier (passive and active transport).
A19: Organisms, Populations, and Ecosystems | B19: SC.912.L.14.7 | C19: SC.912.L.14.7 Relate the structure of each of the major plant organs and tissues to physiological processes.
A20: Organisms, Populations, and Ecosystems | B20: SC.912.L.14.26 | C20: SC.912.L.14.26 Identify the major parts of the brain on diagrams or models.
A21: Organisms, Populations, and Ecosystems | B21: SC.912.L.14.36 | C21: SC.912.L.14.36 Describe the factors affecting blood flow through the cardiovascular system.
A22: Organisms, Populations, and Ecosystems | B22: SC.912.L.14.52 | C22: SC.912.L.14.52 Explain the basic functions of the human immune system, including specific and nonspecific immune response, vaccines, and antibiotics.
A23: Organisms, Populations, and Ecosystems | B23: SC.912.L.14.6 | C23: SC.912.L.14.6 Explain the significance of genetic factors, environmental factors, and pathogenic agents to health from the perspectives of both individual and public health.
A24: Organisms, Populations, and Ecosystems | B24: HE.912.C.1.4 | C24: HE.912.C.1.4 Analyze how heredity and family history can impact personal health.
A25: Organisms, Populations, and Ecosystems | B25: HE.912.C.1.8 | C25: HE.912.C.1.8 Analyze strategies for prevention, detection, and treatment of communicable and chronic diseases.
A26: Classification, Heredity, and Evolution | B26: SC.912.L.15.1 | C26: SC.912.L.15.1 Explain how the scientific theory of evolution is supported by the fossil record, comparative anatomy, comparative embryology, biogeography, molecular biology, and observed evolutionary change.
A27: Classification, Heredity, and Evolution | B27: SC.912.L.15.10 | C27: SC.912.L.15.10 Identify basic trends in hominid evolution from early ancestors six million years ago to modern humans, including brain size, jaw size, language, and manufacture of tools.
A28: Classification, Heredity, and Evolution | B28: SC.912.N.1.3 | C28: SC.912.N.1.3 Recognize that the strength or usefulness of a scientific claim is evaluated through scientific argumentation, which depends on critical and logical thinking, and the active consideration of alternative scientific explanations to explain the data presented.
A29: Classification, Heredity, and Evolution | B29: SC.912.N.1.4 | C29: SC.912.N.1.4 Identify sources of information and assess their reliability according to the strict standards of scientific investigation.
A30: Classification, Heredity, and Evolution | B30: SC.912.N.1.6 | C30: SC.912.N.1.6 Describe how scientific inferences are drawn from scientific observations and provide examples from the content being studied.
A31: Classification, Heredity, and Evolution | B31: SC.912.N.2.1 | C31: SC.912.N.2.1 Identify what is science, what clearly is not science, and what superficially resembles science (but fails to meet the criteria for science).
A32: Classification, Heredity, and Evolution | B32: SC.912.N.3.1 | C32: SC.912.N.3.1 Explain that a scientific theory is the culmination of many scientific investigations drawing together all the current evidence concerning a substantial range of phenomena; thus, a scientific theory represents the most powerful explanation scientists have to offer.
A33: Classification, Heredity, and Evolution | B33: SC.912.N.3.4 | C33: SC.912.N.3.4 Recognize that theories do not become laws, nor do laws become theories; theories are well-supported explanations and laws are well-supported descriptions.
A34: Classification, Heredity, and Evolution | B34: SC.912.L.15.6 | C34: SC.912.L.15.6 Discuss distinguishing characteristics of the domains and kingdoms of living organisms.
A35: Classification, Heredity, and Evolution | B35: SC.912.L.15.4 | C35: SC.912.L.15.4 Describe how and why organisms are hierarchically classified and based on evolutionary relationships.
A36: Classification, Heredity, and Evolution | B36: SC.912.L.15.5 | C36: SC.912.L.15.5 Explain the reasons for changes in how organisms are classified.
A37: Classification, Heredity, and Evolution | B37: SC.912.N.1.3 | C37: SC.912.N.1.3 Recognize that the strength or usefulness of a scientific claim is evaluated through scientific argumentation, which depends on critical and logical thinking, and the active consideration of alternative scientific explanations to explain the data presented.
A38: Classification, Heredity, and Evolution | B38: SC.912.N.1.6 | C38: SC.912.N.1.6 Describe how scientific inferences are drawn from scientific observations and provide examples from the content being studied.
A39: Classification, Heredity, and Evolution | B39: SC.912.L.15.8 | C39: SC.912.L.15.8 Describe the scientific explanations of the origin of life on Earth.
A40: Classification, Heredity, and Evolution | B40: SC.912.N.1.3 | C40: SC.912.N.1.3 Recognize that the strength or usefulness of a scientific claim is evaluated through scientific argumentation, which depends on critical and logical thinking, and the active consideration of alternative scientific explanations to explain the data presented.
A41: Classification, Heredity, and Evolution | B41: SC.912.N.1.4 | C41: SC.912.N.1.4 Identify sources of information and assess their reliability according to the strict standards of scientific investigation.
A42: Classification, Heredity, and Evolution | B42: SC.912.N.2.1 | C42: SC.912.N.2.1 Identify what is science, what clearly is not science, and what superficially resembles science (but fails to meet the criteria for science).
A43: Classification, Heredity, and Evolution | B43: SC.912.L.15.13 | C43: SC.912.L.15.13 Describe the conditions required for natural selection, including: overproduction of offspring, inherited variation, and the struggle to survive, which result in differential reproductive success.
A44: Classification, Heredity, and Evolution | B44: SC.912.L.15.14 | C44: SC.912.L.15.14 Discuss mechanisms of evolutionary change other than natural selection such as genetic drift and gene flow.
A45: Classification, Heredity, and Evolution | B45: SC.912.L.15.15 | C45: SC.912.L.15.15 Describe how mutation and genetic recombination increase genetic variation.
A46: Classification, Heredity, and Evolution | B46: SC.912.N.1.3 | C46: SC.912.N.1.3 Recognize that the strength or usefulness of a scientific claim is evaluated through scientific argumentation, which depends on critical and logical thinking, and the active consideration of alternative scientific explanations to explain the data presented.
A47: Classification, Heredity, and Evolution | B47: SC.912.L.16.1 | C47: SC.912.L.16.1 Use Mendel’s laws of segregation and independent assortment to analyze patterns of inheritance.
A48: Classification, Heredity, and Evolution | B48: SC.912.L.16.2 | C48: SC.912.L.16.2 Discuss observed inheritance patterns caused by various modes of inheritance, including dominant, recessive, codominant, sex-linked, polygenic, and multiple alleles.
A49: Molecular and Cellular Biology | B49: SC.912.L.16.3 | C49: SC.912.L.16.3 Describe the basic process of DNA replication and how it relates to the transmission and conservation of the genetic information.
A50: Molecular and Cellular Biology | B50: SC.912.L.16.4 | C50: SC.912.L.16.4 Explain how mutations in the DNA sequence may or may not result in phenotypic change. Explain how mutations in gametes may result in phenotypic changes in offspring.
A51: Molecular and Cellular Biology | B51: SC.912.L.16.5 | C51: SC.912.L.16.5 Explain the basic processes of transcription and translation, and how they result in the expression of genes.
A52: Molecular and Cellular Biology | B52: SC.912.L.16.9 | C52: SC.912.L.16.9 Explain how and why the genetic code is universal and is common to almost all organisms.
A53: Organisms, Populations, and Ecosystems | B53: SC.912.L.16.10 | C53: SC.912.L.16.10 Evaluate the impact of biotechnology on the individual, society and the environment, including medical and ethical issues.
A54: Organisms, Populations, and Ecosystems | B54: SC.912.L.16.13 | C54: SC.912.L.16.13 Describe the basic anatomy and physiology of the human reproductive system. Describe the process of human development from fertilization to birth and major changes that occur in each trimester of pregnancy.
A55: Molecular and Cellular Biology | B55: SC.912.L.16.17 | C55: SC.912.L.16.17 Compare and contrast mitosis and meiosis and relate to the processes of sexual and asexual reproduction and their consequences for genetic variation.
A56: Molecular and Cellular Biology | B56: SC.912.L.16.8 | C56: SC.912.L.16.8 Explain the relationship between mutation, cell cycle, and uncontrolled cell growth potentially resulting in cancer.
A57: Molecular and Cellular Biology | B57: SC.912.L.16.14 | C57: SC.912.L.16.14 Describe the cell cycle, including the process of mitosis. Explain the role of mitosis in the formation of new cells and its importance in maintaining chromosome number during asexual reproduction.
A58: Molecular and Cellular Biology | B58: SC.912.L.16.16 | C58: SC.912.L.16.16 Describe the process of meiosis, including independent assortment and crossing over. Explain how reduction division results in the formation of haploid gametes or spores.
A59: Organisms, Populations, and Ecosystems | B59: SC.912.L.17.5 | C59: SC.912.L.17.5 Analyze how population size is determined by births, deaths, immigration, emigration, and limiting factors (biotic and abiotic) that determine carrying capacity.
A60: Organisms, Populations, and Ecosystems | B60: SC.912.L.17.2 | C60: SC.912.L.17.2 Explain the general distribution of life in aquatic systems as a function of chemistry, geography, light, depth, salinity, and temperature.
A61: Organisms, Populations, and Ecosystems | B61: SC.912.L.17.4 | C61: SC.912.L.17.4 Describe changes in ecosystems resulting from seasonal variations, climate change, and succession.
A62: Organisms, Populations, and Ecosystems | B62: SC.912.L.17.8 | C62: SC.912.L.17.8 Recognize the consequences of the losses of biodiversity due to catastrophic events, climate changes, human activity, and the introduction of invasive, non-native species.
A63: Organisms, Populations, and Ecosystems | B63: SC.912.N.1.4 | C63: SC.912.N.1.4 Identify sources of information and assess their reliability according to the strict standards of scientific investigation.
A64: Organisms, Populations, and Ecosystems | B64: SC.912.L.17.9 | C64: SC.912.L.17.9 Use a food web to identify and distinguish producers, consumers, and decomposers. Explain the pathway of energy transfer through trophic levels and the reduction of available energy at successive trophic levels.
A65: Organisms, Populations, and Ecosystems | B65: SC.912.E.7.1 | C65: SC.912.E.7.1 Analyze the movement of matter and energy through the different biogeochemical cycles, including water and carbon.
A66: Organisms, Populations, and Ecosystems | B66: SC.912.L.17.20 | C66: SC.912.L.17.20 Predict the impact of individuals on environmental systems and examine how human lifestyles affect sustainability.
A67: Organisms, Populations, and Ecosystems | B67: SC.912.L.17.11 | C67: SC.912.L.17.11 Evaluate the costs and benefits of renewable and nonrenewable resources, such as water, energy, fossil fuels, wildlife, and forests.
A68: Organisms, Populations, and Ecosystems | B68: SC.912.L.17.13 | C68: SC.912.L.17.13 Discuss the need for adequate monitoring of environmental parameters when making policy decisions.
A69: Organisms, Populations, and Ecosystems | B69: SC.912.N.1.3 | C69: SC.912.N.1.3 Recognize that the strength or usefulness of a scientific claim is evaluated through scientific argumentation, which depends on critical and logical thinking, and the active consideration of alternative scientific explanations to explain the data presented.
A70: Organisms, Populations, and Ecosystems | B70: HE.912.C.1.3 | C70: HE.912.C.1.3 Evaluate how environment and personal health are interrelated.
A71: Molecular and Cellular Biology | B71: SC.912.L.18.1 | C71: SC.912.L.18.1 Describe the basic molecular structures and primary functions of the four major categories of biological macromolecules.
A72: Molecular and Cellular Biology | B72: SC.912.L.18.11 | C72: SC.912.L.18.11 Explain the role of enzymes as catalysts that lower the activation energy of biochemical reactions. Identify factors, such as pH and temperature, and their effect on enzyme activity.
A73: Molecular and Cellular Biology | B73: SC.912.L.18.9 | C73: SC.912.L.18.9 Explain the interrelated nature of photosynthesis and cellular respiration.
A74: Molecular and Cellular Biology | B74: SC.912.L.18.7 | C74: SC.912.L.18.7 Identify the reactants, products, and basic functions of photosynthesis.
A75: Molecular and Cellular Biology | B75: SC.912.L.18.8 | C75: SC.912.L.18.8 Identify the reactants, products, and basic functions of aerobic and anaerobic cellular respiration.
A76: Molecular and Cellular Biology | B76: SC.912.L.18.10 | C76: SC.912.L.18.10 Connect the role of adenosine triphosphate (ATP) to energy transfers within a cell.
A77: Molecular and Cellular Biology | B77: SC.912.L.18.12 | C77: SC.912.L.18.12 Discuss the special properties of water that contribute to Earth’s suitability as an environment for life: cohesive behavior, ability to moderate temperature, expansion upon freezing, and versatility as a solvent.

Sheet BLG9BM-R (hidden)
B1: R-G09-BM-SCHL-ALL
B3: Description: | C3: Reading benchmark G09 all
B4: Student Selection: | C4: All Schools | 2012-2013 Fall, 2012-2013 School Year
B5: Group By Data: | C5: School
B6: Assessments: | C6: Baseline 2012 Grade 9 Reading August 2012
B7: Scores: | C7: Overall Avg Raw Score, Overall Avg % Correct, Standards Avg Raw Score, Standards Avg % Correct
B8: Author Name: | C8: Yuwadee Wongbundhit
A9: 1 | B9: 2 | C9: 3 | D9: 4 | E9: 5 | F9: 6 | G9: 7 | H9: 8 | I9: 9 | J9: 10 | K9: 11 | L9: 12 | M9: 13 | N9: 14 | O9: 15 | P9: 16 | Q9: 17 | R9: 18 | S9: 19 | T9: 20 | U9: 21 | V9: 22 | W9: 23 | X9: 24 | Y9: 25 | Z9: 26 | AA9: 27 | AB9: 28 | AC9: 29 | AD9: 30
B10: Total Row(s): 114 Generated on Sep-22-2012 by Yuwadee Wongbundhit | C10: Baseline 2012 Grade 9 Reading August 2012
C11: Total # students | D11: Overall (43 pts max) | F11: LA.910.1--LA.910.1.6: Benchmark LA.910.1.6.3 | H11: LA.910.1--LA.910.1.6: Benchmark LA.910.1.6.8 | J11: LA.910.1--LA.910.1.6: Benchmark LA.910.1.6.9 | L11: LA.910.1--LA.910.1.7: Benchmark LA.910.1.7.2 | N11: LA.910.1--LA.910.1.7: Benchmark LA.910.1.7.3 | P11: LA.910.1--LA.910.1.7: Benchmark LA.910.1.7.4 | R11: LA.910.1--LA.910.1.7: Benchmark LA.910.1.7.5 | T11: LA.910.1--LA.910.1.7: Benchmark LA.910.1.7.7 | V11: LA.910.2--LA.910.2.1: Benchmark LA.910.2.1.5 | X11: LA.910.2--LA.910.2.1: Benchmark LA.910.2.1.7 | Z11: LA.910.6--LA.910.6.1: Benchmark LA.910.6.1.1 | AB11: LA.910.6--LA.910.6.2: Benchmark LA.910.6.2.2
D12: Avg Raw Score | E12: Avg % Correct | F12: Avg Raw Score | G12: Avg % Correct | H12: Avg Raw Score | I12: Avg % Correct | J12: Avg Raw Score | K12: Avg % Correct | L12: Avg Raw Score | M12: Avg % Correct | N12: Avg Raw Score | O12: Avg % Correct | P12: Avg Raw Score | Q12: Avg % Correct | R12: Avg Raw Score | S12: Avg % Correct | T12: Avg Raw Score | U12: Avg % Correct | V12: Avg Raw Score | W12: Avg % Correct | X12: Avg Raw Score | Y12: Avg % Correct | Z12: Avg Raw Score | AA12: Avg % Correct | AB12: Avg Raw Score | AC12: Avg % Correct
B13: School Name
A14: =IFERROR(VALUE(LEFT(B14,4)),"") -> 1331 | B14: 1331 Devon Aire K-8 Center | C14: 1 | D14: 21 | E14: 0.49 | F14: 1 | G14: 0.33 | H14: 0 | I14: 0 | J14: 1 | K14: 0.5 | L14: 2 | M14: 0.5 | N14: 5 | O14: 0.63 | P14: 1 | Q14: 0.5 | R14: 2 | S14: 1 | T14: 2 | U14: 0.33 | V14: 1 | W14: 0.5 | X14: 4 | Y14: 1 | Z14: 0 | AA14: 0 | AB14: 2 | AC14: 0.33
A15: =IFERROR(VALUE(LEFT(B15,4)),"") -> 3621 | B15: 3621 Coconut Palms K-8 Academy | C15: 1 | D15: 11 | E15: 0.26 | F15: 0 | G15: 0 | H15: 0 | I15: 0 | J15: 1 | K15: 0.5 | L15: 2 | M15: 0.5 | N15: 3 | O15: 0.38 | P15: 0 | Q15: 0 | R15: 0 | S15: 0 | T15: 1 | U15: 0.17 | V15: 2 | W15: 1 | X15: 0 | Y15: 0 | Z15: 0 | AA15: 0 | AB15: 2 | AC15: 0.33
A16: 5981 | B16: 5981 Dr. Edward L. Whigham Elementary | C16: 1 | D16: 19 | E16: 0.44 | F16: 1 | G16: 0.33 | H16: 1 | I16: 0.5 | J16: 1 | K16: 0.5 | L16: 2 | M16: 0.5 | N16: 4 | O16: 0.5 | P16: 1 | Q16: 0.5 | R16: 0 | S16: 0 | T16: 4 | U16: 0.67 | V16: 1 | W16: 0.5 | X16: 2 | Y16: 0.5 | Z16: 1 | AA16: 0.5 | AB16: 1 | AC16: 0.17
A17: 6023 | B17: 6023 Andover Middle School | C17: 6 | D17: 10.19999981 | E17: 0.24 | F17: 0.5 | G17: 0.17 | H17: 0.200000003 | I17: 0.08 | J17: 1.200000048 | K17: 0.58 | L17: 0.6999999881 | M17: 0.17 | N17: 2.299999952 | O17: 0.29 | P17: 0.6999999881 | Q17: 0.33 | R17: 0.200000003 | S17: 0.08 | T17: 2.299999952 | U17: 0.39 | V17: 0.3000000119 | W17: 0.17 | X17: 0.3000000119 | Y17: 0.08 | Z17: 0.3000000119 | AA17: 0.17 | AB17: 1.200000048 | AC17: 0.19
A18: 6040 | B18: 6040 Doctors Charter School Of Miami Shores | C18: 79 | D18: 28.89999962 | E18: 0.67 | F18: 2.299999952 | G18: 0.78 | H18: 1 | I18: 0.48 | J18: 1.600000024 | K18: 0.78 | L18: 2.5 | M18: 0.63 | N18: 5.900000095 | O18: 0.74 | P18: 1.399999976 | Q18: 0.72 | R18: 1.5 | S18: 0.75 | T18: 4.099999905 | U18: 0.68 | V18: 1 | W18: 0.48 | X18: 2.799999952 | Y18: 0.71 | Z18: 1.5 | AA18: 0.74 | AB18: 3.299999952 | AC18: 0.55
A19: 6041 | B19: 6041 Paul W. Bell Middle School | C19: 1 | D19: 13 | E19: 0.3 | F19: 0 | G19: 0 | H19: 1 | I19: 0.5 | J19: 1 | K19: 0.5 | L19: 1 | M19: 0.25 | N19: 1 | O19: 0.13 | P19: 0 | Q19: 0 | R19: 0 | S19: 0 | T19: 3 | U19: 0.5 | V19: 1 | W19: 0.5 | X19: 1 | Y19: 0.25 | Z19: 2 | AA19: 1 | AB19: 2 | AC19: 0.33
A20: 6081 | B20: 6081 Centennial Middle School | C20: 79 | D20: 26.29999924 | E20: 0.61 | F20: 2.200000048 | G20: 0.72 | H20: 0.8000000119 | I20: 0.41 | J20: 1.5 | K20: 0.77 | L20: 2.400000095 | M20: 0.61 | N20: 5.400000095 | O20: 0.67 | P20: 1.299999952 | Q20: 0.66 | R20: 1.299999952 | S20: 0.63 | T20: 4 | U20: 0.66 | V20: 0.8999999762 | W20: 0.44 | X20: 2.400000095 | Y20: 0.6 | Z20: 1.200000048 | AA20: 0.62 | AB20: 2.900000095 | AC20: 0.49
A21: 6111 | B21: 6111 Cutler Ridge Middle School | C21: 1 | D21: 15 | E21: 0.35 | F21: 2 | G21: 0.67 | H21: 1 | I21: 0.5 | J21: 0 | K21: 0 | L21: 0 | M21: 0 | N21: 4 | O21: 0.5 | P21: 0 | Q21: 0 | R21: 0 | S21: 0 | T21: 4 | U21: 0.67 | V21: 1 | W21: 0.5 | X21: 0 | Y21: 0 | Z21: 0 | AA21: 0 | AB21: 3 | AC21: 0.5
A22: 6161 | B22: 6161 Lawton Chiles Middle | C22: 2 | D22: 21 | E22: 0.49 | F22: 2 | G22: 0.67 | H22: 1 | I22: 0.5 | J22: 1.5 | K22: 0.75 | L22: 2.5 | M22: 0.63 | N22: 3.5 | O22: 0.44 | P22: 1.5 | Q22: 0.75 | R22: 1 | S22: 0.5 | T22: 4 | U22: 0.66 | V22: 1.5 | W22: 0.75 | X22: 1 | Y22: 0.25 | Z22: 0.5 | AA22: 0.25 | AB22: 1 | AC22: 0.17
A23: 6301 | B23: 6301 JFK Middle School | C23: 5 | D23: 12 | E23: 0.28 | F23: 0.400000006 | G23: 0.13 | H23: 0.6000000238 | I23: 0.3 | J23: 1.200000048 | K23: 0.6 | L23: 1 | M23: 0.25 | N23: 2.400000095 | O23: 0.3 | P23: 0.400000006 | Q23: 0.2 | R23: 0.6000000238 | S23: 0.3 | T23: 1.399999976 | U23: 0.23 | V23: 0.6000000238 | W23: 0.3 | X23: 1.600000024 | Y23: 0.4 | Z23: 0.400000006 | AA23: 0.2 | AB23: 1.399999976 | AC23: 0.23
A24: 6351 | B24: 6351 Lake Stevens Middle School | C24: 1 | D24: 22 | E24: 0.51 | F24: 1 | G24: 0.33 | H24: 0 | I24: 0 | J24: 2 | K24: 1 | L24: 0 | M24: 0 | N24: 6 | O24: 0.75 | P24: 1 | Q24: 0.5 | R24: 1 | S24: 0.5 | T24: 3 | U24: 0.5 | V24: 1 | W24: 0.5 | X24: 3 | Y24: 0.75 | Z24: 1 | AA24: 0.5 | AB24: 3 | AC24: 0.5
A25: 6411 | B25: 6411 Horace Mann Middle School | C25: 3 | D25: 16 | E25: 0.37 | F25: 1.299999952 | G25: 0.44 | H25: 0 | I25: 0 | J25: 0.6999999881 | K25: 0.33 | L25: 2 | M25: 0.5 | N25: 3.299999952 | O25: 0.42 | P25: 1.299999952 | Q25: 0.67 | R25: 0.6999999881 | S25: 0.33 | T25: 2.700000048 | U25: 0.44 | V25: 0.6999999881 | W25: 0.33 | X25: 1.299999952 | Y25: 0.33 | Z25: 1.299999952 | AA25: 0.67 | AB25: 0.6999999881 | AC25: 0.11
A26: 6441 | B26: 6441 Howard D. McMillan Middle | C26: 2 | D26: 14.5 | E26: 0.34 | F26: 0.5 | G26: 0.17 | H26: 0.5 | I26: 0.25 | J26: 2 | K26: 1 | L26: 1 | M26: 0.25 | N26: 3.5 | O26: 0.44 | P26: 0.5 | Q26: 0.25 | R26: 1 | S26: 0.5 | T26: 2 | U26: 0.34 | V26: 0 | W26: 0 | X26: 1.5 | Y26: 0.38 | Z26: 1 | AA26: 0.5 | AB26: 1 | AC26: 0.17
A27: 6501 | B27: 6501 Miami Lakes Middle School | C27: 1 | D27: 11 | E27: 0.26 | F27: 2 | G27: 0.67 | H27: 0 | I27: 0 | J27: 1 | K27: 0.5 | L27: 1 | M27: 0.25 | N27: 3 | O27: 0.38 | P27: 1 | Q27: 0.5 | R27: 1 | S27: 0.5 | T27: 0 | U27: 0 | V27: 0 | W27: 0 | X27: 1 | Y27: 0.25 | Z27: 0 | AA27: 0 | AB27: 1 | AC27: 0.17
A28: 6591 | B28: 6591 North Dade Middle School | C28: 1 | D28: 21 | E28: 0.49 | F28: 2 | G28: 0.67 | H28: 1 | I28: 0.5 | J28: 2 | K28: 1 | L28: 4 | M28: 1 | N28: 3 | O28: 0.38 | P28: 1 | Q28: 0.5 | R28: 0 | S28: 0 | T28: 3 | U28: 0.5 | V28: 2 | W28: 1 | X28: 0 | Y28: 0 | Z28: 0 | AA28: 0 | AB28: 3 | AC28: 0.5
A29: 6741 | B29: 6741 Ponce de Leon Middle School | C29: 1 | D29: 16 | E29: 0.37 | F29: 1 | G29: 0.33 | H29: 0 | I29: 0 | J29: 2 | K29: 1 | L29: 1 | M29: 0.25 | N29: 1 | O29: 0.13 | P29: 0 | Q29: 0 | R29: 1 | S29: 0.5 | T29: 4 | U29: 0.67 | V29: 0 | W29: 0 | X29: 2 | Y29: 0.5 | Z29: 1 | AA29: 0.5 | AB29: 3 | AC29: 0.5
A30: 6861 | B30: 6861 Southwood Middle School | C30: 1 | D30: 16 | E30: 0.37 | F30: 1 | G30: 0.33 | H30: 0 | I30: 0 | J30: 0 | K30: 0 | L30: 1 | M30: 0.25 | N30: 3 | O30: 0.38 | P30: 1 | Q30: 0.5 | R30: 2 | S30: 1 | T30: 3 | U30: 0.5 | V30: 1 | W30: 0.5 | X30: 2 | Y30: 0.5 | Z30: 1 | AA30: 0.5 | AB30: 1 | AC30: 0.17
A31: 6901 | B31: 6901 WR Thomas Middle School | C31: 1 | D31: 22 | E31: 0.51 | F31: 2 | G31: 0.67 | H31: 1 | I31: 0.5 | J31: 1 | K31: 0.5 | L31: 1 | M31: 0.25 | N31: 5 | O31: 0.63 | P31: 2 | Q31: 1 | R31: 1 | S31: 0.5 | T31: 3 | U31: 0.5 | V31: 1 | W31: 0.5 | X31: 2 | Y31: 0.5 | Z31: 2 | AA31: 1 | AB31: 1 | AC31: 0.17
A32: 6921 | B32: 6921 Lamar Louise Curry Middle School | C32: 1 | D32: 10 | E32: 0.23 | F32: 1 | G32: 0.33 | H32: 0 | I32: 0 | J32: 0 | K32: 0 | L32: 1 | M32: 0.25 | N32: 4 | O32: 0.5 | P32: 0 | Q32: 0 | R32: 0 | S32: 0 | T32: 1 | U32: 0.17 | V32: 0 | W32: 0 | X32: 2 | Y32: 0.5 | Z32: 0 | AA32: 0 | AB32: 1 | AC32: 0.17
A33: 7007 | B33: 7007 International Studies Charter High School | C33: 72 | D33: 22.60000038 | E33: 0.52 | F33: 2 | G33: 0.68 | H33: 0.6999999881 | I33: 0.34 | J33: 1.299999952 | K33: 0.63 | L33: 2.200000048 | M33: 0.54 | N33: 4.5 | O33: 0.56 | P33: 1.200000048 | Q33: 0.6 | R33: 1 | S33: 0.51 | T33: 3.299999952 | U33: 0.54 | V33: 0.8000000119 | W33: 0.39 | X33: 2.299999952 | Y33: 0.58 | Z33: 1 | AA33: 0.49 | AB33: 2.400000095 | AC33: 0.4
A34: 7009 | B34: 7009 Doral Performing Arts Academy | C34: 98 | D34: 27.89999962 | E34: 0.65 | F34: 2.299999952 | G34: 0.76 | H34: 1 | I34: 0.48 | J34: 1.600000024 | K34: 0.78 | L34: 2.299999952 | M34: 0.57 | N34: 5.699999809 | O34: 0.71 | P34: 1.399999976 | Q34: 0.69 | R34: 1.5 | S34: 0.76 | T34: 4.099999905 | U34: 0.68 | V34: 0.8999999762 | W34: 0.47 | X34: 2.700000048 | Y34: 0.68 | Z34: 1.299999952 | AA34: 0.65 | AB34: 3.200000048 | AC34: 0.53
A35: 7011 | B35: 7011 American Senior High School | C35: 485 | D35: 20.5 | E35: 0.48 | F35: 1.700000048 | G35: 0.56 | H35: 0.5 | I35: 0.25 | J35: 1.299999952 | K35: 0.67 | L35: 1.700000048 | M35: 0.41 | N35: 4.300000191 | O35: 0.54 | P35: 1.100000024 | Q35: 0.54 | R35: 1 | S35: 0.5 | T35: 3.099999905 | U35: 0.51 | V35: 0.6000000238 | W35: 0.31 | X35: 2 | Y35: 0.5 | Z35: 1 | AA35: 0.48 | AB35: 2.299999952 | AC35: 0.38
A36: 7014 | B36: 7014 Mater Performing Arts & Entertainment Academy | C36: 93 | D36: 26 | E36: 0.6 | F36: 2.200000048 | G36: 0.73 | H36: 0.8000000119 | I36: 0.4 | J36: 1.5 | K36: 0.74 | L36: 2.200000048 | M36: 0.56 | N36: 5.400000095 | O36: 0.68 | P36: 1.399999976 | Q36: 0.72 | R36: 1.200000048 | S36: 0.6 | T36: 3.799999952 | U36: 0.63 | V36: 0.8000000119 | W36: 0.39 | X36: 2.799999952 | Y36: 0.69 | Z36: 1.299999952 | AA36: 0.63 | AB36: 2.700000048 | AC36: 0.46
A37: 7015 | B37: 7015 Life Skills Center Miami-dade County | C37: 11 | D37: 18.10000038 | E37: 0.42 | F37: 1.100000024 | G37: 0.36 | H37: 0.5 | I37: 0.23 | J37: 0.8000000119 | K37: 0.41 | L37: 1.700000048 | M37: 0.43 | N37: 4.5 | O37: 0.56 | P37: 0.8999999762 | Q37: 0.45 | R37: 0.6000000238 | S37: 0.32 | T37: 2.5 | U37: 0.41 | V37: 0.8000000119 | W37: 0.41 | X37: 1.600000024 | Y37: 0.41 | Z37: 0.8999999762 | AA37: 0.45 | AB37: 2.200000048 | AC37: 0.36
A38: 7016 | B38: 7016 Sports Leadership Academy Of Miami Chs | C38: 10 | D38: 22.89999962 | E38: 0.53 | F38: 1.700000048 | G38: 0.57 | H38: 0.8999999762 | I38: 0.45 | J38: 1.5 | K38: 0.75 | L38: 2.200000048 | M38: 0.55 | N38: 3.799999952 | O38: 0.48 | P38: 1.200000048 | Q38: 0.6 | R38: 1 | S38: 0.5 | T38: 3.900000095 | U38: 0.65 | V38: 0.5 | W38: 0.25 | X38: 2.299999952 | Y38: 0.57 | Z38: 1.600000024 | AA38: 0.8 | AB38: 2.299999952 | AC38: 0.38
A39: 7018 | B39: 7018 Mater Academy Lakes High School | C39: 246 | D39: 26.5 | E39: 0.62 | F39: 2.200000048 | G39: 0.72 | H39: 0.8000000119 | I39: 0.42 | J39: 1.600000024 | K39: 0.8 | L39: 2.200000048 | M39: 0.55 | N39: 5.300000191 | O39: 0.67 | P39: 1.399999976 | Q39: 0.68 | R39: 1.399999976 | S39: 0.69 | T39: 3.900000095 | U39: 0.65 | V39: 0.8999999762 | W39: 0.43 | X39: 2.599999905 | Y39: 0.65 | Z39: 1.299999952 | AA39: 0.66 | AB39: 2.900000095 | AC39: 0.49
A40: 7020 | B40: 7020 Doral Academy High School | C40: 413 | D40: 24.39999962 | E40: 0.57 | F40: 2 | G40: 0.67 | H40: 0.6999999881 | I40: 0.37 | J40: 1.399999976 | K40: 0.69 | L40: 2.299999952 | M40: 0.56 | N40: 4.900000095 | O40: 0.62 | P40: 1.299999952 | Q40: 0.63 | R40: 1.299999952 | S40: 0.63 | T40: 3.599999905 | U40: 0.59 | V40: 0.8000000119 | W40: 0.41 | X40: 2.400000095 | Y40: 0.6 | Z40: 1.100000024 | AA40: 0.56 | AB40: 2.700000048 | AC40: 0.46
A41: 7022 | B41: 7022 Academy Of Arts And Minds | C41: 52 | D41: 27 | E41: 0.63 | F41: 2.299999952 | G41: 0.76 | H41: 0.8000000119 | I41: 0.38 | J41: 1.600000024 | K41: 0.78 | L41: 2.599999905 | M41: 0.65 | N41: 6 | O41: 0.75 | P41: 1.399999976 | Q41: 0.68 | R41: 1.200000048 | S41: 0.59 | T41: 3.5 | U41: 0.58 | V41: 0.8999999762 | W41: 0.46 | X41: 2.700000048 | Y41: 0.66 | Z41: 1.299999952 | AA41: 0.65 | AB41: 2.900000095 | AC41: 0.48
A42: 7024 | B42: 7024 Mater Academy HS of International Studies | C42: 24 | D42: 28.39999962 | E42: 0.66 | F42: 2.299999952 | G42: 0.77 | H42: 0.6000000238 | I42: 0.31 | J42: 1.700000048 | K42: 0.85 | L42: 2.099999905 | M42: 0.53 | N42: 5.5 | O42: 0.69 | P42: 1.600000024 | Q42: 0.81 | R42: 1.399999976 | S42: 0.71 | T42: 4.400000095 | U42: 0.74 | V42: 0.6999999881 | W42: 0.33 | X42: 3 | Y42: 0.75 | Z42: 1.399999976 | AA42: 0.69 | AB42: 3.599999905 | AC42: 0.6
A43: 7025 | B43: 7025 Mater Brickell Preparatory Academy High | C43: 14 | D43: 28.10000038 | E43: 0.65 | F43: 2 | G43: 0.67 | H43: 0.8000000119 | I43: 0.39 | J43: 1.700000048 | K43: 0.86 | L43: 2.599999905 | M43: 0.66 | N43: 5.800000191 | O43: 0.73 | P43: 1.299999952 | Q43: 0.64 | R43: 1.299999952 | S43: 0.64 | T43: 4.099999905 | U43: 0.69 | V43: 1.100000024 | W43: 0.54 | X43: 2.599999905 | Y43: 0.66 | Z43: 1.399999976 | AA43: 0.68 | AB43: 3.400000095 | AC43: 0.57
A44: 7029 | B44: 7029 Terra Environmental Institute | C44: 554 | D44: 31.10000038 | E44: 0.72 | F44: 2.599999905 | G44: 0.85 | H44: 0.8999999762 | I44: 0.46 | J44: 1.600000024 | K44: 0.81 | L44: 2.799999952 | M44: 0.7 | N44: 6.400000095 | O44: 0.8 | P44: 1.700000048 | Q44: 0.83 | R44: 1.5 | S44: 0.77 | T44: 4.300000191 | U44: 0.72 | V44: 1 | W44: 0.49 | X44: 3 | Y44: 0.76 | Z44: 1.600000024 | AA44: 0.8 | AB44: 3.599999905 | AC44: 0.61
A45: 7032 | B45: 7032 Palm Glades Preparatory High School | C45: 85 | D45: 22.60000038 | E45: 0.53 | F45: 1.799999952 | G45: 0.6 | H45: 0.6000000238 | I45: 0.29 | J45: 1.399999976 | K45: 0.7 | L45: 1.799999952 | M45: 0.46 | N45: 4.599999905 | O45: 0.58 | P45: 1.200000048 | Q45: 0.58 | R45: 1 | S45: 0.51 | T45: 3.599999905 | U45: 0.6 | V45: 0.6999999881 | W45: 0.35 | X45: 2.099999905 | Y45: 0.53 | Z45: 1.100000024 | AA45: 0.57 | AB45: 2.700000048 | AC45: 0.45
A46: 7033 | B46: 7033 Law Enforcement Officers Memorial High | C46: 75 | D46: 27.20000076 | E46: 0.63 | F46: 2.400000095 | G46: 0.8 | H46: 0.6999999881 | I46: 0.33 | J46: 1.600000024 | K46: 0.8 | L46: 2.299999952 | M46: 0.58 | N46: 5.699999809 | O46: 0.71 | P46: 1.399999976 | Q46: 0.71 | R46: 1.399999976 | S46: 0.68 | T46: 3.900000095 | U46: 0.66 | V46: 0.8999999762 | W46: 0.45 | X46: 2.700000048 | Y46: 0.66 | Z46: 1.399999976 | AA46: 0.69 | AB46: 2.900000095 | AC46: 0.49
A47: 7034 | B47: 7034 Somerset Academy Charter High South Campus | C47: 20 | D47: 23.79999924 | E47: 0.55 | F47: 2.400000095 | G47: 0.8 | H47: 0.400000006 | I47: 0.2 | J47: 1.399999976 | K47: 0.68 | L47: 2.099999905 | M47: 0.51 | N47: 4.699999809 | O47: 0.59 | P47: 1.299999952 | Q47: 0.63 | R47: 1.399999976 | S47: 0.68 | T47: 3.5 | U47: 0.57 | V47: 0.8000000119 | W47: 0.4 | X47: 2.400000095 | Y47: 0.59 | Z47: 0.8999999762 | AA47: 0.45 | AB47: 2.799999952 | AC47: 0.47
A48: 7036 | B48: 7036 Lawrence Academy Senior High Charter School | C48: 27 | D48: 19.29999924 | E48: 0.45 | F48: 1.5 | G48: 0.49 | H48: 0.6000000238 | I48: 0.31 | J48: 1.299999952 | K48: 0.63 | L48: 1.399999976 | M48: 0.34 | N48: 4 | O48: 0.5 | P48: 0.8000000119 | Q48: 0.41 | R48: 0.8999999762 | S48: 0.44 | T48: 3 | U48: 0.49 | V48: 0.6000000238 | W48: 0.3 | X48: 2 | Y48: 0.5 | Z48: 0.8999999762 | AA48: 0.46 | AB48: 2.400000095 | AC48: 0.39
A49: 7037 | B49: 7037 Mater Academy East Charter High School | C49: 72 | D49: 25.10000038 | E49: 0.58 | F49: 2.099999905 | G49: 0.71 | H49: 0.6999999881 | I49: 0.35 | J49: 1.5 | K49: 0.75 | L49: 2.200000048 | M49: 0.54 | N49: 4.900000095 | O49: 0.61 | P49: 1.200000048 | Q49: 0.61 | R49: 1.299999952 | S49: 0.67 | T49: 4 | U49: 0.67 | V49: 0.8999999762 | W49: 0.46 | X49: 2.299999952 | Y49: 0.57 | Z49: 1.200000048 | AA49: 0.6 | AB49: 2.799999952 | AC49: 0.46
A50: 7042 | B50: 7042 Somerset Academy Charter High School | C50: 112 | D50: 26.20000076 | E50: 0.61 | F50: 2.099999905 | G50: 0.71 | H50: 0.6999999881 | I50: 0.33 | J50: 1.600000024 | K50: 0.8 | L50: 2.200000048 | M50: 0.54 | N50: 5.300000191 | O50: 0.66 | P50: 1.299999952 | Q50: 0.67 | R50: 1.399999976 | S50: 0.69 | T50: 4.099999905 | U50: 0.68 | V50: 0.8000000119 | W50: 0.38 | X50: 2.599999905 | Y50: 0.66 | Z50: 1.200000048 | AA50: 0.6 | AB50: 2.900000095 | AC50: 0.49
A51: 7048 | B51: 7048 Alonzo Andtracy Mourning High (Biscanye Bay) | C51: 387 | D51: 25 | E51: 0.58 | F51: 2 | G51: 0.65 | H51: 0.6999999881 | I51: 0.35 | J51: 1.5 | K51: 0.73 | L51: 2.099999905 | M51: 0.54 | N51: 5.099999905 | O51: 0.64 | P51: 1.399999976 | Q51: 0.68 | R51: 1.200000048 | S51: 0.61 | T51: 3.700000048 | U51: 0.61 | V51: 0.8000000119 | W51: 0.42 | X51: 2.400000095 | Y51: 0.61 | Z51: 1.200000048 | AA51: 0.62 | AB51: 2.900000095 | AC51: 0.49
A52: 7049 | B52: 7049 Westland Hialeah Senior | C52: 547 | D52: 21.20000076 | E52: 0.49 | F52: 1.700000048 | G52: 0.57 | H52: 0.6999999881 | I52: 0.34 | J52: 1.299999952 | K52: 0.67 | L52: 1.799999952 | M52: 0.46 | N52: 4.300000191 | O52: 0.54 | P52: 1.100000024 | Q52: 0.54 | R52: 1.100000024 | S52: 0.54 | T52: 3.200000048 | U52: 0.53 | V52: 0.6999999881 | W52: 0.36 | X52: 2 | Y52: 0.51 | Z52: 0.8999999762 | AA52: 0.44 | AB52: 2.400000095 | AC52: 0.39
A53: 7050 | B53: 7050 Keys Gate Charter High School | C53: 223 | D53: 22.70000076 | E53: 0.53 | F53: 2 | G53: 0.66 | H53: 0.8000000119 | I53: 0.4 | J53: 1.399999976 | K53: 0.68 | L53: 2 | M53: 0.51 | N53: 4.5 | O53: 0.56 | P53: 1.200000048 | Q53: 0.59 | R53: 1.100000024 | S53: 0.55 | T53: 3.299999952 | U53: 0.55 | V53: 0.8000000119 | W53: 0.41 | X53: 2.200000048 | Y53: 0.55 | Z53: 0.8999999762 | AA53: 0.47 | AB53: 2.599999905 | AC53: 0.43
A54: 7051 | B54: 7051 G Holmes Braddock Senior High | C54: 814 | D54: 22.39999962 | E54: 0.52 | F54: 1.899999976 | G54: 0.62 | H54: 0.6000000238 | I54: 0.29 | J54: 1.299999952 | K54: 0.66 | L54: 1.899999976 | M54: 0.49 | N54: 4.5 | O54: 0.57 | P54: 1.200000048 | Q54: 0.6 | R54: 1.100000024 | S54: 0.56 | T54: 3.200000048 | U54: 0.53 | V54: 0.8000000119 | W54: 0.42 | X54: 2.299999952 | Y54: 0.57 | Z54: 1.100000024 | AA54: 0.54 | AB54: 2.5 | AC54: 0.41
A55: 7053 | B55: 7053 Pinecrest Preparatory Academy Charter HS | C55: 141 | D55: 25.60000038 | E55: 0.6 | F55: 2.200000048 | G55: 0.72 | H55: 0.6999999881 | I55: 0.34 | J55: 1.5 | K55: 0.74 | L55: 2.200000048 | M55: 0.54 | N55: 5.400000095 | O55: 0.68 | P55: 1.299999952 | Q55: 0.67 | R55: 1.200000048 | S55: 0.6 | T55: 3.700000048 | U55: 0.61 | V55: 0.8000000119 | W55: 0.41 | X55: 2.599999905 | Y55: 0.64 | Z55: 1.200000048 | AA55: 0.61 | AB55: 2.900000095 | AC55: 0.49
A56: 7054 | B56: 7054 Excelsior Charter High School | C56: 51 | D56: 21.20000076 | E56: 0.49 | F56: 1.700000048 | G56: 0.57 | H56: 0.6000000238 | I56: 0.32 | J56: 1.299999952 | K56: 0.63 | L56: 1.700000048 | M56: 0.43 | N56: 4.400000095 | O56: 0.55 | P56: 1.200000048 | Q56: 0.58 | R56: 0.8999999762 | S56: 0.47 | T56: 3.299999952 | U56: 0.54 | V56: 0.6999999881 | W56: 0.36 | X56: 2.099999905 | Y56: 0.53 | Z56: 1.100000024 | AA56: 0.54 | AB56: 2.200000048 | AC56: 0.36
A57: 7055 | B57: 7055 Young Women's Preparatory Academy | C57: 51 | D57: 31.29999924 | E57: 0.73 | F57: 2.5 | G57: 0.84 | H57: 0.8999999762 | I57: 0.46 | J57: 1.600000024 | K57: 0.78 | L57: 2.799999952 | M57: 0.71 | N57: 6.400000095 | O57: 0.8 | P57: 1.700000048 | Q57: 0.84 | R57: 1.700000048 | S57: 0.85 | T57: 4.599999905 | U57: 0.77 | V57: 1 | W57: 0.5 | X57: 2.900000095 | Y57: 0.72 | Z57: 1.5 | AA57: 0.75 | AB57: 3.700000048 | AC57: 0.62
A58: 7056 | B58: 7056 Young Men's Preparatory High School | C58: 26 | D58: 22.10000038 | E58: 0.51 | F58: 1.799999952 | G58: 0.62 | H58: 0.5 | I58: 0.27 | J58: 1.399999976 | K58: 0.69 | L58: 1.700000048 | M58: 0.41 | N58: 4.900000095 | O58: 0.61 | P58: 1 | Q58: 0.52 | R58: 1.100000024 | S58: 0.56 | T58: 3.200000048 | U58: 0.53 | V58: 0.6999999881 | W58: 0.33 | X58: 2.299999952 | Y58: 0.57 | Z58: 1 | AA58: 0.5 | AB58: 2.5 | AC58: 0.42
A59: 7058 | B59: 7058 Miami Community Charter High | C59: 44 | D59: 19.79999924 | E59: 0.46 | F59: 1.600000024 | G59: 0.53 | H59: 0.5 | I59: 0.26 | J59: 1.299999952 | K59: 0.65 | L59: 1.5 | M59: 0.37 | N59: 4.400000095 | O59: 0.56 | P59: 1 | Q59: 0.51 | R59: 1 | S59: 0.52 | T59: 2.799999952 | U59: 0.46 | V59: 0.6999999881 | W59: 0.34 | X59: 2 | Y59: 0.49 | Z59: 0.8999999762 | AA59: 0.45 | AB59: 2.099999905 | AC59: 0.35
A60: 7059 | B60: 7059 Miami Arts Charter | C60: 104 | D60: 27.79999924 | E60: 0.65 | F60: 2.299999952 | G60: 0.78 | H60: 0.8000000119 | I60: 0.38 | J60: 1.600000024 | K60: 0.81 | L60: 2.5 | M60: 0.62 | N60: 5.599999905 | O60: 0.7 | P60: 1.600000024 | Q60: 0.78 | R60: 1.399999976 | S60: 0.71 | T60: 4.199999809 | U60: 0.69 | V60: 1 | W60: 0.5 | X60: 2.5 | Y60: 0.63 | Z60: 1.200000048 | AA60: 0.62 | AB60: 3.099999905 | AC60: 0.51
A61: 7060 | B61: 7060 Everglades Preparatory Academy High School | C61: 128 | D61: 25.20000076 | E61: 0.59 | F61: 2 | G61: 0.66 | H61: 0.8000000119 | I61: 0.39 | J61: 1.399999976 | K61: 0.71 | L61: 2.299999952 | M61: 0.56 | N61: 4.800000191 | O61: 0.61 | P61: 1.399999976 | Q61: 0.68 | R61: 1.200000048 | S61: 0.59 | T61: 3.900000095 | U61: 0.65 | V61: 0.8000000119 | W61: 0.38 | X61: 2.400000095 | Y61: 0.61 | Z61: 1.399999976 | AA61: 0.68 | AB61: 2.900000095 | AC61: 0.49
A62: 7066 | B62: 7066 LBA Management Academy | C62: 1 | D62: 10 | E62: 0.23 | F62: 1 | G62: 0.33 | H62: 1 | I62: 0.5 | J62: 2 | K62: 1 | L62: 0 | M62: 0 | N62: 1 | O62: 0.13 | P62: 0 | Q62: 0 | R62: 0 | S62: 0 | T62: 3 | U62: 0.5 | V62: 0 | W62: 0 | X62: 1 | Y62: 0.25 | Z62: 0 | AA62: 0 | AB62: 1 | AC62: 0.17
A63: 7067 | B63: 7067 Florida High School Of Accelerated Learning- | C63: 30 | D63: 17.10000038 | E63: 0.4 | F63: 1.5 | G63: 0.5 | H63: 0.6000000238 | I63: 0.3 | J63: 1.200000048 | K63: 0.62 | L63: 1.5 | M63: 0.38 | N63: 3.099999905 | O63: 0.39 | P63: 0.8000000119 | Q63: 0.42 | R63: 0.8000000119 | S63: 0.42 | T63: 2.900000095 | U63: 0.48 | V63: 0.6000000238 | W63: 0.28 | X63: 1.399999976 | Y63: 0.35 | Z63: 0.8000000119 | AA63: 0.38 | AB63: 1.899999976 | AC63: 0.32
A64: 7068 | B64: 7068 North Gardens High School | C64: 17 | D64: 16.29999924 | E64: 0.38 | F64: 1.100000024 | G64: 0.37 | H64: 0.6999999881 | I64: 0.35 | J64: 1.200000048 | K64: 0.62 | L64: 1.600000024 | M64: 0.4 | N64: 3.099999905 | O64: 0.39 | P64: 0.8000000119 | Q64: 0.41 | R64: 0.8999999762 | S64: 0.44 | T64: 2.5 | U64: 0.42 | V64: 0.6000000238 | W64: 0.29 | X64: 1.299999952 | Y64: 0.32 | Z64: 0.6000000238 | AA64: 0.29 | AB64: 1.799999952 | AC64: 0.3
A65: 7069 | B65: 7069 North Park High School | C65: 6 | D65: 10.69999981 | E65: 0.25 | F65: 0.6999999881 | G65: 0.22 | H65: 0.5 | I65: 0.25 | J65: 1.200000048 | K65: 0.58 | L65: 0.6999999881 | M65: 0.17 | N65: 2.200000048 | O65: 0.27 | P65: 0.5 | Q65: 0.25 | R65: 0.5 | S65: 0.25 | T65: 2 | U65: 0.33 | V65: 0.200000003 | W65: 0.08 | X65: 0.6999999881 | Y65: 0.17 | Z65: 0.6999999881 | AA65: 0.33 | AB65: 1 | AC65: 0.17
A66: 7070 | B66: 7070 Youth Co-op Preparatory High School | C66: 62 | D66: 23 | E66: 0.53 | F66: 2 | G66: 0.68 | H66: 0.6000000238 | I66: 0.32 | J66: 1.299999952 | K66: 0.65 | L66: 1.899999976 | M66: 0.48 | N66: 4.900000095 | O66: 0.61 | P66: 1.100000024 | Q66: 0.56 | R66: 1 | S66: 0.52 | T66: 3.200000048 | U66: 0.54 | V66: 0.6999999881 | W66: 0.36 | X66: 2.400000095 | Y66: 0.6 | Z66: 1.100000024 | AA66: 0.56 | AB66: 2.599999905 | AC66: 0.43
A67: 7071 | B67: 7071 Coral Gables Senior High School | C67: 834 | D67: 23.39999962 | E67: 0.54 | F67: 1.899999976 | G67: 0.65 | H67: 0.6999999881 | I67: 0.36 | J67: 1.399999976 | K67: 0.69 | L67: 2 | M67: 0.51 | N67: 4.800000191 | O67: 0.61 | P67: 1.200000048 | Q67: 0.61 | R67: 1.100000024 | S67: 0.54 | T67: 3.299999952 | U67: 0.55 | V67: 0.8999999762 | W67: 0.43 | X67: 2.299999952 | Y67: 0.57 | Z67: 1.100000024 | AA67: 0.55 | AB67: 2.599999905 | AC67: 0.44
A68: 7080 | B68: 7080 Charter High School Of The Americas | C68: 27 | D68: 23.60000038 | E68: 0.55 | F68: 1.600000024 | G68: 0.54 | H68: 0.6999999881 | I68: 0.35 | J68: 1.399999976 | K68: 0.69 | L68: 1.899999976 | M68: 0.47 | N68: 5 | O68: 0.63 | P68: 1.100000024 | Q68: 0.57 | R68: 1.100000024 | S68: 0.57 | T68: 3.900000095 | U68: 0.65 | V68: 0.6000000238 | W68: 0.28 | X68: 2.5 | Y68: 0.63 | Z68: 1.100000024 | AA68: 0.57 | AB68: 2.5 | AC68: 0.42
A69: 7081 | B69: 7081 DASH | C69: 139 | D69: 32.09999847 | E69: 0.75 | F69: 2.5 | G69: 0.82 | H69: 1.100000024 | I69: 0.56 | J69: 1.700000048 | K69: 0.85 | L69: 2.799999952 | M69: 0.7 | N69: 6.5 | O69: 0.81 | P69: 1.700000048 | Q69: 0.84 | R69: 1.600000024 | S69: 0.8 | T69: 4.699999809 | U69: 0.78 | V69: 1 | W69: 0.49 | X69: 3.099999905 | Y69: 0.76 | Z69: 1.700000048 | AA69: 0.86 | AB69: 3.799999952 | AC69: 0.64
A70: 7101 | B70: 7101 Coral Reef Senior High School | C70: 833 | D70: 29.29999924 | E70: 0.68 | F70: 2.400000095 | G70: 0.81 | H70: 0.8999999762 | I70: 0.44 | J70: 1.600000024 | K70: 0.8 | L70: 2.599999905 | M70: 0.65 | N70: 5.900000095 | O70: 0.74 | P70: 1.600000024 | Q70: 0.79 | R70: 1.399999976 | S70: 0.72 | T70: 4.199999809 | U70: 0.69 | V70: 1 | W70: 0.49 | X70: 2.799999952 | Y70: 0.71 | Z70: 1.399999976 | AA70: 0.72 | AB70: 3.400000095 | AC70: 0.56
A71: 7111 | B71: 7111 Hialeah Senior high | C71: 674 | D71: 20.10000038 | E71: 0.47 | F71: 1.600000024 | G71: 0.53 | H71: 0.6000000238 | I71: 0.29 | J71: 1.200000048 | K71: 0.62 | L71: 1.700000048 | M71: 0.43 | N71: 4.199999809 | O71: 0.52 | P71: 1.100000024 | Q71: 0.54 | R71: 1 | S71: 0.5 | T71: 2.900000095 | U71: 0.48 | V71: 0.6999999881 | W71: 0.36 | X71: 2 | Y71: 0.5 | Z71: 1 | AA71: 0.48 | AB71: 2.200000048 | AC71: 0.37
A72: 7121 | B72: 7121 John A. Ferguson Senior High School | C72: 1006 | D72: 24 | E72: 0.56 | F72: 2 | G72: 0.66 | H72: 0.6999999881 | I72: 0.35 | J72: 1.5 | K72: 0.74 | L72: 2.099999905 | M72: 0.53 | N72: 4.900000095 | O72: 0.62 | P72: 1.299999952 | Q72: 0.64 | R72: 1.200000048 | S72: 0.62 | T72: 3.5 | U72: 0.58 | V72: 0.8000000119 | W72: 0.4 | X72: 2.400000095 | Y72: 0.59 | Z72: 1.100000024 | AA72: 0.55 | AB72: 2.599999905 | AC72: 0.44
A73: 7131 | B73: 7131 Hialeah-Miami Lakes Senior High | C73: 479 | D73: 20.5 | E73: 0.48 | F73: 1.600000024 | G73: 0.54 | H73: 0.6000000238 | I73: 0.29 | J73: 1.299999952 | K73: 0.64 | L73: 1.700000048 | M73: 0.43 | N73: 4.300000191 | O73: 0.53 | P73: 1.100000024 | Q73: 0.53 | R73: 0.8999999762 | S73: 0.47 | T73: 3 | U73: 0.5 | V73: 0.6999999881 | W73: 0.35 | X73: 2.099999905 | Y73: 0.51 | Z73: 1 | AA73: 0.49 | AB73: 2.200000048 | AC73: 0.37
A74: 7141 | B74: 7141 Dr. Michael M. Krop Senior High School | C74: 643 | D74: 25.60000038 | E74: 0.6 | F74: 2 | G74: 0.68 | H74: 0.6999999881 | I74: 0.37 | J74: 1.5 | K74: 0.77 | L74: 2.099999905 | M74: 0.53 | N74: 5.300000191 | O74: 0.66 | P74: 1.399999976 | Q74: 0.68 | R74: 1.200000048 | S74: 0.59 | T74: 3.700000048 | U74: 0.61 | V74: 0.8999999762 | W74: 0.43 | X74: 2.599999905 | Y74: 0.64 | Z74: 1.399999976 | AA74: 0.68 | AB74: 2.900000095 | AC74: 0.48
A75: 7151 | B75: 7151 Homestead Sr. High School | C75: 443 | D75: 18.79999924 | E75: 0.44 | F75: 1.399999976 | G75: 0.46 | H75: 0.6000000238 | I75: 0.28 | J75: 1.200000048 | K75: 0.62 | L75: 1.600000024 | M75: 0.39 | N75: 3.900000095 | O75: 0.48 | P75: 0.8999999762 | Q75: 0.46 | R75: 0.8999999762 | S75: 0.44 | T75: 2.799999952 | U75: 0.47 | V75: 0.6999999881 | W75: 0.35 | X75: 1.899999976 | Y75: 0.47 | Z75: 0.8999999762 | AA75: 0.44 | AB75: 2.099999905 | AC75: 0.36
A76: 7160 | B76: 7160 Mater Academy High | C76: 421 | D76: 22.89999962 | E76: 0.53 | F76: 2 | G76: 0.66 | H76: 0.6999999881 | I76: 0.33 | J76: 1.399999976 | K76: 0.69 | L76: 1.899999976 | M76: 0.47 | N76: 4.699999809 | O76: 0.59 | P76: 1.200000048 | Q76: 0.6 | R76: 1.100000024 | S76: 0.55 | T76: 3.099999905 | U76: 0.52 | V76: 0.8999999762 | W76: 0.43 | X76: 2.5 | Y76: 0.62 | Z76: 1.100000024 | AA76: 0.56 | AB76: 2.400000095 | AC76: 0.41
A77: 7161 | B77: 7161 MAST Academy | C77: 164 | D77: 32.29999924 | E77: 0.75 | F77: 2.700000048 | G77: 0.89 | H77: 1 | I77: 0.48 | J77: 1.700000048 | K77: 0.83 | L77: 2.900000095 | M77: 0.73 | N77: 6.699999809 | O77: 0.84 | P77: 1.799999952 | Q77: 0.9 | R77: 1.600000024 | S77: 0.78 | T77: 4.5 | U77: 0.74 | V77: 1.100000024 | W77: 0.54 | X77: 3.099999905 | Y77: 0.78 | Z77: 1.700000048 | AA77: 0.86 | AB77: 3.700000048 | AC77: 0.62
A78: 7171 | B78: 7171 M.A.S.T At Homestead | C78: 169 | D78: 29.39999962 | E78: 0.68 | F78: 2.400000095 | G78: 0.79 | H78: 0.8999999762 | I78: 0.45 | J78: 1.600000024 | K78: 0.81 | L78: 2.5 | M78: 0.63 | N78: 6.099999905 | O78: 0.77 | P78: 1.600000024 | Q78: 0.82 | R78: 1.5 | S78: 0.74 | T78: 4 | U78: 0.67 | V78: 1 | W78: 0.49 | X78: 2.900000095 | Y78: 0.72 | Z78: 1.5 | AA78: 0.74 | AB78: 3.299999952 | AC78: 0.55
A79: =IFERROR(VALUE(LEFT(B79,4)),"") -> 7191 | B79: 7191 Hialeah Gardens High School | C79: 738 | D79: 23.20000076 | E79: 0.54 | F79: 1.799999952 | G79: 0.61 | H79: 0.6999999881 | I79: 0.33 | J79: 1.399999976 | K79: 0.7 | L79: 2 | M79: 0.51 | N79: 4.699999809 | O79: 0.59 | P79: 1.200000048 | Q79: 0.61 | R79: 1.200000048 | S79: 0.58 | T79: 3.5 | U79: 0.58 | V79: 0.8000000119 | W79: 0.4 | X79: 2.299999952 | Y79: 0.56 | Z79: 1.100000024 | AA79: 0.53 | AB79: 2.5 | AC79: 0.42
A80: 7201 | B80: 7201 Miami Beach Senior high School | C80: 415 | D80: 22.79999924 | E80: 0.53 | F80: 2 | G80: 0.65 | H80: 0.6999999881 | I80: 0.33 | J80: 1.399999976 | K80: 0.7 | L80: 2 | M80: 0.49 | N80: 4.699999809 | O80: 0.59 | P80: 1.200000048 | Q80: 0.6 | R80: 1.100000024 | S80: 0.56 | T80: 3.200000048 | U80: 0.54 | V80: 0.8000000119 | W80: 0.4 | X80: 2.299999952 | Y80: 0.57 | Z80: 1.100000024 | AA80: 0.55 | AB80: 2.5 | AC80: 0.42
A81: 7231 | B81: 7231 Miami Carol City Sr. High | C81: 454 | D81: 18.89999962 | E81: 0.44 | F81: 1.399999976 | G81: 0.48 | H81: 0.5 | I81: 0.23 | J81: 1.200000048 | K81: 0.62 | L81: 1.600000024 | M81: 0.39 | N81: 3.900000095 | O81: 0.49 | P81: 1 | Q81: 0.49 | R81: 0.8000000119 | S81: 0.41 | T81: 2.900000095 | U81: 0.48 | V81: 0.6999999881 | W81: 0.34 | X81: 1.799999952 | Y81: 0.46 | Z81: 0.8999999762 | AA81: 0.44 | AB81: 2.200000048 | AC81: 0.37
A82: 7241 | B82: 7241 Ronald W. Reagan/Doral Senior High | C82: 466 | D82: 26 | E82: 0.6 | F82: 2.099999905 | G82: 0.71 | H82: 0.8000000119 | I82: 0.39 | J82: 1.600000024 | K82: 0.78 | L82: 2.299999952 | M82: 0.57 | N82: 5.300000191 | O82: 0.67 | P82: 1.5 | Q82: 0.73 | R82: 1.299999952 | S82: 0.66 | T82: 3.700000048 | U82: 0.61 | V82: 0.8000000119 | W82: 0.41 | X82: 2.5 | Y82: 0.64 | Z82: 1.299999952 | AA82: 0.67 | AB82: 2.700000048 | AC82: 0.46
A83: 7251 | B83: 7251 Miami Central Senior High | C83: 500 | D83: 18.10000038 | E83: 0.42 | F83: 1.299999952 | G83: 0.44 | H83: 0.5 | I83: 0.25 | J83: 1.200000048 | K83: 0.62 | L83: 1.5 | M83: 0.38 | N83: 3.700000048 | O83: 0.46 | P83: 0.8999999762 | Q83: 0.46 | R83: 0.8000000119 | S83: 0.39 | T83: 2.799999952 | U83: 0.47 | V83: 0.6000000238 | W83: 0.31 | X83: 1.799999952 | Y83: 0.45 | Z83: 0.8999999762 | AA83: 0.44 | AB83: 2.099999905 | AC83: 0.35
A84: 7262 | B84: 7262 City of Hialeah Education Academy | C84: 90 | D84: 22.5 | E84: 0.52 | F84: 1.899999976 | G84: 0.62 | H84: 0.6999999881 | I84: 0.34 | J84: 1.399999976 | K84: 0.7 | L84: 1.899999976 | M84: 0.48 | N84: 4.800000191 | O84: 0.6 | P84: 1.100000024 | Q84: 0.53 | R84: 1 | S84: 0.5 | T84: 3.200000048 | U84: 0.53 | V84: 0.8000000119 | W84: 0.41 | X84: 2.200000048 | Y84: 0.54 | Z84: 1.100000024 | AA84: 0.54 | AB84: 2.5 | AC84: 0.41
A85: 7265 | B85: 7265 Archimedean Upper Conservatory | C85: 61 | D85: 31.10000038 | E85: 0.72 | F85: 2.599999905 | G85: 0.86 | H85: 0.8999999762 | I85: 0.47 | J85: 1.600000024 | K85: 0.8 | L85: 2.900000095 | M85: 0.73 | N85: 6.199999809 | O85: 0.78 | P85: 1.700000048 | Q85: 0.86 | R85: 1.600000024 | S85: 0.78 | T85: 4.5 | U85: 0.74 | V85: 1.200000048 | W85: 0.59 | X85: 3 | Y85: 0.75 | Z85: 1.399999976 | AA85: 0.71 | AB85: 3.5 | AC85: 0.58
A86: 7271 | B86: 7271 Miami Coral Park Senior High School | C86: 688 | D86: 18.5 | E86: 0.43 | F86: 1.5 | G86: 0.51 | H86: 0.6000000238 | I86: 0.28 | J86: 1.200000048 | K86: 0.58 | L86: 1.600000024 | M86: 0.4 | N86: 3.799999952 | O86: 0.48 | P86: 1 | Q86: 0.5 | R86: 0.8999999762 | S86: 0.44 | T86: 2.599999905 | U86: 0.43 | V86: 0.8000000119 | W86: 0.38 | X86: 1.899999976 | Y86: 0.47 | Z86: 0.8000000119 | AA86: 0.39 | AB86: 2 | AC86: 0.33
A87: 7291 | B87: 7291 Jose Marti | C87: 76 | D87: 28.70000076 | E87: 0.67 | F87: 2.400000095 | G87: 0.81 | H87: 0.8999999762 | I87: 0.47 | J87: 1.600000024 | K87: 0.8 | L87: 2.400000095 | M87: 0.6 | N87: 5.900000095 | O87: 0.74 | P87: 1.600000024 | Q87: 0.8 | R87: 1.299999952 | S87: 0.65 | T87: 4.199999809 | U87: 0.7 | V87: 0.8999999762 | W87: 0.45 | X87: 2.900000095 | Y87: 0.72 | Z87: 1.399999976 | AA87: 0.69 | AB87: 3.099999905 | AC87: 0.52
A88: 7301 | B88: 7301 Miami Edison Senior High | C88: 227 | D88: 17.70000076 | E88: 0.41 | F88: 1.299999952 | G88: 0.44 | H88: 0.5 | I88: 0.23 | J88: 1.200000048 | K88: 0.6 | L88: 1.399999976 | M88: 0.36 | N88: 3.599999905 | O88: 0.45 | P88: 1 | Q88: 0.5 | R88: 0.6999999881 | S88: 0.36 | T88: 2.799999952 | U88: 0.46 | V88: 0.6999999881 | W88: 0.36 | X88: 1.700000048 | Y88: 0.44 | Z88: 0.8000000119 | AA88: 0.41 | AB88: 1.899999976 | AC88: 0.32
A89: 7341 | B89: 7341 Miami Jackson Senior High | C89: 370 | D89: 19.10000038 | E89: 0.44 | F89: 1.5 | G89: 0.49 | H89: 0.5 | I89: 0.24 | J89: 1.299999952 | K89: 0.63 | L89: 1.600000024 | M89: 0.41 | N89: 4 | O89: 0.5 | P89: 1 | Q89: 0.49 | R89: 0.8999999762 | S89: 0.46 | T89: 2.799999952 | U89: 0.47 | V89: 0.6000000238 | W89: 0.31 | X89: 1.899999976 | Y89: 0.48 | Z89: 0.8999999762 | AA89: 0.45 | AB89: 2 | AC89: 0.34
A90: 7351 | B90: 7351 Arthur And Polly Mays 6-12 Conservatory Of Th | C90: 76 | D90: 19.5 | E90: 0.45 | F90: 1.700000048 | G90: 0.57 | H90: 0.5 | I90: 0.23 | J90: 1.399999976 | K90: 0.68 | L90: 1.5 | M90: 0.37 | N90: 3.900000095 | O90: 0.48 | P90: 1.100000024 | Q90: 0.53 | R90: 0.8000000119 | S90: 0.41 | T90: 3 | U90: 0.5 | V90: 0.6999999881 | W90: 0.37 | X90: 2.099999905 | Y90: 0.52 | Z90: 0.8999999762 | AA90: 0.45 | AB90: 2 | AC90: 0.34
A91: 7361 | B91: 7361 Miami Killian Senior High | C91: 506 | D91: 22.89999962 | E91: 0.53 | F91: 1.899999976 | G91: 0.63 | H91: 0.6999999881 | I91: 0.36 | J91: 1.399999976 | K91: 0.7 | L91: 1.899999976 | M91: 0.46 | N91: 4.699999809 | O91: 0.6 | P91: 1.200000048 | Q91: 0.62 | R91: 1.100000024 | S91: 0.53 | T91: 3.200000048 | U91: 0.53 | V91: 0.8000000119 | W91: 0.4 | X91: 2.299999952 | Y91: 0.58 | Z91: 1.100000024 | AA91: 0.57 | AB91: 2.5 | AC91: 0.41
A92: 7371 | B92: 7371 Robert Morgan Education Center | C92: 549 | D92: 25.10000038 | E92: 0.58 | F92: 2.099999905 | G92: 0.68 | H92: 0.6999999881 | I92: 0.34 | J92: 1.600000024 | K92: 0.79 | L92: 2.099999905 | M92: 0.52 | N92: 5.199999809 | O92: 0.66 | P92: 1.299999952 | Q92: 0.65 | R92: 1.299999952 | S92: 0.64 | T92: 3.599999905 | U92: 0.61 | V92: 0.8000000119 | W92: 0.41 | X92: 2.5 | Y92: 0.62 | Z92: 1.200000048 | AA92: 0.6 | AB92: 2.700000048 | AC92: 0.46
A93: 7381 | B93: 7381 Miami Norland Senior High | C93: 498 | D93: 20.20000076 | E93: 0.47 | F93: 1.600000024 | G93: 0.52 | H93: 0.6000000238 | I93: 0.28 | J93: 1.399999976 | K93: 0.7 | L93: 1.600000024 | M93: 0.39 | N93: 4.199999809 | O93: 0.53 | P93: 1 | Q93: 0.51 | R93: 1 | S93: 0.51 | T93: 3.099999905 | U93: 0.51 | V93: 0.6000000238 | W93: 0.32 | X93: 1.899999976 | Y93: 0.48 | Z93: 0.8999999762 | AA93: 0.47 | AB93: 2.299999952 | AC93: 0.38
A94: 7391 | B94: 7391 Miami Lakes Educational Center | C94: 421 | D94: 26.70000076 | E94: 0.62 | F94: 2.099999905 | G94: 0.71 | H94: 0.8000000119 | I94: 0.41 | J94: 1.600000024 | K94: 0.78 | L94: 2.200000048 | M94: 0.56 | N94: 5.599999905 | O94: 0.7 | P94: 1.399999976 | Q94: 0.7 | R94: 1.299999952 | S94: 0.64 | T94: 4 | U94: 0.66 | V94: 0.8000000119 | W94: 0.42 | X94: 2.599999905 | Y94: 0.64 | Z94: 1.299999952 | AA94: 0.66 | AB94: 3 | AC94: 0.51
A95: 7411 | B95: 7411 Miami Northwestern Senior | C95: 362 | D95: 19.29999924 | E95: 0.45 | F95: 1.399999976 | G95: 0.46 | H95: 0.6000000238 | I95: 0.3 | J95: 1.399999976 | K95: 0.69 | L95: 1.600000024 | M95: 0.39 | N95: 4 | O95: 0.5 | P95: 1 | Q95: 0.48 | R95: 0.8999999762 | S95: 0.44 | T95: 2.900000095 | U95: 0.48 | V95: 0.6999999881 | W95: 0.34 | X95: 1.899999976 | Y95: 0.48 | Z95: 0.8999999762 | AA95: 0.45 | AB95: 2.099999905 | AC95: 0.35
A96: 7431 | B96: 7431 Miami Palmetto Sr High | C96: 539 | D96: 25 | E96: 0.58 | F96: 2.099999905 | G96: 0.69 | H96: 0.8000000119 | I96: 0.39 | J96: 1.600000024 | K96: 0.79 | L96: 2.299999952 | M96: 0.57 | N96: 5 | O96: 0.63 | P96: 1.299999952 | Q96: 0.64 | R96: 1.299999952 | S96: 0.67 | T96: 3.700000048 | U96: 0.62 | V96: 0.8000000119 | W96: 0.42 | X96: 2.5 | Y96: 0.62 | Z96: 0.8999999762 | AA96: 0.46 | AB96: 2.700000048 | AC96: 0.46
A97: 7461 | B97: 7461 Miami Senior High | C97: 692 | D97: 17.79999924 | E97: 0.42 | F97: 1.5 | G97: 0.5 | H97: 0.5 | I97: 0.26 | J97: 1.200000048 | K97: 0.62 | L97: 1.600000024 | M97: 0.39 | N97: 3.700000048 | O97: 0.46 | P97: 0.8999999762 | Q97: 0.46 | R97: 1 | S97: 0.49 | T97: 2.599999905 | U97: 0.44 | V97: 0.6000000238 | W97: 0.32 | X97: 1.700000048 | Y97: 0.42 | Z97: 0.6000000238 | AA97: 0.3 | AB97: 1.899999976 | AC97: 0.32
A98: 7511 | B98: 7511 Miami Springs Senior High | C98: 439 | D98: 21.29999924 | E98: 0.5 | F98: 1.799999952 | G98: 0.58 | H98: 0.6000000238 | I98: 0.32 | J98: 1.299999952 | K98: 0.64 | L98: 1.799999952 | M98: 0.45 | N98: 4.400000095 | O98: 0.55 | P98: 1.200000048 | Q98: 0.58 | R98: 1.100000024 | S98: 0.53 | T98: 3.200000048 | U98: 0.53 | V98: 0.6999999881 | W98: 0.35 | X98: 2 | Y98: 0.51 | Z98: 0.8999999762 | AA98: 0.45 | AB98: 2.400000095 | AC98: 0.41
A99: 7531 | B99: 7531 Miami SunSET Senior | C99: 385 | D99: 20.10000038 | E99: 0.47 | F99: 1.700000048 | G99: 0.58 | H99: 0.5 | I99: 0.27 | J99: 1.299999952 | K99: 0.63 | L99: 1.600000024 | M99: 0.41 | N99: 4.199999809 | O99: 0.53 | P99: 1.100000024 | Q99: 0.53 | R99: 1 | S99: 0.5 | T99: 2.900000095 | U99: 0.48 | V99: 0.8000000119 | W99: 0.39 | X99: 2.099999905 | Y99: 0.53 | Z99: 0.8000000119 | AA99: 0.4 | AB99: 2.099999905 | AC99: 0.35
A100: 7541 | B100: 7541 North Miami Beach Sr. | C100: 486 | D100: 20.5 | E100: 0.48 | F100: 1.600000024 | G100: 0.55 | H100: 0.6000000238 | I100: 0.29 | J100: 1.299999952 | K100: 0.66 | L100: 1.600000024 | M100: 0.41 | N100: 4.300000191 | O100: 0.54 | P100: 1.100000024 | Q100: 0.57 | R100: 1 | S100: 0.48 | T100: 3.099999905 | U100: 0.52 | V100: 0.6999999881 | W100: 0.34 | X100: 2 | Y100: 0.49 | Z100: 0.8999999762 | AA100: 0.46 | AB100: 2.299999952 | AC100: 0.38
A101: 7571 | B101: 7571 International Studies Preparatory Academy | C101: 100 | D101: 30.29999924 | E101: 0.7 | F101: 2.400000095 | G101: 0.8 | H101: 1.100000024 | I101: 0.52 | J101: 1.399999976 | K101: 0.71 | L101: 2.599999905 | M101: 0.65 | N101: 6.199999809 | O101: 0.78 | P101: 1.600000024 | Q101: 0.79 | R101: 1.600000024 | S101: 0.81 | T101: 4.300000191 | U101: 0.72 | V101: 0.8999999762 | W101: 0.47 | X101: 3.099999905 | Y101: 0.76 | Z101: 1.5 | AA101: 0.77 | AB101: 3.599999905 | AC101: 0.6
A102: 7581 | B102: 7581 IPreparatory Academy | C102: 85 | D102: 32.90000153 | E102: 0.77 | F102: 2.599999905 | G102: 0.86 | H102: 1 | I102: 0.51 | J102: 1.700000048 | K102: 0.83 | L102: 3.099999905 | M102: 0.77 | N102: 6.599999905 | O102: 0.83 | P102: 1.799999952 | Q102: 0.89 | R102: 1.600000024 | S102: 0.79 | T102: 4.800000191 | U102: 0.8 | V102: 1 | W102: 0.51 | X102: 3.099999905 | Y102: 0.78 | Z102: 1.799999952 | AA102: 0.88 | AB102: 3.900000095 | AC102: 0.65
A103: 7591 | B103: 7591 North Miami Senior High School | C103: 656 | D103: 20.60000038 | E103: 0.48 | F103: 1.600000024 | G103: 0.53 | H103: 0.6000000238 | I103: 0.28 | J103: 1.299999952 | K103: 0.67 | L103: 1.700000048 | M103: 0.43 | N103: 4.099999905 | O103: 0.52 | P103: 1 | Q103: 0.52 | R103: 1.100000024 | S103: 0.54 | T103: 3.200000048 | U103: 0.53 | V103: 0.6000000238 | W103: 0.32 | X103: 2 | Y103: 0.51 | Z103: 1 | AA103: 0.48 | AB103: 2.400000095 | AC103: 0.4
A104: 7601 | B104: 7601 Turner Tech | C104: 455 | D104: 24.39999962 | E104: 0.57 | F104: 2 | G104: 0.65 | H104: 0.6999999881 | I104: 0.36 | J104: 1.5 | K104: 0.76 | L104: 1.899999976 | M104: 0.47 | N104: 5.199999809 | O104: 0.66 | P104: 1.200000048 | Q104: 0.62 | R104: 1.200000048 | S104: 0.59 | T104: 3.599999905 | U104: 0.6 | V104: 0.6999999881 | W104: 0.37 | X104: 2.299999952 | Y104: 0.59 | Z104: 1.200000048 | AA104: 0.62 | AB104: 2.700000048 | AC104: 0.44
A105: 7631 | B105: 7631 MacArthur South Senior High | C105: 14 | D105: 10.60000038 | E105: 0.25 | F105: 0.6999999881 | G105: 0.24 | H105: 0.400000006 | I105: 0.18 | J105: 0.8999999762 | K105: 0.43 | L105: 1.5 | M105: 0.38 | N105: 1.899999976 | O105: 0.24 | P105: 0.5 | Q105: 0.25 | R105: 0.3000000119 | S105: 0.14 | T105: 1.5 | U105: 0.25 | V105: 0.6999999881 | W105: 0.36 | X105: 1 | Y105: 0.25 | Z105: 0.1000000015 | AA105: 0.07 | AB105: 1.100000024 | AC105: 0.18
A106: 7701 | B106: 7701 South Dade Senior | C106: 723 | D106: 21.29999924 | E106: 0.5 | F106: 1.700000048 | G106: 0.58 | H106: 0.6000000238 | I106: 0.3 | J106: 1.399999976 | K106: 0.68 | L106: 1.899999976 | M106: 0.47 | N106: 4.300000191 | O106: 0.54 | P106: 1.100000024 | Q106: 0.53 | R106: 1 | S106: 0.49 | T106: 3.200000048 | U106: 0.53 | V106: 0.6999999881 | W106: 0.37 | X106: 2 | Y106: 0.5 | Z106: 1 | AA106: 0.48 | AB106: 2.5 | AC106: 0.42
A107: 7721 | B107: 7721 South Miami Senior High | C107: 579 | D107: 21.10000038 | E107: 0.49 | F107: 1.700000048 | G107: 0.56 | H107: 0.6000000238 | I107: 0.31 | J107: 1.299999952 | K107: 0.64 | L107: 1.799999952 | M107: 0.46 | N107: 4.300000191 | O107: 0.54 | P107: 1.100000024 | Q107: 0.56 | R107: 1 | S107: 0.49 | T107: 3 | U107: 0.5 | V107: 0.6999999881 | W107: 0.35 | X107: 2.200000048 | Y107: 0.54 | Z107: 1 | AA107: 0.48 | AB107: 2.400000095 | AC107: 0.41
A108: 7731 | B108: 7731 Miami Southridge Senior High | C108: 502 | D108: 19.70000076 | E108: 0.46 | F108: 1.600000024 | G108: 0.54 | H108: 0.5 | I108: 0.27 | J108: 1.299999952 | K108: 0.64 | L108: 1.700000048 | M108: 0.42 | N108: 4.099999905 | O108: 0.52 | P108: 1 | Q108: 0.52 | R108: 0.8999999762 | S108: 0.45 | T108: 2.799999952 | U108: 0.47 | V108: 0.6999999881 | W108: 0.35 | X108: 1.899999976 | Y108: 0.48 | Z108: 0.8999999762 | AA108: 0.45 | AB108: 2.200000048 | AC108: 0.37
A109: 7741 | B109: 7741 Southwest Miami High School | C109: 732 | D109: 21.20000076 | E109: 0.49 | F109: 1.700000048 | G109: 0.58 | H109: 0.6000000238 | I109: 0.31 | J109: 1.299999952 | K109: 0.67 | L109: 1.899999976 | M109: 0.47 | N109: 4.199999809 | O109: 0.53 | P109: 1.100000024 | Q109: 0.54 | R109: 1 | S109: 0.51 | T109: 3.099999905 | U109: 0.52 | V109: 0.8000000119 | W109: 0.38 | X109: 2 | Y109: 0.51 | Z109: 0.8999999762 | AA109: 0.46 | AB109: 2.400000095 | AC109: 0.4
A110: 7751 | B110: 7751 Barbara Goleman High School | C110: 368 | D110: 22 | E110: 0.51 | F110: 1.799999952 | G110: 0.6 | H110: 0.6000000238 | I110: 0.31 | J110: 1.399999976 | K110: 0.69 | L110: 1.899999976 | M110: 0.47 | N110: 4.5 | O110: 0.56 | P110: 1.100000024 | Q110: 0.56 | R110: 1 | S110: 0.52 | T110: 3.400000095 | U110: 0.56 | V110: 0.6999999881 | W110: 0.37 | X110: 2.099999905 | Y110: 0.52 | Z110: 1 | AA110: 0.49 | AB110: 2.5 | AC110: 0.42
A111: 7781 | B111: 7781 Felix Varela Senior High School | C111: 766 | D111: 24.39999962 | E111: 0.57 | F111: 2 | G111: 0.67 | H111: 0.6999999881 | I111: 0.36 | J111: 1.5 | K111: 0.73 | L111: 2.099999905 | M111: 0.52 | N111: 5 | O111: 0.62 | P111: 1.299999952 | Q111: 0.65 | R111: 1.200000048 | S111: 0.6 | T111: 3.599999905 | U111: 0.6 | V111: 0.8000000119 | W111: 0.39 | X111: 2.400000095 | Y111: 0.6 | Z111: 1.200000048 | AA111: 0.59 | AB111: 2.700000048 | AC111: 0.46
A112: 7791 | B112: 7791 Booker T. Washington Senior High School | C112: 229 | D112: 17.20000076 | E112: 0.4 | F112: 1.299999952 | G112: 0.43 | H112: 0.5 | I112: 0.24 | J112: 1.200000048 | K112: 0.61 | L112: 1.399999976 | M112: 0.36 | N112: 3.5 | O112: 0.44 | P112: 0.8000000119 | Q112: 0.41 | R112: 0.8000000119 | S112: 0.38 | T112: 2.599999905 | U112: 0.43 | V112: 0.6999999881 | W112: 0.33 | X112: 1.799999952 | Y112: 0.44 | Z112: 0.8000000119 | AA112: 0.39 | AB112: 1.899999976 | AC112: 0.32
A113: 7801 | B113: 7801 George T. Baker | C113: 76 | D113: 23.29999924 | E113: 0.54 | F113: 2 | G113: 0.65 | H113: 0.6999999881 | I113: 0.35 | J113: 1.5 | K113: 0.75 | L113: 1.899999976 | M113: 0.48 | N113: 4.699999809 | O113: 0.59 | P113: 1.200000048 | Q113: 0.62 | R113: 1.100000024 | S113: 0.55 | T113: 3.400000095 | U113: 0.56 | V113: 0.6999999881 | W113: 0.37 | X113: 2.400000095 | Y113: 0.59 | Z113: 1.100000024 | AA113: 0.57 | AB113: 2.599999905 | AC113: 0.43
A114: 7901 | B114: 7901 New World School of Arts | C114: 118 | D114: 26.89999962 | E114: 0.62 | F114: 2.200000048 | G114: 0.75 | H114: 0.8999999762 | I114: 0.44 | J114: 1.700000048 | K114: 0.83 | L114: 2.299999952 | M114: 0.58 | N114: 5.5 | O114: 0.69 | P114: 1.399999976 | Q114: 0.71 | R114: 1.399999976 | S114: 0.72 | T114: 4 | U114: 0.67 | V114: 1 | W114: 0.5 | X114: 2.599999905 | Y114: 0.65 | Z114: 1 | AA114: 0.49 | AB114: 2.799999952 | AC114: 0.46
A115: 8005 | B115: 8005 Lindsey Hopkins TEC | C115: 2 | D115: 15.5 | E115: 0.36 | F115: 1 | G115: 0.33 | H115: 1 | I115: 0.5 | J115: 0.5 | K115: 0.25 | L115: 0 | M115: 0 | N115: 3.5 | O115: 0.44 | P115: 1.5 | Q115: 0.75 | R115: 1 | S115: 0.5 | T115: 2 | U115: 0.34 | V115: 0.5 | W115: 0.25 | X115: 2 | Y115: 0.5 | Z115: 0.5 | AA115: 0.25 | AB115: 2 | AC115: 0.34
A116: 8014 | B116: 8014 Educational Alt. Outreach Program | C116: 31 | D116: 12.39999962 | E116: 0.29 | F116: 0.6999999881 | G116: 0.24 | H116: 0.5 | I116: 0.27 | J116: 0.8999999762 | K116: 0.47 | L116: 1.299999952 | M116: 0.32 | N116: 2.5 | O116: 0.32 | P116: 0.5 | Q116: 0.27 | R116: 0.5 | S116: 0.26 | T116: 1.5 | U116: 0.26 | V116: 0.5 | W116: 0.24 | X116: 1.399999976 | Y116: 0.34 | Z116: 0.400000006 | AA116: 0.19 | AB116: 1.5 | AC116: 0.25
A117: 8017 | B117: 8017 Outreachprograms | C117: 107 | D117: 12.5 | E117: 0.29 | F117: 1.100000024 | G117: 0.35 | H117: 0.5 | I117: 0.23 | J117: 0.6999999881 | K117: 0.36 | L117: 1.399999976 | M117: 0.34 | N117: 2.5 | O117: 0.31 | P117: 0.6999999881 | Q117: 0.33 | R117: 0.5 | S117: 0.25 | T117: 1.700000048 | U117: 0.28 | V117: 0.6000000238 | W117: 0.29 | X117: 1.100000024 | Y117: 0.26 | Z117: 0.400000006 | AA117: 0.22 | AB117: 1.5 | AC117: 0.25
A118: 8019 | B118: 8019 Academy For Comm. Ed. | C118: 7 | D118: 15.30000019 | E118: 0.36 | F118: 1.399999976 | G118: 0.48 | H118: 0.400000006 | I118: 0.21 | J118: 1.299999952 | K118: 0.64 | L118: 1.600000024 | M118: 0.39 | N118: 3.099999905 | O118: 0.4 | P118: 0.8999999762 | Q118: 0.43 | R118: 0.400000006 | S118: 0.21 | T118: 1.600000024 | U118: 0.26 | V118: 0.3000000119 | W118: 0.14 | X118: 1.700000048 | Y118: 0.43 | Z118: 0.8999999762 | AA118: 0.43 | AB118: 1.700000048 | AC118: 0.29
A119: 8101 | B119: 8101 Jan Mann Opp. Center | C119: 6 | D119: 16.79999924 | E119: 0.39 | F119: 1 | G119: 0.33 | H119: 0.6999999881 | I119: 0.33 | J119: 1.299999952 | K119: 0.67 | L119: 1.700000048 | M119: 0.42 | N119: 3.200000048 | O119: 0.4 | P119: 1 | Q119: 0.5 | R119: 0.6999999881 | S119: 0.33 | T119: 2.200000048 | U119: 0.36 | V119: 0.8000000119 | W119: 0.42 | X119: 1.799999952 | Y119: 0.46 | Z119: 0.6999999881 | AA119: 0.33 | AB119: 1.799999952 | AC119: 0.31
A120: 8121 | B120: 8121 C.O.P.E. Center North | C120: 9 | D120: 18 | E120: 0.42 | F120: 1.399999976 | G120: 0.48 | H120: 0.8000000119 | I120: 0.39 | J120: 1.200000048 | K120: 0.61 | L120: 1.799999952 | M120: 0.44 | N120: 3.299999952 | O120: 0.42 | P120: 0.8999999762 | Q120: 0.44 | R120: 0.6999999881 | S120: 0.33 | T120: 2.599999905 | U120: 0.43 | V120: 0.8000000119 | W120: 0.39 | X120: 1.899999976 | Y120: 0.47 | Z120: 1 | AA120: 0.5 | AB120: 1.700000048 | AC120: 0.28
A121: 8131 | B121: 8131 Dorothy M. Wallace COPE Center | C121: 7 | D121: 21.29999924 | E121: 0.49 | F121: 1.399999976 | G121: 0.47 | H121: 0.3000000119 | I121: 0.14 | J121: 1.299999952 | K121: 0.64 | L121: 1.299999952 | M121: 0.32 | N121: 5.099999905 | O121: 0.64 | P121: 0.8999999762 | Q121: 0.43 | R121: 0.8999999762 | S121: 0.43 | T121: 3.400000095 | U121: 0.57 | V121: 1 | W121: 0.5 | X121: 1.899999976 | Y121: 0.46 | Z121: 1.100000024 | AA121: 0.57 | AB121: 2.700000048 | AC121: 0.45
A122: 8141 | B122: 8141 Juvenile Justice Center | C122: 7 | D122: 15.69999981 | E122: 0.37 | F122: 1 | G122: 0.33 | H122: 0.8999999762 | I122: 0.43 | J122: 1.700000048 | K122: 0.86 | L122: 1.100000024 | M122: 0.29 | N122: 2.700000048 | O122: 0.34 | P122: 0.8999999762 | Q122: 0.43 | R122: 0.6000000238 | S122: 0.29 | T122: 2.900000095 | U122: 0.48 | V122: 0.400000006 | W122: 0.21 | X122: 1.399999976 | Y122: 0.36 | Z122: 0.3000000119 | AA122: 0.14 | AB122: 1.899999976 | AC122: 0.31
A123: 8151 | B123: 8151 Renick, Robert Educational Center | C123: 11 | D123: 11.60000038 | E123: 0.27 | F123: 1 | G123: 0.33 | H123: 0.5 | I123: 0.23 | J123: 0.6999999881 | K123: 0.36 | L123: 1 | M123: 0.25 | N123: 1.799999952 | O123: 0.23 | P123: 0.5 | Q123: 0.23 | R123: 0.5 | S123: 0.23 | T123: 2.599999905 | U123: 0.44 | V123: 0.400000006 | W123: 0.18 | X123: 0.6000000238 | Y123: 0.16 | Z123: 0.6999999881 | AA123: 0.36 | AB123: 1.399999976 | AC123: 0.23
A124: 8181 | B124: 8181 Ruth Owens Kruse Educational Center | C124: 8 | D124: 19 | E124: 0.44 | F124: 1.600000024 | G124: 0.54 | H124: 0.400000006 | I124: 0.19 | J124: 1 | K124: 0.5 | L124: 1.399999976 | M124: 0.34 | N124: 3.5 | O124: 0.44 | P124: 1.100000024 | Q124: 0.56 | R124: 1 | S124: 0.5 | T124: 2 | U124: 0.34 | V124: 0.6000000238 | W124: 0.31 | X124: 2.599999905 | Y124: 0.66 | Z124: 0.8000000119 | AA124: 0.38 | AB124: 3 | AC124: 0.5
A125: 8901 | B125: 8901 Miami Lakes Educational Center | C125: 5 | D125: 10 | E125: 0.23 | F125: 0.8000000119 | G125: 0.27 | H125: 0.400000006 | I125: 0.2 | J125: 0.8000000119 | K125: 0.4 | L125: 0.8000000119 | M125: 0.2 | N125: 1.799999952 | O125: 0.23 | P125: 0.400000006 | Q125: 0.2 | R125: 0.6000000238 | S125: 0.3 | T125: 1.200000048 | U125: 0.2 | V125: 0.6000000238 | W125: 0.3 | X125: 1 | Y125: 0.25 | Z125: 0.6000000238 | AA125: 0.3 | AB125: 1 | AC125: 0.17
A126: 8911 | B126: 8911 Robert Morgan Educational Center | C126: 3 | D126: 20.29999924 | E126: 0.47 | F126: 1.700000048 | G126: 0.55 | H126: 0.6999999881 | I126: 0.33 | J126: 1 | K126: 0.5 | L126: 2 | M126: 0.5 | N126: 5.300000191 | O126: 0.67 | P126: 0.6999999881 | Q126: 0.33 | R126: 0.6999999881 | S126: 0.33 | T126: 2 | U126: 0.34 | V126: 0.3000000119 | W126: 0.17 | X126: 1.700000048 | Y126: 0.42 | Z126: 1.299999952 | AA126: 0.67 | AB126: 3 | AC126: 0.5
A127: 9732 | B127: 9732 Merrick Educational Center | C127: 9 | D127: 27.10000038 | E127: 0.63 | F127: 2.599999905 | G127: 0.85 | H127: 0.8999999762 | I127: 0.44 | J127: 1.299999952 | K127: 0.67 | L127: 2.099999905 | M127: 0.53 | N127: 5.199999809 | O127: 0.66 | P127: 1.799999952 | Q127: 0.89 | R127: 1.600000024 | S127: 0.78 | T127: 3.599999905 | U127: 0.59 | V127: 0.6999999881 | W127: 0.33 | X127: 2.900000095 | Y127: 0.72 | Z127: 1.299999952 | AA127: 0.67 | AB127: 3.200000048 | AC127: 0.54
C128: =SUM(C14:C127) -> 25768
A129: 9999 | B129: 9999 DISTRICT | C129: 24869 | D129: 22.79999924 | E129: 0.53 | F129: 1.899999976 | G129: 0.62 | H129: 0.6999999881 | I129: 0.33 | J129: 1.399999976 | K129: 0.7 | L129: 2 | M129: 0.49 | N129: 4.699999809 | O129: 0.59 | P129: 1.200000048 | Q129: 0.6 | R129: 1.100000024 | S129: 0.56 | T129: 3.299999952 | U129: 0.56 | V129: 0.8000000119 | W129: 0.39 | X129: 2.200000048 | Y129: 0.56 | Z129: 1.100000024 | AA129: 0.53 | AB129: 2.599999905 | AC129: 0.43
C130: 899
A143: =IFERROR(VALUE(LEFT(B143,4)),"") -> 
A207: =IFERROR(VALUE(LEFT(B207,4)),"") -> 
A271: =IFERROR(VALUE(LEFT(B271,4)),"") -> 
A335: =IFERROR(VALUE(LEFT(B335,4)),"") -> 
A399: =IFERROR(VALUE(LEFT(B399,4)),"") -> 
A463: =IFERROR(VALUE(LEFT(B463,4)),"") -> 

Sheet BLG9CC-R (hidden)
B1: R-G09-RC-SCHL-ALL
A2: =COLUMN() -> 1
B3: Description: | C3: Reading RC G09 all
B4: Student Selection: | C4: All Schools | 2012-2013 Fall, 2012-2013 School Year
B5: Group By Data: | C5: School
B6: Assessments: | C6: Baseline 2012 Grade 9 Reading August 2012
B7: Scores: | C7: Overall Avg Raw Score, Overall Avg % Correct, Overall # in Performance Band, Overall % in Performance Band, Question Groups Avg Raw Score, Question Groups Avg % Correct, Question Groups # in Performance Band, Question Groups % in Performance Band
B8: Author Name: | C8: Yuwadee Wongbundhit
A9: =COLUMN() -> 1
B10: Total Row(s): 114 Generated on Sep-22-2012 by Yuwadee Wongbundhit | C10: Baseline 2012 Grade 9 Reading August 2012
C11: Total # students | D11: Overall (43 pts max) | J11: Vocabulary (7 pts max) | P11: Reading Application (22 pts max) | V11: Literary Analysis - Fiction/Non-Fiction (6 pts max) | AB11: Informational Text/Research Process (8 pts max)
D12: Avg Raw Score | E12: Avg % Correct | F12: # in Performance Band | H12: % in Performance Band | J12: Avg Raw Score | K12: Avg % Correct | L12: # in Performance Band | N12: % in Performance Band | P12: Avg Raw Score | Q12: Avg % Correct | R12: # in Performance Band | T12: % in Performance Band | V12: Avg Raw Score | W12: Avg % Correct | X12: # in Performance Band | Z12: % in Performance Band | AB12: Avg Raw Score | AC12: Avg % Correct | AD12: # in Performance Band | AF12: % in Performance Band
B13: School Name | F13: Non Proficient | G13: Proficient | H13: Non Proficient | I13: Proficient | L13: Non Proficient | M13: Proficient | N13: Non Proficient | O13: Proficient | R13: Non Proficient | S13: Proficient | T13: Non Proficient | U13: Proficient | X13: Non Proficient | Y13: Proficient | Z13: Non Proficient | AA13: Proficient | AD13: Non Proficient | AE13: Proficient | AF13: Non Proficient | AG13: Proficient
A14: =IFERROR(VALUE(LEFT(B14,4)),"") -> 1331 | B14: 1331 Devon Aire K-8 Center | C14: 1 | D14: 21 | E14: 0.49 | F14: 1 | H14: 100.00% | J14: 2 | K14: 0.29 | L14: 1 | N14: 100.00% | P14: 12 | Q14: 0.55 | R14: 1 | T14: 100.00% | V14: 5 | W14: 0.83 | Y14: 1 | AA14: 100.00% | AB14: 2 | AC14: 0.25 | AD14: 1 | AF14: 100.00%
A15: =IFERROR(VALUE(LEFT(B15,4)),"") -> 3621 | B15: 3621 Coconut Palms K-8 Academy | C15: 1 | D15: 11 | E15: 0.26 | F15: 1 | H15: 100.00% | J15: 1 | K15: 0.14 | L15: 1 | N15: 100.00% | P15: 6 | Q15: 0.27 | R15: 1 | T15: 100.00% | V15: 2 | W15: 0.33 | X15: 1 | Z15: 100.00% | AB15: 2 | AC15: 0.25 | AD15: 1 | AF15: 100.00%
A16: 5981 | B16: 5981 Dr. Edward L. Whigham Elementary | C16: 1 | D16: 19 | E16: 0.44 | F16: 1 | H16: 100.00% | J16: 3 | K16: 0.43 | L16: 1 | N16: 100.00% | P16: 11 | Q16: 0.5 | R16: 1 | T16: 100.00% | V16: 3 | W16: 0.5 | X16: 1 | Z16: 100.00% | AB16: 2 | AC16: 0.25 | AD16: 1 | AF16: 100.00%
A17: 6023 | B17: 6023 Andover Middle School | C17: 6 | D17: 10.19999981 | E17: 0.24 | F17: 6 | H17: 100.00% | J17: 1.799999952 | K17: 0.26 | L17: 6 | N17: 100.00% | P17: 6.199999809 | Q17: 0.28 | R17: 6 | T17: 100.00% | V17: 0.6999999881 | W17: 0.11 | X17: 6 | Z17: 100.00% | AB17: 1.5 | AC17: 0.19 | AD17: 6 | AF17: 100.00%
A18: 6040 | B18: 6040 Doctors Charter School Of Miami Shores | C18: 79 | D18: 28.89999962 | E18: 0.67 | F18: 48 | G18: 31 | H18: 60.76% | I18: 39.24% | J18: 4.900000095 | K18: 0.7 | L18: 26 | M18: 53 | N18: 32.91% | O18: 67.09% | P18: 15.5 | Q18: 0.7 | R18: 38 | S18: 41 | T18: 48.10% | U18: 51.90% | V18: 3.799999952 | W18: 0.63 | X18: 55 | Y18: 24 | Z18: 69.62% | AA18: 30.38% | AB18: 4.800000191 | AC18: 0.6 | AD18: 53 | AE18: 26 | AF18: 67.09% | AG18: 32.91%
A19: 6041 | B19: 6041 Paul W. Bell Middle School | C19: 1 | D19: 13 | E19: 0.3 | F19: 1 | H19: 100.00% | J19: 2 | K19: 0.29 | L19: 1 | N19: 100.00% | P19: 5 | Q19: 0.23 | R19: 1 | T19: 100.00% | V19: 2 | W19: 0.33 | X19: 1 | Z19: 100.00% | AB19: 4 | AC19: 0.5 | AD19: 1 | AF19: 100.00%
A20: 6081 | B20: 6081 Centennial Middle School | C20: 79 | D20: 26.29999924 | E20: 0.61 | F20: 52 | G20: 27 | H20: 65.82% | I20: 34.18% | J20: 4.5 | K20: 0.64 | L20: 38 | M20: 41 | N20: 48.10% | O20: 51.90% | P20: 14.39999962 | Q20: 0.65 | R20: 40 | S20: 39 | T20: 50.63% | U20: 49.37% | V20: 3.299999952 | W20: 0.55 | X20: 62 | Y20: 17 | Z20: 78.48% | AA20: 21.52% | AB20: 4.199999809 | AC20: 0.52 | AD20: 56 | AE20: 23 | AF20: 70.89% | AG20: 29.11%
A21: 6111 | B21: 6111 Cutler Ridge Middle School | C21: 1 | D21: 15 | E21: 0.35 | F21: 1 | H21: 100.00% | J21: 3 | K21: 0.43 | L21: 1 | N21: 100.00% | P21: 8 | Q21: 0.36 | R21: 1 | T21: 100.00% | V21: 1 | W21: 0.17 | X21: 1 | Z21: 100.00% | AB21: 3 | AC21: 0.38 | AD21: 1 | AF21: 100.00%
A22: 6161 | B22: 6161 Lawton Chiles Middle | C22: 2 | D22: 21 | E22: 0.49 | F22: 2 | H22: 100.00% | J22: 4.5 | K22: 0.64 | L22: 1 | M22: 1 | N22: 50.00% | O22: 50.00% | P22: 12.5 | Q22: 0.57 | R22: 1 | S22: 1 | T22: 50.00% | U22: 50.00% | V22: 2.5 | W22: 0.42 | X22: 2 | Z22: 100.00% | AB22: 1.5 | AC22: 0.19 | AD22: 2 | AF22: 100.00%
A23: 6301 | B23: 6301 JFK Middle School | C23: 5 | D23: 12 | E23: 0.28 | F23: 5 | H23: 100.00% | J23: 2.200000048 | K23: 0.31 | L23: 5 | N23: 100.00% | P23: 5.800000191 | Q23: 0.26 | R23: 5 | T23: 100.00% | V23: 2.200000048 | W23: 0.37 | X23: 5 | Z23: 100.00% | AB23: 1.799999952 | AC23: 0.23 | AD23: 5 | AF23: 100.00%
A24: 6351 | B24: 6351 Lake Stevens Middle School | C24: 1 | D24: 22 | E24: 0.51 | F24: 1 | H24: 100.00% | J24: 3 | K24: 0.43 | L24: 1 | N24: 100.00% | P24: 11 | Q24: 0.5 | R24: 1 | T24: 100.00% | V24: 4 | W24: 0.67 | X24: 1 | Z24: 100.00% | AB24: 4 | AC24: 0.5 | AD24: 1 | AF24: 100.00%
A25: 6411 | B25: 6411 Horace Mann Middle School | C25: 3 | D25: 16 | E25: 0.37 | F25: 3 | H25: 100.00% | J25: 2 | K25: 0.29 | L25: 3 | N25: 100.00% | P25: 10 | Q25: 0.45 | R25: 2 | S25: 1 | T25: 66.67% | U25: 33.33% | V25: 2 | W25: 0.33 | X25: 3 | Z25: 100.00% | AB25: 2 | AC25: 0.25 | AD25: 3 | AF25: 100.00%
A26: 6441 | B26: 6441 Howard D. McMillan Middle | C26: 2 | D26: 14.5 | E26: 0.34 | F26: 2 | H26: 100.00% | J26: 3 | K26: 0.43 | L26: 2 | N26: 100.00% | P26: 8 | Q26: 0.36 | R26: 2 | T26: 100.00% | V26: 1.5 | W26: 0.25 | X26: 2 | Z26: 100.00% | AB26: 2 | AC26: 0.25 | AD26: 2 | AF26: 100.00%
A27: 6501 | B27: 6501 Miami Lakes Middle School | C27: 1 | D27: 11 | E27: 0.26 | F27: 1 | H27: 100.00% | J27: 3 | K27: 0.43 | L27: 1 | N27: 100.00% | P27: 6 | Q27: 0.27 | R27: 1 | T27: 100.00% | V27: 1 | W27: 0.17 | X27: 1 | Z27: 100.00% | AB27: 1 | AC27: 0.13 | AD27: 1 | AF27: 100.00%
A28: 6591 | B28: 6591 North Dade Middle School | C28: 1 | D28: 21 | E28: 0.49 | F28: 1 | H28: 100.00% | J28: 5 | K28: 0.71 | M28: 1 | O28: 100.00% | P28: 11 | Q28: 0.5 | R28: 1 | T28: 100.00% | V28: 2 | W28: 0.33 | X28: 1 | Z28: 100.00% | AB28: 3 | AC28: 0.38 | AD28: 1 | AF28: 100.00%
A29: 6741 | B29: 6741 Ponce de Leon Middle School | C29: 1 | D29: 16 | E29: 0.37 | F29: 1 | H29: 100.00% | J29: 3 | K29: 0.43 | L29: 1 | N29: 100.00% | P29: 7 | Q29: 0.32 | R29: 1 | T29: 100.00% | V29: 2 | W29: 0.33 | X29: 1 | Z29: 100.00% | AB29: 4 | AC29: 0.5 | AD29: 1 | AF29: 100.00%
A30: 6861 | B30: 6861 Southwood Middle School | C30: 1 | D30: 16 | E30: 0.37 | F30: 1 | H30: 100.00% | J30: 1 | K30: 0.14 | L30: 1 | N30: 100.00% | P30: 10 | Q30: 0.45 | R30: 1 | T30: 100.00% | V30: 3 | W30: 0.5 | X30: 1 | Z30: 100.00% | AB30: 2 | AC30: 0.25 | AD30: 1 | AF30: 100.00%
A31: 6901 | B31: 6901 WR Thomas Middle School | C31: 1 | D31: 22 | E31: 0.51 | F31: 1 | H31: 100.00% | J31: 4 | K31: 0.57 | L31: 1 | N31: 100.00% | P31: 12 | Q31: 0.55 | R31: 1 | T31: 100.00% | V31: 3 | W31: 0.5 | X31: 1 | Z31: 100.00% | AB31: 3 | AC31: 0.38 | AD31: 1 | AF31: 100.00%
A32: 6921 | B32: 6921 Lamar Louise Curry Middle School | C32: 1 | D32: 10 | E32: 0.23 | F32: 1 | H32: 100.00% | J32: 1 | K32: 0.14 | L32: 1 | N32: 100.00% | P32: 6 | Q32: 0.27 | R32: 1 | T32: 100.00% | V32: 2 | W32: 0.33 | X32: 1 | Z32: 100.00% | AB32: 1 | AC32: 0.13 | AD32: 1 | AF32: 100.00%
A33: 7007 | B33: 7007 International Studies Charter High School | C33: 72 | D33: 22.60000038 | E33: 0.52 | F33: 54 | G33: 18 | H33: 75.00% | I33: 25.00% | J33: 4 | K33: 0.57 | L33: 39 | M33: 33 | N33: 54.17% | O33: 45.83% | P33: 12.10000038 | Q33: 0.55 | R33: 46 | S33: 26 | T33: 63.89% | U33: 36.11% | V33: 3.099999905 | W33: 0.51 | X33: 55 | Y33: 17 | Z33: 76.39% | AA33: 23.61% | AB33: 3.400000095 | AC33: 0.43 | AD33: 64 | AE33: 8 | AF33: 88.89% | AG33: 11.11%
A34: 7009 | B34: 7009 Doral Performing Arts Academy | C34: 98 | D34: 27.89999962 | E34: 0.65 | F34: 52 | G34: 46 | H34: 53.06% | I34: 46.94% | J34: 4.800000191 | K34: 0.68 | L34: 35 | M34: 63 | N34: 35.71% | O34: 64.29% | P34: 15 | Q34: 0.68 | R34: 46 | S34: 52 | T34: 46.94% | U34: 53.06% | V34: 3.700000048 | W34: 0.61 | X34: 72 | Y34: 26 | Z34: 73.47% | AA34: 26.53% | AB34: 4.5 | AC34: 0.56 | AD34: 69 | AE34: 29 | AF34: 70.41% | AG34: 29.59%
A35: 7011 | B35: 7011 American Senior High School | C35: 485 | D35: 20.5 | E35: 0.48 | F35: 439 | G35: 46 | H35: 90.52% | I35: 9.48% | J35: 3.5 | K35: 0.5 | L35: 356 | M35: 129 | N35: 73.40% | O35: 26.60% | P35: 11.10000038 | Q35: 0.51 | R35: 409 | S35: 76 | T35: 84.33% | U35: 15.67% | V35: 2.599999905 | W35: 0.44 | X35: 447 | Y35: 38 | Z35: 92.16% | AA35: 7.84% | AB35: 3.200000048 | AC35: 0.41 | AD35: 431 | AE35: 54 | AF35: 88.87% | AG35: 11.13%
A36: 7014 | B36: 7014 Mater Performing Arts & Entertainment Academy | C36: 93 | D36: 26 | E36: 0.6 | F36: 56 | G36: 37 | H36: 60.22% | I36: 39.78% | J36: 4.5 | K36: 0.64 | L36: 44 | M36: 49 | N36: 47.31% | O36: 52.69% | P36: 14.10000038 | Q36: 0.64 | R36: 49 | S36: 44 | T36: 52.69% | U36: 47.31% | V36: 3.5 | W36: 0.59 | X36: 68 | Y36: 25 | Z36: 73.12% | AA36: 26.88% | AB36: 4 | AC36: 0.5 | AD36: 71 | AE36: 22 | AF36: 76.34% | AG36: 23.66%
A37: 7015 | B37: 7015 Life Skills Center Miami-dade County | C37: 11 | D37: 18.10000038 | E37: 0.42 | F37: 9 | G37: 2 | H37: 81.82% | I37: 18.18% | J37: 2.400000095 | K37: 0.34 | L37: 8 | M37: 3 | N37: 72.73% | O37: 27.27% | P37: 10.19999981 | Q37: 0.46 | R37: 9 | S37: 2 | T37: 81.82% | U37: 18.18% | V37: 2.5 | W37: 0.41 | X37: 10 | Y37: 1 | Z37: 90.91% | AA37: 9.09% | AB37: 3.099999905 | AC37: 0.39 | AD37: 10 | AE37: 1 | AF37: 90.91% | AG37: 9.09%
A38: 7016 | B38: 7016 Sports Leadership Academy Of Miami Chs | C38: 10 | D38: 22.89999962 | E38: 0.53 | F38: 10 | H38: 100.00% | J38: 4.099999905 | K38: 0.59 | L38: 6 | M38: 4 | N38: 60.00% | O38: 40.00% | P38: 12.10000038 | Q38: 0.55 | R38: 8 | S38: 2 | T38: 80.00% | U38: 20.00% | V38: 2.799999952 | W38: 0.47 | X38: 9 | Y38: 1 | Z38: 90.00% | AA38: 10.00% | AB38: 3.900000095 | AC38: 0.49 | AD38: 10 | AF38: 100.00%
A39: 7018 | B39: 7018 Mater Academy Lakes High School | C39: 246 | D39: 26.5 | E39: 0.62 | F39: 163 | G39: 83 | H39: 66.26% | I39: 33.74% | J39: 4.599999905 | K39: 0.66 | L39: 103 | M39: 143 | N39: 41.87% | O39: 58.13% | P39: 14.19999981 | Q39: 0.65 | R39: 140 | S39: 106 | T39: 56.91% | U39: 43.09% | V39: 3.5 | W39: 0.58 | X39: 189 | Y39: 57 | Z39: 76.83% | AA39: 23.17% | AB39: 4.199999809 | AC39: 0.53 | AD39: 177 | AE39: 69 | AF39: 71.95% | AG39: 28.05%
A40: 7020 | B40: 7020 Doral Academy High School | C40: 413 | D40: 24.39999962 | E40: 0.57 | F40: 281 | G40: 132 | H40: 68.04% | I40: 31.96% | J40: 4.099999905 | K40: 0.59 | L40: 229 | M40: 184 | N40: 55.45% | O40: 44.55% | P40: 13.19999981 | Q40: 0.6 | R40: 243 | S40: 170 | T40: 58.84% | U40: 41.16% | V40: 3.200000048 | W40: 0.53 | X40: 326 | Y40: 87 | Z40: 78.93% | AA40: 21.07% | AB40: 3.900000095 | AC40: 0.49 | AD40: 309 | AE40: 104 | AF40: 74.82% | AG40: 25.18%
A41: 7022 | B41: 7022 Academy Of Arts And Minds | C41: 52 | D41: 27 | E41: 0.63 | F41: 34 | G41: 18 | H41: 65.38% | I41: 34.62% | J41: 4.599999905 | K41: 0.66 | L41: 26 | M41: 26 | N41: 50.00% | O41: 50.00% | P41: 14.60000038 | Q41: 0.66 | R41: 28 | S41: 24 | T41: 53.85% | U41: 46.15% | V41: 3.599999905 | W41: 0.6 | X41: 39 | Y41: 13 | Z41: 75.00% | AA41: 25.00% | AB41: 4.199999809 | AC41: 0.52 | AD41: 41 | AE41: 11 | AF41: 78.85% | AG41: 21.15%
A42: 7024 | B42: 7024 Mater Academy HS of International Studies | C42: 24 | D42: 28.39999962 | E42: 0.66 | F42: 12 | G42: 12 | H42: 50.00% | I42: 50.00% | J42: 4.599999905 | K42: 0.66 | L42: 12 | M42: 12 | N42: 50.00% | O42: 50.00% | P42: 15.10000038 | Q42: 0.69 | R42: 9 | S42: 15 | T42: 37.50% | U42: 62.50% | V42: 3.700000048 | W42: 0.61 | X42: 20 | Y42: 4 | Z42: 83.33% | AA42: 16.67% | AB42: 5 | AC42: 0.63 | AD42: 13 | AE42: 11 | AF42: 54.17% | AG42: 45.83%
A43: 7025 | B43: 7025 Mater Brickell Preparatory Academy High | C43: 14 | D43: 28.10000038 | E43: 0.65 | F43: 10 | G43: 4 | H43: 71.43% | I43: 28.57% | J43: 4.5 | K43: 0.64 | L43: 7 | M43: 7 | N43: 50.00% | O43: 50.00% | P43: 15.10000038 | Q43: 0.69 | R43: 6 | S43: 8 | T43: 42.86% | U43: 57.14% | V43: 3.700000048 | W43: 0.62 | X43: 10 | Y43: 4 | Z43: 71.43% | AA43: 28.57% | AB43: 4.800000191 | AC43: 0.6 | AD43: 8 | AE43: 6 | AF43: 57.14% | AG43: 42.86%
A44: 7029 | B44: 7029 Terra Environmental Institute | C44: 554 | D44: 31.10000038 | E44: 0.72 | F44: 218 | G44: 336 | H44: 39.35% | I44: 60.65% | J44: 5.099999905 | K44: 0.73 | L44: 164 | M44: 390 | N44: 29.60% | O44: 70.40% | P44: 16.70000076 | Q44: 0.76 | R44: 173 | S44: 381 | T44: 31.23% | U44: 68.77% | V44: 4 | W44: 0.67 | X44: 346 | Y44: 208 | Z44: 62.45% | AA44: 37.55% | AB44: 5.300000191 | AC44: 0.66 | AD44: 285 | AE44: 269 | AF44: 51.44% | AG44: 48.56%
A45: 7032 | B45: 7032 Palm Glades Preparatory High School | C45: 85 | D45: 22.60000038 | E45: 0.53 | F45: 68 | G45: 17 | H45: 80.00% | I45: 20.00% | J45: 3.799999952 | K45: 0.54 | L45: 53 | M45: 32 | N45: 62.35% | O45: 37.65% | P45: 12.19999981 | Q45: 0.56 | R45: 60 | S45: 25 | T45: 70.59% | U45: 29.41% | V45: 2.799999952 | W45: 0.47 | X45: 74 | Y45: 11 | Z45: 87.06% | AA45: 12.94% | AB45: 3.799999952 | AC45: 0.48 | AD45: 66 | AE45: 19 | AF45: 77.65% | AG45: 22.35%
A46: 7033 | B46: 7033 Law Enforcement Officers Memorial High | C46: 75 | D46: 27.20000076 | E46: 0.63 | F46: 51 | G46: 24 | H46: 68.00% | I46: 32.00% | J46: 4.599999905 | K46: 0.66 | L46: 34 | M46: 41 | N46: 45.33% | O46: 54.67% | P46: 14.69999981 | Q46: 0.67 | R46: 37 | S46: 38 | T46: 49.33% | U46: 50.67% | V46: 3.599999905 | W46: 0.59 | X46: 55 | Y46: 20 | Z46: 73.33% | AA46: 26.67% | AB46: 4.300000191 | AC46: 0.54 | AD46: 56 | AE46: 19 | AF46: 74.67% | AG46: 25.33%
A47: 7034 | B47: 7034 Somerset Academy Charter High South Campus | C47: 20 | D47: 23.79999924 | E47: 0.55 | F47: 15 | G47: 5 | H47: 75.00% | I47: 25.00% | J47: 4.199999809 | K47: 0.59 | L47: 11 | M47: 9 | N47: 55.00% | O47: 45.00% | P47: 12.80000019 | Q47: 0.58 | R47: 14 | S47: 6 | T47: 70.00% | U47: 30.00% | V47: 3.200000048 | W47: 0.53 | X47: 19 | Y47: 1 | Z47: 95.00% | AA47: 5.00% | AB47: 3.700000048 | AC47: 0.47 | AD47: 15 | AE47: 5 | AF47: 75.00% | AG47: 25.00%
A48: 7036 | B48: 7036 Lawrence Academy Senior High Charter School | C48: 27 | D48: 19.29999924 | E48: 0.45 | F48: 26 | G48: 1 | H48: 96.30% | I48: 3.70% | J48: 3.400000095 | K48: 0.48 | L48: 20 | M48: 7 | N48: 74.07% | O48: 25.93% | P48: 10 | Q48: 0.46 | R48: 25 | S48: 2 | T48: 92.59% | U48: 7.41% | V48: 2.599999905 | W48: 0.43 | X48: 26 | Y48: 1 | Z48: 96.30% | AA48: 3.70% | AB48: 3.299999952 | AC48: 0.41 | AD48: 24 | AE48: 3 | AF48: 88.89% | AG48: 11.11%
A49: 7037 | B49: 7037 Mater Academy East Charter High School | C49: 72 | D49: 25.10000038 | E49: 0.58 | F49: 53 | G49: 19 | H49: 73.61% | I49: 26.39% | J49: 4.300000191 | K49: 0.62 | L49: 37 | M49: 35 | N49: 51.39% | O49: 48.61% | P49: 13.60000038 | Q49: 0.62 | R49: 46 | S49: 26 | T49: 63.89% | U49: 36.11% | V49: 3.200000048 | W49: 0.53 | X49: 59 | Y49: 13 | Z49: 81.94% | AA49: 18.06% | AB49: 4 | AC49: 0.5 | AD49: 52 | AE49: 20 | AF49: 72.22% | AG49: 27.78%
A50: 7042 | B50: 7042 Somerset Academy Charter High School | C50: 112 | D50: 26.20000076 | E50: 0.61 | F50: 80 | G50: 32 | H50: 71.43% | I50: 28.57% | J50: 4.400000095 | K50: 0.63 | L50: 57 | M50: 55 | N50: 50.89% | O50: 49.11% | P50: 14.30000019 | Q50: 0.65 | R50: 65 | S50: 47 | T50: 58.04% | U50: 41.96% | V50: 3.400000095 | W50: 0.56 | X50: 93 | Y50: 19 | Z50: 83.04% | AA50: 16.96% | AB50: 4.099999905 | AC50: 0.52 | AD50: 80 | AE50: 32 | AF50: 71.43% | AG50: 28.57%
A51: 7048 | B51: 7048 Alonzo Andtracy Mourning High (Biscanye Bay) | C51: 387 | D51: 25 | E51: 0.58 | F51: 277 | G51: 110 | H51: 71.58% | I51: 28.42% | J51: 4.099999905 | K51: 0.59 | L51: 216 | M51: 171 | N51: 55.81% | O51: 44.19% | P51: 13.5 | Q51: 0.61 | R51: 244 | S51: 143 | T51: 63.05% | U51: 36.95% | V51: 3.299999952 | W51: 0.55 | X51: 312 | Y51: 75 | Z51: 80.62% | AA51: 19.38% | AB51: 4.199999809 | AC51: 0.52 | AD51: 282 | AE51: 105 | AF51: 72.87% | AG51: 27.13%
A52: 7049 | B52: 7049 Westland Hialeah Senior | C52: 547 | D52: 21.20000076 | E52: 0.49 | F52: 443 | G52: 104 | H52: 80.99% | I52: 19.01% | J52: 3.700000048 | K52: 0.53 | L52: 354 | M52: 193 | N52: 64.72% | O52: 35.28% | P52: 11.5 | Q52: 0.52 | R52: 405 | S52: 142 | T52: 74.04% | U52: 25.96% | V52: 2.799999952 | W52: 0.46 | X52: 469 | Y52: 78 | Z52: 85.74% | AA52: 14.26% | AB52: 3.200000048 | AC52: 0.41 | AD52: 468 | AE52: 79 | AF52: 85.56% | AG52: 14.44%
A53: 7050 | B53: 7050 Keys Gate Charter High School | C53: 223 | D53: 22.70000076 | E53: 0.53 | F53: 185 | G53: 38 | H53: 82.96% | I53: 17.04% | J53: 4.099999905 | K53: 0.59 | L53: 124 | M53: 99 | N53: 55.61% | O53: 44.39% | P53: 12 | Q53: 0.55 | R53: 170 | S53: 53 | T53: 76.23% | U53: 23.77% | V53: 3 | W53: 0.5 | X53: 197 | Y53: 26 | Z53: 88.34% | AA53: 11.66% | AB53: 3.5 | AC53: 0.44 | AD53: 192 | AE53: 31 | AF53: 86.10% | AG53: 13.90%
A54: 7051 | B54: 7051 G Holmes Braddock Senior High | C54: 814 | D54: 22.39999962 | E54: 0.52 | F54: 628 | G54: 186 | H54: 77.15% | I54: 22.85% | J54: 3.799999952 | K54: 0.54 | L54: 506 | M54: 308 | N54: 62.16% | O54: 37.84% | P54: 12 | Q54: 0.55 | R54: 561 | S54: 253 | T54: 68.92% | U54: 31.08% | V54: 3.099999905 | W54: 0.52 | X54: 674 | Y54: 140 | Z54: 82.80% | AA54: 17.20% | AB54: 3.5 | AC54: 0.45 | AD54: 670 | AE54: 144 | AF54: 82.31% | AG54: 17.69%
A55: 7053 | B55: 7053 Pinecrest Preparatory Academy Charter HS | C55: 141 | D55: 25.60000038 | E55: 0.6 | F55: 109 | G55: 32 | H55: 77.30% | I55: 22.70% | J55: 4.300000191 | K55: 0.62 | L55: 70 | M55: 71 | N55: 49.65% | O55: 50.35% | P55: 13.80000019 | Q55: 0.63 | R55: 94 | S55: 47 | T55: 66.67% | U55: 33.33% | V55: 3.400000095 | W55: 0.56 | X55: 116 | Y55: 25 | Z55: 82.27% | AA55: 17.73% | AB55: 4.099999905 | AC55: 0.52 | AD55: 103 | AE55: 38 | AF55: 73.05% | AG55: 26.95%
A56: 7054 | B56: 7054 Excelsior Charter High School | C56: 51 | D56: 21.20000076 | E56: 0.49 | F56: 41 | G56: 10 | H56: 80.39% | I56: 19.61% | J56: 3.599999905 | K56: 0.51 | L56: 32 | M56: 19 | N56: 62.75% | O56: 37.25% | P56: 11.5 | Q56: 0.52 | R56: 39 | S56: 12 | T56: 76.47% | U56: 23.53% | V56: 2.799999952 | W56: 0.47 | X56: 47 | Y56: 4 | Z56: 92.16% | AA56: 7.84% | AB56: 3.200000048 | AC56: 0.41 | AD56: 44 | AE56: 7 | AF56: 86.27% | AG56: 13.73%
A57: 7055 | B57: 7055 Young Women's Preparatory Academy | C57: 51 | D57: 31.29999924 | E57: 0.73 | F57: 22 | G57: 29 | H57: 43.14% | I57: 56.86% | J57: 5 | K57: 0.72 | L57: 16 | M57: 35 | N57: 31.37% | O57: 68.63% | P57: 17.20000076 | Q57: 0.78 | R57: 12 | S57: 39 | T57: 23.53% | U57: 76.47% | V57: 3.900000095 | W57: 0.64 | X57: 36 | Y57: 15 | Z57: 70.59% | AA57: 29.41% | AB57: 5.199999809 | AC57: 0.65 | AD57: 26 | AE57: 25 | AF57: 50.98% | AG57: 49.02%
A58: 7056 | B58: 7056 Young Men's Preparatory High School | C58: 26 | D58: 22.10000038 | E58: 0.51 | F58: 23 | G58: 3 | H58: 88.46% | I58: 11.54% | J58: 3.799999952 | K58: 0.54 | L58: 15 | M58: 11 | N58: 57.69% | O58: 42.31% | P58: 11.89999962 | Q58: 0.54 | R58: 21 | S58: 5 | T58: 80.77% | U58: 19.23% | V58: 2.900000095 | W58: 0.49 | X58: 23 | Y58: 3 | Z58: 88.46% | AA58: 11.54% | AB58: 3.5 | AC58: 0.44 | AD58: 21 | AE58: 5 | AF58: 80.77% | AG58: 19.23%
A59: 7058 | B59: 7058 Miami Community Charter High | C59: 44 | D59: 19.79999924 | E59: 0.46 | F59: 41 | G59: 3 | H59: 93.18% | I59: 6.82% | J59: 3.400000095 | K59: 0.49 | L59: 32 | M59: 12 | N59: 72.73% | O59: 27.27% | P59: 10.69999981 | Q59: 0.49 | R59: 36 | S59: 8 | T59: 81.82% | U59: 18.18% | V59: 2.700000048 | W59: 0.44 | X59: 37 | Y59: 7 | Z59: 84.09% | AA59: 15.91% | AB59: 3 | AC59: 0.38 | AD59: 40 | AE59: 4 | AF59: 90.91% | AG59: 9.09%
A60: 7059 | B60: 7059 Miami Arts Charter | C60: 104 | D60: 27.79999924 | E60: 0.65 | F60: 62 | G60: 42 | H60: 59.62% | I60: 40.38% | J60: 4.699999809 | K60: 0.67 | L60: 39 | M60: 65 | N60: 37.50% | O60: 62.50% | P60: 15.19999981 | Q60: 0.69 | R60: 48 | S60: 56 | T60: 46.15% | U60: 53.85% | V60: 3.5 | W60: 0.58 | X60: 73 | Y60: 31 | Z60: 70.19% | AA60: 29.81% | AB60: 4.300000191 | AC60: 0.54 | AD60: 74 | AE60: 30 | AF60: 71.15% | AG60: 28.85%
A61: 7060 | B61: 7060 Everglades Preparatory Academy High School | C61: 128 | D61: 25.20000076 | E61: 0.59 | F61: 96 | G61: 32 | H61: 75.00% | I61: 25.00% | J61: 4.199999809 | K61: 0.6 | L61: 73 | M61: 55 | N61: 57.03% | O61: 42.97% | P61: 13.5 | Q61: 0.61 | R61: 86 | S61: 42 | T61: 67.19% | U61: 32.81% | V61: 3.200000048 | W61: 0.53 | X61: 108 | Y61: 20 | Z61: 84.38% | AA61: 15.62% | AB61: 4.300000191 | AC61: 0.54 | AD61: 93 | AE61: 35 | AF61: 72.66% | AG61: 27.34%
A62: 7066 | B62: 7066 LBA Management Academy | C62: 1 | D62: 10 | E62: 0.23 | F62: 1 | H62: 100.00% | J62: 4 | K62: 0.57 | L62: 1 | N62: 100.00% | P62: 4 | Q62: 0.18 | R62: 1 | T62: 100.00% | V62: 1 | W62: 0.17 | X62: 1 | Z62: 100.00% | AB62: 1 | AC62: 0.13 | AD62: 1 | AF62: 100.00%
A63: 7067 | B63: 7067 Florida High School Of Accelerated Learning- | C63: 30 | D63: 17.10000038 | E63: 0.4 | F63: 28 | G63: 2 | H63: 93.33% | I63: 6.67% | J63: 3.299999952 | K63: 0.48 | L63: 21 | M63: 9 | N63: 70.00% | O63: 30.00% | P63: 9.100000381 | Q63: 0.41 | R63: 28 | S63: 2 | T63: 93.33% | U63: 6.67% | V63: 2 | W63: 0.33 | X63: 30 | Z63: 100.00% | AB63: 2.700000048 | AC63: 0.34 | AD63: 28 | AE63: 2 | AF63: 93.33% | AG63: 6.67%
A64: 7068 | B64: 7068 North Gardens High School | C64: 17 | D64: 16.29999924 | E64: 0.38 | F64: 17 | H64: 100.00% | J64: 3.099999905 | K64: 0.44 | L64: 14 | M64: 3 | N64: 82.35% | O64: 17.65% | P64: 8.899999619 | Q64: 0.41 | R64: 16 | S64: 1 | T64: 94.12% | U64: 5.88% | V64: 1.899999976 | W64: 0.31 | X64: 16 | Y64: 1 | Z64: 94.12% | AA64: 5.88% | AB64: 2.400000095 | AC64: 0.3 | AD64: 17 | AF64: 100.00%
A65: 7069 | B65: 7069 North Park High School | C65: 6 | D65: 10.69999981 | E65: 0.25 | F65: 6 | H65: 100.00% | J65: 2.299999952 | K65: 0.33 | L65: 6 | N65: 100.00% | P65: 5.800000191 | Q65: 0.27 | R65: 6 | T65: 100.00% | V65: 0.8000000119 | W65: 0.14 | X65: 6 | Z65: 100.00% | AB65: 1.700000048 | AC65: 0.21 | AD65: 6 | AF65: 100.00%
A66: 7070 | B66: 7070 Youth Co-op Preparatory High School | C66: 62 | D66: 23 | E66: 0.53 | F66: 52 | G66: 10 | H66: 83.87% | I66: 16.13% | J66: 4 | K66: 0.57 | L66: 35 | M66: 27 | N66: 56.45% | O66: 43.55% | P66: 12.19999981 | Q66: 0.55 | R66: 43 | S66: 19 | T66: 69.35% | U66: 30.65% | V66: 3.099999905 | W66: 0.52 | X66: 53 | Y66: 9 | Z66: 85.48% | AA66: 14.52% | AB66: 3.700000048 | AC66: 0.46 | AD66: 49 | AE66: 13 | AF66: 79.03% | AG66: 20.97%
A67: 7071 | B67: 7071 Coral Gables Senior High School | C67: 834 | D67: 23.39999962 | E67: 0.54 | F67: 602 | G67: 232 | H67: 72.18% | I67: 27.82% | J67: 4.099999905 | K67: 0.58 | L67: 475 | M67: 359 | N67: 56.95% | O67: 43.05% | P67: 12.5 | Q67: 0.57 | R67: 555 | S67: 279 | T67: 66.55% | U67: 33.45% | V67: 3.099999905 | W67: 0.52 | X67: 662 | Y67: 172 | Z67: 79.38% | AA67: 20.62% | AB67: 3.700000048 | AC67: 0.47 | AD67: 645 | AE67: 189 | AF67: 77.34% | AG67: 22.66%
A68: 7080 | B68: 7080 Charter High School Of The Americas | C68: 27 | D68: 23.60000038 | E68: 0.55 | F68: 18 | G68: 9 | H68: 66.67% | I68: 33.33% | J68: 3.700000048 | K68: 0.53 | L68: 18 | M68: 9 | N68: 66.67% | O68: 33.33% | P68: 13.10000038 | Q68: 0.6 | R68: 17 | S68: 10 | T68: 62.96% | U68: 37.04% | V68: 3.099999905 | W68: 0.51 | X68: 23 | Y68: 4 | Z68: 85.19% | AA68: 14.81% | AB68: 3.700000048 | AC68: 0.46 | AD68: 21 | AE68: 6 | AF68: 77.78% | AG68: 22.22%
A69: 7081 | B69: 7081 DASH | C69: 139 | D69: 32.09999847 | E69: 0.75 | F69: 45 | G69: 94 | H69: 32.37% | I69: 67.63% | J69: 5.300000191 | K69: 0.75 | L69: 34 | M69: 105 | N69: 24.46% | O69: 75.54% | P69: 17.29999924 | Q69: 0.79 | R69: 31 | S69: 108 | T69: 22.30% | U69: 77.70% | V69: 4 | W69: 0.67 | X69: 85 | Y69: 54 | Z69: 61.15% | AA69: 38.85% | AB69: 5.599999905 | AC69: 0.7 | AD69: 66 | AE69: 73 | AF69: 47.48% | AG69: 52.52%
A70: 7101 | B70: 7101 Coral Reef Senior High School | C70: 833 | D70: 29.29999924 | E70: 0.68 | F70: 414 | G70: 419 | H70: 49.70% | I70: 50.30% | J70: 4.900000095 | K70: 0.7 | L70: 289 | M70: 544 | N70: 34.69% | O70: 65.31% | P70: 15.69999981 | Q70: 0.71 | R70: 338 | S70: 495 | T70: 40.58% | U70: 59.42% | V70: 3.799999952 | W70: 0.64 | X70: 565 | Y70: 268 | Z70: 67.83% | AA70: 32.17% | AB70: 4.800000191 | AC70: 0.61 | AD70: 496 | AE70: 337 | AF70: 59.54% | AG70: 40.46%
A71: 7111 | B71: 7111 Hialeah Senior high | C71: 674 | D71: 20.10000038 | E71: 0.47 | F71: 570 | G71: 104 | H71: 84.57% | I71: 15.43% | J71: 3.400000095 | K71: 0.49 | L71: 477 | M71: 197 | N71: 70.77% | O71: 29.23% | P71: 10.89999962 | Q71: 0.49 | R71: 526 | S71: 148 | T71: 78.04% | U71: 21.96% | V71: 2.700000048 | W71: 0.45 | X71: 606 | Y71: 68 | Z71: 89.91% | AA71: 10.09% | AB71: 3.200000048 | AC71: 0.4 | AD71: 580 | AE71: 94 | AF71: 86.05% | AG71: 13.95%
A72: 7121 | B72: 7121 John A. Ferguson Senior High School | C72: 1006 | D72: 24 | E72: 0.56 | F72: 712 | G72: 294 | H72: 70.78% | I72: 29.22% | J72: 4.199999809 | K72: 0.59 | L72: 558 | M72: 448 | N72: 55.47% | O72: 44.53% | P72: 13 | Q72: 0.59 | R72: 631 | S72: 375 | T72: 62.72% | U72: 37.28% | V72: 3.200000048 | W72: 0.53 | X72: 814 | Y72: 192 | Z72: 80.91% | AA72: 19.09% | AB72: 3.700000048 | AC72: 0.47 | AD72: 791 | AE72: 215 | AF72: 78.63% | AG72: 21.37%
A73: 7131 | B73: 7131 Hialeah-Miami Lakes Senior High | C73: 479 | D73: 20.5 | E73: 0.48 | F73: 410 | G73: 69 | H73: 85.59% | I73: 14.41% | J73: 3.5 | K73: 0.5 | L73: 342 | M73: 137 | N73: 71.40% | O73: 28.60% | P73: 11 | Q73: 0.5 | R73: 376 | S73: 103 | T73: 78.50% | U73: 21.50% | V73: 2.799999952 | W73: 0.46 | X73: 425 | Y73: 54 | Z73: 88.73% | AA73: 11.27% | AB73: 3.200000048 | AC73: 0.4 | AD73: 420 | AE73: 59 | AF73: 87.68% | AG73: 12.32%
A74: 7141 | B74: 7141 Dr. Michael M. Krop Senior High School | C74: 643 | D74: 25.60000038 | E74: 0.6 | F74: 451 | G74: 192 | H74: 70.14% | I74: 29.86% | J74: 4.300000191 | K74: 0.61 | L74: 330 | M74: 313 | N74: 51.32% | O74: 48.68% | P74: 13.60000038 | Q74: 0.62 | R74: 392 | S74: 251 | T74: 60.96% | U74: 39.04% | V74: 3.400000095 | W74: 0.57 | X74: 505 | Y74: 138 | Z74: 78.54% | AA74: 21.46% | AB74: 4.300000191 | AC74: 0.53 | AD74: 465 | AE74: 178 | AF74: 72.32% | AG74: 27.68%
A75: 7151 | B75: 7151 Homestead Sr. High School | C75: 443 | D75: 18.79999924 | E75: 0.44 | F75: 407 | G75: 36 | H75: 91.87% | I75: 8.13% | J75: 3.200000048 | K75: 0.46 | L75: 347 | M75: 96 | N75: 78.33% | O75: 21.67% | P75: 10 | Q75: 0.46 | R75: 377 | S75: 66 | T75: 85.10% | U75: 14.90% | V75: 2.599999905 | W75: 0.43 | X75: 400 | Y75: 43 | Z75: 90.29% | AA75: 9.71% | AB75: 3 | AC75: 0.38 | AD75: 396 | AE75: 47 | AF75: 89.39% | AG75: 10.61%
A76: 7160 | B76: 7160 Mater Academy High | C76: 421 | D76: 22.89999962 | E76: 0.53 | F76: 325 | G76: 96 | H76: 77.20% | I76: 22.80% | J76: 4 | K76: 0.58 | L76: 247 | M76: 174 | N76: 58.67% | O76: 41.33% | P76: 12 | Q76: 0.54 | R76: 302 | S76: 119 | T76: 71.73% | U76: 28.27% | V76: 3.400000095 | W76: 0.56 | X76: 319 | Y76: 102 | Z76: 75.77% | AA76: 24.23% | AB76: 3.599999905 | AC76: 0.45 | AD76: 345 | AE76: 76 | AF76: 81.95% | AG76: 18.05%
A77: 7161 | B77: 7161 MAST Academy | C77: 164 | D77: 32.29999924 | E77: 0.75 | F77: 56 | G77: 108 | H77: 34.15% | I77: 65.85% | J77: 5.300000191 | K77: 0.76 | L77: 36 | M77: 128 | N77: 21.95% | O77: 78.05% | P77: 17.39999962 | Q77: 0.79 | R77: 43 | S77: 121 | T77: 26.22% | U77: 73.78% | V77: 4.199999809 | W77: 0.7 | X77: 93 | Y77: 71 | Z77: 56.71% | AA77: 43.29% | AB77: 5.400000095 | AC77: 0.68 | AD77: 79 | AE77: 85 | AF77: 48.17% | AG77: 51.83%
A78: 7171 | B78: 7171 M.A.S.T At Homestead | C78: 169 | D78: 29.39999962 | E78: 0.68 | F78: 84 | G78: 85 | H78: 49.70% | I78: 50.30% | J78: 4.900000095 | K78: 0.7 | L78: 65 | M78: 104 | N78: 38.46% | O78: 61.54% | P78: 15.80000019 | Q78: 0.72 | R78: 69 | S78: 100 | T78: 40.83% | U78: 59.17% | V78: 3.900000095 | W78: 0.64 | X78: 120 | Y78: 49 | Z78: 71.01% | AA78: 28.99% | AB78: 4.800000191 | AC78: 0.6 | AD78: 111 | AE78: 58 | AF78: 65.68% | AG78: 34.32%
A79: =IFERROR(VALUE(LEFT(B79,4)),"") -> 7191 | B79: 7191 Hialeah Gardens High School | C79: 738 | D79: 23.20000076 | E79: 0.54 | F79: 561 | G79: 177 | H79: 76.02% | I79: 23.98% | J79: 3.900000095 | K79: 0.56 | L79: 444 | M79: 294 | N79: 60.16% | O79: 39.84% | P79: 12.60000038 | Q79: 0.57 | R79: 481 | S79: 257 | T79: 65.18% | U79: 34.82% | V79: 3.099999905 | W79: 0.51 | X79: 619 | Y79: 119 | Z79: 83.88% | AA79: 16.12% | AB79: 3.599999905 | AC79: 0.45 | AD79: 595 | AE79: 143 | AF79: 80.62% | AG79: 19.38%
A80: 7201 | B80: 7201 Miami Beach Senior high School | C80: 415 | D80: 22.79999924 | E80: 0.53 | F80: 308 | G80: 107 | H80: 74.22% | I80: 25.78% | J80: 4 | K80: 0.57 | L80: 246 | M80: 169 | N80: 59.28% | O80: 40.72% | P80: 12.10000038 | Q80: 0.55 | R80: 278 | S80: 137 | T80: 66.99% | U80: 33.01% | V80: 3.099999905 | W80: 0.51 | X80: 339 | Y80: 76 | Z80: 81.69% | AA80: 18.31% | AB80: 3.599999905 | AC80: 0.46 | AD80: 327 | AE80: 88 | AF80: 78.80% | AG80: 21.20%
A81: 7231 | B81: 7231 Miami Carol City Sr. High | C81: 454 | D81: 18.89999962 | E81: 0.44 | F81: 411 | G81: 43 | H81: 90.53% | I81: 9.47% | J81: 3.099999905 | K81: 0.45 | L81: 367 | M81: 87 | N81: 80.84% | O81: 19.16% | P81: 10.19999981 | Q81: 0.46 | R81: 393 | S81: 61 | T81: 86.56% | U81: 13.44% | V81: 2.5 | W81: 0.42 | X81: 422 | Y81: 32 | Z81: 92.95% | AA81: 7.05% | AB81: 3.099999905 | AC81: 0.39 | AD81: 399 | AE81: 55 | AF81: 87.89% | AG81: 12.11%
A82: 7241 | B82: 7241 Ronald W. Reagan/Doral Senior High | C82: 466 | D82: 26 | E82: 0.6 | F82: 309 | G82: 157 | H82: 66.31% | I82: 33.69% | J82: 4.5 | K82: 0.64 | L82: 212 | M82: 254 | N82: 45.49% | O82: 54.51% | P82: 14.10000038 | Q82: 0.64 | R82: 262 | S82: 204 | T82: 56.22% | U82: 43.78% | V82: 3.400000095 | W82: 0.56 | X82: 368 | Y82: 98 | Z82: 78.97% | AA82: 21.03% | AB82: 4.099999905 | AC82: 0.51 | AD82: 348 | AE82: 118 | AF82: 74.68% | AG82: 25.32%
A83: 7251 | B83: 7251 Miami Central Senior High | C83: 500 | D83: 18.10000038 | E83: 0.42 | F83: 472 | G83: 28 | H83: 94.40% | I83: 5.60% | J83: 3.099999905 | K83: 0.44 | L83: 410 | M83: 90 | N83: 82.00% | O83: 18.00% | P83: 9.699999809 | Q83: 0.44 | R83: 443 | S83: 57 | T83: 88.60% | U83: 11.40% | V83: 2.400000095 | W83: 0.4 | X83: 469 | Y83: 31 | Z83: 93.80% | AA83: 6.20% | AB83: 3 | AC83: 0.37 | AD83: 453 | AE83: 47 | AF83: 90.60% | AG83: 9.40%
A84: 7262 | B84: 7262 City of Hialeah Education Academy | C84: 90 | D84: 22.5 | E84: 0.52 | F84: 77 | G84: 13 | H84: 85.56% | I84: 14.44% | J84: 4 | K84: 0.57 | L84: 57 | M84: 33 | N84: 63.33% | O84: 36.67% | P84: 12 | Q84: 0.54 | R84: 70 | S84: 20 | T84: 77.78% | U84: 22.22% | V84: 3 | W84: 0.5 | X84: 81 | Y84: 9 | Z84: 90.00% | AA84: 10.00% | AB84: 3.599999905 | AC84: 0.45 | AD84: 76 | AE84: 14 | AF84: 84.44% | AG84: 15.56%
A85: 7265 | B85: 7265 Archimedean Upper Conservatory | C85: 61 | D85: 31.10000038 | E85: 0.72 | F85: 25 | G85: 36 | H85: 40.98% | I85: 59.02% | J85: 5.099999905 | K85: 0.73 | L85: 20 | M85: 41 | N85: 32.79% | O85: 67.21% | P85: 16.89999962 | Q85: 0.77 | R85: 17 | S85: 44 | T85: 27.87% | U85: 72.13% | V85: 4.199999809 | W85: 0.7 | X85: 36 | Y85: 25 | Z85: 59.02% | AA85: 40.98% | AB85: 4.900000095 | AC85: 0.62 | AD85: 37 | AE85: 24 | AF85: 60.66% | AG85: 39.34%
A86: 7271 | B86: 7271 Miami Coral Park Senior High School | C86: 688 | D86: 18.5 | E86: 0.43 | F86: 587 | G86: 101 | H86: 85.32% | I86: 14.68% | J86: 3.299999952 | K86: 0.47 | L86: 509 | M86: 179 | N86: 73.98% | O86: 26.02% | P86: 9.899999619 | Q86: 0.45 | R86: 558 | S86: 130 | T86: 81.10% | U86: 18.90% | V86: 2.599999905 | W86: 0.44 | X86: 591 | Y86: 97 | Z86: 85.90% | AA86: 14.10% | AB86: 2.799999952 | AC86: 0.35 | AD86: 614 | AE86: 74 | AF86: 89.24% | AG86: 10.76%
A87: 7291 | B87: 7291 Jose Marti | C87: 76 | D87: 28.70000076 | E87: 0.67 | F87: 44 | G87: 32 | H87: 57.89% | I87: 42.11% | J87: 5 | K87: 0.71 | L87: 25 | M87: 51 | N87: 32.89% | O87: 67.11% | P87: 15.39999962 | Q87: 0.7 | R87: 35 | S87: 41 | T87: 46.05% | U87: 53.95% | V87: 3.799999952 | W87: 0.63 | X87: 57 | Y87: 19 | Z87: 75.00% | AA87: 25.00% | AB87: 4.5 | AC87: 0.56 | AD87: 53 | AE87: 23 | AF87: 69.74% | AG87: 30.26%
A88: 7301 | B88: 7301 Miami Edison Senior High | C88: 227 | D88: 17.70000076 | E88: 0.41 | F88: 221 | G88: 6 | H88: 97.36% | I88: 2.64% | J88: 3 | K88: 0.43 | L88: 192 | M88: 35 | N88: 84.58% | O88: 15.42% | P88: 9.600000381 | Q88: 0.43 | R88: 206 | S88: 21 | T88: 90.75% | U88: 9.25% | V88: 2.5 | W88: 0.41 | X88: 213 | Y88: 14 | Z88: 93.83% | AA88: 6.17% | AB88: 2.700000048 | AC88: 0.34 | AD88: 214 | AE88: 13 | AF88: 94.27% | AG88: 5.73%
A89: 7341 | B89: 7341 Miami Jackson Senior High | C89: 370 | D89: 19.10000038 | E89: 0.44 | F89: 341 | G89: 29 | H89: 92.16% | I89: 7.84% | J89: 3.200000048 | K89: 0.46 | L89: 285 | M89: 85 | N89: 77.03% | O89: 22.97% | P89: 10.39999962 | Q89: 0.47 | R89: 319 | S89: 51 | T89: 86.22% | U89: 13.78% | V89: 2.599999905 | W89: 0.43 | X89: 336 | Y89: 34 | Z89: 90.81% | AA89: 9.19% | AB89: 2.900000095 | AC89: 0.37 | AD89: 337 | AE89: 33 | AF89: 91.08% | AG89: 8.92%
A90: 7351 | B90: 7351 Arthur And Polly Mays 6-12 Conservatory Of Th | C90: 76 | D90: 19.5 | E90: 0.45 | F90: 71 | G90: 5 | H90: 93.42% | I90: 6.58% | J90: 3.599999905 | K90: 0.51 | L90: 51 | M90: 25 | N90: 67.11% | O90: 32.89% | P90: 10.19999981 | Q90: 0.46 | R90: 69 | S90: 7 | T90: 90.79% | U90: 9.21% | V90: 2.799999952 | W90: 0.47 | X90: 68 | Y90: 8 | Z90: 89.47% | AA90: 10.53% | AB90: 2.900000095 | AC90: 0.37 | AD90: 69 | AE90: 7 | AF90: 90.79% | AG90: 9.21%
A91: 7361 | B91: 7361 Miami Killian Senior High | C91: 506 | D91: 22.89999962 | E91: 0.53 | F91: 419 | G91: 87 | H91: 82.81% | I91: 17.19% | J91: 4 | K91: 0.57 | L91: 301 | M91: 205 | N91: 59.49% | O91: 40.51% | P91: 12.10000038 | Q91: 0.55 | R91: 376 | S91: 130 | T91: 74.31% | U91: 25.69% | V91: 3.099999905 | W91: 0.52 | X91: 420 | Y91: 86 | Z91: 83.00% | AA91: 17.00% | AB91: 3.599999905 | AC91: 0.45 | AD91: 410 | AE91: 96 | AF91: 81.03% | AG91: 18.97%
A92: 7371 | B92: 7371 Robert Morgan Education Center | C92: 549 | D92: 25.10000038 | E92: 0.58 | F92: 405 | G92: 144 | H92: 73.77% | I92: 26.23% | J92: 4.300000191 | K92: 0.62 | L92: 285 | M92: 264 | N92: 51.91% | O92: 48.09% | P92: 13.5 | Q92: 0.61 | R92: 342 | S92: 207 | T92: 62.30% | U92: 37.70% | V92: 3.299999952 | W92: 0.55 | X92: 444 | Y92: 105 | Z92: 80.87% | AA92: 19.13% | AB92: 3.900000095 | AC92: 0.5 | AD92: 432 | AE92: 117 | AF92: 78.69% | AG92: 21.31%
A93: 7381 | B93: 7381 Miami Norland Senior High | C93: 498 | D93: 20.20000076 | E93: 0.47 | F93: 461 | G93: 37 | H93: 92.57% | I93: 7.43% | J93: 3.5 | K93: 0.5 | L93: 356 | M93: 142 | N93: 71.49% | O93: 28.51% | P93: 10.80000019 | Q93: 0.49 | R93: 422 | S93: 76 | T93: 84.74% | U93: 15.26% | V93: 2.599999905 | W93: 0.43 | X93: 460 | Y93: 38 | Z93: 92.37% | AA93: 7.63% | AB93: 3.200000048 | AC93: 0.41 | AD93: 445 | AE93: 53 | AF93: 89.36% | AG93: 10.64%
A94: 7391 | B94: 7391 Miami Lakes Educational Center | C94: 421 | D94: 26.70000076 | E94: 0.62 | F94: 277 | G94: 144 | H94: 65.80% | I94: 34.20% | J94: 4.5 | K94: 0.64 | L94: 189 | M94: 232 | N94: 44.89% | O94: 55.11% | P94: 14.5 | Q94: 0.66 | R94: 242 | S94: 179 | T94: 57.48% | U94: 42.52% | V94: 3.400000095 | W94: 0.57 | X94: 329 | Y94: 92 | Z94: 78.15% | AA94: 21.85% | AB94: 4.400000095 | AC94: 0.55 | AD94: 307 | AE94: 114 | AF94: 72.92% | AG94: 27.08%
A95: 7411 | B95: 7411 Miami Northwestern Senior | C95: 362 | D95: 19.29999924 | E95: 0.45 | F95: 329 | G95: 33 | H95: 90.88% | I95: 9.12% | J95: 3.400000095 | K95: 0.48 | L95: 272 | M95: 90 | N95: 75.14% | O95: 24.86% | P95: 10.30000019 | Q95: 0.47 | R95: 313 | S95: 49 | T95: 86.46% | U95: 13.54% | V95: 2.599999905 | W95: 0.43 | X95: 338 | Y95: 24 | Z95: 93.37% | AA95: 6.63% | AB95: 3 | AC95: 0.38 | AD95: 318 | AE95: 44 | AF95: 87.85% | AG95: 12.15%
A96: 7431 | B96: 7431 Miami Palmetto Sr High | C96: 539 | D96: 25 | E96: 0.58 | F96: 358 | G96: 181 | H96: 66.42% | I96: 33.58% | J96: 4.400000095 | K96: 0.63 | L96: 252 | M96: 287 | N96: 46.75% | O96: 53.25% | P96: 13.60000038 | Q96: 0.62 | R96: 325 | S96: 214 | T96: 60.30% | U96: 39.70% | V96: 3.299999952 | W96: 0.55 | X96: 408 | Y96: 131 | Z96: 75.70% | AA96: 24.30% | AB96: 3.599999905 | AC96: 0.46 | AD96: 399 | AE96: 140 | AF96: 74.03% | AG96: 25.97%
A97: 7461 | B97: 7461 Miami Senior High | C97: 692 | D97: 17.79999924 | E97: 0.42 | F97: 625 | G97: 67 | H97: 90.32% | I97: 9.68% | J97: 3.200000048 | K97: 0.46 | L97: 527 | M97: 165 | N97: 76.16% | O97: 23.84% | P97: 9.800000191 | Q97: 0.44 | R97: 588 | S97: 104 | T97: 84.97% | U97: 15.03% | V97: 2.299999952 | W97: 0.39 | X97: 645 | Y97: 47 | Z97: 93.21% | AA97: 6.79% | AB97: 2.5 | AC97: 0.32 | AD97: 644 | AE97: 48 | AF97: 93.06% | AG97: 6.94%
A98: 7511 | B98: 7511 Miami Springs Senior High | C98: 439 | D98: 21.29999924 | E98: 0.5 | F98: 356 | G98: 83 | H98: 81.09% | I98: 18.91% | J98: 3.700000048 | K98: 0.52 | L98: 281 | M98: 158 | N98: 64.01% | O98: 35.99% | P98: 11.60000038 | Q98: 0.53 | R98: 322 | S98: 117 | T98: 73.35% | U98: 26.65% | V98: 2.700000048 | W98: 0.45 | X98: 380 | Y98: 59 | Z98: 86.56% | AA98: 13.44% | AB98: 3.299999952 | AC98: 0.42 | AD98: 375 | AE98: 64 | AF98: 85.42% | AG98: 14.58%
A99: 7531 | B99: 7531 Miami SunSET Senior | C99: 385 | D99: 20.10000038 | E99: 0.47 | F99: 340 | G99: 45 | H99: 88.31% | I99: 11.69% | J99: 3.5 | K99: 0.5 | L99: 257 | M99: 128 | N99: 66.75% | O99: 33.25% | P99: 10.80000019 | Q99: 0.49 | R99: 319 | S99: 66 | T99: 82.86% | U99: 17.14% | V99: 2.900000095 | W99: 0.48 | X99: 323 | Y99: 62 | Z99: 83.90% | AA99: 16.10% | AB99: 2.900000095 | AC99: 0.37 | AD99: 344 | AE99: 41 | AF99: 89.35% | AG99: 10.65%
A100: 7541 | B100: 7541 North Miami Beach Sr. | C100: 486 | D100: 20.5 | E100: 0.48 | F100: 423 | G100: 63 | H100: 87.04% | I100: 12.96% | J100: 3.5 | K100: 0.51 | L100: 350 | M100: 136 | N100: 72.02% | O100: 27.98% | P100: 11.10000038 | Q100: 0.51 | R100: 385 | S100: 101 | T100: 79.22% | U100: 20.78% | V100: 2.700000048 | W100: 0.44 | X100: 434 | Y100: 52 | Z100: 89.30% | AA100: 10.70% | AB100: 3.200000048 | AC100: 0.41 | AD100: 418 | AE100: 68 | AF100: 86.01% | AG100: 13.99%
A101: 7571 | B101: 7571 International Studies Preparatory Academy | C101: 100 | D101: 30.29999924 | E101: 0.7 | F101: 41 | G101: 59 | H101: 41.00% | I101: 59.00% | J101: 4.900000095 | K101: 0.7 | L101: 35 | M101: 65 | N101: 35.00% | O101: 65.00% | P101: 16.29999924 | Q101: 0.74 | R101: 36 | S101: 64 | T101: 36.00% | U101: 64.00% | V101: 4 | W101: 0.67 | X101: 61 | Y101: 39 | Z101: 61.00% | AA101: 39.00% | AB101: 5.099999905 | AC101: 0.64 | AD101: 55 | AE101: 45 | AF101: 55.00% | AG101: 45.00%
A102: 7581 | B102: 7581 IPreparatory Academy | C102: 85 | D102: 32.90000153 | E102: 0.77 | F102: 21 | G102: 64 | H102: 24.71% | I102: 75.29% | J102: 5.300000191 | K102: 0.75 | L102: 21 | M102: 64 | N102: 24.71% | O102: 75.29% | P102: 17.89999962 | Q102: 0.81 | R102: 16 | S102: 69 | T102: 18.82% | U102: 81.18% | V102: 4.199999809 | W102: 0.69 | X102: 46 | Y102: 39 | Z102: 54.12% | AA102: 45.88% | AB102: 5.699999809 | AC102: 0.71 | AD102: 36 | AE102: 49 | AF102: 42.35% | AG102: 57.65%
A103: 7591 | B103: 7591 North Miami Senior High School | C103: 656 | D103: 20.60000038 | E103: 0.48 | F103: 577 | G103: 79 | H103: 87.96% | I103: 12.04% | J103: 3.5 | K103: 0.5 | L103: 468 | M103: 188 | N103: 71.34% | O103: 28.66% | P103: 11.10000038 | Q103: 0.5 | R103: 520 | S103: 136 | T103: 79.27% | U103: 20.73% | V103: 2.700000048 | W103: 0.44 | X103: 589 | Y103: 67 | Z103: 89.79% | AA103: 10.21% | AB103: 3.299999952 | AC103: 0.42 | AD103: 552 | AE103: 104 | AF103: 84.15% | AG103: 15.85%
A104: 7601 | B104: 7601 Turner Tech | C104: 455 | D104: 24.39999962 | E104: 0.57 | F104: 366 | G104: 89 | H104: 80.44% | I104: 19.56% | J104: 4.199999809 | K104: 0.6 | L104: 258 | M104: 197 | N104: 56.70% | O104: 43.30% | P104: 13.19999981 | Q104: 0.6 | R104: 316 | S104: 139 | T104: 69.45% | U104: 30.55% | V104: 3.099999905 | W104: 0.51 | X104: 401 | Y104: 54 | Z104: 88.13% | AA104: 11.87% | AB104: 3.900000095 | AC104: 0.49 | AD104: 381 | AE104: 74 | AF104: 83.74% | AG104: 16.26%
A105: 7631 | B105: 7631 MacArthur South Senior High | C105: 14 | D105: 10.60000038 | E105: 0.25 | F105: 14 | H105: 100.00% | J105: 1.899999976 | K105: 0.28 | L105: 13 | M105: 1 | N105: 92.86% | O105: 7.14% | P105: 5.699999809 | Q105: 0.26 | R105: 14 | T105: 100.00% | V105: 1.700000048 | W105: 0.28 | X105: 13 | Y105: 1 | Z105: 92.86% | AA105: 7.14% | AB105: 1.200000048 | AC105: 0.15 | AD105: 14 | AF105: 100.00%
A106: 7701 | B106: 7701 South Dade Senior | C106: 723 | D106: 21.29999924 | E106: 0.5 | F106: 598 | G106: 125 | H106: 82.71% | I106: 17.29% | J106: 3.700000048 | K106: 0.53 | L106: 487 | M106: 236 | N106: 67.36% | O106: 32.64% | P106: 11.39999962 | Q106: 0.52 | R106: 556 | S106: 167 | T106: 76.90% | U106: 23.10% | V106: 2.700000048 | W106: 0.46 | X106: 643 | Y106: 80 | Z106: 88.93% | AA106: 11.07% | AB106: 3.400000095 | AC106: 0.43 | AD106: 598 | AE106: 125 | AF106: 82.71% | AG106: 17.29%
A107: 7721 | B107: 7721 South Miami Senior High | C107: 579 | D107: 21.10000038 | E107: 0.49 | F107: 479 | G107: 100 | H107: 82.73% | I107: 17.27% | J107: 3.599999905 | K107: 0.51 | L107: 393 | M107: 186 | N107: 67.88% | O107: 32.12% | P107: 11.30000019 | Q107: 0.51 | R107: 446 | S107: 133 | T107: 77.03% | U107: 22.97% | V107: 2.900000095 | W107: 0.48 | X107: 494 | Y107: 85 | Z107: 85.32% | AA107: 14.68% | AB107: 3.400000095 | AC107: 0.43 | AD107: 490 | AE107: 89 | AF107: 84.63% | AG107: 15.37%
A108: 7731 | B108: 7731 Miami Southridge Senior High | C108: 502 | D108: 19.70000076 | E108: 0.46 | F108: 452 | G108: 50 | H108: 90.04% | I108: 9.96% | J108: 3.400000095 | K108: 0.49 | L108: 375 | M108: 127 | N108: 74.70% | O108: 25.30% | P108: 10.5 | Q108: 0.48 | R108: 428 | S108: 74 | T108: 85.26% | U108: 14.74% | V108: 2.599999905 | W108: 0.44 | X108: 461 | Y108: 41 | Z108: 91.83% | AA108: 8.17% | AB108: 3.099999905 | AC108: 0.39 | AD108: 439 | AE108: 63 | AF108: 87.45% | AG108: 12.55%
A109: 7741 | B109: 7741 Southwest Miami High School | C109: 732 | D109: 21.20000076 | E109: 0.49 | F109: 598 | G109: 134 | H109: 81.69% | I109: 18.31% | J109: 3.700000048 | K109: 0.53 | L109: 476 | M109: 256 | N109: 65.03% | O109: 34.97% | P109: 11.30000019 | Q109: 0.52 | R109: 543 | S109: 189 | T109: 74.18% | U109: 25.82% | V109: 2.799999952 | W109: 0.46 | X109: 634 | Y109: 98 | Z109: 86.61% | AA109: 13.39% | AB109: 3.299999952 | AC109: 0.42 | AD109: 623 | AE109: 109 | AF109: 85.11% | AG109: 14.89%
A110: 7751 | B110: 7751 Barbara Goleman High School | C110: 368 | D110: 22 | E110: 0.51 | F110: 295 | G110: 73 | H110: 80.16% | I110: 19.84% | J110: 3.799999952 | K110: 0.54 | L110: 230 | M110: 138 | N110: 62.50% | O110: 37.50% | P110: 11.89999962 | Q110: 0.54 | R110: 265 | S110: 103 | T110: 72.01% | U110: 27.99% | V110: 2.799999952 | W110: 0.47 | X110: 324 | Y110: 44 | Z110: 88.04% | AA110: 11.96% | AB110: 3.5 | AC110: 0.44 | AD110: 304 | AE110: 64 | AF110: 82.61% | AG110: 17.39%
A111: 7781 | B111: 7781 Felix Varela Senior High School | C111: 766 | D111: 24.39999962 | E111: 0.57 | F111: 543 | G111: 223 | H111: 70.89% | I111: 29.11% | J111: 4.199999809 | K111: 0.6 | L111: 418 | M111: 348 | N111: 54.57% | O111: 45.43% | P111: 13.10000038 | Q111: 0.6 | R111: 480 | S111: 286 | T111: 62.66% | U111: 37.34% | V111: 3.200000048 | W111: 0.53 | X111: 624 | Y111: 142 | Z111: 81.46% | AA111: 18.54% | AB111: 3.900000095 | AC111: 0.49 | AD111: 589 | AE111: 177 | AF111: 76.89% | AG111: 23.11%
A112: 7791 | B112: 7791 Booker T. Washington Senior High School | C112: 229 | D112: 17.20000076 | E112: 0.4 | F112: 215 | G112: 14 | H112: 93.89% | I112: 6.11% | J112: 3 | K112: 0.43 | L112: 194 | M112: 35 | N112: 84.72% | O112: 15.28% | P112: 9.100000381 | Q112: 0.41 | R112: 204 | S112: 25 | T112: 89.08% | U112: 10.92% | V112: 2.400000095 | W112: 0.41 | X112: 214 | Y112: 15 | Z112: 93.45% | AA112: 6.55% | AB112: 2.700000048 | AC112: 0.34 | AD112: 212 | AE112: 17 | AF112: 92.58% | AG112: 7.42%
A113: 7801 | B113: 7801 George T. Baker | C113: 76 | D113: 23.29999924 | E113: 0.54 | F113: 58 | G113: 18 | H113: 76.32% | I113: 23.68% | J113: 4.199999809 | K113: 0.59 | L113: 42 | M113: 34 | N113: 55.26% | O113: 44.74% | P113: 12.39999962 | Q113: 0.56 | R113: 54 | S113: 22 | T113: 71.05% | U113: 28.95% | V113: 3.099999905 | W113: 0.52 | X113: 62 | Y113: 14 | Z113: 81.58% | AA113: 18.42% | AB113: 3.700000048 | AC113: 0.46 | AD113: 64 | AE113: 12 | AF113: 84.21% | AG113: 15.79%
A114: 7901 | B114: 7901 New World School of Arts | C114: 118 | D114: 26.89999962 | E114: 0.62 | F114: 78 | G114: 40 | H114: 66.10% | I114: 33.90% | J114: 4.800000191 | K114: 0.68 | L114: 49 | M114: 69 | N114: 41.53% | O114: 58.47% | P114: 14.69999981 | Q114: 0.67 | R114: 60 | S114: 58 | T114: 50.85% | U114: 49.15% | V114: 3.599999905 | W114: 0.6 | X114: 82 | Y114: 36 | Z114: 69.49% | AA114: 30.51% | AB114: 3.799999952 | AC114: 0.47 | AD114: 92 | AE114: 26 | AF114: 77.97% | AG114: 22.03%
A115: 8005 | B115: 8005 Lindsey Hopkins TEC | C115: 2 | D115: 15.5 | E115: 0.36 | F115: 2 | H115: 100.00% | J115: 2.5 | K115: 0.36 | L115: 2 | N115: 100.00% | P115: 8 | Q115: 0.36 | R115: 2 | T115: 100.00% | V115: 2.5 | W115: 0.42 | X115: 2 | Z115: 100.00% | AB115: 2.5 | AC115: 0.31 | AD115: 2 | AF115: 100.00%
A116: 8014 | B116: 8014 Educational Alt. Outreach Program | C116: 31 | D116: 12.39999962 | E116: 0.29 | F116: 31 | H116: 100.00% | J116: 2.200000048 | K116: 0.31 | L116: 30 | M116: 1 | N116: 96.77% | O116: 3.23% | P116: 6.5 | Q116: 0.29 | R116: 30 | S116: 1 | T116: 96.77% | U116: 3.23% | V116: 1.799999952 | W116: 0.31 | X116: 31 | Z116: 100.00% | AB116: 1.899999976 | AC116: 0.24 | AD116: 30 | AE116: 1 | AF116: 96.77% | AG116: 3.23%
A117: 8017 | B117: 8017 Outreachprograms | C117: 107 | D117: 12.5 | E117: 0.29 | F117: 105 | G117: 2 | H117: 98.13% | I117: 1.87% | J117: 2.200000048 | K117: 0.32 | L117: 101 | M117: 6 | N117: 94.39% | O117: 5.61% | P117: 6.699999809 | Q117: 0.3 | R117: 103 | S117: 4 | T117: 96.26% | U117: 3.74% | V117: 1.600000024 | W117: 0.27 | X117: 106 | Y117: 1 | Z117: 99.07% | AA117: 0.93% | AB117: 2 | AC117: 0.25 | AD117: 106 | AE117: 1 | AF117: 99.07% | AG117: 0.93%
A118: 8019 | B118: 8019 Academy For Comm. Ed. | C118: 7 | D118: 15.30000019 | E118: 0.36 | F118: 7 | H118: 100.00% | J118: 3.099999905 | K118: 0.45 | L118: 5 | M118: 2 | N118: 71.43% | O118: 28.57% | P118: 7.599999905 | Q118: 0.34 | R118: 7 | T118: 100.00% | V118: 2 | W118: 0.33 | X118: 7 | Z118: 100.00% | AB118: 2.599999905 | AC118: 0.32 | AD118: 7 | AF118: 100.00%
A119: 8101 | B119: 8101 Jan Mann Opp. Center | C119: 6 | D119: 16.79999924 | E119: 0.39 | F119: 5 | G119: 1 | H119: 83.33% | I119: 16.67% | J119: 3 | K119: 0.43 | L119: 5 | M119: 1 | N119: 83.33% | O119: 16.67% | P119: 8.699999809 | Q119: 0.39 | R119: 5 | S119: 1 | T119: 83.33% | U119: 16.67% | V119: 2.700000048 | W119: 0.44 | X119: 5 | Y119: 1 | Z119: 83.33% | AA119: 16.67% | AB119: 2.5 | AC119: 0.32 | AD119: 6 | AF119: 100.00%
A120: 8121 | B120: 8121 C.O.P.E. Center North | C120: 9 | D120: 18 | E120: 0.42 | F120: 9 | H120: 100.00% | J120: 3.400000095 | K120: 0.49 | L120: 6 | M120: 3 | N120: 66.67% | O120: 33.33% | P120: 9.199999809 | Q120: 0.42 | R120: 8 | S120: 1 | T120: 88.89% | U120: 11.11% | V120: 2.700000048 | W120: 0.44 | X120: 9 | Z120: 100.00% | AB120: 2.700000048 | AC120: 0.34 | AD120: 9 | AF120: 100.00%
A121: 8131 | B121: 8131 Dorothy M. Wallace COPE Center | C121: 7 | D121: 21.29999924 | E121: 0.49 | F121: 6 | G121: 1 | H121: 85.71% | I121: 14.29% | J121: 3 | K121: 0.43 | L121: 6 | M121: 1 | N121: 85.71% | O121: 14.29% | P121: 11.60000038 | Q121: 0.53 | R121: 6 | S121: 1 | T121: 85.71% | U121: 14.29% | V121: 2.900000095 | W121: 0.48 | X121: 6 | Y121: 1 | Z121: 85.71% | AA121: 14.29% | AB121: 3.900000095 | AC121: 0.48 | AD121: 7 | AF121: 100.00%
A122: 8141 | B122: 8141 Juvenile Justice Center | C122: 7 | D122: 15.69999981 | E122: 0.37 | F122: 7 | H122: 100.00% | J122: 3.599999905 | K122: 0.51 | L122: 6 | M122: 1 | N122: 85.71% | O122: 14.29% | P122: 8.100000381 | Q122: 0.37 | R122: 7 | T122: 100.00% | V122: 1.899999976 | W122: 0.31 | X122: 7 | Z122: 100.00% | AB122: 2.099999905 | AC122: 0.27 | AD122: 7 | AF122: 100.00%
A123: 8151 | B123: 8151 Renick, Robert Educational Center | C123: 11 | D123: 11.60000038 | E123: 0.27 | F123: 11 | H123: 100.00% | J123: 2.200000048 | K123: 0.31 | L123: 11 | N123: 100.00% | P123: 6.400000095 | Q123: 0.29 | R123: 11 | T123: 100.00% | V123: 1 | W123: 0.17 | X123: 11 | Z123: 100.00% | AB123: 2.099999905 | AC123: 0.26 | AD123: 11 | AF123: 100.00%
A124: 8181 | B124: 8181 Ruth Owens Kruse Educational Center | C124: 8 | D124: 19 | E124: 0.44 | F124: 6 | G124: 2 | H124: 75.00% | I124: 25.00% | J124: 3 | K124: 0.43 | L124: 6 | M124: 2 | N124: 75.00% | O124: 25.00% | P124: 9 | Q124: 0.41 | R124: 6 | S124: 2 | T124: 75.00% | U124: 25.00% | V124: 3.299999952 | W124: 0.54 | X124: 6 | Y124: 2 | Z124: 75.00% | AA124: 25.00% | AB124: 3.799999952 | AC124: 0.47 | AD124: 7 | AE124: 1 | AF124: 87.50% | AG124: 12.50%
A125: 8901 | B125: 8901 Miami Lakes Educational Center | C125: 5 | D125: 10 | E125: 0.23 | F125: 5 | H125: 100.00% | J125: 2 | K125: 0.29 | L125: 5 | N125: 100.00% | P125: 4.800000191 | Q125: 0.22 | R125: 5 | T125: 100.00% | V125: 1.600000024 | W125: 0.27 | X125: 5 | Z125: 100.00% | AB125: 1.600000024 | AC125: 0.2 | AD125: 5 | AF125: 100.00%
A126: 8911 | B126: 8911 Robert Morgan Educational Center | C126: 3 | D126: 20.29999924 | E126: 0.47 | F126: 3 | H126: 100.00% | J126: 3.299999952 | K126: 0.48 | L126: 2 | M126: 1 | N126: 66.67% | O126: 33.33% | P126: 10.69999981 | Q126: 0.48 | R126: 3 | T126: 100.00% | V126: 2 | W126: 0.33 | X126: 3 | Z126: 100.00% | AB126: 4.300000191 | AC126: 0.54 | AD126: 2 | AE126: 1 | AF126: 66.67% | AG126: 33.33%
A127: 9732 | B127: 9732 Merrick Educational Center | C127: 9 | D127: 27.10000038 | E127: 0.63 | F127: 5 | G127: 4 | H127: 55.56% | I127: 44.44% | J127: 4.800000191 | K127: 0.68 | L127: 4 | M127: 5 | N127: 44.44% | O127: 55.56% | P127: 14.19999981 | Q127: 0.65 | R127: 4 | S127: 5 | T127: 44.44% | U127: 55.56% | V127: 3.599999905 | W127: 0.59 | X127: 7 | Y127: 2 | Z127: 77.78% | AA127: 22.22% | AB127: 4.599999905 | AC127: 0.57 | AD127: 6 | AE127: 3 | AF127: 66.67% | AG127: 33.33%
C128: =SUM(C14:C127) -> 25768
A129: 9999 | B129: 9999 DISTRICT | C129: 24869 | D129: 22.79999924 | E129: 0.53 | F129: 19066 | G129: 5803 | H129: 76.67% | I129: 23.33% | J129: 3.900000095 | K129: 0.56 | L129: 15006 | M129: 9863 | N129: 60.34% | O129: 39.66% | P129: 12.30000019 | Q129: 0.56 | R129: 17159 | S129: 7710 | T129: 69.00% | U129: 31.00% | V129: 3 | W129: 0.5 | X129: 20722 | Y129: 4147 | Z129: 83.32% | AA129: 16.68% | AB129: 3.599999905 | AC129: 0.46 | AD129: 19939 | AE129: 4930 | AF129: 80.18% | AG129: 19.82%
C130: =C128-C129 -> 899
A143: =IFERROR(VALUE(LEFT(B143,4)),"") -> 
A207: =IFERROR(VALUE(LEFT(B207,4)),"") -> 
A271: =IFERROR(VALUE(LEFT(B271,4)),"") -> 
A335: =IFERROR(VALUE(LEFT(B335,4)),"") -> 

Sheet BLG10BM-R (hidden)
B1: R-G10-BM-SCHL-ALL
B3: Description: | C3: Reading benchmark G10 all
B4: Student Selection: | C4: All Schools | 2012-2013 Fall, 2012-2013 School Year
B5: Group By Data: | C5: School
B6: Assessments: | C6: Baseline 2012 Grade 10 Reading August 2012
B7: Scores: | C7: Overall Avg Raw Score, Overall Avg % Correct, Standards Avg Raw Score, Standards Avg % Correct
B8: Author Name: | C8: Yuwadee Wongbundhit
A9: =COLUMN() -> 1 | B9: =COLUMN() -> 2 | C9: =COLUMN() -> 3 | D9: =COLUMN() -> 4 | E9: =COLUMN() -> 5 | F9: =COLUMN() -> 6 | G9: =COLUMN() -> 7 | H9: =COLUMN() -> 8 | I9: =COLUMN() -> 9 | J9: =COLUMN() -> 10 | K9: =COLUMN() -> 11 | L9: =COLUMN() -> 12 | M9: =COLUMN() -> 13 | N9: =COLUMN() -> 14 | O9: =COLUMN() -> 15 | P9: =COLUMN() -> 16 | Q9: =COLUMN() -> 17 | R9: =COLUMN() -> 18 | S9: =COLUMN() -> 19 | T9: =COLUMN() -> 20 | U9: =COLUMN() -> 21 | V9: =COLUMN() -> 22 | W9: =COLUMN() -> 23 | X9: =COLUMN() -> 24 | Y9: =COLUMN() -> 25 | Z9: =COLUMN() -> 26 | AA9: =COLUMN() -> 27 | AB9: =COLUMN() -> 28 | AC9: =COLUMN() -> 29
B10: Total Row(s): 92 Generated on Sep-22-2012 by Yuwadee Wongbundhit | C10: Baseline 2012 Grade 10 Reading August 2012
C11: Total # students | D11: Overall (34 pts max) | F11: LA.910.1--LA.910.1.6: Benchmark LA.910.1.6.3 | H11: LA.910.1--LA.910.1.6: Benchmark LA.910.1.6.8 | J11: LA.910.1--LA.910.1.6: Benchmark LA.910.1.6.9 | L11: LA.910.1--LA.910.1.7: Benchmark LA.910.1.7.2 | N11: LA.910.1--LA.910.1.7: Benchmark LA.910.1.7.3 | P11: LA.910.1--LA.910.1.7: Benchmark LA.910.1.7.4 | R11: LA.910.1--LA.910.1.7: Benchmark LA.910.1.7.5 | T11: LA.910.1--LA.910.1.7: Benchmark LA.910.1.7.7 | V11: LA.910.2--LA.910.2.1: Benchmark LA.910.2.1.5 | X11: LA.910.2--LA.910.2.1: Benchmark LA.910.2.1.7 | Z11: LA.910.6--LA.910.6.1: Benchmark LA.910.6.1.1 | AB11: LA.910.6--LA.910.6.2: Benchmark LA.910.6.2.2
D12: Avg Raw Score | E12: Avg % Correct | F12: Avg Raw Score | G12: Avg % Correct | H12: Avg Raw Score | I12: Avg % Correct | J12: Avg Raw Score | K12: Avg % Correct | L12: Avg Raw Score | M12: Avg % Correct | N12: Avg Raw Score | O12: Avg % Correct | P12: Avg Raw Score | Q12: Avg % Correct | R12: Avg Raw Score | S12: Avg % Correct | T12: Avg Raw Score | U12: Avg % Correct | V12: Avg Raw Score | W12: Avg % Correct | X12: Avg Raw Score | Y12: Avg % Correct | Z12: Avg Raw Score | AA12: Avg % Correct | AB12: Avg Raw Score | AC12: Avg % Correct
B13: School Name
A14: =IFERROR(VALUE(LEFT(B14,4)),"") -> 4491 | B14: 4491 Henry E.S. Reeves Elementary | C14: 1 | D14: 10 | E14: 0.29 | F14: 0 | G14: 0 | H14: 1 | I14: 1 | J14: 2 | K14: 1 | L14: 1 | M14: 0.25 | N14: 1 | O14: 0.2 | P14: 0 | Q14: 0 | R14: 1 | S14: 1 | T14: 1 | U14: 0.33 | V14: 1 | W14: 0.33 | X14: 0 | Y14: 0 | Z14: 2 | AA14: 0.67 | AB14: 0 | AC14: 0
A15: 6040 | B15: 6040 Doctors Charter School Of Miami Shores | C15: 90 | D15: 22.60000038 | E15: 0.66 | F15: 1.600000024 | G15: 0.8 | H15: 0.6999999881 | I15: 0.66 | J15: 1.399999976 | K15: 0.7 | L15: 3.299999952 | M15: 0.81 | N15: 3.5 | O15: 0.69 | P15: 1.100000024 | Q15: 0.57 | R15: 0.6999999881 | S15: 0.73 | T15: 2.099999905 | U15: 0.72 | V15: 1.399999976 | W15: 0.46 | X15: 0.6000000238 | Y15: 0.59 | Z15: 1.799999952 | AA15: 0.6 | AB15: 4.400000095 | AC15: 0.63
A16: 7007 | B16: 7007 International Studies Charter High School | C16: 86 | D16: 22.39999962 | E16: 0.66 | F16: 1.5 | G16: 0.77 | H16: 0.6999999881 | I16: 0.74 | J16: 1.299999952 | K16: 0.65 | L16: 3.299999952 | M16: 0.82 | N16: 3.5 | O16: 0.69 | P16: 1.200000048 | Q16: 0.62 | R16: 0.8000000119 | S16: 0.79 | T16: 1.899999976 | U16: 0.63 | V16: 1.600000024 | W16: 0.55 | X16: 0.5 | Y16: 0.55 | Z16: 1.600000024 | AA16: 0.52 | AB16: 4.400000095 | AC16: 0.63
A17: 7009 | B17: 7009 Doral Performing Arts Academy | C17: 91 | D17: 23.5 | E17: 0.69 | F17: 1.700000048 | G17: 0.84 | H17: 0.8999999762 | I17: 0.86 | J17: 1.399999976 | K17: 0.72 | L17: 3.400000095 | M17: 0.85 | N17: 3.599999905 | O17: 0.72 | P17: 1.399999976 | Q17: 0.69 | R17: 0.8000000119 | S17: 0.76 | T17: 1.899999976 | U17: 0.65 | V17: 1.5 | W17: 0.52 | X17: 0.400000006 | Y17: 0.44 | Z17: 1.899999976 | AA17: 0.63 | AB17: 4.5 | AC17: 0.64
A18: 7011 | B18: 7011 American Senior High School | C18: 498 | D18: 19 | E18: 0.56 | F18: 1.399999976 | G18: 0.71 | H18: 0.6000000238 | I18: 0.59 | J18: 1.299999952 | K18: 0.63 | L18: 2.700000048 | M18: 0.66 | N18: 3 | O18: 0.6 | P18: 1 | Q18: 0.48 | R18: 0.6000000238 | S18: 0.6 | T18: 1.600000024 | U18: 0.54 | V18: 1.299999952 | W18: 0.44 | X18: 0.400000006 | Y18: 0.42 | Z18: 1.399999976 | AA18: 0.46 | AB18: 3.799999952 | AC18: 0.55
A19: 7014 | B19: 7014 Mater Performing Arts & Entertainment Academy | C19: 92 | D19: 21.79999924 | E19: 0.64 | F19: 1.600000024 | G19: 0.8 | H19: 0.6999999881 | I19: 0.71 | J19: 1.399999976 | K19: 0.68 | L19: 3.200000048 | M19: 0.8 | N19: 3.299999952 | O19: 0.66 | P19: 1.100000024 | Q19: 0.55 | R19: 0.6999999881 | S19: 0.67 | T19: 1.899999976 | U19: 0.62 | V19: 1.299999952 | W19: 0.43 | X19: 0.400000006 | Y19: 0.43 | Z19: 1.700000048 | AA19: 0.58 | AB19: 4.5 | AC19: 0.65
A20: 7015 | B20: 7015 Life Skills Center Miami-dade County | C20: 21 | D20: 17 | E20: 0.5 | F20: 1.299999952 | G20: 0.67 | H20: 0.6000000238 | I20: 0.57 | J20: 1 | K20: 0.48 | L20: 2.400000095 | M20: 0.61 | N20: 2.599999905 | O20: 0.52 | P20: 0.8999999762 | Q20: 0.43 | R20: 0.6000000238 | S20: 0.57 | T20: 1.399999976 | U20: 0.46 | V20: 1.100000024 | W20: 0.38 | X20: 0.3000000119 | Y20: 0.33 | Z20: 1.200000048 | AA20: 0.4 | AB20: 3.599999905 | AC20: 0.52
A21: 7016 | B21: 7016 Sports Leadership Academy Of Miami Chs | C21: 7 | D21: 18.89999962 | E21: 0.55 | F21: 1 | G21: 0.5 | H21: 0.6000000238 | I21: 0.57 | J21: 1.399999976 | K21: 0.71 | L21: 2.599999905 | M21: 0.64 | N21: 3.099999905 | O21: 0.63 | P21: 0.8999999762 | Q21: 0.43 | R21: 0.6000000238 | S21: 0.57 | T21: 1.600000024 | U21: 0.52 | V21: 1 | W21: 0.33 | X21: 0.1000000015 | Y21: 0.14 | Z21: 1.600000024 | AA21: 0.52 | AB21: 4.400000095 | AC21: 0.63
A22: 7018 | B22: 7018 Mater Academy Lakes High School | C22: 250 | D22: 22.39999962 | E22: 0.66 | F22: 1.600000024 | G22: 0.78 | H22: 0.6999999881 | I22: 0.68 | J22: 1.5 | K22: 0.73 | L22: 3.299999952 | M22: 0.82 | N22: 3.400000095 | O22: 0.68 | P22: 1.200000048 | Q22: 0.62 | R22: 0.8000000119 | S22: 0.76 | T22: 2 | U22: 0.67 | V22: 1.399999976 | W22: 0.46 | X22: 0.400000006 | Y22: 0.38 | Z22: 1.700000048 | AA22: 0.57 | AB22: 4.5 | AC22: 0.64
A23: 7020 | B23: 7020 Doral Academy High School | C23: 368 | D23: 22.29999924 | E23: 0.66 | F23: 1.600000024 | G23: 0.81 | H23: 0.8000000119 | I23: 0.77 | J23: 1.399999976 | K23: 0.7 | L23: 3.200000048 | M23: 0.8 | N23: 3.299999952 | O23: 0.67 | P23: 1.200000048 | Q23: 0.58 | R23: 0.6999999881 | S23: 0.68 | T23: 1.899999976 | U23: 0.63 | V23: 1.5 | W23: 0.51 | X23: 0.400000006 | Y23: 0.43 | Z23: 1.799999952 | AA23: 0.59 | AB23: 4.5 | AC23: 0.64
A24: 7022 | B24: 7022 Academy Of Arts And Minds | C24: 58 | D24: 19.39999962 | E24: 0.57 | F24: 1.5 | G24: 0.73 | H24: 0.5 | I24: 0.53 | J24: 1.200000048 | K24: 0.59 | L24: 2.700000048 | M24: 0.68 | N24: 2.900000095 | O24: 0.58 | P24: 0.8000000119 | Q24: 0.42 | R24: 0.6000000238 | S24: 0.62 | T24: 1.700000048 | U24: 0.57 | V24: 1.200000048 | W24: 0.4 | X24: 0.6000000238 | Y24: 0.57 | Z24: 1.700000048 | AA24: 0.55 | AB24: 4 | AC24: 0.57
A25: 7024 | B25: 7024 Mater Academy HS of International Studies | C25: 11 | D25: 22.29999924 | E25: 0.65 | F25: 1.5 | G25: 0.73 | H25: 0.6999999881 | I25: 0.73 | J25: 1.399999976 | K25: 0.68 | L25: 3 | M25: 0.75 | N25: 3.599999905 | O25: 0.73 | P25: 1.100000024 | Q25: 0.55 | R25: 0.6999999881 | S25: 0.73 | T25: 1.899999976 | U25: 0.64 | V25: 1.5 | W25: 0.51 | X25: 0.400000006 | Y25: 0.36 | Z25: 2.200000048 | AA25: 0.73 | AB25: 4.300000191 | AC25: 0.61
A26: 7025 | B26: 7025 Mater Brickell Preparatory Academy High | C26: 1 | D26: 18 | E26: 0.53 | F26: 2 | G26: 1 | H26: 0 | I26: 0 | J26: 1 | K26: 0.5 | L26: 3 | M26: 0.75 | N26: 2 | O26: 0.4 | P26: 1 | Q26: 0.5 | R26: 1 | S26: 1 | T26: 2 | U26: 0.67 | V26: 0 | W26: 0 | X26: 1 | Y26: 1 | Z26: 2 | AA26: 0.67 | AB26: 3 | AC26: 0.43
A27: 7029 | B27: 7029 Terra Environmental Institute | C27: 503 | D27: 25.39999962 | E27: 0.75 | F27: 1.700000048 | G27: 0.86 | H27: 0.8999999762 | I27: 0.93 | J27: 1.600000024 | K27: 0.81 | L27: 3.599999905 | M27: 0.9 | N27: 3.799999952 | O27: 0.77 | P27: 1.299999952 | Q27: 0.67 | R27: 0.8000000119 | S27: 0.85 | T27: 2.099999905 | U27: 0.7 | V27: 1.899999976 | W27: 0.64 | X27: 0.6000000238 | Y27: 0.62 | Z27: 2 | AA27: 0.66 | AB27: 5 | AC27: 0.71
A28: 7032 | B28: 7032 Palm Glades Preparatory High School | C28: 33 | D28: 19.5 | E28: 0.57 | F28: 1.299999952 | G28: 0.65 | H28: 0.6000000238 | I28: 0.58 | J28: 1.100000024 | K28: 0.55 | L28: 2.799999952 | M28: 0.69 | N28: 3.400000095 | O28: 0.67 | P28: 1 | Q28: 0.52 | R28: 0.5 | S28: 0.55 | T28: 1.600000024 | U28: 0.53 | V28: 1.399999976 | W28: 0.45 | X28: 0.5 | Y28: 0.48 | Z28: 1.5 | AA28: 0.49 | AB28: 4 | AC28: 0.57
A29: 7033 | B29: 7033 Law Enforcement Officers Memorial High | C29: 112 | D29: 24.39999962 | E29: 0.72 | F29: 1.799999952 | G29: 0.9 | H29: 0.8999999762 | I29: 0.88 | J29: 1.600000024 | K29: 0.81 | L29: 3.400000095 | M29: 0.84 | N29: 3.5 | O29: 0.71 | P29: 1.299999952 | Q29: 0.67 | R29: 0.8000000119 | S29: 0.85 | T29: 2 | U29: 0.65 | V29: 1.899999976 | W29: 0.63 | X29: 0.5 | Y29: 0.52 | Z29: 1.799999952 | AA29: 0.62 | AB29: 4.800000191 | AC29: 0.68
A30: 7034 | B30: 7034 Somerset Academy Charter High South Campus | C30: 12 | D30: 20.10000038 | E30: 0.59 | F30: 1.5 | G30: 0.75 | H30: 0.5 | I30: 0.5 | J30: 1.399999976 | K30: 0.71 | L30: 3 | M30: 0.75 | N30: 3.599999905 | O30: 0.72 | P30: 1 | Q30: 0.5 | R30: 0.400000006 | S30: 0.42 | T30: 1.700000048 | U30: 0.56 | V30: 1.399999976 | W30: 0.47 | X30: 0.400000006 | Y30: 0.42 | Z30: 1.299999952 | AA30: 0.44 | AB30: 3.799999952 | AC30: 0.55
A31: 7036 | B31: 7036 Lawrence Academy Senior High Charter School | C31: 10 | D31: 17.79999924 | E31: 0.52 | F31: 1.700000048 | G31: 0.85 | H31: 0.1000000015 | I31: 0.1 | J31: 0.5 | K31: 0.25 | L31: 2.099999905 | M31: 0.52 | N31: 3.400000095 | O31: 0.68 | P31: 1 | Q31: 0.5 | R31: 0.8000000119 | S31: 0.8 | T31: 1.600000024 | U31: 0.53 | V31: 1.600000024 | W31: 0.53 | X31: 0.5 | Y31: 0.5 | Z31: 1.399999976 | AA31: 0.47 | AB31: 3.099999905 | AC31: 0.44
A32: 7037 | B32: 7037 Mater Academy East Charter High School | C32: 128 | D32: 21.5 | E32: 0.63 | F32: 1.5 | G32: 0.77 | H32: 0.6999999881 | I32: 0.74 | J32: 1.399999976 | K32: 0.71 | L32: 3 | M32: 0.75 | N32: 3.299999952 | O32: 0.67 | P32: 1.100000024 | Q32: 0.55 | R32: 0.6999999881 | S32: 0.67 | T32: 1.799999952 | U32: 0.59 | V32: 1.399999976 | W32: 0.47 | X32: 0.400000006 | Y32: 0.41 | Z32: 1.600000024 | AA32: 0.55 | AB32: 4.400000095 | AC32: 0.63
A33: 7042 | B33: 7042 Somerset Academy Charter High School | C33: 86 | D33: 20.60000038 | E33: 0.61 | F33: 1.600000024 | G33: 0.82 | H33: 0.6000000238 | I33: 0.59 | J33: 1.200000048 | K33: 0.6 | L33: 3.099999905 | M33: 0.78 | N33: 3.200000048 | O33: 0.63 | P33: 1 | Q33: 0.49 | R33: 0.6000000238 | S33: 0.62 | T33: 1.799999952 | U33: 0.59 | V33: 1.299999952 | W33: 0.42 | X33: 0.400000006 | Y33: 0.41 | Z33: 1.600000024 | AA33: 0.54 | AB33: 4.300000191 | AC33: 0.61
A34: 7048 | B34: 7048 Alonzo Andtracy Mourning High (Biscanye Bay) | C34: 407 | D34: 23.20000076 | E34: 0.68 | F34: 1.700000048 | G34: 0.83 | H34: 0.8000000119 | I34: 0.8 | J34: 1.5 | K34: 0.75 | L34: 3.299999952 | M34: 0.82 | N34: 3.599999905 | O34: 0.72 | P34: 1.100000024 | Q34: 0.57 | R34: 0.8000000119 | S34: 0.77 | T34: 1.899999976 | U34: 0.62 | V34: 1.799999952 | W34: 0.61 | X34: 0.6000000238 | Y34: 0.57 | Z34: 1.600000024 | AA34: 0.55 | AB34: 4.599999905 | AC34: 0.66
A35: 7049 | B35: 7049 Westland Hialeah Senior | C35: 451 | D35: 18 | E35: 0.53 | F35: 1.299999952 | G35: 0.64 | H35: 0.5 | I35: 0.51 | J35: 1.100000024 | K35: 0.55 | L35: 2.599999905 | M35: 0.65 | N35: 2.799999952 | O35: 0.56 | P35: 0.8999999762 | Q35: 0.44 | R35: 0.5 | S35: 0.53 | T35: 1.700000048 | U35: 0.57 | V35: 1.100000024 | W35: 0.37 | X35: 0.400000006 | Y35: 0.4 | Z35: 1.399999976 | AA35: 0.46 | AB35: 3.700000048 | AC35: 0.53
A36: 7050 | B36: 7050 Keys Gate Charter High School | C36: 274 | D36: 19.10000038 | E36: 0.56 | F36: 1.5 | G36: 0.76 | H36: 0.6000000238 | I36: 0.59 | J36: 1.200000048 | K36: 0.59 | L36: 2.799999952 | M36: 0.7 | N36: 3 | O36: 0.59 | P36: 1 | Q36: 0.48 | R36: 0.6000000238 | S36: 0.59 | T36: 1.700000048 | U36: 0.57 | V36: 1.200000048 | W36: 0.41 | X36: 0.400000006 | Y36: 0.44 | Z36: 1.399999976 | AA36: 0.47 | AB36: 3.799999952 | AC36: 0.54
A37: 7051 | B37: 7051 G Holmes Braddock Senior High | C37: 780 | D37: 17.5 | E37: 0.52 | F37: 1.200000048 | G37: 0.62 | H37: 0.6000000238 | I37: 0.57 | J37: 1.100000024 | K37: 0.54 | L37: 2.5 | M37: 0.64 | N37: 2.799999952 | O37: 0.55 | P37: 0.8999999762 | Q37: 0.47 | R37: 0.5 | S37: 0.5 | T37: 1.5 | U37: 0.5 | V37: 1.100000024 | W37: 0.36 | X37: 0.400000006 | Y37: 0.35 | Z37: 1.399999976 | AA37: 0.47 | AB37: 3.599999905 | AC37: 0.51
A38: 7053 | B38: 7053 Pinecrest Preparatory Academy Charter HS | C38: 118 | D38: 19 | E38: 0.56 | F38: 1.399999976 | G38: 0.72 | H38: 0.6000000238 | I38: 0.58 | J38: 1.200000048 | K38: 0.6 | L38: 2.900000095 | M38: 0.73 | N38: 2.799999952 | O38: 0.56 | P38: 0.8999999762 | Q38: 0.45 | R38: 0.5 | S38: 0.53 | T38: 1.600000024 | U38: 0.54 | V38: 1 | W38: 0.32 | X38: 0.400000006 | Y38: 0.42 | Z38: 1.600000024 | AA38: 0.53 | AB38: 4 | AC38: 0.57
A39: 7054 | B39: 7054 Excelsior Charter High School | C39: 18 | D39: 19.10000038 | E39: 0.56 | F39: 1.299999952 | G39: 0.64 | H39: 0.400000006 | I39: 0.44 | J39: 1 | K39: 0.5 | L39: 2.700000048 | M39: 0.68 | N39: 3.200000048 | O39: 0.64 | P39: 1.100000024 | Q39: 0.56 | R39: 0.6999999881 | S39: 0.72 | T39: 1.700000048 | U39: 0.57 | V39: 0.8999999762 | W39: 0.31 | X39: 0.200000003 | Y39: 0.22 | Z39: 1.700000048 | AA39: 0.57 | AB39: 4 | AC39: 0.57
A40: 7055 | B40: 7055 Young Women's Preparatory Academy | C40: 43 | D40: 26 | E40: 0.76 | F40: 1.799999952 | G40: 0.88 | H40: 1 | I40: 0.95 | J40: 1.700000048 | K40: 0.85 | L40: 3.700000048 | M40: 0.93 | N40: 3.799999952 | O40: 0.76 | P40: 1.200000048 | Q40: 0.62 | R40: 0.8999999762 | S40: 0.91 | T40: 1.899999976 | U40: 0.64 | V40: 2.099999905 | W40: 0.7 | X40: 0.6000000238 | Y40: 0.56 | Z40: 2.099999905 | AA40: 0.7 | AB40: 5.199999809 | AC40: 0.74
A41: 7056 | B41: 7056 Young Men's Preparatory High School | C41: 32 | D41: 19.70000076 | E41: 0.58 | F41: 1.700000048 | G41: 0.86 | H41: 0.8000000119 | I41: 0.75 | J41: 1.100000024 | K41: 0.56 | L41: 2.599999905 | M41: 0.66 | N41: 3.099999905 | O41: 0.63 | P41: 1 | Q41: 0.52 | R41: 0.6000000238 | S41: 0.63 | T41: 1.600000024 | U41: 0.53 | V41: 1.299999952 | W41: 0.45 | X41: 0.5 | Y41: 0.47 | Z41: 1.399999976 | AA41: 0.48 | AB41: 3.799999952 | AC41: 0.55
A42: 7058 | B42: 7058 Miami Community Charter High | C42: 33 | D42: 19.10000038 | E42: 0.56 | F42: 1.399999976 | G42: 0.68 | H42: 0.6999999881 | I42: 0.7 | J42: 1.399999976 | K42: 0.68 | L42: 2.599999905 | M42: 0.66 | N42: 2.900000095 | O42: 0.58 | P42: 1 | Q42: 0.52 | R42: 0.8000000119 | S42: 0.76 | T42: 1.399999976 | U42: 0.46 | V42: 1.299999952 | W42: 0.42 | X42: 0.400000006 | Y42: 0.39 | Z42: 1.5 | AA42: 0.48 | AB42: 3.900000095 | AC42: 0.55
A43: 7059 | B43: 7059 Miami Arts Charter | C43: 54 | D43: 21.29999924 | E43: 0.63 | F43: 1.700000048 | G43: 0.83 | H43: 0.6999999881 | I43: 0.67 | J43: 1.399999976 | K43: 0.7 | L43: 3.099999905 | M43: 0.77 | N43: 3.099999905 | O43: 0.62 | P43: 1.100000024 | Q43: 0.53 | R43: 0.6999999881 | S43: 0.7 | T43: 1.799999952 | U43: 0.6 | V43: 1.5 | W43: 0.49 | X43: 0.6000000238 | Y43: 0.57 | Z43: 1.700000048 | AA43: 0.57 | AB43: 4 | AC43: 0.57
A44: 7060 | B44: 7060 Everglades Preparatory Academy High School | C44: 36 | D44: 20.39999962 | E44: 0.6 | F44: 1.5 | G44: 0.74 | H44: 0.8000000119 | I44: 0.81 | J44: 1.5 | K44: 0.75 | L44: 2.700000048 | M44: 0.67 | N44: 3.200000048 | O44: 0.64 | P44: 1 | Q44: 0.5 | R44: 0.6000000238 | S44: 0.58 | T44: 1.399999976 | U44: 0.48 | V44: 1.600000024 | W44: 0.52 | X44: 0.400000006 | Y44: 0.39 | Z44: 1.5 | AA44: 0.51 | AB44: 4.199999809 | AC44: 0.6
A45: 7067 | B45: 7067 Florida High School Of Accelerated Learning- | C45: 42 | D45: 15.5 | E45: 0.46 | F45: 1.200000048 | G45: 0.62 | H45: 0.5 | I45: 0.5 | J45: 1.100000024 | K45: 0.55 | L45: 2.299999952 | M45: 0.57 | N45: 2.299999952 | O45: 0.46 | P45: 0.8000000119 | Q45: 0.38 | R45: 0.400000006 | S45: 0.43 | T45: 1.200000048 | U45: 0.41 | V45: 0.8000000119 | W45: 0.27 | X45: 0.5 | Y45: 0.48 | Z45: 1 | AA45: 0.32 | AB45: 3.5 | AC45: 0.5
A46: 7068 | B46: 7068 North Gardens High School | C46: 21 | D46: 18.39999962 | E46: 0.54 | F46: 1.399999976 | G46: 0.71 | H46: 0.8000000119 | I46: 0.76 | J46: 1.299999952 | K46: 0.67 | L46: 2.900000095 | M46: 0.71 | N46: 2.900000095 | O46: 0.57 | P46: 1 | Q46: 0.48 | R46: 0.8000000119 | S46: 0.81 | T46: 1.399999976 | U46: 0.46 | V46: 1.299999952 | W46: 0.43 | X46: 0.200000003 | Y46: 0.19 | Z46: 1.200000048 | AA46: 0.41 | AB46: 3.299999952 | AC46: 0.47
A47: 7069 | B47: 7069 North Park High School | C47: 43 | D47: 13.60000038 | E47: 0.4 | F47: 1.299999952 | G47: 0.63 | H47: 0.3000000119 | I47: 0.33 | J47: 0.6999999881 | K47: 0.37 | L47: 2 | M47: 0.5 | N47: 2.200000048 | O47: 0.43 | P47: 0.6999999881 | Q47: 0.35 | R47: 0.200000003 | S47: 0.19 | T47: 1.200000048 | U47: 0.41 | V47: 0.6999999881 | W47: 0.25 | X47: 0.3000000119 | Y47: 0.3 | Z47: 1.100000024 | AA47: 0.36 | AB47: 2.799999952 | AC47: 0.4
A48: 7071 | B48: 7071 Coral Gables Senior High School | C48: 851 | D48: 20.20000076 | E48: 0.59 | F48: 1.399999976 | G48: 0.72 | H48: 0.6000000238 | I48: 0.63 | J48: 1.299999952 | K48: 0.64 | L48: 2.900000095 | M48: 0.71 | N48: 3.200000048 | O48: 0.64 | P48: 1 | Q48: 0.51 | R48: 0.6999999881 | S48: 0.66 | T48: 1.700000048 | U48: 0.56 | V48: 1.399999976 | W48: 0.46 | X48: 0.5 | Y48: 0.47 | Z48: 1.600000024 | AA48: 0.52 | AB48: 4.099999905 | AC48: 0.58
A49: 7081 | B49: 7081 DASH | C49: 126 | D49: 25.70000076 | E49: 0.75 | F49: 1.700000048 | G49: 0.84 | H49: 0.8999999762 | I49: 0.93 | J49: 1.700000048 | K49: 0.85 | L49: 3.599999905 | M49: 0.9 | N49: 4 | O49: 0.8 | P49: 1.299999952 | Q49: 0.67 | R49: 0.8999999762 | S49: 0.92 | T49: 2.099999905 | U49: 0.7 | V49: 1.899999976 | W49: 0.63 | X49: 0.6000000238 | Y49: 0.59 | Z49: 2 | AA49: 0.66 | AB49: 4.900000095 | AC49: 0.7
A50: 7101 | B50: 7101 Coral Reef Senior High School | C50: 785 | D50: 25 | E50: 0.74 | F50: 1.799999952 | G50: 0.88 | H50: 0.8999999762 | I50: 0.88 | J50: 1.700000048 | K50: 0.84 | L50: 3.5 | M50: 0.87 | N50: 3.799999952 | O50: 0.76 | P50: 1.299999952 | Q50: 0.66 | R50: 0.8999999762 | S50: 0.85 | T50: 2.099999905 | U50: 0.69 | V50: 1.799999952 | W50: 0.59 | X50: 0.6000000238 | Y50: 0.61 | Z50: 2 | AA50: 0.66 | AB50: 4.800000191 | AC50: 0.69
A51: 7111 | B51: 7111 Hialeah Senior high | C51: 709 | D51: 18.79999924 | E51: 0.55 | F51: 1.399999976 | G51: 0.69 | H51: 0.6000000238 | I51: 0.6 | J51: 1.200000048 | K51: 0.59 | L51: 2.700000048 | M51: 0.66 | N51: 2.900000095 | O51: 0.58 | P51: 1 | Q51: 0.5 | R51: 0.6000000238 | S51: 0.57 | T51: 1.600000024 | U51: 0.54 | V51: 1.200000048 | W51: 0.39 | X51: 0.400000006 | Y51: 0.37 | Z51: 1.5 | AA51: 0.49 | AB51: 3.799999952 | AC51: 0.55
A52: 7121 | B52: 7121 John A. Ferguson Senior High School | C52: 1023 | D52: 19.60000038 | E52: 0.58 | F52: 1.399999976 | G52: 0.7 | H52: 0.6000000238 | I52: 0.62 | J52: 1.200000048 | K52: 0.62 | L52: 2.799999952 | M52: 0.7 | N52: 3 | O52: 0.6 | P52: 1 | Q52: 0.5 | R52: 0.6000000238 | S52: 0.62 | T52: 1.600000024 | U52: 0.54 | V52: 1.299999952 | W52: 0.44 | X52: 0.400000006 | Y52: 0.42 | Z52: 1.600000024 | AA52: 0.52 | AB52: 4 | AC52: 0.56
A53: 7131 | B53: 7131 Hialeah-Miami Lakes Senior High | C53: 413 | D53: 18.79999924 | E53: 0.55 | F53: 1.399999976 | G53: 0.68 | H53: 0.6000000238 | I53: 0.61 | J53: 1.200000048 | K53: 0.6 | L53: 2.5 | M53: 0.63 | N53: 2.900000095 | O53: 0.58 | P53: 1 | Q53: 0.51 | R53: 0.6000000238 | S53: 0.58 | T53: 1.600000024 | U53: 0.53 | V53: 1.299999952 | W53: 0.43 | X53: 0.400000006 | Y53: 0.43 | Z53: 1.299999952 | AA53: 0.44 | AB53: 4 | AC53: 0.57
A54: 7141 | B54: 7141 Dr. Michael M. Krop Senior High School | C54: 568 | D54: 20.20000076 | E54: 0.59 | F54: 1.600000024 | G54: 0.79 | H54: 0.6000000238 | I54: 0.62 | J54: 1.299999952 | K54: 0.67 | L54: 2.900000095 | M54: 0.73 | N54: 3.099999905 | O54: 0.62 | P54: 1 | Q54: 0.5 | R54: 0.6000000238 | S54: 0.64 | T54: 1.600000024 | U54: 0.53 | V54: 1.299999952 | W54: 0.43 | X54: 0.5 | Y54: 0.48 | Z54: 1.600000024 | AA54: 0.52 | AB54: 4.099999905 | AC54: 0.58
A55: 7151 | B55: 7151 Homestead Sr. High School | C55: 447 | D55: 17 | E55: 0.5 | F55: 1.399999976 | G55: 0.7 | H55: 0.5 | I55: 0.49 | J55: 1.100000024 | K55: 0.57 | L55: 2.400000095 | M55: 0.59 | N55: 2.700000048 | O55: 0.55 | P55: 0.8000000119 | Q55: 0.42 | R55: 0.5 | S55: 0.5 | T55: 1.399999976 | U55: 0.48 | V55: 1 | W55: 0.34 | X55: 0.400000006 | Y55: 0.36 | Z55: 1.200000048 | AA55: 0.41 | AB55: 3.5 | AC55: 0.5
A56: 7160 | B56: 7160 Mater Academy High | C56: 398 | D56: 19.5 | E56: 0.57 | F56: 1.399999976 | G56: 0.72 | H56: 0.6000000238 | I56: 0.62 | J56: 1.299999952 | K56: 0.63 | L56: 2.799999952 | M56: 0.7 | N56: 2.900000095 | O56: 0.58 | P56: 1.100000024 | Q56: 0.54 | R56: 0.6000000238 | S56: 0.59 | T56: 1.600000024 | U56: 0.54 | V56: 1.299999952 | W56: 0.43 | X56: 0.400000006 | Y56: 0.39 | Z56: 1.5 | AA56: 0.5 | AB56: 4 | AC56: 0.57
A57: 7161 | B57: 7161 MAST Academy | C57: 139 | D57: 25.89999962 | E57: 0.76 | F57: 1.799999952 | G57: 0.9 | H57: 0.8999999762 | I57: 0.94 | J57: 1.700000048 | K57: 0.85 | L57: 3.700000048 | M57: 0.93 | N57: 4 | O57: 0.79 | P57: 1.399999976 | Q57: 0.71 | R57: 0.8999999762 | S57: 0.88 | T57: 2.099999905 | U57: 0.7 | V57: 1.899999976 | W57: 0.63 | X57: 0.5 | Y57: 0.53 | Z57: 2 | AA57: 0.67 | AB57: 4.900000095 | AC57: 0.7
A58: 7171 | B58: 7171 M.A.S.T At Homestead | C58: 159 | D58: 23.39999962 | E58: 0.69 | F58: 1.700000048 | G58: 0.84 | H58: 0.8000000119 | I58: 0.82 | J58: 1.600000024 | K58: 0.79 | L58: 3.299999952 | M58: 0.83 | N58: 3.5 | O58: 0.7 | P58: 1.200000048 | Q58: 0.59 | R58: 0.8000000119 | S58: 0.8 | T58: 2 | U58: 0.65 | V58: 1.600000024 | W58: 0.54 | X58: 0.5 | Y58: 0.5 | Z58: 1.700000048 | AA58: 0.57 | AB58: 4.800000191 | AC58: 0.68
A59: 7191 | B59: 7191 Hialeah Gardens High School | C59: 708 | D59: 19.39999962 | E59: 0.57 | F59: 1.399999976 | G59: 0.69 | H59: 0.6000000238 | I59: 0.61 | J59: 1.200000048 | K59: 0.61 | L59: 2.799999952 | M59: 0.69 | N59: 3.099999905 | O59: 0.61 | P59: 1 | Q59: 0.49 | R59: 0.6000000238 | S59: 0.58 | T59: 1.700000048 | U59: 0.58 | V59: 1.200000048 | W59: 0.4 | X59: 0.400000006 | Y59: 0.4 | Z59: 1.5 | AA59: 0.49 | AB59: 3.900000095 | AC59: 0.56
A60: 7201 | B60: 7201 Miami Beach Senior high School | C60: 440 | D60: 20.79999924 | E60: 0.61 | F60: 1.5 | G60: 0.75 | H60: 0.6999999881 | I60: 0.65 | J60: 1.299999952 | K60: 0.67 | L60: 3 | M60: 0.74 | N60: 3.200000048 | O60: 0.64 | P60: 1 | Q60: 0.52 | R60: 0.6999999881 | S60: 0.71 | T60: 1.700000048 | U60: 0.58 | V60: 1.5 | W60: 0.51 | X60: 0.5 | Y60: 0.54 | Z60: 1.5 | AA60: 0.5 | AB60: 4.099999905 | AC60: 0.59
A61: 7231 | B61: 7231 Miami Carol City Sr. High | C61: 442 | D61: 17.10000038 | E61: 0.5 | F61: 1.5 | G61: 0.74 | H61: 0.5 | I61: 0.46 | J61: 1.200000048 | K61: 0.58 | L61: 2.400000095 | M61: 0.6 | N61: 2.799999952 | O61: 0.56 | P61: 0.8000000119 | Q61: 0.4 | R61: 0.5 | S61: 0.49 | T61: 1.5 | U61: 0.49 | V61: 1.100000024 | W61: 0.36 | X61: 0.400000006 | Y61: 0.35 | Z61: 1.299999952 | AA61: 0.43 | AB61: 3.299999952 | AC61: 0.47
A62: 7241 | B62: 7241 Ronald W. Reagan/Doral Senior High | C62: 513 | D62: 22 | E62: 0.65 | F62: 1.5 | G62: 0.75 | H62: 0.8000000119 | I62: 0.76 | J62: 1.399999976 | K62: 0.7 | L62: 3.099999905 | M62: 0.77 | N62: 3.299999952 | O62: 0.66 | P62: 1.100000024 | Q62: 0.53 | R62: 0.6999999881 | S62: 0.71 | T62: 1.799999952 | U62: 0.6 | V62: 1.5 | W62: 0.49 | X62: 0.6000000238 | Y62: 0.6 | Z62: 1.799999952 | AA62: 0.58 | AB62: 4.5 | AC62: 0.65
A63: 7251 | B63: 7251 Miami Central Senior High | C63: 425 | D63: 17.20000076 | E63: 0.51 | F63: 1.399999976 | G63: 0.7 | H63: 0.5 | I63: 0.54 | J63: 1.200000048 | K63: 0.58 | L63: 2.200000048 | M63: 0.56 | N63: 2.799999952 | O63: 0.55 | P63: 0.8000000119 | Q63: 0.4 | R63: 0.5 | S63: 0.54 | T63: 1.5 | U63: 0.51 | V63: 1.100000024 | W63: 0.36 | X63: 0.3000000119 | Y63: 0.35 | Z63: 1.299999952 | AA63: 0.43 | AB63: 3.5 | AC63: 0.5
A64: 7262 | B64: 7262 City of Hialeah Education Academy | C64: 82 | D64: 21.10000038 | E64: 0.62 | F64: 1.600000024 | G64: 0.8 | H64: 0.8000000119 | I64: 0.77 | J64: 1.399999976 | K64: 0.7 | L64: 2.900000095 | M64: 0.71 | N64: 3.299999952 | O64: 0.66 | P64: 1.200000048 | Q64: 0.59 | R64: 0.6000000238 | S64: 0.62 | T64: 1.899999976 | U64: 0.62 | V64: 1.299999952 | W64: 0.45 | X64: 0.400000006 | Y64: 0.37 | Z64: 1.5 | AA64: 0.52 | AB64: 4.300000191 | AC64: 0.62
A65: 7265 | B65: 7265 Archimedean Upper Conservatory | C65: 56 | D65: 25.39999962 | E65: 0.75 | F65: 1.799999952 | G65: 0.89 | H65: 0.8999999762 | I65: 0.86 | J65: 1.700000048 | K65: 0.84 | L65: 3.599999905 | M65: 0.9 | N65: 3.799999952 | O65: 0.75 | P65: 1.200000048 | Q65: 0.62 | R65: 0.8000000119 | S65: 0.84 | T65: 2 | U65: 0.66 | V65: 2 | W65: 0.68 | X65: 0.6000000238 | Y65: 0.61 | Z65: 2 | AA65: 0.67 | AB65: 5 | AC65: 0.71
A66: 7271 | B66: 7271 Miami Coral Park Senior High School | C66: 660 | D66: 18.29999924 | E66: 0.54 | F66: 1.299999952 | G66: 0.63 | H66: 0.6000000238 | I66: 0.6 | J66: 1.200000048 | K66: 0.59 | L66: 2.599999905 | M66: 0.64 | N66: 2.799999952 | O66: 0.56 | P66: 1 | Q66: 0.48 | R66: 0.5 | S66: 0.55 | T66: 1.5 | U66: 0.5 | V66: 1.200000048 | W66: 0.41 | X66: 0.400000006 | Y66: 0.42 | Z66: 1.5 | AA66: 0.49 | AB66: 3.799999952 | AC66: 0.54
A67: 7291 | B67: 7291 Jose Marti | C67: 40 | D67: 25.10000038 | E67: 0.74 | F67: 1.799999952 | G67: 0.89 | H67: 0.8999999762 | I67: 0.9 | J67: 1.700000048 | K67: 0.84 | L67: 3.400000095 | M67: 0.84 | N67: 3.799999952 | O67: 0.75 | P67: 1.299999952 | Q67: 0.64 | R67: 0.8000000119 | S67: 0.77 | T67: 2.099999905 | U67: 0.69 | V67: 1.899999976 | W67: 0.63 | X67: 0.5 | Y67: 0.5 | Z67: 2 | AA67: 0.65 | AB67: 5.099999905 | AC67: 0.73
A68: 7301 | B68: 7301 Miami Edison Senior High | C68: 199 | D68: 18.20000076 | E68: 0.54 | F68: 1.399999976 | G68: 0.7 | H68: 0.6000000238 | I68: 0.64 | J68: 1.399999976 | K68: 0.68 | L68: 2.200000048 | M68: 0.55 | N68: 2.900000095 | O68: 0.58 | P68: 0.8999999762 | Q68: 0.43 | R68: 0.6000000238 | S68: 0.64 | T68: 1.600000024 | U68: 0.52 | V68: 1.200000048 | W68: 0.41 | X68: 0.400000006 | Y68: 0.37 | Z68: 1.299999952 | AA68: 0.42 | AB68: 3.799999952 | AC68: 0.54
A69: 7341 | B69: 7341 Miami Jackson Senior High | C69: 324 | D69: 16.79999924 | E69: 0.49 | F69: 1.299999952 | G69: 0.66 | H69: 0.400000006 | I69: 0.44 | J69: 1.100000024 | K69: 0.55 | L69: 2.200000048 | M69: 0.55 | N69: 2.700000048 | O69: 0.55 | P69: 0.8000000119 | Q69: 0.42 | R69: 0.5 | S69: 0.5 | T69: 1.5 | U69: 0.5 | V69: 1.100000024 | W69: 0.36 | X69: 0.400000006 | Y69: 0.39 | Z69: 1.299999952 | AA69: 0.44 | AB69: 3.299999952 | AC69: 0.47
A70: 7351 | B70: 7351 Arthur And Polly Mays 6-12 Conservatory Of Th | C70: 86 | D70: 19.39999962 | E70: 0.57 | F70: 1.600000024 | G70: 0.8 | H70: 0.5 | I70: 0.52 | J70: 1.100000024 | K70: 0.57 | L70: 2.599999905 | M70: 0.66 | N70: 3.200000048 | O70: 0.64 | P70: 1 | Q70: 0.52 | R70: 0.6000000238 | S70: 0.57 | T70: 1.700000048 | U70: 0.56 | V70: 1.100000024 | W70: 0.38 | X70: 0.5 | Y70: 0.48 | Z70: 1.5 | AA70: 0.48 | AB70: 3.900000095 | AC70: 0.56
A71: 7361 | B71: 7361 Miami Killian Senior High | C71: 628 | D71: 18.79999924 | E71: 0.55 | F71: 1.399999976 | G71: 0.72 | H71: 0.6000000238 | I71: 0.6 | J71: 1.200000048 | K71: 0.6 | L71: 2.700000048 | M71: 0.67 | N71: 2.900000095 | O71: 0.58 | P71: 0.8999999762 | Q71: 0.47 | R71: 0.6000000238 | S71: 0.57 | T71: 1.5 | U71: 0.52 | V71: 1.200000048 | W71: 0.4 | X71: 0.400000006 | Y71: 0.42 | Z71: 1.399999976 | AA71: 0.46 | AB71: 3.900000095 | AC71: 0.55
A72: 7371 | B72: 7371 Robert Morgan Education Center | C72: 543 | D72: 22.20000076 | E72: 0.65 | F72: 1.600000024 | G72: 0.82 | H72: 0.8000000119 | I72: 0.76 | J72: 1.5 | K72: 0.74 | L72: 3.200000048 | M72: 0.8 | N72: 3.400000095 | O72: 0.67 | P72: 1.100000024 | Q72: 0.54 | R72: 0.6999999881 | S72: 0.69 | T72: 1.899999976 | U72: 0.65 | V72: 1.5 | W72: 0.49 | X72: 0.400000006 | Y72: 0.42 | Z72: 1.799999952 | AA72: 0.59 | AB72: 4.400000095 | AC72: 0.63
A73: 7381 | B73: 7381 Miami Norland Senior High | C73: 378 | D73: 18.5 | E73: 0.55 | F73: 1.600000024 | G73: 0.79 | H73: 0.6000000238 | I73: 0.57 | J73: 1.200000048 | K73: 0.62 | L73: 2.5 | M73: 0.61 | N73: 3 | O73: 0.6 | P73: 0.8999999762 | Q73: 0.44 | R73: 0.6000000238 | S73: 0.57 | T73: 1.700000048 | U73: 0.56 | V73: 1.200000048 | W73: 0.39 | X73: 0.400000006 | Y73: 0.36 | Z73: 1.399999976 | AA73: 0.46 | AB73: 3.700000048 | AC73: 0.53
A74: 7391 | B74: 7391 Miami Lakes Educational Center | C74: 348 | D74: 22.20000076 | E74: 0.65 | F74: 1.600000024 | G74: 0.8 | H74: 0.8000000119 | I74: 0.78 | J74: 1.5 | K74: 0.75 | L74: 3.099999905 | M74: 0.78 | N74: 3.5 | O74: 0.69 | P74: 1.100000024 | Q74: 0.56 | R74: 0.6999999881 | S74: 0.7 | T74: 1.899999976 | U74: 0.64 | V74: 1.5 | W74: 0.51 | X74: 0.5 | Y74: 0.49 | Z74: 1.700000048 | AA74: 0.55 | AB74: 4.400000095 | AC74: 0.62
A75: 7411 | B75: 7411 Miami Northwestern Senior | C75: 351 | D75: 17.10000038 | E75: 0.5 | F75: 1.399999976 | G75: 0.72 | H75: 0.5 | I75: 0.5 | J75: 1.100000024 | K75: 0.54 | L75: 2.299999952 | M75: 0.58 | N75: 2.700000048 | O75: 0.54 | P75: 0.8999999762 | Q75: 0.46 | R75: 0.6000000238 | S75: 0.56 | T75: 1.399999976 | U75: 0.48 | V75: 1.200000048 | W75: 0.4 | X75: 0.3000000119 | Y75: 0.33 | Z75: 1.299999952 | AA75: 0.43 | AB75: 3.299999952 | AC75: 0.47
A76: 7431 | B76: 7431 Miami Palmetto Sr High | C76: 662 | D76: 20.10000038 | E76: 0.59 | F76: 1.600000024 | G76: 0.8 | H76: 0.5 | I76: 0.54 | J76: 1.200000048 | K76: 0.6 | L76: 3.099999905 | M76: 0.76 | N76: 3.099999905 | O76: 0.63 | P76: 1 | Q76: 0.52 | R76: 0.6000000238 | S76: 0.61 | T76: 1.899999976 | U76: 0.62 | V76: 1.200000048 | W76: 0.39 | X76: 0.5 | Y76: 0.47 | Z76: 1.5 | AA76: 0.51 | AB76: 3.900000095 | AC76: 0.55
A77: 7461 | B77: 7461 Miami Senior High | C77: 614 | D77: 17 | E77: 0.5 | F77: 1.200000048 | G77: 0.61 | H77: 0.5 | I77: 0.47 | J77: 1 | K77: 0.52 | L77: 2.299999952 | M77: 0.59 | N77: 2.700000048 | O77: 0.54 | P77: 0.8999999762 | Q77: 0.43 | R77: 0.5 | S77: 0.53 | T77: 1.5 | U77: 0.49 | V77: 1.100000024 | W77: 0.37 | X77: 0.400000006 | Y77: 0.35 | Z77: 1.299999952 | AA77: 0.43 | AB77: 3.599999905 | AC77: 0.51
A78: 7511 | B78: 7511 Miami Springs Senior High | C78: 486 | D78: 19.10000038 | E78: 0.56 | F78: 1.399999976 | G78: 0.69 | H78: 0.6000000238 | I78: 0.57 | J78: 1.200000048 | K78: 0.61 | L78: 2.700000048 | M78: 0.68 | N78: 2.900000095 | O78: 0.58 | P78: 1 | Q78: 0.51 | R78: 0.6000000238 | S78: 0.59 | T78: 1.700000048 | U78: 0.56 | V78: 1.299999952 | W78: 0.43 | X78: 0.400000006 | Y78: 0.41 | Z78: 1.399999976 | AA78: 0.48 | AB78: 3.900000095 | AC78: 0.56
A79: =IFERROR(VALUE(LEFT(B79,4)),"") -> 7531 | B79: 7531 Miami SunSET Senior | C79: 469 | D79: 17.29999924 | E79: 0.51 | F79: 1.299999952 | G79: 0.65 | H79: 0.5 | I79: 0.51 | J79: 1 | K79: 0.52 | L79: 2.599999905 | M79: 0.64 | N79: 2.700000048 | O79: 0.53 | P79: 0.8999999762 | Q79: 0.46 | R79: 0.5 | S79: 0.49 | T79: 1.5 | U79: 0.49 | V79: 1.100000024 | W79: 0.36 | X79: 0.400000006 | Y79: 0.42 | Z79: 1.299999952 | AA79: 0.45 | AB79: 3.5 | AC79: 0.51
A80: 7541 | B80: 7541 North Miami Beach Sr. | C80: 500 | D80: 18.70000076 | E80: 0.55 | F80: 1.5 | G80: 0.76 | H80: 0.5 | I80: 0.52 | J80: 1.200000048 | K80: 0.6 | L80: 2.599999905 | M80: 0.65 | N80: 2.900000095 | O80: 0.58 | P80: 1 | Q80: 0.48 | R80: 0.6000000238 | S80: 0.59 | T80: 1.600000024 | U80: 0.55 | V80: 1.200000048 | W80: 0.4 | X80: 0.400000006 | Y80: 0.4 | Z80: 1.399999976 | AA80: 0.46 | AB80: 3.700000048 | AC80: 0.53
A81: 7571 | B81: 7571 International Studies Preparatory Academy | C81: 62 | D81: 25.29999924 | E81: 0.74 | F81: 1.600000024 | G81: 0.8 | H81: 0.8999999762 | I81: 0.9 | J81: 1.5 | K81: 0.74 | L81: 3.5 | M81: 0.88 | N81: 4 | O81: 0.81 | P81: 1.299999952 | Q81: 0.66 | R81: 0.8999999762 | S81: 0.85 | T81: 2.200000048 | U81: 0.72 | V81: 1.899999976 | W81: 0.62 | X81: 0.6999999881 | Y81: 0.66 | Z81: 2 | AA81: 0.66 | AB81: 4.900000095 | AC81: 0.7
A82: 7581 | B82: 7581 IPreparatory Academy | C82: 57 | D82: 26.39999962 | E82: 0.77 | F82: 1.899999976 | G82: 0.93 | H82: 0.8999999762 | I82: 0.93 | J82: 1.799999952 | K82: 0.88 | L82: 3.599999905 | M82: 0.91 | N82: 4.099999905 | O82: 0.82 | P82: 1.5 | Q82: 0.73 | R82: 0.8999999762 | S82: 0.93 | T82: 2 | U82: 0.68 | V82: 2.099999905 | W82: 0.68 | X82: 0.6000000238 | Y82: 0.61 | Z82: 2.099999905 | AA82: 0.71 | AB82: 4.900000095 | AC82: 0.69
A83: 7591 | B83: 7591 North Miami Senior High School | C83: 635 | D83: 18.70000076 | E83: 0.55 | F83: 1.399999976 | G83: 0.72 | H83: 0.6000000238 | I83: 0.59 | J83: 1.299999952 | K83: 0.66 | L83: 2.400000095 | M83: 0.61 | N83: 3 | O83: 0.59 | P83: 1 | Q83: 0.48 | R83: 0.6000000238 | S83: 0.6 | T83: 1.700000048 | U83: 0.56 | V83: 1.299999952 | W83: 0.44 | X83: 0.400000006 | Y83: 0.41 | Z83: 1.299999952 | AA83: 0.42 | AB83: 3.799999952 | AC83: 0.54
A84: 7601 | B84: 7601 Turner Tech | C84: 386 | D84: 21.60000038 | E84: 0.64 | F84: 1.700000048 | G84: 0.85 | H84: 0.6999999881 | I84: 0.71 | J84: 1.5 | K84: 0.75 | L84: 3.099999905 | M84: 0.78 | N84: 3.299999952 | O84: 0.65 | P84: 1.100000024 | Q84: 0.55 | R84: 0.6999999881 | S84: 0.69 | T84: 1.799999952 | U84: 0.6 | V84: 1.5 | W84: 0.5 | X84: 0.5 | Y84: 0.46 | Z84: 1.5 | AA84: 0.49 | AB84: 4.300000191 | AC84: 0.61
A85: 7631 | B85: 7631 MacArthur South Senior High | C85: 3 | D85: 10.69999981 | E85: 0.31 | F85: 1 | G85: 0.5 | H85: 0.3000000119 | I85: 0.33 | J85: 1 | K85: 0.5 | L85: 1.299999952 | M85: 0.33 | N85: 1.299999952 | O85: 0.27 | P85: 0.6999999881 | Q85: 0.33 | R85: 0.3000000119 | S85: 0.33 | T85: 0.3000000119 | U85: 0.11 | V85: 0.6999999881 | W85: 0.22 | X85: 0.3000000119 | Y85: 0.33 | Z85: 0.6999999881 | AA85: 0.22 | AB85: 2.700000048 | AC85: 0.38
A86: 7701 | B86: 7701 South Dade Senior | C86: 728 | D86: 18.60000038 | E86: 0.55 | F86: 1.399999976 | G86: 0.72 | H86: 0.6000000238 | I86: 0.59 | J86: 1.200000048 | K86: 0.6 | L86: 2.599999905 | M86: 0.65 | N86: 2.900000095 | O86: 0.59 | P86: 0.8999999762 | Q86: 0.46 | R86: 0.5 | S86: 0.52 | T86: 1.600000024 | U86: 0.53 | V86: 1.100000024 | W86: 0.38 | X86: 0.400000006 | Y86: 0.43 | Z86: 1.399999976 | AA86: 0.46 | AB86: 3.799999952 | AC86: 0.54
A87: 7721 | B87: 7721 South Miami Senior High | C87: 476 | D87: 18.39999962 | E87: 0.54 | F87: 1.299999952 | G87: 0.66 | H87: 0.6000000238 | I87: 0.58 | J87: 1.100000024 | K87: 0.57 | L87: 2.599999905 | M87: 0.66 | N87: 2.799999952 | O87: 0.56 | P87: 1 | Q87: 0.49 | R87: 0.6000000238 | S87: 0.55 | T87: 1.600000024 | U87: 0.53 | V87: 1.200000048 | W87: 0.41 | X87: 0.400000006 | Y87: 0.4 | Z87: 1.399999976 | AA87: 0.45 | AB87: 3.799999952 | AC87: 0.54
A88: 7731 | B88: 7731 Miami Southridge Senior High | C88: 536 | D88: 17.89999962 | E88: 0.53 | F88: 1.399999976 | G88: 0.7 | H88: 0.6000000238 | I88: 0.57 | J88: 1.200000048 | K88: 0.58 | L88: 2.400000095 | M88: 0.6 | N88: 2.700000048 | O88: 0.55 | P88: 0.8999999762 | Q88: 0.47 | R88: 0.6000000238 | S88: 0.57 | T88: 1.5 | U88: 0.51 | V88: 1.200000048 | W88: 0.39 | X88: 0.400000006 | Y88: 0.39 | Z88: 1.299999952 | AA88: 0.45 | AB88: 3.700000048 | AC88: 0.53
A89: 7741 | B89: 7741 Southwest Miami High School | C89: 791 | D89: 20.39999962 | E89: 0.6 | F89: 1.399999976 | G89: 0.7 | H89: 0.6999999881 | I89: 0.66 | J89: 1.299999952 | K89: 0.65 | L89: 2.900000095 | M89: 0.73 | N89: 3.200000048 | O89: 0.63 | P89: 1 | Q89: 0.51 | R89: 0.6999999881 | S89: 0.67 | T89: 1.700000048 | U89: 0.58 | V89: 1.399999976 | W89: 0.46 | X89: 0.5 | Y89: 0.46 | Z89: 1.5 | AA89: 0.51 | AB89: 4.199999809 | AC89: 0.59
A90: 7751 | B90: 7751 Barbara Goleman High School | C90: 479 | D90: 20.70000076 | E90: 0.61 | F90: 1.5 | G90: 0.74 | H90: 0.6999999881 | I90: 0.66 | J90: 1.299999952 | K90: 0.66 | L90: 2.799999952 | M90: 0.71 | N90: 3.299999952 | O90: 0.65 | P90: 1 | Q90: 0.52 | R90: 0.6000000238 | S90: 0.63 | T90: 1.799999952 | U90: 0.61 | V90: 1.299999952 | W90: 0.45 | X90: 0.400000006 | Y90: 0.43 | Z90: 1.5 | AA90: 0.51 | AB90: 4.300000191 | AC90: 0.61
A91: 7781 | B91: 7781 Felix Varela Senior High School | C91: 743 | D91: 21.60000038 | E91: 0.64 | F91: 1.600000024 | G91: 0.78 | H91: 0.6999999881 | I91: 0.71 | J91: 1.399999976 | K91: 0.68 | L91: 3.099999905 | M91: 0.77 | N91: 3.299999952 | O91: 0.66 | P91: 1.100000024 | Q91: 0.57 | R91: 0.6999999881 | S91: 0.67 | T91: 1.799999952 | U91: 0.61 | V91: 1.5 | W91: 0.49 | X91: 0.5 | Y91: 0.49 | Z91: 1.700000048 | AA91: 0.55 | AB91: 4.300000191 | AC91: 0.62
A92: 7791 | B92: 7791 Booker T. Washington Senior High School | C92: 223 | D92: 15.89999962 | E92: 0.47 | F92: 1.399999976 | G92: 0.72 | H92: 0.400000006 | I92: 0.44 | J92: 0.8999999762 | K92: 0.47 | L92: 2 | M92: 0.51 | N92: 2.599999905 | O92: 0.51 | P92: 0.6999999881 | Q92: 0.36 | R92: 0.5 | S92: 0.49 | T92: 1.399999976 | U92: 0.46 | V92: 1 | W92: 0.34 | X92: 0.3000000119 | Y92: 0.32 | Z92: 1.200000048 | AA92: 0.4 | AB92: 3.400000095 | AC92: 0.48
A93: 7801 | B93: 7801 George T. Baker | C93: 129 | D93: 19.29999924 | E93: 0.57 | F93: 1.5 | G93: 0.74 | H93: 0.6000000238 | I93: 0.61 | J93: 1.200000048 | K93: 0.61 | L93: 2.799999952 | M93: 0.69 | N93: 3 | O93: 0.59 | P93: 1 | Q93: 0.51 | R93: 0.6000000238 | S93: 0.6 | T93: 1.600000024 | U93: 0.55 | V93: 1.200000048 | W93: 0.4 | X93: 0.400000006 | Y93: 0.37 | Z93: 1.399999976 | AA93: 0.48 | AB93: 4 | AC93: 0.57
A94: 7901 | B94: 7901 New World School of Arts | C94: 114 | D94: 20.70000076 | E94: 0.61 | F94: 1.799999952 | G94: 0.9 | H94: 0.400000006 | I94: 0.39 | J94: 1.200000048 | K94: 0.58 | L94: 3.200000048 | M94: 0.81 | N94: 3.400000095 | O94: 0.68 | P94: 1 | Q94: 0.5 | R94: 0.6999999881 | S94: 0.69 | T94: 2.099999905 | U94: 0.7 | V94: 0.8000000119 | W94: 0.27 | X94: 0.5 | Y94: 0.51 | Z94: 1.600000024 | AA94: 0.54 | AB94: 3.900000095 | AC94: 0.56
A95: 8014 | B95: 8014 Educational Alt. Outreach Program | C95: 35 | D95: 11.5 | E95: 0.34 | F95: 0.8999999762 | G95: 0.47 | H95: 0.200000003 | I95: 0.23 | J95: 0.6999999881 | K95: 0.37 | L95: 1.5 | M95: 0.36 | N95: 1.399999976 | O95: 0.28 | P95: 0.8000000119 | Q95: 0.39 | R95: 0.5 | S95: 0.46 | T95: 1.100000024 | U95: 0.36 | V95: 0.6000000238 | W95: 0.19 | X95: 0.200000003 | Y95: 0.2 | Z95: 1.100000024 | AA95: 0.35 | AB95: 2.599999905 | AC95: 0.37
A96: 8017 | B96: 8017 Outreachprograms | C96: 41 | D96: 15.10000038 | E96: 0.44 | F96: 1.200000048 | G96: 0.6 | H96: 0.400000006 | I96: 0.37 | J96: 1 | K96: 0.48 | L96: 2 | M96: 0.49 | N96: 2.5 | O96: 0.49 | P96: 0.8999999762 | Q96: 0.45 | R96: 0.5 | S96: 0.49 | T96: 1.5 | U96: 0.5 | V96: 0.8999999762 | W96: 0.29 | X96: 0.200000003 | Y96: 0.24 | Z96: 1 | AA96: 0.34 | AB96: 3.099999905 | AC96: 0.45
A97: 8019 | B97: 8019 Academy For Comm. Ed. | C97: 16 | D97: 16.10000038 | E97: 0.47 | F97: 1.600000024 | G97: 0.78 | H97: 0.5 | I97: 0.5 | J97: 1.100000024 | K97: 0.53 | L97: 1.899999976 | M97: 0.47 | N97: 2.799999952 | O97: 0.55 | P97: 0.8000000119 | Q97: 0.41 | R97: 0.400000006 | S97: 0.44 | T97: 1.600000024 | U97: 0.52 | V97: 1.200000048 | W97: 0.39 | X97: 0.400000006 | Y97: 0.44 | Z97: 0.8999999762 | AA97: 0.31 | AB97: 3 | AC97: 0.43
A98: 8101 | B98: 8101 Jan Mann Opp. Center | C98: 3 | D98: 17.70000076 | E98: 0.52 | F98: 2 | G98: 1 | H98: 0.6999999881 | I98: 0.67 | J98: 0.6999999881 | K98: 0.33 | L98: 2.299999952 | M98: 0.58 | N98: 2.700000048 | O98: 0.53 | P98: 1 | Q98: 0.5 | R98: 0.3000000119 | S98: 0.33 | T98: 1.700000048 | U98: 0.56 | V98: 0.6999999881 | W98: 0.22 | X98: 0.3000000119 | Y98: 0.33 | Z98: 1.299999952 | AA98: 0.44 | AB98: 4 | AC98: 0.57
A99: 8121 | B99: 8121 C.O.P.E. Center North | C99: 12 | D99: 18.70000076 | E99: 0.55 | F99: 1.5 | G99: 0.75 | H99: 0.5 | I99: 0.5 | J99: 1.299999952 | K99: 0.67 | L99: 2.299999952 | M99: 0.56 | N99: 2.700000048 | O99: 0.53 | P99: 1.299999952 | Q99: 0.67 | R99: 0.6000000238 | S99: 0.58 | T99: 2.400000095 | U99: 0.81 | V99: 0.8999999762 | W99: 0.3 | X99: 0.3000000119 | Y99: 0.25 | Z99: 1.299999952 | AA99: 0.42 | AB99: 3.700000048 | AC99: 0.52
A100: 8131 | B100: 8131 Dorothy M. Wallace COPE Center | C100: 2 | D100: 17 | E100: 0.5 | F100: 1.5 | G100: 0.75 | H100: 0.5 | I100: 0.5 | J100: 1.5 | K100: 0.75 | L100: 2.5 | M100: 0.63 | N100: 3 | O100: 0.6 | P100: 0.5 | Q100: 0.25 | R100: 0 | S100: 0 | T100: 2 | U100: 0.67 | V100: 1.5 | W100: 0.5 | X100: 0 | Y100: 0 | Z100: 1.5 | AA100: 0.5 | AB100: 2.5 | AC100: 0.35
A101: 8141 | B101: 8141 Juvenile Justice Center | C101: 8 | D101: 12.39999962 | E101: 0.36 | F101: 0.8999999762 | G101: 0.44 | H101: 0.400000006 | I101: 0.38 | J101: 0.6000000238 | K101: 0.31 | L101: 1.600000024 | M101: 0.41 | N101: 1.5 | O101: 0.3 | P101: 0.8999999762 | Q101: 0.44 | R101: 0.3000000119 | S101: 0.25 | T101: 1.600000024 | U101: 0.54 | V101: 1.100000024 | W101: 0.38 | X101: 0.400000006 | Y101: 0.38 | Z101: 0.6000000238 | AA101: 0.21 | AB101: 2.5 | AC101: 0.36
A102: 8151 | B102: 8151 Renick, Robert Educational Center | C102: 7 | D102: 13.69999981 | E102: 0.4 | F102: 1.299999952 | G102: 0.64 | H102: 0.3000000119 | I102: 0.29 | J102: 0.8999999762 | K102: 0.43 | L102: 1.700000048 | M102: 0.43 | N102: 2.099999905 | O102: 0.43 | P102: 1 | Q102: 0.5 | R102: 0.6000000238 | S102: 0.57 | T102: 0.6000000238 | U102: 0.19 | V102: 0.6999999881 | W102: 0.24 | X102: 0.3000000119 | Y102: 0.29 | Z102: 0.6999999881 | AA102: 0.24 | AB102: 3.599999905 | AC102: 0.51
A103: 8181 | B103: 8181 Ruth Owens Kruse Educational Center | C103: 6 | D103: 10 | E103: 0.29 | F103: 0.5 | G103: 0.25 | H103: 0 | I103: 0 | J103: 0.5 | K103: 0.25 | L103: 0.6999999881 | M103: 0.17 | N103: 1.799999952 | O103: 0.37 | P103: 0.8000000119 | Q103: 0.42 | R103: 0.3000000119 | S103: 0.33 | T103: 1.5 | U103: 0.5 | V103: 0.5 | W103: 0.17 | X103: 0 | Y103: 0 | Z103: 1 | AA103: 0.33 | AB103: 2.299999952 | AC103: 0.34
A104: 8911 | B104: 8911 Robert Morgan Educational Center | C104: 7 | D104: 16.89999962 | E104: 0.5 | F104: 1.600000024 | G104: 0.79 | H104: 0.400000006 | I104: 0.43 | J104: 1.299999952 | K104: 0.64 | L104: 2.299999952 | M104: 0.57 | N104: 2.900000095 | O104: 0.57 | P104: 1 | Q104: 0.5 | R104: 0.6999999881 | S104: 0.71 | T104: 1.600000024 | U104: 0.52 | V104: 1 | W104: 0.33 | X104: 0.400000006 | Y104: 0.43 | Z104: 0.6000000238 | AA104: 0.19 | AB104: 3.099999905 | AC104: 0.45
A105: 9732 | B105: 9732 Merrick Educational Center | C105: 20 | D105: 21.60000038 | E105: 0.64 | F105: 1.700000048 | G105: 0.85 | H105: 0.8000000119 | I105: 0.75 | J105: 1.399999976 | K105: 0.68 | L105: 3.200000048 | M105: 0.79 | N105: 2.900000095 | O105: 0.58 | P105: 1 | Q105: 0.47 | R105: 0.6999999881 | S105: 0.7 | T105: 2.099999905 | U105: 0.68 | V105: 1.600000024 | W105: 0.52 | X105: 0.6000000238 | Y105: 0.55 | Z105: 1.399999976 | AA105: 0.47 | AB105: 4.599999905 | AC105: 0.65
C106: =SUM(C14:C105) -> 24901
A107: 9999 | B107: 9999 DISTRICT | C107: 24479 | D107: 19.89999962 | E107: 0.58 | F107: 1.5 | G107: 0.74 | H107: 0.6000000238 | I107: 0.63 | J107: 1.299999952 | K107: 0.64 | L107: 2.799999952 | M107: 0.7 | N107: 3.099999905 | O107: 0.62 | P107: 1 | Q107: 0.51 | R107: 0.6000000238 | S107: 0.62 | T107: 1.700000048 | U107: 0.57 | V107: 1.299999952 | W107: 0.44 | X107: 0.400000006 | Y107: 0.44 | Z107: 1.5 | AA107: 0.5 | AB107: 4 | AC107: 0.57
C108: 422
A143: =IFERROR(VALUE(LEFT(B143,4)),"") -> 
A207: =IFERROR(VALUE(LEFT(B207,4)),"") -> 
A271: =IFERROR(VALUE(LEFT(B271,4)),"") -> 

Sheet BLG10CC-R (hidden)
B1: R-G10-RC-SCHL-ALL
A2: =COLUMN() -> 1
B3: Description: | C3: Reading RC G10 all
B4: Student Selection: | C4: All Schools | 2012-2013 Fall, 2012-2013 School Year
B5: Group By Data: | C5: School
B6: Assessments: | C6: Baseline 2012 Grade 10 Reading August 2012
B7: Scores: | C7: Overall Avg Raw Score, Overall Avg % Correct, Overall # in Performance Band, Overall % in Performance Band, Question Groups Avg Raw Score, Question Groups Avg % Correct, Question Groups # in Performance Band, Question Groups % in Performance Band
B8: Author Name: | C8: Yuwadee Wongbundhit
A9: =COLUMN() -> 1
B10: Total Row(s): 92 Generated on Sep-22-2012 by Yuwadee Wongbundhit | C10: Baseline 2012 Grade 10 Reading August 2012
C11: Total # students | D11: Overall (34 pts max) | J11: Vocabulary (5 pts max) | P11: Reading Application (15 pts max) | V11: Literary Analysis - Fiction/Non-Fiction (4 pts max) | AB11: Informational Text/Research Process (10 pts max)
D12: Avg Raw Score | E12: Avg % Correct | F12: # in Performance Band | H12: % in Performance Band | J12: Avg Raw Score | K12: Avg % Correct | L12: # in Performance Band | N12: % in Performance Band | P12: Avg Raw Score | Q12: Avg % Correct | R12: # in Performance Band | T12: % in Performance Band | V12: Avg Raw Score | W12: Avg % Correct | X12: # in Performance Band | Z12: % in Performance Band | AB12: Avg Raw Score | AC12: Avg % Correct | AD12: # in Performance Band | AF12: % in Performance Band
B13: School Name | F13: Non Proficient | G13: Proficient | H13: Non Proficient | I13: Proficient | L13: Non Proficient | M13: Proficient | N13: Non Proficient | O13: Proficient | R13: Non Proficient | S13: Proficient | T13: Non Proficient | U13: Proficient | X13: Non Proficient | Y13: Proficient | Z13: Non Proficient | AA13: Proficient | AD13: Non Proficient | AE13: Proficient | AF13: Non Proficient | AG13: Proficient
A14: =IFERROR(VALUE(LEFT(B14,4)),"") -> 4491 | B14: 4491 Henry E.S. Reeves Elementary | C14: 1 | D14: 10 | E14: 0.29 | F14: 1 | H14: 100.00% | J14: 3 | K14: 0.6 | L14: 1 | N14: 100.00% | P14: 4 | Q14: 0.27 | R14: 1 | T14: 100.00% | V14: 1 | W14: 0.25 | X14: 1 | Z14: 100.00% | AB14: 2 | AC14: 0.2 | AD14: 1 | AF14: 100.00%
A15: =IFERROR(VALUE(LEFT(B15,4)),"") -> 6040 | B15: 6040 Doctors Charter School Of Miami Shores | C15: 90 | D15: 22.60000038 | E15: 0.66 | F15: 42 | G15: 48 | H15: 46.67% | I15: 53.33% | J15: 3.700000048 | K15: 0.73 | L15: 37 | M15: 53 | N15: 41.11% | O15: 58.89% | P15: 10.69999981 | Q15: 0.72 | R15: 38 | S15: 52 | T15: 42.22% | U15: 57.78% | V15: 2 | W15: 0.49 | X15: 59 | Y15: 31 | Z15: 65.56% | AA15: 34.44% | AB15: 6.199999809 | AC15: 0.62 | AD15: 47 | AE15: 43 | AF15: 52.22% | AG15: 47.78%
A16: 7007 | B16: 7007 International Studies Charter High School | C16: 86 | D16: 22.39999962 | E16: 0.66 | F16: 47 | G16: 39 | H16: 54.65% | I16: 45.35% | J16: 3.599999905 | K16: 0.72 | L16: 35 | M16: 51 | N16: 40.70% | O16: 59.30% | P16: 10.69999981 | Q16: 0.71 | R16: 40 | S16: 46 | T16: 46.51% | U16: 53.49% | V16: 2.200000048 | W16: 0.55 | X16: 47 | Y16: 39 | Z16: 54.65% | AA16: 45.35% | AB16: 6 | AC16: 0.6 | AD16: 51 | AE16: 35 | AF16: 59.30% | AG16: 40.70%
A17: 7009 | B17: 7009 Doral Performing Arts Academy | C17: 91 | D17: 23.5 | E17: 0.69 | F17: 46 | G17: 45 | H17: 50.55% | I17: 49.45% | J17: 4 | K17: 0.8 | L17: 24 | M17: 67 | N17: 26.37% | O17: 73.63% | P17: 11.10000038 | Q17: 0.74 | R17: 32 | S17: 59 | T17: 35.16% | U17: 64.84% | V17: 2 | W17: 0.5 | X17: 62 | Y17: 29 | Z17: 68.13% | AA17: 31.87% | AB17: 6.400000095 | AC17: 0.64 | AD17: 46 | AE17: 45 | AF17: 50.55% | AG17: 49.45%
A18: 7011 | B18: 7011 American Senior High School | C18: 498 | D18: 19 | E18: 0.56 | F18: 364 | G18: 134 | H18: 73.09% | I18: 26.91% | J18: 3.299999952 | K18: 0.66 | L18: 246 | M18: 252 | N18: 49.40% | O18: 50.60% | P18: 8.800000191 | Q18: 0.59 | R18: 335 | S18: 163 | T18: 67.27% | U18: 32.73% | V18: 1.700000048 | W18: 0.43 | X18: 365 | Y18: 133 | Z18: 73.29% | AA18: 26.71% | AB18: 5.199999809 | AC18: 0.52 | AD18: 354 | AE18: 144 | AF18: 71.08% | AG18: 28.92%
A19: 7014 | B19: 7014 Mater Performing Arts & Entertainment Academy | C19: 92 | D19: 21.79999924 | E19: 0.64 | F19: 47 | G19: 45 | H19: 51.09% | I19: 48.91% | J19: 3.700000048 | K19: 0.74 | L19: 35 | M19: 57 | N19: 38.04% | O19: 61.96% | P19: 10.10000038 | Q19: 0.67 | R19: 42 | S19: 50 | T19: 45.65% | U19: 54.35% | V19: 1.700000048 | W19: 0.43 | X19: 70 | Y19: 22 | Z19: 76.09% | AA19: 23.91% | AB19: 6.300000191 | AC19: 0.63 | AD19: 46 | AE19: 46 | AF19: 50.00% | AG19: 50.00%
A20: 7015 | B20: 7015 Life Skills Center Miami-dade County | C20: 21 | D20: 17 | E20: 0.5 | F20: 18 | G20: 3 | H20: 85.71% | I20: 14.29% | J20: 2.900000095 | K20: 0.57 | L20: 16 | M20: 5 | N20: 76.19% | O20: 23.81% | P20: 7.900000095 | Q20: 0.52 | R20: 17 | S20: 4 | T20: 80.95% | U20: 19.05% | V20: 1.5 | W20: 0.37 | X20: 16 | Y20: 5 | Z20: 76.19% | AA20: 23.81% | AB20: 4.800000191 | AC20: 0.48 | AD20: 18 | AE20: 3 | AF20: 85.71% | AG20: 14.29%
A21: 7016 | B21: 7016 Sports Leadership Academy Of Miami Chs | C21: 7 | D21: 18.89999962 | E21: 0.55 | F21: 6 | G21: 1 | H21: 85.71% | I21: 14.29% | J21: 3 | K21: 0.6 | L21: 4 | M21: 3 | N21: 57.14% | O21: 42.86% | P21: 8.699999809 | Q21: 0.58 | R21: 5 | S21: 2 | T21: 71.43% | U21: 28.57% | V21: 1.100000024 | W21: 0.29 | X21: 7 | Z21: 100.00% | AB21: 6 | AC21: 0.6 | AD21: 6 | AE21: 1 | AF21: 85.71% | AG21: 14.29%
A22: 7018 | B22: 7018 Mater Academy Lakes High School | C22: 250 | D22: 22.39999962 | E22: 0.66 | F22: 132 | G22: 118 | H22: 52.80% | I22: 47.20% | J22: 3.700000048 | K22: 0.74 | L22: 93 | M22: 157 | N22: 37.20% | O22: 62.80% | P22: 10.69999981 | Q22: 0.71 | R22: 109 | S22: 141 | T22: 43.60% | U22: 56.40% | V22: 1.799999952 | W22: 0.44 | X22: 187 | Y22: 63 | Z22: 74.80% | AA22: 25.20% | AB22: 6.199999809 | AC22: 0.62 | AD22: 126 | AE22: 124 | AF22: 50.40% | AG22: 49.60%
A23: 7020 | B23: 7020 Doral Academy High School | C23: 368 | D23: 22.29999924 | E23: 0.66 | F23: 203 | G23: 165 | H23: 55.16% | I23: 44.84% | J23: 3.799999952 | K23: 0.75 | L23: 132 | M23: 236 | N23: 35.87% | O23: 64.13% | P23: 10.30000019 | Q23: 0.69 | R23: 179 | S23: 189 | T23: 48.64% | U23: 51.36% | V23: 2 | W23: 0.49 | X23: 244 | Y23: 124 | Z23: 66.30% | AA23: 33.70% | AB23: 6.199999809 | AC23: 0.62 | AD23: 186 | AE23: 182 | AF23: 50.54% | AG23: 49.46%
A24: 7022 | B24: 7022 Academy Of Arts And Minds | C24: 58 | D24: 19.39999962 | E24: 0.57 | F24: 37 | G24: 21 | H24: 63.79% | I24: 36.21% | J24: 3.200000048 | K24: 0.63 | L24: 31 | M24: 27 | N24: 53.45% | O24: 46.55% | P24: 8.800000191 | Q24: 0.59 | R24: 39 | S24: 19 | T24: 67.24% | U24: 32.76% | V24: 1.799999952 | W24: 0.44 | X24: 42 | Y24: 16 | Z24: 72.41% | AA24: 27.59% | AB24: 5.599999905 | AC24: 0.56 | AD24: 33 | AE24: 25 | AF24: 56.90% | AG24: 43.10%
A25: 7024 | B25: 7024 Mater Academy HS of International Studies | C25: 11 | D25: 22.29999924 | E25: 0.65 | F25: 6 | G25: 5 | H25: 54.55% | I25: 45.45% | J25: 3.5 | K25: 0.71 | L25: 5 | M25: 6 | N25: 45.45% | O25: 54.55% | P25: 10.39999962 | Q25: 0.69 | R25: 5 | S25: 6 | T25: 45.45% | U25: 54.55% | V25: 1.899999976 | W25: 0.48 | X25: 8 | Y25: 3 | Z25: 72.73% | AA25: 27.27% | AB25: 6.5 | AC25: 0.65 | AD25: 4 | AE25: 7 | AF25: 36.36% | AG25: 63.64%
A26: 7025 | B26: 7025 Mater Brickell Preparatory Academy High | C26: 1 | D26: 18 | E26: 0.53 | F26: 1 | H26: 100.00% | J26: 3 | K26: 0.6 | L26: 1 | N26: 100.00% | P26: 9 | Q26: 0.6 | R26: 1 | T26: 100.00% | V26: 1 | W26: 0.25 | X26: 1 | Z26: 100.00% | AB26: 5 | AC26: 0.5 | AD26: 1 | AF26: 100.00%
A27: 7029 | B27: 7029 Terra Environmental Institute | C27: 503 | D27: 25.39999962 | E27: 0.75 | F27: 123 | G27: 380 | H27: 24.45% | I27: 75.55% | J27: 4.300000191 | K27: 0.85 | L27: 74 | M27: 429 | N27: 14.71% | O27: 85.29% | P27: 11.69999981 | Q27: 0.78 | R27: 120 | S27: 383 | T27: 23.86% | U27: 76.14% | V27: 2.5 | W27: 0.63 | X27: 226 | Y27: 277 | Z27: 44.93% | AA27: 55.07% | AB27: 6.900000095 | AC27: 0.69 | AD27: 177 | AE27: 326 | AF27: 35.19% | AG27: 64.81%
A28: 7032 | B28: 7032 Palm Glades Preparatory High School | C28: 33 | D28: 19.5 | E28: 0.57 | F28: 26 | G28: 7 | H28: 78.79% | I28: 21.21% | J28: 3 | K28: 0.59 | L28: 21 | M28: 12 | N28: 63.64% | O28: 36.36% | P28: 9.300000191 | Q28: 0.62 | R28: 23 | S28: 10 | T28: 69.70% | U28: 30.30% | V28: 1.799999952 | W28: 0.46 | X28: 25 | Y28: 8 | Z28: 75.76% | AA28: 24.24% | AB28: 5.400000095 | AC28: 0.54 | AD28: 23 | AE28: 10 | AF28: 69.70% | AG28: 30.30%
A29: 7033 | B29: 7033 Law Enforcement Officers Memorial High | C29: 112 | D29: 24.39999962 | E29: 0.72 | F29: 44 | G29: 68 | H29: 39.29% | I29: 60.71% | J29: 4.300000191 | K29: 0.86 | L29: 18 | M29: 94 | N29: 16.07% | O29: 83.93% | P29: 11 | Q29: 0.74 | R29: 40 | S29: 72 | T29: 35.71% | U29: 64.29% | V29: 2.400000095 | W29: 0.6 | X29: 57 | Y29: 55 | Z29: 50.89% | AA29: 49.11% | AB29: 6.599999905 | AC29: 0.66 | AD29: 53 | AE29: 59 | AF29: 47.32% | AG29: 52.68%
A30: 7034 | B30: 7034 Somerset Academy Charter High South Campus | C30: 12 | D30: 20.10000038 | E30: 0.59 | F30: 8 | G30: 4 | H30: 66.67% | I30: 33.33% | J30: 3.400000095 | K30: 0.68 | L30: 7 | M30: 5 | N30: 58.33% | O30: 41.67% | P30: 9.699999809 | Q30: 0.64 | R30: 7 | S30: 5 | T30: 58.33% | U30: 41.67% | V30: 1.799999952 | W30: 0.46 | X30: 7 | Y30: 5 | Z30: 58.33% | AA30: 41.67% | AB30: 5.199999809 | AC30: 0.52 | AD30: 9 | AE30: 3 | AF30: 75.00% | AG30: 25.00%
A31: 7036 | B31: 7036 Lawrence Academy Senior High Charter School | C31: 10 | D31: 17.79999924 | E31: 0.52 | F31: 10 | H31: 100.00% | J31: 2.299999952 | K31: 0.46 | L31: 9 | M31: 1 | N31: 90.00% | O31: 10.00% | P31: 8.899999619 | Q31: 0.59 | R31: 9 | S31: 1 | T31: 90.00% | U31: 10.00% | V31: 2.099999905 | W31: 0.52 | X31: 6 | Y31: 4 | Z31: 60.00% | AA31: 40.00% | AB31: 4.5 | AC31: 0.45 | AD31: 8 | AE31: 2 | AF31: 80.00% | AG31: 20.00%
A32: 7037 | B32: 7037 Mater Academy East Charter High School | C32: 128 | D32: 21.5 | E32: 0.63 | F32: 76 | G32: 52 | H32: 59.38% | I32: 40.62% | J32: 3.700000048 | K32: 0.74 | L32: 50 | M32: 78 | N32: 39.06% | O32: 60.94% | P32: 9.899999619 | Q32: 0.66 | R32: 72 | S32: 56 | T32: 56.25% | U32: 43.75% | V32: 1.799999952 | W32: 0.45 | X32: 93 | Y32: 35 | Z32: 72.66% | AA32: 27.34% | AB32: 6.099999905 | AC32: 0.61 | AD32: 68 | AE32: 60 | AF32: 53.12% | AG32: 46.88%
A33: 7042 | B33: 7042 Somerset Academy Charter High School | C33: 86 | D33: 20.60000038 | E33: 0.61 | F33: 57 | G33: 29 | H33: 66.28% | I33: 33.72% | J33: 3.400000095 | K33: 0.69 | L33: 42 | M33: 44 | N33: 48.84% | O33: 51.16% | P33: 9.600000381 | Q33: 0.64 | R33: 50 | S33: 36 | T33: 58.14% | U33: 41.86% | V33: 1.700000048 | W33: 0.42 | X33: 62 | Y33: 24 | Z33: 72.09% | AA33: 27.91% | AB33: 5.900000095 | AC33: 0.59 | AD33: 48 | AE33: 38 | AF33: 55.81% | AG33: 44.19%
A34: 7048 | B34: 7048 Alonzo Andtracy Mourning High (Biscanye Bay) | C34: 407 | D34: 23.20000076 | E34: 0.68 | F34: 193 | G34: 214 | H34: 47.42% | I34: 52.58% | J34: 4 | K34: 0.79 | L34: 102 | M34: 305 | N34: 25.06% | O34: 74.94% | P34: 10.60000038 | Q34: 0.71 | R34: 192 | S34: 215 | T34: 47.17% | U34: 52.83% | V34: 2.400000095 | W34: 0.6 | X34: 206 | Y34: 201 | Z34: 50.61% | AA34: 49.39% | AB34: 6.300000191 | AC34: 0.63 | AD34: 215 | AE34: 192 | AF34: 52.83% | AG34: 47.17%
A35: 7049 | B35: 7049 Westland Hialeah Senior | C35: 451 | D35: 18 | E35: 0.53 | F35: 338 | G35: 113 | H35: 74.94% | I35: 25.06% | J35: 2.900000095 | K35: 0.58 | L35: 279 | M35: 172 | N35: 61.86% | O35: 38.14% | P35: 8.5 | Q35: 0.57 | R35: 313 | S35: 138 | T35: 69.40% | U35: 30.60% | V35: 1.5 | W35: 0.38 | X35: 362 | Y35: 89 | Z35: 80.27% | AA35: 19.73% | AB35: 5.099999905 | AC35: 0.51 | AD35: 319 | AE35: 132 | AF35: 70.73% | AG35: 29.27%
A36: 7050 | B36: 7050 Keys Gate Charter High School | C36: 274 | D36: 19.10000038 | E36: 0.56 | F36: 193 | G36: 81 | H36: 70.44% | I36: 29.56% | J36: 3.299999952 | K36: 0.66 | L36: 140 | M36: 134 | N36: 51.09% | O36: 48.91% | P36: 9 | Q36: 0.6 | R36: 184 | S36: 90 | T36: 67.15% | U36: 32.85% | V36: 1.700000048 | W36: 0.41 | X36: 208 | Y36: 66 | Z36: 75.91% | AA36: 24.09% | AB36: 5.199999809 | AC36: 0.52 | AD36: 198 | AE36: 76 | AF36: 72.26% | AG36: 27.74%
A37: 7051 | B37: 7051 G Holmes Braddock Senior High | C37: 780 | D37: 17.5 | E37: 0.52 | F37: 573 | G37: 207 | H37: 73.46% | I37: 26.54% | J37: 2.900000095 | K37: 0.58 | L37: 462 | M37: 318 | N37: 59.23% | O37: 40.77% | P37: 8.199999809 | Q37: 0.55 | R37: 549 | S37: 231 | T37: 70.38% | U37: 29.62% | V37: 1.399999976 | W37: 0.36 | X37: 631 | Y37: 149 | Z37: 80.90% | AA37: 19.10% | AB37: 5 | AC37: 0.5 | AD37: 557 | AE37: 223 | AF37: 71.41% | AG37: 28.59%
A38: 7053 | B38: 7053 Pinecrest Preparatory Academy Charter HS | C38: 118 | D38: 19 | E38: 0.56 | F38: 90 | G38: 28 | H38: 76.27% | I38: 23.73% | J38: 3.200000048 | K38: 0.64 | L38: 64 | M38: 54 | N38: 54.24% | O38: 45.76% | P38: 8.800000191 | Q38: 0.59 | R38: 85 | S38: 33 | T38: 72.03% | U38: 27.97% | V38: 1.399999976 | W38: 0.35 | X38: 99 | Y38: 19 | Z38: 83.90% | AA38: 16.10% | AB38: 5.599999905 | AC38: 0.56 | AD38: 68 | AE38: 50 | AF38: 57.63% | AG38: 42.37%
A39: 7054 | B39: 7054 Excelsior Charter High School | C39: 18 | D39: 19.10000038 | E39: 0.56 | F39: 16 | G39: 2 | H39: 88.89% | I39: 11.11% | J39: 2.700000048 | K39: 0.54 | L39: 13 | M39: 5 | N39: 72.22% | O39: 27.78% | P39: 9.5 | Q39: 0.63 | R39: 12 | S39: 6 | T39: 66.67% | U39: 33.33% | V39: 1.200000048 | W39: 0.29 | X39: 17 | Y39: 1 | Z39: 94.44% | AA39: 5.56% | AB39: 5.699999809 | AC39: 0.57 | AD39: 11 | AE39: 7 | AF39: 61.11% | AG39: 38.89%
A40: 7055 | B40: 7055 Young Women's Preparatory Academy | C40: 43 | D40: 26 | E40: 0.76 | F40: 10 | G40: 33 | H40: 23.26% | I40: 76.74% | J40: 4.400000095 | K40: 0.88 | L40: 5 | M40: 38 | N40: 11.63% | O40: 88.37% | P40: 11.60000038 | Q40: 0.77 | R40: 12 | S40: 31 | T40: 27.91% | U40: 72.09% | V40: 2.700000048 | W40: 0.66 | X40: 17 | Y40: 26 | Z40: 39.53% | AA40: 60.47% | AB40: 7.300000191 | AC40: 0.73 | AD40: 11 | AE40: 32 | AF40: 25.58% | AG40: 74.42%
A41: 7056 | B41: 7056 Young Men's Preparatory High School | C41: 32 | D41: 19.70000076 | E41: 0.58 | F41: 21 | G41: 11 | H41: 65.62% | I41: 34.38% | J41: 3.599999905 | K41: 0.72 | L41: 11 | M41: 21 | N41: 34.38% | O41: 65.62% | P41: 9 | Q41: 0.6 | R41: 22 | S41: 10 | T41: 68.75% | U41: 31.25% | V41: 1.799999952 | W41: 0.45 | X41: 23 | Y41: 9 | Z41: 71.88% | AA41: 28.12% | AB41: 5.300000191 | AC41: 0.53 | AD41: 21 | AE41: 11 | AF41: 65.62% | AG41: 34.38%
A42: 7058 | B42: 7058 Miami Community Charter High | C42: 33 | D42: 19.10000038 | E42: 0.56 | F42: 22 | G42: 11 | H42: 66.67% | I42: 33.33% | J42: 3.400000095 | K42: 0.68 | L42: 16 | M42: 17 | N42: 48.48% | O42: 51.52% | P42: 8.699999809 | Q42: 0.58 | R42: 20 | S42: 13 | T42: 60.61% | U42: 39.39% | V42: 1.700000048 | W42: 0.42 | X42: 24 | Y42: 9 | Z42: 72.73% | AA42: 27.27% | AB42: 5.300000191 | AC42: 0.53 | AD42: 20 | AE42: 13 | AF42: 60.61% | AG42: 39.39%
A43: 7059 | B43: 7059 Miami Arts Charter | C43: 54 | D43: 21.29999924 | E43: 0.63 | F43: 26 | G43: 28 | H43: 48.15% | I43: 51.85% | J43: 3.700000048 | K43: 0.75 | L43: 18 | M43: 36 | N43: 33.33% | O43: 66.67% | P43: 9.800000191 | Q43: 0.65 | R43: 27 | S43: 27 | T43: 50.00% | U43: 50.00% | V43: 2 | W43: 0.51 | X43: 33 | Y43: 21 | Z43: 61.11% | AA43: 38.89% | AB43: 5.699999809 | AC43: 0.57 | AD43: 31 | AE43: 23 | AF43: 57.41% | AG43: 42.59%
A44: 7060 | B44: 7060 Everglades Preparatory Academy High School | C44: 36 | D44: 20.39999962 | E44: 0.6 | F44: 27 | G44: 9 | H44: 75.00% | I44: 25.00% | J44: 3.799999952 | K44: 0.76 | L44: 11 | M44: 25 | N44: 30.56% | O44: 69.44% | P44: 8.899999619 | Q44: 0.6 | R44: 26 | S44: 10 | T44: 72.22% | U44: 27.78% | V44: 1.899999976 | W44: 0.49 | X44: 24 | Y44: 12 | Z44: 66.67% | AA44: 33.33% | AB44: 5.699999809 | AC44: 0.57 | AD44: 24 | AE44: 12 | AF44: 66.67% | AG44: 33.33%
A45: 7067 | B45: 7067 Florida High School Of Accelerated Learning- | C45: 42 | D45: 15.5 | E45: 0.46 | F45: 40 | G45: 2 | H45: 95.24% | I45: 4.76% | J45: 2.799999952 | K45: 0.57 | L45: 25 | M45: 17 | N45: 59.52% | O45: 40.48% | P45: 7 | Q45: 0.46 | R45: 38 | S45: 4 | T45: 90.48% | U45: 9.52% | V45: 1.299999952 | W45: 0.32 | X45: 36 | Y45: 6 | Z45: 85.71% | AA45: 14.29% | AB45: 4.5 | AC45: 0.45 | AD45: 35 | AE45: 7 | AF45: 83.33% | AG45: 16.67%
A46: 7068 | B46: 7068 North Gardens High School | C46: 21 | D46: 18.39999962 | E46: 0.54 | F46: 16 | G46: 5 | H46: 76.19% | I46: 23.81% | J46: 3.5 | K46: 0.7 | L46: 8 | M46: 13 | N46: 38.10% | O46: 61.90% | P46: 8.899999619 | Q46: 0.59 | R46: 16 | S46: 5 | T46: 76.19% | U46: 23.81% | V46: 1.5 | W46: 0.37 | X46: 19 | Y46: 2 | Z46: 90.48% | AA46: 9.52% | AB46: 4.5 | AC46: 0.45 | AD46: 17 | AE46: 4 | AF46: 80.95% | AG46: 19.05%
A47: 7069 | B47: 7069 North Park High School | C47: 43 | D47: 13.60000038 | E47: 0.4 | F47: 42 | G47: 1 | H47: 97.67% | I47: 2.33% | J47: 2.299999952 | K47: 0.47 | L47: 33 | M47: 10 | N47: 76.74% | O47: 23.26% | P47: 6.300000191 | Q47: 0.42 | R47: 43 | T47: 100.00% | V47: 1 | W47: 0.26 | X47: 41 | Y47: 2 | Z47: 95.35% | AA47: 4.65% | AB47: 3.900000095 | AC47: 0.39 | AD47: 36 | AE47: 7 | AF47: 83.72% | AG47: 16.28%
A48: 7071 | B48: 7071 Coral Gables Senior High School | C48: 851 | D48: 20.20000076 | E48: 0.59 | F48: 506 | G48: 345 | H48: 59.46% | I48: 40.54% | J48: 3.299999952 | K48: 0.67 | L48: 388 | M48: 463 | N48: 45.59% | O48: 54.41% | P48: 9.399999619 | Q48: 0.63 | R48: 475 | S48: 376 | T48: 55.82% | U48: 44.18% | V48: 1.899999976 | W48: 0.46 | X48: 587 | Y48: 264 | Z48: 68.98% | AA48: 31.02% | AB48: 5.599999905 | AC48: 0.56 | AD48: 518 | AE48: 333 | AF48: 60.87% | AG48: 39.13%
A49: 7081 | B49: 7081 DASH | C49: 126 | D49: 25.70000076 | E49: 0.75 | F49: 30 | G49: 96 | H49: 23.81% | I49: 76.19% | J49: 4.300000191 | K49: 0.86 | L49: 19 | M49: 107 | N49: 15.08% | O49: 84.92% | P49: 12 | Q49: 0.8 | R49: 26 | S49: 100 | T49: 20.63% | U49: 79.37% | V49: 2.5 | W49: 0.62 | X49: 61 | Y49: 65 | Z49: 48.41% | AA49: 51.59% | AB49: 6.900000095 | AC49: 0.69 | AD49: 42 | AE49: 84 | AF49: 33.33% | AG49: 66.67%
A50: 7101 | B50: 7101 Coral Reef Senior High School | C50: 785 | D50: 25 | E50: 0.74 | F50: 246 | G50: 539 | H50: 31.34% | I50: 68.66% | J50: 4.300000191 | K50: 0.86 | L50: 121 | M50: 664 | N50: 15.41% | O50: 84.59% | P50: 11.5 | Q50: 0.77 | R50: 221 | S50: 564 | T50: 28.15% | U50: 71.85% | V50: 2.400000095 | W50: 0.6 | X50: 389 | Y50: 396 | Z50: 49.55% | AA50: 50.45% | AB50: 6.800000191 | AC50: 0.68 | AD50: 305 | AE50: 480 | AF50: 38.85% | AG50: 61.15%
A51: 7111 | B51: 7111 Hialeah Senior high | C51: 709 | D51: 18.79999924 | E51: 0.55 | F51: 511 | G51: 198 | H51: 72.07% | I51: 27.93% | J51: 3.200000048 | K51: 0.63 | L51: 372 | M51: 337 | N51: 52.47% | O51: 47.53% | P51: 8.800000191 | Q51: 0.58 | R51: 466 | S51: 243 | T51: 65.73% | U51: 34.27% | V51: 1.600000024 | W51: 0.39 | X51: 561 | Y51: 148 | Z51: 79.13% | AA51: 20.87% | AB51: 5.300000191 | AC51: 0.53 | AD51: 492 | AE51: 217 | AF51: 69.39% | AG51: 30.61%
A52: 7121 | B52: 7121 John A. Ferguson Senior High School | C52: 1023 | D52: 19.60000038 | E52: 0.58 | F52: 630 | G52: 393 | H52: 61.58% | I52: 38.42% | J52: 3.299999952 | K52: 0.65 | L52: 487 | M52: 536 | N52: 47.61% | O52: 52.39% | P52: 9.100000381 | Q52: 0.6 | R52: 590 | S52: 433 | T52: 57.67% | U52: 42.33% | V52: 1.700000048 | W52: 0.43 | X52: 738 | Y52: 285 | Z52: 72.14% | AA52: 27.86% | AB52: 5.5 | AC52: 0.55 | AD52: 631 | AE52: 392 | AF52: 61.68% | AG52: 38.32%
A53: 7131 | B53: 7131 Hialeah-Miami Lakes Senior High | C53: 413 | D53: 18.79999924 | E53: 0.55 | F53: 306 | G53: 107 | H53: 74.09% | I53: 25.91% | J53: 3.200000048 | K53: 0.63 | L53: 217 | M53: 196 | N53: 52.54% | O53: 47.46% | P53: 8.600000381 | Q53: 0.57 | R53: 284 | S53: 129 | T53: 68.77% | U53: 31.23% | V53: 1.700000048 | W53: 0.43 | X53: 307 | Y53: 106 | Z53: 74.33% | AA53: 25.67% | AB53: 5.300000191 | AC53: 0.53 | AD53: 292 | AE53: 121 | AF53: 70.70% | AG53: 29.30%
A54: 7141 | B54: 7141 Dr. Michael M. Krop Senior High School | C54: 568 | D54: 20.20000076 | E54: 0.59 | F54: 369 | G54: 199 | H54: 64.96% | I54: 35.04% | J54: 3.5 | K54: 0.71 | L54: 226 | M54: 342 | N54: 39.79% | O54: 60.21% | P54: 9.300000191 | Q54: 0.62 | R54: 339 | S54: 229 | T54: 59.68% | U54: 40.32% | V54: 1.799999952 | W54: 0.44 | X54: 399 | Y54: 169 | Z54: 70.25% | AA54: 29.75% | AB54: 5.599999905 | AC54: 0.56 | AD54: 354 | AE54: 214 | AF54: 62.32% | AG54: 37.68%
A55: 7151 | B55: 7151 Homestead Sr. High School | C55: 447 | D55: 17 | E55: 0.5 | F55: 389 | G55: 58 | H55: 87.02% | I55: 12.98% | J55: 3 | K55: 0.61 | L55: 261 | M55: 186 | N55: 58.39% | O55: 41.61% | P55: 7.900000095 | Q55: 0.53 | R55: 358 | S55: 89 | T55: 80.09% | U55: 19.91% | V55: 1.399999976 | W55: 0.34 | X55: 379 | Y55: 68 | Z55: 84.79% | AA55: 15.21% | AB55: 4.699999809 | AC55: 0.47 | AD55: 365 | AE55: 82 | AF55: 81.66% | AG55: 18.34%
A56: 7160 | B56: 7160 Mater Academy High | C56: 398 | D56: 19.5 | E56: 0.57 | F56: 263 | G56: 135 | H56: 66.08% | I56: 33.92% | J56: 3.299999952 | K56: 0.66 | L56: 186 | M56: 212 | N56: 46.73% | O56: 53.27% | P56: 9 | Q56: 0.6 | R56: 245 | S56: 153 | T56: 61.56% | U56: 38.44% | V56: 1.700000048 | W56: 0.42 | X56: 305 | Y56: 93 | Z56: 76.63% | AA56: 23.37% | AB56: 5.5 | AC56: 0.55 | AD56: 252 | AE56: 146 | AF56: 63.32% | AG56: 36.68%
A57: 7161 | B57: 7161 MAST Academy | C57: 139 | D57: 25.89999962 | E57: 0.76 | F57: 28 | G57: 111 | H57: 20.14% | I57: 79.86% | J57: 4.400000095 | K57: 0.89 | L57: 15 | M57: 124 | N57: 10.79% | O57: 89.21% | P57: 12.10000038 | Q57: 0.81 | R57: 23 | S57: 116 | T57: 16.55% | U57: 83.45% | V57: 2.400000095 | W57: 0.6 | X57: 67 | Y57: 72 | Z57: 48.20% | AA57: 51.80% | AB57: 6.900000095 | AC57: 0.69 | AD57: 46 | AE57: 93 | AF57: 33.09% | AG57: 66.91%
A58: 7171 | B58: 7171 M.A.S.T At Homestead | C58: 159 | D58: 23.39999962 | E58: 0.69 | F58: 73 | G58: 86 | H58: 45.91% | I58: 54.09% | J58: 4.099999905 | K58: 0.82 | L58: 39 | M58: 120 | N58: 24.53% | O58: 75.47% | P58: 10.80000019 | Q58: 0.72 | R58: 63 | S58: 96 | T58: 39.62% | U58: 60.38% | V58: 2.099999905 | W58: 0.53 | X58: 98 | Y58: 61 | Z58: 61.64% | AA58: 38.36% | AB58: 6.5 | AC58: 0.65 | AD58: 79 | AE58: 80 | AF58: 49.69% | AG58: 50.31%
A59: 7191 | B59: 7191 Hialeah Gardens High School | C59: 708 | D59: 19.39999962 | E59: 0.57 | F59: 489 | G59: 219 | H59: 69.07% | I59: 30.93% | J59: 3.200000048 | K59: 0.64 | L59: 363 | M59: 345 | N59: 51.27% | O59: 48.73% | P59: 9.100000381 | Q59: 0.61 | R59: 435 | S59: 273 | T59: 61.44% | U59: 38.56% | V59: 1.600000024 | W59: 0.4 | X59: 559 | Y59: 149 | Z59: 78.95% | AA59: 21.05% | AB59: 5.400000095 | AC59: 0.54 | AD59: 472 | AE59: 236 | AF59: 66.67% | AG59: 33.33%
A60: 7201 | B60: 7201 Miami Beach Senior high School | C60: 440 | D60: 20.79999924 | E60: 0.61 | F60: 245 | G60: 195 | H60: 55.68% | I60: 44.32% | J60: 3.5 | K60: 0.7 | L60: 176 | M60: 264 | N60: 40.00% | O60: 60.00% | P60: 9.699999809 | Q60: 0.65 | R60: 222 | S60: 218 | T60: 50.45% | U60: 49.55% | V60: 2.099999905 | W60: 0.51 | X60: 275 | Y60: 165 | Z60: 62.50% | AA60: 37.50% | AB60: 5.599999905 | AC60: 0.56 | AD60: 271 | AE60: 169 | AF60: 61.59% | AG60: 38.41%
A61: 7231 | B61: 7231 Miami Carol City Sr. High | C61: 442 | D61: 17.10000038 | E61: 0.5 | F61: 374 | G61: 68 | H61: 84.62% | I61: 15.38% | J61: 3.099999905 | K61: 0.62 | L61: 250 | M61: 192 | N61: 56.56% | O61: 43.44% | P61: 8 | Q61: 0.53 | R61: 349 | S61: 93 | T61: 78.96% | U61: 21.04% | V61: 1.399999976 | W61: 0.36 | X61: 368 | Y61: 74 | Z61: 83.26% | AA61: 16.74% | AB61: 4.599999905 | AC61: 0.46 | AD61: 374 | AE61: 68 | AF61: 84.62% | AG61: 15.38%
A62: 7241 | B62: 7241 Ronald W. Reagan/Doral Senior High | C62: 513 | D62: 22 | E62: 0.65 | F62: 275 | G62: 238 | H62: 53.61% | I62: 46.39% | J62: 3.700000048 | K62: 0.73 | L62: 186 | M62: 327 | N62: 36.26% | O62: 63.74% | P62: 9.899999619 | Q62: 0.66 | R62: 268 | S62: 245 | T62: 52.24% | U62: 47.76% | V62: 2.099999905 | W62: 0.52 | X62: 320 | Y62: 193 | Z62: 62.38% | AA62: 37.62% | AB62: 6.300000191 | AC62: 0.63 | AD62: 256 | AE62: 257 | AF62: 49.90% | AG62: 50.10%
A63: 7251 | B63: 7251 Miami Central Senior High | C63: 425 | D63: 17.20000076 | E63: 0.51 | F63: 350 | G63: 75 | H63: 82.35% | I63: 17.65% | J63: 3.099999905 | K63: 0.62 | L63: 236 | M63: 189 | N63: 55.53% | O63: 44.47% | P63: 7.900000095 | Q63: 0.52 | R63: 334 | S63: 91 | T63: 78.59% | U63: 21.41% | V63: 1.399999976 | W63: 0.36 | X63: 360 | Y63: 65 | Z63: 84.71% | AA63: 15.29% | AB63: 4.800000191 | AC63: 0.48 | AD63: 346 | AE63: 79 | AF63: 81.41% | AG63: 18.59%
A64: 7262 | B64: 7262 City of Hialeah Education Academy | C64: 82 | D64: 21.10000038 | E64: 0.62 | F64: 49 | G64: 33 | H64: 59.76% | I64: 40.24% | J64: 3.799999952 | K64: 0.75 | L64: 31 | M64: 51 | N64: 37.80% | O64: 62.20% | P64: 9.800000191 | Q64: 0.65 | R64: 45 | S64: 37 | T64: 54.88% | U64: 45.12% | V64: 1.700000048 | W64: 0.43 | X64: 62 | Y64: 20 | Z64: 75.61% | AA64: 24.39% | AB64: 5.900000095 | AC64: 0.59 | AD64: 48 | AE64: 34 | AF64: 58.54% | AG64: 41.46%
A65: 7265 | B65: 7265 Archimedean Upper Conservatory | C65: 56 | D65: 25.39999962 | E65: 0.75 | F65: 16 | G65: 40 | H65: 28.57% | I65: 71.43% | J65: 4.300000191 | K65: 0.86 | L65: 10 | M65: 46 | N65: 17.86% | O65: 82.14% | P65: 11.39999962 | Q65: 0.76 | R65: 17 | S65: 39 | T65: 30.36% | U65: 69.64% | V65: 2.599999905 | W65: 0.66 | X65: 24 | Y65: 32 | Z65: 42.86% | AA65: 57.14% | AB65: 7 | AC65: 0.7 | AD65: 18 | AE65: 38 | AF65: 32.14% | AG65: 67.86%
A66: 7271 | B66: 7271 Miami Coral Park Senior High School | C66: 660 | D66: 18.29999924 | E66: 0.54 | F66: 461 | G66: 199 | H66: 69.85% | I66: 30.15% | J66: 3 | K66: 0.6 | L66: 376 | M66: 284 | N66: 56.97% | O66: 43.03% | P66: 8.399999619 | Q66: 0.56 | R66: 444 | S66: 216 | T66: 67.27% | U66: 32.73% | V66: 1.600000024 | W66: 0.41 | X66: 504 | Y66: 156 | Z66: 76.36% | AA66: 23.64% | AB66: 5.300000191 | AC66: 0.53 | AD66: 454 | AE66: 206 | AF66: 68.79% | AG66: 31.21%
A67: 7291 | B67: 7291 Jose Marti | C67: 40 | D67: 25.10000038 | E67: 0.74 | F67: 10 | G67: 30 | H67: 25.00% | I67: 75.00% | J67: 4.400000095 | K67: 0.87 | L67: 3 | M67: 37 | N67: 7.50% | O67: 92.50% | P67: 11.30000019 | Q67: 0.75 | R67: 11 | S67: 29 | T67: 27.50% | U67: 72.50% | V67: 2.400000095 | W67: 0.59 | X67: 21 | Y67: 19 | Z67: 52.50% | AA67: 47.50% | AB67: 7.099999905 | AC67: 0.71 | AD67: 17 | AE67: 23 | AF67: 42.50% | AG67: 57.50%
A68: 7301 | B68: 7301 Miami Edison Senior High | C68: 199 | D68: 18.20000076 | E68: 0.54 | F68: 157 | G68: 42 | H68: 78.89% | I68: 21.11% | J68: 3.400000095 | K68: 0.68 | L68: 95 | M68: 104 | N68: 47.74% | O68: 52.26% | P68: 8.199999809 | Q68: 0.55 | R68: 144 | S68: 55 | T68: 72.36% | U68: 27.64% | V68: 1.600000024 | W68: 0.4 | X68: 154 | Y68: 45 | Z68: 77.39% | AA68: 22.61% | AB68: 5 | AC68: 0.5 | AD68: 154 | AE68: 45 | AF68: 77.39% | AG68: 22.61%
A69: 7341 | B69: 7341 Miami Jackson Senior High | C69: 324 | D69: 16.79999924 | E69: 0.49 | F69: 268 | G69: 56 | H69: 82.72% | I69: 17.28% | J69: 2.900000095 | K69: 0.57 | L69: 211 | M69: 113 | N69: 65.12% | O69: 34.88% | P69: 7.800000191 | Q69: 0.52 | R69: 254 | S69: 70 | T69: 78.40% | U69: 21.60% | V69: 1.5 | W69: 0.37 | X69: 259 | Y69: 65 | Z69: 79.94% | AA69: 20.06% | AB69: 4.599999905 | AC69: 0.46 | AD69: 260 | AE69: 64 | AF69: 80.25% | AG69: 19.75%
A70: 7351 | B70: 7351 Arthur And Polly Mays 6-12 Conservatory Of Th | C70: 86 | D70: 19.39999962 | E70: 0.57 | F70: 65 | G70: 21 | H70: 75.58% | I70: 24.42% | J70: 3.299999952 | K70: 0.65 | L70: 45 | M70: 41 | N70: 52.33% | O70: 47.67% | P70: 9.100000381 | Q70: 0.61 | R70: 55 | S70: 31 | T70: 63.95% | U70: 36.05% | V70: 1.600000024 | W70: 0.4 | X70: 64 | Y70: 22 | Z70: 74.42% | AA70: 25.58% | AB70: 5.400000095 | AC70: 0.54 | AD70: 59 | AE70: 27 | AF70: 68.60% | AG70: 31.40%
A71: 7361 | B71: 7361 Miami Killian Senior High | C71: 628 | D71: 18.79999924 | E71: 0.55 | F71: 454 | G71: 174 | H71: 72.29% | I71: 27.71% | J71: 3.200000048 | K71: 0.65 | L71: 321 | M71: 307 | N71: 51.11% | O71: 48.89% | P71: 8.699999809 | Q71: 0.58 | R71: 434 | S71: 194 | T71: 69.11% | U71: 30.89% | V71: 1.600000024 | W71: 0.41 | X71: 471 | Y71: 157 | Z71: 75.00% | AA71: 25.00% | AB71: 5.199999809 | AC71: 0.52 | AD71: 439 | AE71: 189 | AF71: 69.90% | AG71: 30.10%
A72: 7371 | B72: 7371 Robert Morgan Education Center | C72: 543 | D72: 22.20000076 | E72: 0.65 | F72: 296 | G72: 247 | H72: 54.51% | I72: 45.49% | J72: 3.900000095 | K72: 0.78 | L72: 169 | M72: 374 | N72: 31.12% | O72: 68.88% | P72: 10.30000019 | Q72: 0.68 | R72: 269 | S72: 274 | T72: 49.54% | U72: 50.46% | V72: 1.899999976 | W72: 0.47 | X72: 364 | Y72: 179 | Z72: 67.03% | AA72: 32.97% | AB72: 6.099999905 | AC72: 0.61 | AD72: 290 | AE72: 253 | AF72: 53.41% | AG72: 46.59%
A73: 7381 | B73: 7381 Miami Norland Senior High | C73: 378 | D73: 18.5 | E73: 0.55 | F73: 305 | G73: 73 | H73: 80.69% | I73: 19.31% | J73: 3.400000095 | K73: 0.68 | L73: 172 | M73: 206 | N73: 45.50% | O73: 54.50% | P73: 8.600000381 | Q73: 0.57 | R73: 279 | S73: 99 | T73: 73.81% | U73: 26.19% | V73: 1.5 | W73: 0.38 | X73: 307 | Y73: 71 | Z73: 81.22% | AA73: 18.78% | AB73: 5.099999905 | AC73: 0.51 | AD73: 293 | AE73: 85 | AF73: 77.51% | AG73: 22.49%
A74: 7391 | B74: 7391 Miami Lakes Educational Center | C74: 348 | D74: 22.20000076 | E74: 0.65 | F74: 172 | G74: 176 | H74: 49.43% | I74: 50.57% | J74: 3.900000095 | K74: 0.78 | L74: 109 | M74: 239 | N74: 31.32% | O74: 68.68% | P74: 10.30000019 | Q74: 0.69 | R74: 159 | S74: 189 | T74: 45.69% | U74: 54.31% | V74: 2 | W74: 0.5 | X74: 217 | Y74: 131 | Z74: 62.36% | AA74: 37.64% | AB74: 6 | AC74: 0.6 | AD74: 198 | AE74: 150 | AF74: 56.90% | AG74: 43.10%
A75: 7411 | B75: 7411 Miami Northwestern Senior | C75: 351 | D75: 17.10000038 | E75: 0.5 | F75: 288 | G75: 63 | H75: 82.05% | I75: 17.95% | J75: 3 | K75: 0.6 | L75: 210 | M75: 141 | N75: 59.83% | O75: 40.17% | P75: 8 | Q75: 0.53 | R75: 270 | S75: 81 | T75: 76.92% | U75: 23.08% | V75: 1.5 | W75: 0.38 | X75: 278 | Y75: 73 | Z75: 79.20% | AA75: 20.80% | AB75: 4.5 | AC75: 0.45 | AD75: 281 | AE75: 70 | AF75: 80.06% | AG75: 19.94%
A76: 7431 | B76: 7431 Miami Palmetto Sr High | C76: 662 | D76: 20.10000038 | E76: 0.59 | F76: 408 | G76: 254 | H76: 61.63% | I76: 38.37% | J76: 3.299999952 | K76: 0.67 | L76: 332 | M76: 330 | N76: 50.15% | O76: 49.85% | P76: 9.699999809 | Q76: 0.65 | R76: 344 | S76: 318 | T76: 51.96% | U76: 48.04% | V76: 1.600000024 | W76: 0.41 | X76: 469 | Y76: 193 | Z76: 70.85% | AA76: 29.15% | AB76: 5.400000095 | AC76: 0.54 | AD76: 425 | AE76: 237 | AF76: 64.20% | AG76: 35.80%
A77: 7461 | B77: 7461 Miami Senior High | C77: 614 | D77: 17 | E77: 0.5 | F77: 489 | G77: 125 | H77: 79.64% | I77: 20.36% | J77: 2.700000048 | K77: 0.54 | L77: 401 | M77: 213 | N77: 65.31% | O77: 34.69% | P77: 7.900000095 | Q77: 0.53 | R77: 457 | S77: 157 | T77: 74.43% | U77: 25.57% | V77: 1.5 | W77: 0.37 | X77: 502 | Y77: 112 | Z77: 81.76% | AA77: 18.24% | AB77: 4.900000095 | AC77: 0.49 | AD77: 467 | AE77: 147 | AF77: 76.06% | AG77: 23.94%
A78: 7511 | B78: 7511 Miami Springs Senior High | C78: 486 | D78: 19.10000038 | E78: 0.56 | F78: 328 | G78: 158 | H78: 67.49% | I78: 32.51% | J78: 3.200000048 | K78: 0.64 | L78: 257 | M78: 229 | N78: 52.88% | O78: 47.12% | P78: 8.899999619 | Q78: 0.59 | R78: 307 | S78: 179 | T78: 63.17% | U78: 36.83% | V78: 1.700000048 | W78: 0.42 | X78: 360 | Y78: 126 | Z78: 74.07% | AA78: 25.93% | AB78: 5.300000191 | AC78: 0.53 | AD78: 328 | AE78: 158 | AF78: 67.49% | AG78: 32.51%
A79: =IFERROR(VALUE(LEFT(B79,4)),"") -> 7531 | B79: 7531 Miami SunSET Senior | C79: 469 | D79: 17.29999924 | E79: 0.51 | F79: 379 | G79: 90 | H79: 80.81% | I79: 19.19% | J79: 2.900000095 | K79: 0.57 | L79: 295 | M79: 174 | N79: 62.90% | O79: 37.10% | P79: 8.100000381 | Q79: 0.54 | R79: 340 | S79: 129 | T79: 72.49% | U79: 27.51% | V79: 1.5 | W79: 0.37 | X79: 380 | Y79: 89 | Z79: 81.02% | AA79: 18.98% | AB79: 4.900000095 | AC79: 0.49 | AD79: 348 | AE79: 121 | AF79: 74.20% | AG79: 25.80%
A80: 7541 | B80: 7541 North Miami Beach Sr. | C80: 500 | D80: 18.70000076 | E80: 0.55 | F80: 353 | G80: 147 | H80: 70.60% | I80: 29.40% | J80: 3.299999952 | K80: 0.65 | L80: 265 | M80: 235 | N80: 53.00% | O80: 47.00% | P80: 8.699999809 | Q80: 0.58 | R80: 325 | S80: 175 | T80: 65.00% | U80: 35.00% | V80: 1.600000024 | W80: 0.4 | X80: 389 | Y80: 111 | Z80: 77.80% | AA80: 22.20% | AB80: 5.099999905 | AC80: 0.51 | AD80: 360 | AE80: 140 | AF80: 72.00% | AG80: 28.00%
A81: 7571 | B81: 7571 International Studies Preparatory Academy | C81: 62 | D81: 25.29999924 | E81: 0.74 | F81: 17 | G81: 45 | H81: 27.42% | I81: 72.58% | J81: 4 | K81: 0.8 | L81: 15 | M81: 47 | N81: 24.19% | O81: 75.81% | P81: 11.89999962 | Q81: 0.79 | R81: 13 | S81: 49 | T81: 20.97% | U81: 79.03% | V81: 2.5 | W81: 0.63 | X81: 29 | Y81: 33 | Z81: 46.77% | AA81: 53.23% | AB81: 6.900000095 | AC81: 0.69 | AD81: 25 | AE81: 37 | AF81: 40.32% | AG81: 59.68%
A82: 7581 | B82: 7581 IPreparatory Academy | C82: 57 | D82: 26.39999962 | E82: 0.77 | F82: 10 | G82: 47 | H82: 17.54% | I82: 82.46% | J82: 4.5 | K82: 0.91 | L82: 2 | M82: 55 | N82: 3.51% | O82: 96.49% | P82: 12.10000038 | Q82: 0.81 | R82: 10 | S82: 47 | T82: 17.54% | U82: 82.46% | V82: 2.700000048 | W82: 0.67 | X82: 27 | Y82: 30 | Z82: 47.37% | AA82: 52.63% | AB82: 7 | AC82: 0.7 | AD82: 18 | AE82: 39 | AF82: 31.58% | AG82: 68.42%
A83: 7591 | B83: 7591 North Miami Senior High School | C83: 635 | D83: 18.70000076 | E83: 0.55 | F83: 458 | G83: 177 | H83: 72.13% | I83: 27.87% | J83: 3.400000095 | K83: 0.67 | L83: 302 | M83: 333 | N83: 47.56% | O83: 52.44% | P83: 8.600000381 | Q83: 0.58 | R83: 425 | S83: 210 | T83: 66.93% | U83: 33.07% | V83: 1.700000048 | W83: 0.43 | X83: 470 | Y83: 165 | Z83: 74.02% | AA83: 25.98% | AB83: 5 | AC83: 0.5 | AD83: 469 | AE83: 166 | AF83: 73.86% | AG83: 26.14%
A84: 7601 | B84: 7601 Turner Tech | C84: 386 | D84: 21.60000038 | E84: 0.64 | F84: 234 | G84: 152 | H84: 60.62% | I84: 39.38% | J84: 3.900000095 | K84: 0.78 | L84: 119 | M84: 267 | N84: 30.83% | O84: 69.17% | P84: 10 | Q84: 0.66 | R84: 201 | S84: 185 | T84: 52.07% | U84: 47.93% | V84: 2 | W84: 0.49 | X84: 259 | Y84: 127 | Z84: 67.10% | AA84: 32.90% | AB84: 5.800000191 | AC84: 0.58 | AD84: 245 | AE84: 141 | AF84: 63.47% | AG84: 36.53%
A85: 7631 | B85: 7631 MacArthur South Senior High | C85: 3 | D85: 10.69999981 | E85: 0.31 | F85: 3 | H85: 100.00% | J85: 2.299999952 | K85: 0.47 | L85: 3 | N85: 100.00% | P85: 4 | Q85: 0.27 | R85: 3 | T85: 100.00% | V85: 1 | W85: 0.25 | X85: 3 | Z85: 100.00% | AB85: 3.299999952 | AC85: 0.33 | AD85: 3 | AF85: 100.00%
A86: 7701 | B86: 7701 South Dade Senior | C86: 728 | D86: 18.60000038 | E86: 0.55 | F86: 569 | G86: 159 | H86: 78.16% | I86: 21.84% | J86: 3.200000048 | K86: 0.65 | L86: 377 | M86: 351 | N86: 51.79% | O86: 48.21% | P86: 8.600000381 | Q86: 0.57 | R86: 535 | S86: 193 | T86: 73.49% | U86: 26.51% | V86: 1.600000024 | W86: 0.39 | X86: 582 | Y86: 146 | Z86: 79.95% | AA86: 20.05% | AB86: 5.199999809 | AC86: 0.52 | AD86: 547 | AE86: 181 | AF86: 75.14% | AG86: 24.86%
A87: 7721 | B87: 7721 South Miami Senior High | C87: 476 | D87: 18.39999962 | E87: 0.54 | F87: 329 | G87: 147 | H87: 69.12% | I87: 30.88% | J87: 3.099999905 | K87: 0.61 | L87: 252 | M87: 224 | N87: 52.94% | O87: 47.06% | P87: 8.600000381 | Q87: 0.57 | R87: 314 | S87: 162 | T87: 65.97% | U87: 34.03% | V87: 1.600000024 | W87: 0.41 | X87: 376 | Y87: 100 | Z87: 78.99% | AA87: 21.01% | AB87: 5.099999905 | AC87: 0.51 | AD87: 316 | AE87: 160 | AF87: 66.39% | AG87: 33.61%
A88: 7731 | B88: 7731 Miami Southridge Senior High | C88: 536 | D88: 17.89999962 | E88: 0.53 | F88: 414 | G88: 122 | H88: 77.24% | I88: 22.76% | J88: 3.099999905 | K88: 0.63 | L88: 287 | M88: 249 | N88: 53.54% | O88: 46.46% | P88: 8.199999809 | Q88: 0.55 | R88: 392 | S88: 144 | T88: 73.13% | U88: 26.87% | V88: 1.5 | W88: 0.39 | X88: 427 | Y88: 109 | Z88: 79.66% | AA88: 20.34% | AB88: 5 | AC88: 0.5 | AD88: 398 | AE88: 138 | AF88: 74.25% | AG88: 25.75%
A89: 7741 | B89: 7741 Southwest Miami High School | C89: 791 | D89: 20.39999962 | E89: 0.6 | F89: 494 | G89: 297 | H89: 62.45% | I89: 37.55% | J89: 3.400000095 | K89: 0.67 | L89: 355 | M89: 436 | N89: 44.88% | O89: 55.12% | P89: 9.5 | Q89: 0.63 | R89: 457 | S89: 334 | T89: 57.77% | U89: 42.23% | V89: 1.799999952 | W89: 0.46 | X89: 566 | Y89: 225 | Z89: 71.55% | AA89: 28.45% | AB89: 5.699999809 | AC89: 0.57 | AD89: 485 | AE89: 306 | AF89: 61.31% | AG89: 38.69%
A90: 7751 | B90: 7751 Barbara Goleman High School | C90: 479 | D90: 20.70000076 | E90: 0.61 | F90: 297 | G90: 182 | H90: 62.00% | I90: 38.00% | J90: 3.5 | K90: 0.69 | L90: 208 | M90: 271 | N90: 43.42% | O90: 56.58% | P90: 9.600000381 | Q90: 0.64 | R90: 278 | S90: 201 | T90: 58.04% | U90: 41.96% | V90: 1.799999952 | W90: 0.44 | X90: 334 | Y90: 145 | Z90: 69.73% | AA90: 30.27% | AB90: 5.800000191 | AC90: 0.58 | AD90: 287 | AE90: 192 | AF90: 59.92% | AG90: 40.08%
A91: 7781 | B91: 7781 Felix Varela Senior High School | C91: 743 | D91: 21.60000038 | E91: 0.64 | F91: 403 | G91: 340 | H91: 54.24% | I91: 45.76% | J91: 3.599999905 | K91: 0.73 | L91: 288 | M91: 455 | N91: 38.76% | O91: 61.24% | P91: 10 | Q91: 0.67 | R91: 387 | S91: 356 | T91: 52.09% | U91: 47.91% | V91: 2 | W91: 0.49 | X91: 486 | Y91: 257 | Z91: 65.41% | AA91: 34.59% | AB91: 6 | AC91: 0.6 | AD91: 428 | AE91: 315 | AF91: 57.60% | AG91: 42.40%
A92: 7791 | B92: 7791 Booker T. Washington Senior High School | C92: 223 | D92: 15.89999962 | E92: 0.47 | F92: 197 | G92: 26 | H92: 88.34% | I92: 11.66% | J92: 2.799999952 | K92: 0.56 | L92: 152 | M92: 71 | N92: 68.16% | O92: 31.84% | P92: 7.199999809 | Q92: 0.48 | R92: 185 | S92: 38 | T92: 82.96% | U92: 17.04% | V92: 1.299999952 | W92: 0.34 | X92: 189 | Y92: 34 | Z92: 84.75% | AA92: 15.25% | AB92: 4.599999905 | AC92: 0.46 | AD92: 175 | AE92: 48 | AF92: 78.48% | AG92: 21.52%
A93: 7801 | B93: 7801 George T. Baker | C93: 129 | D93: 19.29999924 | E93: 0.57 | F93: 99 | G93: 30 | H93: 76.74% | I93: 23.26% | J93: 3.299999952 | K93: 0.66 | L93: 62 | M93: 67 | N93: 48.06% | O93: 51.94% | P93: 9 | Q93: 0.6 | R93: 90 | S93: 39 | T93: 69.77% | U93: 30.23% | V93: 1.600000024 | W93: 0.39 | X93: 104 | Y93: 25 | Z93: 80.62% | AA93: 19.38% | AB93: 5.400000095 | AC93: 0.54 | AD93: 94 | AE93: 35 | AF93: 72.87% | AG93: 27.13%
A94: 7901 | B94: 7901 New World School of Arts | C94: 114 | D94: 20.70000076 | E94: 0.61 | F94: 72 | G94: 42 | H94: 63.16% | I94: 36.84% | J94: 3.400000095 | K94: 0.67 | L94: 68 | M94: 46 | N94: 59.65% | O94: 40.35% | P94: 10.39999962 | Q94: 0.7 | R94: 45 | S94: 69 | T94: 39.47% | U94: 60.53% | V94: 1.299999952 | W94: 0.33 | X94: 92 | Y94: 22 | Z94: 80.70% | AA94: 19.30% | AB94: 5.5 | AC94: 0.55 | AD94: 77 | AE94: 37 | AF94: 67.54% | AG94: 32.46%
A95: 8014 | B95: 8014 Educational Alt. Outreach Program | C95: 35 | D95: 11.5 | E95: 0.34 | F95: 34 | G95: 1 | H95: 97.14% | I95: 2.86% | J95: 1.899999976 | K95: 0.38 | L95: 30 | M95: 5 | N95: 85.71% | O95: 14.29% | P95: 5.199999809 | Q95: 0.34 | R95: 34 | S95: 1 | T95: 97.14% | U95: 2.86% | V95: 0.8000000119 | W95: 0.19 | X95: 34 | Y95: 1 | Z95: 97.14% | AA95: 2.86% | AB95: 3.700000048 | AC95: 0.37 | AD95: 34 | AE95: 1 | AF95: 97.14% | AG95: 2.86%
A96: 8017 | B96: 8017 Outreachprograms | C96: 41 | D96: 15.10000038 | E96: 0.44 | F96: 38 | G96: 3 | H96: 92.68% | I96: 7.32% | J96: 2.5 | K96: 0.5 | L96: 26 | M96: 15 | N96: 63.41% | O96: 36.59% | P96: 7.300000191 | Q96: 0.49 | R96: 34 | S96: 7 | T96: 82.93% | U96: 17.07% | V96: 1.100000024 | W96: 0.28 | X96: 38 | Y96: 3 | Z96: 92.68% | AA96: 7.32% | AB96: 4.099999905 | AC96: 0.41 | AD96: 35 | AE96: 6 | AF96: 85.37% | AG96: 14.63%
A97: 8019 | B97: 8019 Academy For Comm. Ed. | C97: 16 | D97: 16.10000038 | E97: 0.47 | F97: 15 | G97: 1 | H97: 93.75% | I97: 6.25% | J97: 3.099999905 | K97: 0.62 | L97: 10 | M97: 6 | N97: 62.50% | O97: 37.50% | P97: 7.400000095 | Q97: 0.5 | R97: 14 | S97: 2 | T97: 87.50% | U97: 12.50% | V97: 1.600000024 | W97: 0.41 | X97: 13 | Y97: 3 | Z97: 81.25% | AA97: 18.75% | AB97: 3.900000095 | AC97: 0.39 | AD97: 16 | AF97: 100.00%
A98: 8101 | B98: 8101 Jan Mann Opp. Center | C98: 3 | D98: 17.70000076 | E98: 0.52 | F98: 3 | H98: 100.00% | J98: 3.299999952 | K98: 0.67 | L98: 1 | M98: 2 | N98: 33.33% | O98: 66.67% | P98: 8 | Q98: 0.53 | R98: 3 | T98: 100.00% | V98: 1 | W98: 0.25 | X98: 3 | Z98: 100.00% | AB98: 5.300000191 | AC98: 0.53 | AD98: 2 | AE98: 1 | AF98: 66.67% | AG98: 33.33%
A99: 8121 | B99: 8121 C.O.P.E. Center North | C99: 12 | D99: 18.70000076 | E99: 0.55 | F99: 11 | G99: 1 | H99: 91.67% | I99: 8.33% | J99: 3.299999952 | K99: 0.67 | L99: 7 | M99: 5 | N99: 58.33% | O99: 41.67% | P99: 9.300000191 | Q99: 0.62 | R99: 6 | S99: 6 | T99: 50.00% | U99: 50.00% | V99: 1.200000048 | W99: 0.29 | X99: 12 | Z99: 100.00% | AB99: 4.900000095 | AC99: 0.49 | AD99: 10 | AE99: 2 | AF99: 83.33% | AG99: 16.67%
A100: 8131 | B100: 8131 Dorothy M. Wallace COPE Center | C100: 2 | D100: 17 | E100: 0.5 | F100: 2 | H100: 100.00% | J100: 3.5 | K100: 0.7 | L100: 1 | M100: 1 | N100: 50.00% | O100: 50.00% | P100: 8 | Q100: 0.54 | R100: 2 | T100: 100.00% | V100: 1.5 | W100: 0.38 | X100: 2 | Z100: 100.00% | AB100: 4 | AC100: 0.4 | AD100: 2 | AF100: 100.00%
A101: 8141 | B101: 8141 Juvenile Justice Center | C101: 8 | D101: 12.39999962 | E101: 0.36 | F101: 8 | H101: 100.00% | J101: 1.899999976 | K101: 0.38 | L101: 7 | M101: 1 | N101: 87.50% | O101: 12.50% | P101: 5.900000095 | Q101: 0.39 | R101: 8 | T101: 100.00% | V101: 1.5 | W101: 0.38 | X101: 6 | Y101: 2 | Z101: 75.00% | AA101: 25.00% | AB101: 3.099999905 | AC101: 0.31 | AD101: 8 | AF101: 100.00%
A102: 8151 | B102: 8151 Renick, Robert Educational Center | C102: 7 | D102: 13.69999981 | E102: 0.4 | F102: 7 | H102: 100.00% | J102: 2.400000095 | K102: 0.49 | L102: 5 | M102: 2 | N102: 71.43% | O102: 28.57% | P102: 6 | Q102: 0.4 | R102: 6 | S102: 1 | T102: 85.71% | U102: 14.29% | V102: 1 | W102: 0.25 | X102: 7 | Z102: 100.00% | AB102: 4.300000191 | AC102: 0.43 | AD102: 7 | AF102: 100.00%
A103: 8181 | B103: 8181 Ruth Owens Kruse Educational Center | C103: 6 | D103: 10 | E103: 0.29 | F103: 6 | H103: 100.00% | J103: 1 | K103: 0.2 | L103: 6 | N103: 100.00% | P103: 5.199999809 | Q103: 0.34 | R103: 6 | T103: 100.00% | V103: 0.5 | W103: 0.13 | X103: 6 | Z103: 100.00% | AB103: 3.299999952 | AC103: 0.33 | AD103: 6 | AF103: 100.00%
A104: 8911 | B104: 8911 Robert Morgan Educational Center | C104: 7 | D104: 16.89999962 | E104: 0.5 | F104: 7 | H104: 100.00% | J104: 3.299999952 | K104: 0.66 | L104: 2 | M104: 5 | N104: 28.57% | O104: 71.43% | P104: 8.399999619 | Q104: 0.56 | R104: 6 | S104: 1 | T104: 85.71% | U104: 14.29% | V104: 1.399999976 | W104: 0.36 | X104: 6 | Y104: 1 | Z104: 85.71% | AA104: 14.29% | AB104: 3.700000048 | AC104: 0.37 | AD104: 7 | AF104: 100.00%
A105: 9732 | B105: 9732 Merrick Educational Center | C105: 20 | D105: 21.60000038 | E105: 0.64 | F105: 10 | G105: 10 | H105: 50.00% | I105: 50.00% | J105: 3.799999952 | K105: 0.76 | L105: 5 | M105: 15 | N105: 25.00% | O105: 75.00% | P105: 9.800000191 | Q105: 0.65 | R105: 12 | S105: 8 | T105: 60.00% | U105: 40.00% | V105: 2.099999905 | W105: 0.52 | X105: 11 | Y105: 9 | Z105: 55.00% | AA105: 45.00% | AB105: 6 | AC105: 0.6 | AD105: 10 | AE105: 10 | AF105: 50.00% | AG105: 50.00%
C106: =SUM(C14:C105) -> 24901
A107: 9999 | B107: 9999 DISTRICT | C107: 24479 | D107: 19.89999962 | E107: 0.58 | F107: 15892 | G107: 8587 | H107: 64.92% | I107: 35.08% | J107: 3.400000095 | K107: 0.68 | L107: 11270 | M107: 13209 | N107: 46.04% | O107: 53.96% | P107: 9.199999809 | Q107: 0.61 | R107: 14720 | S107: 9759 | T107: 60.13% | U107: 39.87% | V107: 1.799999952 | W107: 0.44 | X107: 17671 | Y107: 6808 | Z107: 72.19% | AA107: 27.81% | AB107: 5.5 | AC107: 0.55 | AD107: 15792 | AE107: 8687 | AF107: 64.51% | AG107: 35.49%
C108: 24891
A143: =IFERROR(VALUE(LEFT(B143,4)),"") -> 
A207: =IFERROR(VALUE(LEFT(B207,4)),"") -> 
A271: =IFERROR(VALUE(LEFT(B271,4)),"") -> 

Sheet FIAG9BM-R (hidden)
B1: R-G09-BM-SCHL-ALL
B3: Description: | C3: Reading Grade 9-BM School for all
B4: Student Selection: | C4: All Schools | 2012-2013 Fall, 2012-2013 School Year
B5: Group By Data: | C5: School
B6: Assessments: | C6: Fall Interim 2012 Grade 9 Reading October 2012
B7: Scores: | C7: Overall Avg Raw Score, Overall Avg % Correct, Standards Avg Raw Score, Standards Avg % Correct
B8: Author Name: | C8: Yuwadee Wongbundhit
A9: =COLUMN() -> 1 | B9: =COLUMN() -> 2 | C9: =COLUMN() -> 3 | D9: =COLUMN() -> 4 | E9: =COLUMN() -> 5 | F9: =COLUMN() -> 6 | G9: =COLUMN() -> 7 | H9: =COLUMN() -> 8 | I9: =COLUMN() -> 9 | J9: =COLUMN() -> 10 | K9: =COLUMN() -> 11 | L9: =COLUMN() -> 12 | M9: =COLUMN() -> 13 | N9: =COLUMN() -> 14 | O9: =COLUMN() -> 15 | P9: =COLUMN() -> 16 | Q9: =COLUMN() -> 17 | R9: =COLUMN() -> 18 | S9: =COLUMN() -> 19 | T9: =COLUMN() -> 20 | U9: =COLUMN() -> 21 | V9: =COLUMN() -> 22 | W9: =COLUMN() -> 23 | X9: =COLUMN() -> 24 | Y9: =COLUMN() -> 25 | Z9: =COLUMN() -> 26 | AA9: =COLUMN() -> 27 | AB9: =COLUMN() -> 28 | AC9: =COLUMN() -> 29 | AD9: =COLUMN() -> 30 | AE9: =COLUMN() -> 31
B10: Total Row(s): 98 Generated on Nov-15-2012 by Yuwadee Wongbundhit | C10: Fall Interim 2012 Grade 9 Reading October 2012
C11: Total # students | D11: Overall (57 pts max) | F11: LA.910.1--LA.910.1.6: Benchmark LA.910.1.6.3 | H11: LA.910.1--LA.910.1.6: Benchmark LA.910.1.6.8 | J11: LA.910.1--LA.910.1.6: Benchmark LA.910.1.6.9 | L11: LA.910.1--LA.910.1.7: Benchmark LA.910.1.7.2 | N11: LA.910.1--LA.910.1.7: Benchmark LA.910.1.7.3 | P11: LA.910.1--LA.910.1.7: Benchmark LA.910.1.7.4 | R11: LA.910.1--LA.910.1.7: Benchmark LA.910.1.7.5 | T11: LA.910.1--LA.910.1.7: Benchmark LA.910.1.7.7 | V11: LA.910.2--LA.910.2.1: Benchmark LA.910.2.1.5 | X11: LA.910.2--LA.910.2.1: Benchmark LA.910.2.1.7 | Z11: LA.910.2--LA.910.2.2: Benchmark LA.910.2.2.1 | AB11: LA.910.6--LA.910.6.1: Benchmark LA.910.6.1.1 | AD11: LA.910.6--LA.910.6.2: Benchmark LA.910.6.2.2
D12: Avg Raw Score | E12: Avg % Correct | F12: Avg Raw Score | G12: Avg % Correct | H12: Avg Raw Score | I12: Avg % Correct | J12: Avg Raw Score | K12: Avg % Correct | L12: Avg Raw Score | M12: Avg % Correct | N12: Avg Raw Score | O12: Avg % Correct | P12: Avg Raw Score | Q12: Avg % Correct | R12: Avg Raw Score | S12: Avg % Correct | T12: Avg Raw Score | U12: Avg % Correct | V12: Avg Raw Score | W12: Avg % Correct | X12: Avg Raw Score | Y12: Avg % Correct | Z12: Avg Raw Score | AA12: Avg % Correct | AB12: Avg Raw Score | AC12: Avg % Correct | AD12: Avg Raw Score | AE12: Avg % Correct
B13: School Name
A14: =IFERROR(VALUE(LEFT(B14,4)),"") -> 6040 | B14: 6040 Doctors Charter School Of Miami Shores | C14: 80 | D14: 39.59999847 | E14: 0.69 | F14: 3.5 | G14: 0.71 | H14: 2.5 | I14: 0.63 | J14: 3.299999952 | K14: 0.83 | L14: 2.599999905 | M14: 0.65 | N14: 3.799999952 | O14: 0.75 | P14: 3.599999905 | Q14: 0.71 | R14: 2.900000095 | S14: 0.71 | T14: 2.700000048 | U14: 0.67 | V14: 1.700000048 | W14: 0.57 | X14: 2.700000048 | Y14: 0.54 | Z14: 3.200000048 | AA14: 0.79 | AB14: 3.299999952 | AC14: 0.82 | AD14: 3.900000095 | AE14: 0.66
A15: =IFERROR(VALUE(LEFT(B15,4)),"") -> 6052 | B15: 6052 Zelda Glazer Middle | C15: 1 | D15: 33 | E15: 0.58 | F15: 3 | G15: 0.6 | H15: 0 | I15: 0 | J15: 2 | K15: 0.5 | L15: 3 | M15: 0.75 | N15: 4 | O15: 0.8 | P15: 3 | Q15: 0.6 | R15: 2 | S15: 0.5 | T15: 2 | U15: 0.5 | V15: 2 | W15: 0.67 | X15: 1 | Y15: 0.2 | Z15: 3 | AA15: 0.75 | AB15: 4 | AC15: 1 | AD15: 4 | AE15: 0.67
A16: 6081 | B16: 6081 Centennial Middle School | C16: 76 | D16: 37.59999847 | E16: 0.66 | F16: 3.5 | G16: 0.71 | H16: 2.299999952 | I16: 0.58 | J16: 3 | K16: 0.76 | L16: 2.5 | M16: 0.63 | N16: 3.5 | O16: 0.71 | P16: 3.5 | Q16: 0.69 | R16: 2.799999952 | S16: 0.69 | T16: 2.700000048 | U16: 0.66 | V16: 1.700000048 | W16: 0.57 | X16: 2.700000048 | Y16: 0.54 | Z16: 2.900000095 | AA16: 0.74 | AB16: 2.700000048 | AC16: 0.68 | AD16: 3.700000048 | AE16: 0.62
A17: 7007 | B17: 7007 International Studies Charter High School | C17: 81 | D17: 32.70000076 | E17: 0.57 | F17: 3.200000048 | G17: 0.63 | H17: 1.600000024 | I17: 0.41 | J17: 2.700000048 | K17: 0.68 | L17: 2.099999905 | M17: 0.52 | N17: 3.200000048 | O17: 0.63 | P17: 3.099999905 | Q17: 0.61 | R17: 2.400000095 | S17: 0.61 | T17: 2.400000095 | U17: 0.6 | V17: 1.299999952 | W17: 0.42 | X17: 2.400000095 | Y17: 0.48 | Z17: 2.5 | AA17: 0.62 | AB17: 2.5 | AC17: 0.63 | AD17: 3.299999952 | AE17: 0.55
A18: 7009 | B18: 7009 Doral Performing Arts Academy | C18: 98 | D18: 41.79999924 | E18: 0.73 | F18: 3.799999952 | G18: 0.77 | H18: 2.400000095 | I18: 0.61 | J18: 3.400000095 | K18: 0.85 | L18: 3 | M18: 0.75 | N18: 3.900000095 | O18: 0.79 | P18: 3.700000048 | Q18: 0.73 | R18: 3.099999905 | S18: 0.78 | T18: 2.900000095 | U18: 0.72 | V18: 1.799999952 | W18: 0.6 | X18: 2.900000095 | Y18: 0.59 | Z18: 3.299999952 | AA18: 0.83 | AB18: 3.200000048 | AC18: 0.8 | AD18: 4.300000191 | AE18: 0.72
A19: 7011 | B19: 7011 American Senior High School | C19: 489 | D19: 29.5 | E19: 0.52 | F19: 2.799999952 | G19: 0.55 | H19: 1.700000048 | I19: 0.43 | J19: 2.599999905 | K19: 0.65 | L19: 2.099999905 | M19: 0.53 | N19: 2.799999952 | O19: 0.56 | P19: 2.599999905 | Q19: 0.52 | R19: 2.099999905 | S19: 0.52 | T19: 2 | U19: 0.51 | V19: 1.100000024 | W19: 0.37 | X19: 2 | Y19: 0.41 | Z19: 2.200000048 | AA19: 0.55 | AB19: 2.299999952 | AC19: 0.58 | AD19: 3.099999905 | AE19: 0.51
A20: 7014 | B20: 7014 Mater Performing Arts & Entertainment Academy | C20: 96 | D20: 41 | E20: 0.72 | F20: 3.900000095 | G20: 0.78 | H20: 2.5 | I20: 0.63 | J20: 3.299999952 | K20: 0.82 | L20: 3.099999905 | M20: 0.77 | N20: 3.799999952 | O20: 0.77 | P20: 3.400000095 | Q20: 0.68 | R20: 2.900000095 | S20: 0.72 | T20: 3 | U20: 0.74 | V20: 1.600000024 | W20: 0.52 | X20: 3 | Y20: 0.6 | Z20: 3.299999952 | AA20: 0.84 | AB20: 3 | AC20: 0.76 | AD20: 4.199999809 | AE20: 0.7
A21: 7016 | B21: 7016 Sports Leadership Academy Of Miami Chs | C21: 14 | D21: 34.5 | E21: 0.61 | F21: 3.400000095 | G21: 0.67 | H21: 1.799999952 | I21: 0.45 | J21: 3.200000048 | K21: 0.8 | L21: 2.200000048 | M21: 0.55 | N21: 3.299999952 | O21: 0.66 | P21: 3.200000048 | Q21: 0.64 | R21: 2.400000095 | S21: 0.59 | T21: 2.400000095 | U21: 0.61 | V21: 1.399999976 | W21: 0.48 | X21: 2.599999905 | Y21: 0.53 | Z21: 2.400000095 | AA21: 0.61 | AB21: 2.700000048 | AC21: 0.68 | AD21: 3.400000095 | AE21: 0.57
A22: 7018 | B22: 7018 Mater Academy Lakes High School | C22: 286 | D22: 35.20000076 | E22: 0.62 | F22: 3.400000095 | G22: 0.67 | H22: 2 | I22: 0.51 | J22: 2.900000095 | K22: 0.73 | L22: 2.5 | M22: 0.62 | N22: 3.400000095 | O22: 0.67 | P22: 3.200000048 | Q22: 0.64 | R22: 2.5 | S22: 0.63 | T22: 2.5 | U22: 0.62 | V22: 1.299999952 | W22: 0.43 | X22: 2.299999952 | Y22: 0.46 | Z22: 2.799999952 | AA22: 0.7 | AB22: 2.799999952 | AC22: 0.69 | AD22: 3.700000048 | AE22: 0.61
A23: 7020 | B23: 7020 Doral Academy High School | C23: 408 | D23: 38 | E23: 0.67 | F23: 3.5 | G23: 0.7 | H23: 2.200000048 | I23: 0.56 | J23: 3.200000048 | K23: 0.81 | L23: 2.599999905 | M23: 0.65 | N23: 3.700000048 | O23: 0.74 | P23: 3.400000095 | Q23: 0.68 | R23: 2.799999952 | S23: 0.69 | T23: 2.700000048 | U23: 0.67 | V23: 1.5 | W23: 0.51 | X23: 2.599999905 | Y23: 0.53 | Z23: 3 | AA23: 0.75 | AB23: 3 | AC23: 0.75 | AD23: 3.799999952 | AE23: 0.63
A24: 7022 | B24: 7022 Academy Of Arts And Minds | C24: 24 | D24: 31.89999962 | E24: 0.56 | F24: 2.799999952 | G24: 0.55 | H24: 1.799999952 | I24: 0.46 | J24: 2.799999952 | K24: 0.69 | L24: 2.299999952 | M24: 0.58 | N24: 2.900000095 | O24: 0.58 | P24: 2.5 | Q24: 0.51 | R24: 2.5 | S24: 0.64 | T24: 2.400000095 | U24: 0.6 | V24: 1.299999952 | W24: 0.43 | X24: 2.400000095 | Y24: 0.48 | Z24: 2.299999952 | AA24: 0.58 | AB24: 2.5 | AC24: 0.61 | AD24: 3.400000095 | AE24: 0.57
A25: 7024 | B25: 7024 Mater Academy HS of International Studies | C25: 24 | D25: 35 | E25: 0.61 | F25: 3.299999952 | G25: 0.66 | H25: 1.700000048 | I25: 0.42 | J25: 3 | K25: 0.76 | L25: 2.299999952 | M25: 0.57 | N25: 3.599999905 | O25: 0.73 | P25: 3 | Q25: 0.6 | R25: 2.599999905 | S25: 0.66 | T25: 2.700000048 | U25: 0.67 | V25: 1.399999976 | W25: 0.46 | X25: 2 | Y25: 0.41 | Z25: 3 | AA25: 0.76 | AB25: 2.599999905 | AC25: 0.66 | AD25: 3.700000048 | AE25: 0.62
A26: 7025 | B26: 7025 Mater Brickell Preparatory Academy High | C26: 14 | D26: 39.90000153 | E26: 0.7 | F26: 3.700000048 | G26: 0.74 | H26: 2.5 | I26: 0.63 | J26: 3.299999952 | K26: 0.82 | L26: 2.900000095 | M26: 0.71 | N26: 4 | O26: 0.8 | P26: 3.299999952 | Q26: 0.66 | R26: 2.799999952 | S26: 0.7 | T26: 2.799999952 | U26: 0.7 | V26: 1.600000024 | W26: 0.55 | X26: 2.599999905 | Y26: 0.53 | Z26: 3.200000048 | AA26: 0.8 | AB26: 3 | AC26: 0.75 | AD26: 4.099999905 | AE26: 0.69
A27: 7029 | B27: 7029 Terra Environmental Institute | C27: 547 | D27: 42.59999847 | E27: 0.75 | F27: 4 | G27: 0.8 | H27: 2.599999905 | I27: 0.66 | J27: 3.400000095 | K27: 0.85 | L27: 3 | M27: 0.76 | N27: 3.900000095 | O27: 0.78 | P27: 4 | Q27: 0.79 | R27: 3.099999905 | S27: 0.77 | T27: 2.900000095 | U27: 0.72 | V27: 1.799999952 | W27: 0.61 | X27: 3.200000048 | Y27: 0.64 | Z27: 3.299999952 | AA27: 0.83 | AB27: 3.099999905 | AC27: 0.77 | AD27: 4.300000191 | AE27: 0.72
A28: 7032 | B28: 7032 Palm Glades Preparatory High School | C28: 80 | D28: 30 | E28: 0.53 | F28: 3 | G28: 0.6 | H28: 1.700000048 | I28: 0.42 | J28: 2.599999905 | K28: 0.65 | L28: 2 | M28: 0.5 | N28: 3 | O28: 0.59 | P28: 2.400000095 | Q28: 0.48 | R28: 2.200000048 | S28: 0.54 | T28: 2.099999905 | U28: 0.52 | V28: 1.399999976 | W28: 0.46 | X28: 2 | Y28: 0.4 | Z28: 2.200000048 | AA28: 0.55 | AB28: 2.5 | AC28: 0.62 | AD28: 3 | AE28: 0.5
A29: 7033 | B29: 7033 Law Enforcement Officers Memorial High | C29: 73 | D29: 37.59999847 | E29: 0.66 | F29: 3.799999952 | G29: 0.76 | H29: 2.299999952 | I29: 0.58 | J29: 3.099999905 | K29: 0.78 | L29: 2.599999905 | M29: 0.65 | N29: 3.5 | O29: 0.69 | P29: 3.5 | Q29: 0.69 | R29: 2.599999905 | S29: 0.64 | T29: 2.5 | U29: 0.63 | V29: 1.5 | W29: 0.51 | X29: 2.900000095 | Y29: 0.58 | Z29: 2.900000095 | AA29: 0.73 | AB29: 2.799999952 | AC29: 0.7 | AD29: 3.599999905 | AE29: 0.6
A30: 7034 | B30: 7034 Somerset Academy Charter High South Campus | C30: 16 | D30: 37.70000076 | E30: 0.66 | F30: 3.299999952 | G30: 0.66 | H30: 2.5 | I30: 0.63 | J30: 2.900000095 | K30: 0.73 | L30: 2.799999952 | M30: 0.7 | N30: 3.599999905 | O30: 0.73 | P30: 3.599999905 | Q30: 0.71 | R30: 2.400000095 | S30: 0.59 | T30: 2.599999905 | U30: 0.64 | V30: 1.399999976 | W30: 0.48 | X30: 2.5 | Y30: 0.5 | Z30: 3 | AA30: 0.75 | AB30: 3.099999905 | AC30: 0.78 | AD30: 3.900000095 | AE30: 0.66
A31: 7036 | B31: 7036 Lawrence Academy Senior High Charter School | C31: 24 | D31: 25.79999924 | E31: 0.45 | F31: 2.400000095 | G31: 0.48 | H31: 1.399999976 | I31: 0.34 | J31: 2.299999952 | K31: 0.56 | L31: 1.700000048 | M31: 0.43 | N31: 2.700000048 | O31: 0.53 | P31: 2.400000095 | Q31: 0.48 | R31: 1.799999952 | S31: 0.44 | T31: 2 | U31: 0.49 | V31: 1 | W31: 0.33 | X31: 1.600000024 | Y31: 0.32 | Z31: 1.700000048 | AA31: 0.42 | AB31: 2.299999952 | AC31: 0.57 | AD31: 2.799999952 | AE31: 0.47
A32: 7037 | B32: 7037 Mater Academy East Charter High School | C32: 63 | D32: 36.70000076 | E32: 0.64 | F32: 3.5 | G32: 0.7 | H32: 2 | I32: 0.49 | J32: 2.799999952 | K32: 0.7 | L32: 2.400000095 | M32: 0.61 | N32: 3.900000095 | O32: 0.77 | P32: 3.400000095 | Q32: 0.69 | R32: 2.599999905 | S32: 0.66 | T32: 2.700000048 | U32: 0.67 | V32: 1.5 | W32: 0.49 | X32: 2.700000048 | Y32: 0.53 | Z32: 2.700000048 | AA32: 0.67 | AB32: 2.799999952 | AC32: 0.71 | AD32: 3.799999952 | AE32: 0.64
A33: 7042 | B33: 7042 Somerset Academy Charter High School | C33: 98 | D33: 35.90000153 | E33: 0.63 | F33: 3.400000095 | G33: 0.67 | H33: 2 | I33: 0.5 | J33: 2.900000095 | K33: 0.73 | L33: 2.599999905 | M33: 0.64 | N33: 3.5 | O33: 0.71 | P33: 3.200000048 | Q33: 0.64 | R33: 2.5 | S33: 0.62 | T33: 2.400000095 | U33: 0.61 | V33: 1.5 | W33: 0.5 | X33: 2.400000095 | Y33: 0.49 | Z33: 3 | AA33: 0.74 | AB33: 2.700000048 | AC33: 0.68 | AD33: 3.799999952 | AE33: 0.63
A34: 7048 | B34: 7048 Alonzo Andtracy Mourning High (Biscanye Bay) | C34: 438 | D34: 34.20000076 | E34: 0.6 | F34: 3.099999905 | G34: 0.61 | H34: 2 | I34: 0.51 | J34: 2.799999952 | K34: 0.71 | L34: 2.5 | M34: 0.61 | N34: 3.299999952 | O34: 0.66 | P34: 3.099999905 | Q34: 0.62 | R34: 2.599999905 | S34: 0.64 | T34: 2.400000095 | U34: 0.59 | V34: 1.299999952 | W34: 0.43 | X34: 2.400000095 | Y34: 0.48 | Z34: 2.599999905 | AA34: 0.66 | AB34: 2.700000048 | AC34: 0.68 | AD34: 3.5 | AE34: 0.58
A35: 7049 | B35: 7049 Westland Hialeah Senior | C35: 613 | D35: 28.39999962 | E35: 0.5 | F35: 2.799999952 | G35: 0.57 | H35: 1.600000024 | I35: 0.41 | J35: 2.299999952 | K35: 0.58 | L35: 2 | M35: 0.51 | N35: 2.700000048 | O35: 0.54 | P35: 2.400000095 | Q35: 0.48 | R35: 2.099999905 | S35: 0.51 | T35: 2 | U35: 0.51 | V35: 1.200000048 | W35: 0.38 | X35: 1.899999976 | Y35: 0.39 | Z35: 2.099999905 | AA35: 0.53 | AB35: 2.299999952 | AC35: 0.57 | AD35: 2.799999952 | AE35: 0.47
A36: 7051 | B36: 7051 G Holmes Braddock Senior High | C36: 821 | D36: 33.5 | E36: 0.59 | F36: 3.099999905 | G36: 0.62 | H36: 1.899999976 | I36: 0.48 | J36: 2.700000048 | K36: 0.67 | L36: 2.299999952 | M36: 0.57 | N36: 3.200000048 | O36: 0.64 | P36: 3 | Q36: 0.59 | R36: 2.400000095 | S36: 0.61 | T36: 2.299999952 | U36: 0.58 | V36: 1.299999952 | W36: 0.45 | X36: 2.400000095 | Y36: 0.48 | Z36: 2.700000048 | AA36: 0.68 | AB36: 2.700000048 | AC36: 0.66 | AD36: 3.5 | AE36: 0.58
A37: 7053 | B37: 7053 Pinecrest Preparatory Academy Charter HS | C37: 130 | D37: 35.5 | E37: 0.62 | F37: 3.400000095 | G37: 0.68 | H37: 1.899999976 | I37: 0.47 | J37: 2.900000095 | K37: 0.72 | L37: 2.599999905 | M37: 0.64 | N37: 3.400000095 | O37: 0.68 | P37: 3.200000048 | Q37: 0.63 | R37: 2.599999905 | S37: 0.64 | T37: 2.5 | U37: 0.63 | V37: 1.399999976 | W37: 0.48 | X37: 2.5 | Y37: 0.5 | Z37: 2.700000048 | AA37: 0.69 | AB37: 2.900000095 | AC37: 0.71 | AD37: 3.599999905 | AE37: 0.61
A38: 7054 | B38: 7054 Excelsior Charter High School | C38: 49 | D38: 25.70000076 | E38: 0.45 | F38: 2.5 | G38: 0.51 | H38: 1.299999952 | I38: 0.34 | J38: 2.200000048 | K38: 0.55 | L38: 1.600000024 | M38: 0.4 | N38: 2.700000048 | O38: 0.54 | P38: 2.099999905 | Q38: 0.43 | R38: 2.099999905 | S38: 0.53 | T38: 1.799999952 | U38: 0.45 | V38: 0.8000000119 | W38: 0.26 | X38: 1.600000024 | Y38: 0.32 | Z38: 1.899999976 | AA38: 0.46 | AB38: 2.400000095 | AC38: 0.61 | AD38: 2.5 | AE38: 0.42
A39: 7055 | B39: 7055 Young Women's Preparatory Academy | C39: 51 | D39: 40.79999924 | E39: 0.72 | F39: 3.900000095 | G39: 0.78 | H39: 2.599999905 | I39: 0.64 | J39: 3.599999905 | K39: 0.91 | L39: 3 | M39: 0.74 | N39: 3.900000095 | O39: 0.79 | P39: 3.700000048 | Q39: 0.74 | R39: 2.900000095 | S39: 0.73 | T39: 2.700000048 | U39: 0.68 | V39: 1.600000024 | W39: 0.54 | X39: 3.299999952 | Y39: 0.65 | Z39: 3.099999905 | AA39: 0.77 | AB39: 2.900000095 | AC39: 0.73 | AD39: 3.599999905 | AE39: 0.6
A40: 7056 | B40: 7056 Young Men's Preparatory High School | C40: 25 | D40: 32.40000153 | E40: 0.57 | F40: 3.400000095 | G40: 0.67 | H40: 1.799999952 | I40: 0.46 | J40: 2.900000095 | K40: 0.73 | L40: 2 | M40: 0.49 | N40: 3.099999905 | O40: 0.62 | P40: 2.900000095 | Q40: 0.58 | R40: 2.200000048 | S40: 0.56 | T40: 2.099999905 | U40: 0.53 | V40: 1.200000048 | W40: 0.39 | X40: 2.200000048 | Y40: 0.43 | Z40: 2.599999905 | AA40: 0.64 | AB40: 2.5 | AC40: 0.62 | AD40: 3.5 | AE40: 0.59
A41: 7058 | B41: 7058 Miami Community Charter High | C41: 54 | D41: 27.39999962 | E41: 0.48 | F41: 2.799999952 | G41: 0.56 | H41: 1.5 | I41: 0.38 | J41: 2.299999952 | K41: 0.58 | L41: 1.899999976 | M41: 0.46 | N41: 2.599999905 | O41: 0.51 | P41: 2.5 | Q41: 0.5 | R41: 2.099999905 | S41: 0.53 | T41: 2 | U41: 0.49 | V41: 1 | W41: 0.32 | X41: 1.700000048 | Y41: 0.33 | Z41: 2 | AA41: 0.5 | AB41: 2.299999952 | AC41: 0.57 | AD41: 2.799999952 | AE41: 0.47
A42: 7059 | B42: 7059 Miami Arts Charter | C42: 106 | D42: 36.59999847 | E42: 0.64 | F42: 3.5 | G42: 0.7 | H42: 2.200000048 | I42: 0.56 | J42: 3.200000048 | K42: 0.79 | L42: 2.5 | M42: 0.62 | N42: 3.400000095 | O42: 0.68 | P42: 3.099999905 | Q42: 0.61 | R42: 2.700000048 | S42: 0.67 | T42: 2.599999905 | U42: 0.66 | V42: 1.5 | W42: 0.51 | X42: 2.700000048 | Y42: 0.53 | Z42: 2.799999952 | AA42: 0.7 | AB42: 2.799999952 | AC42: 0.7 | AD42: 3.700000048 | AE42: 0.61
A43: 7060 | B43: 7060 Everglades Preparatory Academy High School | C43: 133 | D43: 32.79999924 | E43: 0.58 | F43: 3.200000048 | G43: 0.65 | H43: 1.799999952 | I43: 0.46 | J43: 3 | K43: 0.76 | L43: 2.200000048 | M43: 0.55 | N43: 3.299999952 | O43: 0.66 | P43: 2.799999952 | Q43: 0.56 | R43: 2.299999952 | S43: 0.57 | T43: 2.299999952 | U43: 0.58 | V43: 1.299999952 | W43: 0.42 | X43: 2.200000048 | Y43: 0.45 | Z43: 2.400000095 | AA43: 0.61 | AB43: 2.5 | AC43: 0.61 | AD43: 3.5 | AE43: 0.58
A44: 7062 | B44: 7062 Mavericks High Of North Miami Dade County | C44: 11 | D44: 21.20000076 | E44: 0.37 | F44: 2.200000048 | G44: 0.44 | H44: 1.100000024 | I44: 0.27 | J44: 1.5 | K44: 0.39 | L44: 2.200000048 | M44: 0.55 | N44: 2.200000048 | O44: 0.44 | P44: 1.899999976 | Q44: 0.38 | R44: 0.8000000119 | S44: 0.2 | T44: 1.299999952 | U44: 0.32 | V44: 0.8999999762 | W44: 0.3 | X44: 1.600000024 | Y44: 0.33 | Z44: 1.200000048 | AA44: 0.3 | AB44: 2 | AC44: 0.5 | AD44: 2.299999952 | AE44: 0.38
A45: 7065 | B45: 7065 Mavericks High Of South Miami Dade County | C45: 22 | D45: 17.29999924 | E45: 0.31 | F45: 1.100000024 | G45: 0.22 | H45: 1.100000024 | I45: 0.28 | J45: 1.799999952 | K45: 0.44 | L45: 1.200000048 | M45: 0.3 | N45: 1.5 | O45: 0.3 | P45: 1.200000048 | Q45: 0.25 | R45: 1.100000024 | S45: 0.28 | T45: 1.399999976 | U45: 0.34 | V45: 0.8000000119 | W45: 0.27 | X45: 1.299999952 | Y45: 0.26 | Z45: 1.299999952 | AA45: 0.33 | AB45: 1.700000048 | AC45: 0.43 | AD45: 1.700000048 | AE45: 0.29
A46: 7066 | B46: 7066 LBA Management Academy | C46: 41 | D46: 35.29999924 | E46: 0.62 | F46: 3.299999952 | G46: 0.65 | H46: 2 | I46: 0.51 | J46: 2.799999952 | K46: 0.71 | L46: 2.599999905 | M46: 0.65 | N46: 3.299999952 | O46: 0.67 | P46: 3.400000095 | Q46: 0.68 | R46: 2.400000095 | S46: 0.6 | T46: 2.700000048 | U46: 0.67 | V46: 1.700000048 | W46: 0.56 | X46: 2.200000048 | Y46: 0.45 | Z46: 2.799999952 | AA46: 0.7 | AB46: 2.700000048 | AC46: 0.68 | AD46: 3.200000048 | AE46: 0.54
A47: 7067 | B47: 7067 Florida High School Of Accelerated Learning- | C47: 18 | D47: 23.60000038 | E47: 0.41 | F47: 1.799999952 | G47: 0.36 | H47: 1.100000024 | I47: 0.28 | J47: 1.799999952 | K47: 0.44 | L47: 1.799999952 | M47: 0.44 | N47: 2.700000048 | O47: 0.53 | P47: 2.099999905 | Q47: 0.42 | R47: 1.799999952 | S47: 0.46 | T47: 1.799999952 | U47: 0.44 | V47: 0.6999999881 | W47: 0.22 | X47: 1.5 | Y47: 0.3 | Z47: 1.700000048 | AA47: 0.42 | AB47: 2.099999905 | AC47: 0.53 | AD47: 2.799999952 | AE47: 0.47
A48: 7068 | B48: 7068 North Gardens High School | C48: 29 | D48: 23.79999924 | E48: 0.42 | F48: 2.400000095 | G48: 0.48 | H48: 1.799999952 | I48: 0.45 | J48: 1.899999976 | K48: 0.47 | L48: 1.299999952 | M48: 0.32 | N48: 2.400000095 | O48: 0.48 | P48: 1.899999976 | Q48: 0.38 | R48: 1.700000048 | S48: 0.41 | T48: 1.600000024 | U48: 0.4 | V48: 1 | W48: 0.33 | X48: 1.799999952 | Y48: 0.36 | Z48: 1.799999952 | AA48: 0.44 | AB48: 2 | AC48: 0.5 | AD48: 2.400000095 | AE48: 0.4
A49: 7069 | B49: 7069 North Park High School | C49: 17 | D49: 20.20000076 | E49: 0.35 | F49: 1.799999952 | G49: 0.35 | H49: 0.8999999762 | I49: 0.24 | J49: 1.600000024 | K49: 0.41 | L49: 1.700000048 | M49: 0.43 | N49: 2.200000048 | O49: 0.44 | P49: 1.799999952 | Q49: 0.35 | R49: 1.700000048 | S49: 0.43 | T49: 1.5 | U49: 0.37 | V49: 0.8999999762 | W49: 0.31 | X49: 1.200000048 | Y49: 0.24 | Z49: 1.399999976 | AA49: 0.35 | AB49: 1.5 | AC49: 0.37 | AD49: 2 | AE49: 0.33
A50: 7070 | B50: 7070 Youth Co-op Preparatory High School | C50: 68 | D50: 34.70000076 | E50: 0.61 | F50: 3.400000095 | G50: 0.67 | H50: 2.099999905 | I50: 0.51 | J50: 2.799999952 | K50: 0.71 | L50: 2.299999952 | M50: 0.58 | N50: 3.200000048 | O50: 0.64 | P50: 3.099999905 | Q50: 0.62 | R50: 2.5 | S50: 0.63 | T50: 2.599999905 | U50: 0.65 | V50: 1.399999976 | W50: 0.46 | X50: 2.400000095 | Y50: 0.47 | Z50: 2.700000048 | AA50: 0.67 | AB50: 2.900000095 | AC50: 0.72 | AD50: 3.400000095 | AE50: 0.56
A51: 7071 | B51: 7071 Coral Gables Senior High School | C51: 811 | D51: 31.70000076 | E51: 0.56 | F51: 3 | G51: 0.6 | H51: 1.799999952 | I51: 0.46 | J51: 2.700000048 | K51: 0.67 | L51: 2.299999952 | M51: 0.57 | N51: 3 | O51: 0.6 | P51: 2.799999952 | Q51: 0.55 | R51: 2.400000095 | S51: 0.59 | T51: 2.200000048 | U51: 0.55 | V51: 1.299999952 | W51: 0.43 | X51: 2.299999952 | Y51: 0.46 | Z51: 2.299999952 | AA51: 0.58 | AB51: 2.5 | AC51: 0.63 | AD51: 3.200000048 | AE51: 0.53
A52: 7080 | B52: 7080 Charter High School Of The Americas | C52: 36 | D52: 32.09999847 | E52: 0.56 | F52: 3.200000048 | G52: 0.63 | H52: 1.899999976 | I52: 0.47 | J52: 2.599999905 | K52: 0.66 | L52: 2.299999952 | M52: 0.56 | N52: 2.900000095 | O52: 0.58 | P52: 2.900000095 | Q52: 0.57 | R52: 2.400000095 | S52: 0.59 | T52: 2 | U52: 0.51 | V52: 1.299999952 | W52: 0.44 | X52: 2.599999905 | Y52: 0.53 | Z52: 2.299999952 | AA52: 0.58 | AB52: 2.5 | AC52: 0.63 | AD52: 3.299999952 | AE52: 0.54
A53: 7081 | B53: 7081 DASH | C53: 138 | D53: 45.29999924 | E53: 0.79 | F53: 4.199999809 | G53: 0.84 | H53: 3.099999905 | I53: 0.78 | J53: 3.5 | K53: 0.88 | L53: 3.200000048 | M53: 0.8 | N53: 4.099999905 | O53: 0.81 | P53: 4.199999809 | Q53: 0.84 | R53: 3.299999952 | S53: 0.82 | T53: 3 | U53: 0.75 | V53: 2.099999905 | W53: 0.68 | X53: 3.599999905 | Y53: 0.73 | Z53: 3.5 | AA53: 0.87 | AB53: 3.099999905 | AC53: 0.77 | AD53: 4.400000095 | AE53: 0.74
A54: 7101 | B54: 7101 Coral Reef Senior High School | C54: 834 | D54: 40.09999847 | E54: 0.7 | F54: 3.799999952 | G54: 0.76 | H54: 2.5 | I54: 0.62 | J54: 3.299999952 | K54: 0.82 | L54: 2.799999952 | M54: 0.71 | N54: 3.700000048 | O54: 0.75 | P54: 3.599999905 | Q54: 0.72 | R54: 2.900000095 | S54: 0.72 | T54: 2.700000048 | U54: 0.68 | V54: 1.700000048 | W54: 0.56 | X54: 2.900000095 | Y54: 0.59 | Z54: 3 | AA54: 0.76 | AB54: 3 | AC54: 0.76 | AD54: 4 | AE54: 0.67
A55: 7111 | B55: 7111 Hialeah Senior high | C55: 649 | D55: 29.10000038 | E55: 0.51 | F55: 2.799999952 | G55: 0.56 | H55: 1.600000024 | I55: 0.41 | J55: 2.299999952 | K55: 0.59 | L55: 2.099999905 | M55: 0.52 | N55: 2.799999952 | O55: 0.57 | P55: 2.5 | Q55: 0.5 | R55: 2.099999905 | S55: 0.53 | T55: 2.099999905 | U55: 0.52 | V55: 1.200000048 | W55: 0.41 | X55: 2.099999905 | Y55: 0.41 | Z55: 2.200000048 | AA55: 0.54 | AB55: 2.200000048 | AC55: 0.56 | AD55: 3 | AE55: 0.5
A56: 7121 | B56: 7121 John A. Ferguson Senior High School | C56: 1019 | D56: 31.60000038 | E56: 0.55 | F56: 2.900000095 | G56: 0.58 | H56: 1.700000048 | I56: 0.44 | J56: 2.599999905 | K56: 0.66 | L56: 2.299999952 | M56: 0.58 | N56: 3.099999905 | O56: 0.61 | P56: 2.599999905 | Q56: 0.53 | R56: 2.299999952 | S56: 0.58 | T56: 2.299999952 | U56: 0.57 | V56: 1.200000048 | W56: 0.4 | X56: 2.299999952 | Y56: 0.45 | Z56: 2.400000095 | AA56: 0.61 | AB56: 2.599999905 | AC56: 0.65 | AD56: 3.200000048 | AE56: 0.53
A57: 7131 | B57: 7131 Hialeah-Miami Lakes Senior High | C57: 434 | D57: 28.89999962 | E57: 0.51 | F57: 2.599999905 | G57: 0.52 | H57: 1.700000048 | I57: 0.42 | J57: 2.400000095 | K57: 0.61 | L57: 2 | M57: 0.5 | N57: 2.799999952 | O57: 0.56 | P57: 2.5 | Q57: 0.51 | R57: 2.099999905 | S57: 0.53 | T57: 2.099999905 | U57: 0.53 | V57: 1.200000048 | W57: 0.4 | X57: 2.099999905 | Y57: 0.42 | Z57: 2.200000048 | AA57: 0.54 | AB57: 2.299999952 | AC57: 0.58 | AD57: 2.799999952 | AE57: 0.47
A58: 7141 | B58: 7141 Dr. Michael M. Krop Senior High School | C58: 551 | D58: 33.5 | E58: 0.59 | F58: 3.200000048 | G58: 0.64 | H58: 2 | I58: 0.49 | J58: 2.799999952 | K58: 0.69 | L58: 2.400000095 | M58: 0.6 | N58: 3.200000048 | O58: 0.65 | P58: 2.900000095 | Q58: 0.59 | R58: 2.400000095 | S58: 0.6 | T58: 2.299999952 | U58: 0.58 | V58: 1.299999952 | W58: 0.45 | X58: 2.400000095 | Y58: 0.49 | Z58: 2.5 | AA58: 0.63 | AB58: 2.599999905 | AC58: 0.65 | AD58: 3.400000095 | AE58: 0.56
A59: 7151 | B59: 7151 Homestead Sr. High School | C59: 346 | D59: 28.39999962 | E59: 0.5 | F59: 2.700000048 | G59: 0.55 | H59: 1.700000048 | I59: 0.43 | J59: 2.400000095 | K59: 0.61 | L59: 2 | M59: 0.51 | N59: 2.799999952 | O59: 0.56 | P59: 2.5 | Q59: 0.49 | R59: 2.099999905 | S59: 0.52 | T59: 1.899999976 | U59: 0.48 | V59: 1.200000048 | W59: 0.41 | X59: 1.899999976 | Y59: 0.38 | Z59: 2.099999905 | AA59: 0.52 | AB59: 2.200000048 | AC59: 0.56 | AD59: 2.700000048 | AE59: 0.46
A60: 7160 | B60: 7160 Mater Academy High | C60: 430 | D60: 34.20000076 | E60: 0.6 | F60: 3.400000095 | G60: 0.67 | H60: 1.899999976 | I60: 0.48 | J60: 2.900000095 | K60: 0.72 | L60: 2.5 | M60: 0.61 | N60: 3.299999952 | O60: 0.65 | P60: 2.799999952 | Q60: 0.57 | R60: 2.5 | S60: 0.62 | T60: 2.400000095 | U60: 0.61 | V60: 1.399999976 | W60: 0.46 | X60: 2.400000095 | Y60: 0.48 | Z60: 2.700000048 | AA60: 0.67 | AB60: 2.799999952 | AC60: 0.69 | AD60: 3.400000095 | AE60: 0.56
A61: 7161 | B61: 7161 MAST Academy | C61: 169 | D61: 45.70000076 | E61: 0.8 | F61: 4.199999809 | G61: 0.83 | H61: 3.099999905 | I61: 0.78 | J61: 3.5 | K61: 0.87 | L61: 3.299999952 | M61: 0.81 | N61: 4.199999809 | O61: 0.83 | P61: 4.300000191 | Q61: 0.87 | R61: 3.400000095 | S61: 0.84 | T61: 3.099999905 | U61: 0.78 | V61: 1.899999976 | W61: 0.64 | X61: 3.5 | Y61: 0.7 | Z61: 3.400000095 | AA61: 0.86 | AB61: 3.299999952 | AC61: 0.83 | AD61: 4.5 | AE61: 0.76
A62: 7171 | B62: 7171 M.A.S.T At Homestead | C62: 159 | D62: 41.70000076 | E62: 0.73 | F62: 3.799999952 | G62: 0.76 | H62: 2.700000048 | I62: 0.69 | J62: 3.299999952 | K62: 0.81 | L62: 3 | M62: 0.76 | N62: 3.900000095 | O62: 0.78 | P62: 3.900000095 | Q62: 0.77 | R62: 3 | S62: 0.74 | T62: 2.900000095 | U62: 0.73 | V62: 1.799999952 | W62: 0.59 | X62: 3 | Y62: 0.61 | Z62: 3.099999905 | AA62: 0.77 | AB62: 3.200000048 | AC62: 0.79 | AD62: 4.199999809 | AE62: 0.69
A63: 7191 | B63: 7191 Hialeah Gardens High School | C63: 792 | D63: 30.39999962 | E63: 0.53 | F63: 2.799999952 | G63: 0.55 | H63: 1.799999952 | I63: 0.45 | J63: 2.599999905 | K63: 0.64 | L63: 2.099999905 | M63: 0.54 | N63: 2.900000095 | O63: 0.59 | P63: 2.700000048 | Q63: 0.53 | R63: 2.200000048 | S63: 0.54 | T63: 2.099999905 | U63: 0.52 | V63: 1.200000048 | W63: 0.4 | X63: 2.099999905 | Y63: 0.42 | Z63: 2.400000095 | AA63: 0.59 | AB63: 2.400000095 | AC63: 0.6 | AD63: 3.200000048 | AE63: 0.53
A64: 7201 | B64: 7201 Miami Beach Senior high School | C64: 401 | D64: 31 | E64: 0.54 | F64: 3 | G64: 0.6 | H64: 1.799999952 | I64: 0.44 | J64: 2.599999905 | K64: 0.65 | L64: 2.299999952 | M64: 0.57 | N64: 2.900000095 | O64: 0.59 | P64: 2.700000048 | Q64: 0.53 | R64: 2.200000048 | S64: 0.56 | T64: 2.099999905 | U64: 0.53 | V64: 1.200000048 | W64: 0.4 | X64: 2.299999952 | Y64: 0.45 | Z64: 2.299999952 | AA64: 0.59 | AB64: 2.5 | AC64: 0.61 | AD64: 3.200000048 | AE64: 0.53
A65: 7231 | B65: 7231 Miami Carol City Sr. High | C65: 410 | D65: 28.70000076 | E65: 0.5 | F65: 2.700000048 | G65: 0.54 | H65: 1.700000048 | I65: 0.43 | J65: 2.599999905 | K65: 0.64 | L65: 2 | M65: 0.49 | N65: 2.799999952 | O65: 0.56 | P65: 2.5 | Q65: 0.5 | R65: 2 | S65: 0.51 | T65: 2 | U65: 0.5 | V65: 1.100000024 | W65: 0.37 | X65: 1.899999976 | Y65: 0.39 | Z65: 2.099999905 | AA65: 0.53 | AB65: 2.299999952 | AC65: 0.56 | AD65: 2.900000095 | AE65: 0.49
